Workbook

Sheet Introduction
B5: Local Area Migration
B26: The main worksheets are:
B28: Information on Indicators and Data Sources | E28: Gives information on the different data sources used for the indicators
B29: Comparing Indicators | E29: Allows you to compare up to three indicators for one selected area
B30: Comparing Areas | E30: Allows you to compare up to three Council areas for one selected indicator
B31: Comparing NHS Board Areas | E31: Allows you to compare up to three NHS Board areas for one selected indicator
B34: Background data and information on the data source is also available:
B36: Total net migration | F36: Information | G36: Data
B37: Total net migration for ages 0-15 | F37: Information | G37: Data
B38: Total net migration for ages 16-64 | F38: Information | G38: Data
B39: Total net migration for people aged 65+ | F39: Information | G39: Data
B40: Total in-migration | F40: Information | G40: Data
B41: Total out-migration | F41: Information | G41: Data
B42: Within Scotland net migration | F42: Information | G42: Data
B43: Within Scotland in-migration | F43: Information | G43: Data
B44: Within Scotland out-migration | F44: Information | G44: Data
B45: Rest of UK net migration | F45: Information | G45: Data
B46: Rest of UK in-migration | F46: Information | G46: Data
B47: Rest of UK out-migration | F47: Information | G47: Data
B48: Overseas net migration | F48: Information | G48: Data
B49: Overseas in-migration | F49: Information | G49: Data
B50: Overseas out-migration | F50: Information | G50: Data
B51: Census population by country of birth | F51: Information | G51: Data
B52: Population born outside the UK | F52: Information | G52: Data
B53: Population with non-British nationality | F53: Information | G53: Data
B54: National Insurance Number (NINo) allocations | F54: Information | G54: Data
B55: Worker Registration Scheme | F55: Information | G55: Data
B56: Pupils from a minority ethnic group | F56: Information | G56: Data
B57: Pupils with English as an additional language | F57: Information | G57: Data
B58: Births to non-UK mothers | F58: Information | G58: Data
B59: Citizenships | F59: Information | G59: Data
B61: © Crown Copyright 2018

Sheet Information
C5: Information on Indicators and Data Sources
C7: This page contains information on the strengths and weaknesses of each indicator. Similar information is provided for some key data sources of migration data. Links are also provided to further information.
C9: Click on the title to view information on the indicator:
C11: Total net migration
C12: Total net migration for ages 0-15
C13: Total net migration for ages 16-64
C14: Total net migration for people aged 65+
C15: Total in-migration
C16: Total out-migration
C17: Within Scotland net migration
C18: Within Scotland in-migration
C19: Within Scotland out-migration
C20: Rest of UK net migration
C21: Rest of UK in-migration
C22: Rest of UK out-migration
C23: Overseas net migration
C24: Overseas in-migration
C25: Overseas out-migration
C26: Census population by country of birth
C27: Population born outside the UK
C28: Population with non-British nationality
C29: National Insurance Number (NINo) allocations
C30: Worker Registration Scheme
C31: Pupils from a minority ethnic group
C32: Pupils with English as an additional language
C33: Births to non-UK mothers
C34: Citizenships
C36: Additional information on key data sources used for the indicators:
C37: Community Health Index (CHI)
C38: International Passenger Survey (IPS)
C39: National Health Service Central Register (NHSCR)
C40: NRS mid-year population and migration estimates
C42: Total net migration
C43: Indicator of: | D43: Difference between in and out migration from overseas, the rest of the UK and within Scotland.
C44: Information: | D44: These figures are National Statistics published by NRS relating to total net migration (difference between immigration and emigration). They include asylum seekers and rounding adjustments. Refugees are also included for 2015-16 onwards. More information on the methodology for the NRS migration estimates can be found in the Migration section of this website.
C45: Strengths: | D45: Provides an estimate of all long-term migrants (i.e. those that stay for 12 months or more) at Council and NHS Board area level.
D46: These estimates are National Statistics.
C47: Weaknesses: | D47: Estimates are only produced annually, about 10 months after the period to which they refer, and rely on administrative and survey data rather than a comprehensive count of people moving.
C48: Source: | D48: Total Migration To and From an Area section of the NRS website
C50: Total net migration for ages 0-15
C51: Indicator of: | D51: Difference between in and out migration from overseas, the rest of the UK and within Scotland of people aged 15 and under.
C52: Information: | D52: These figures include asylum seekers and rounding adjustments. Refugees are also included for 2015-16 onwards. More information on the methodology for the NRS migration estimates can be found in the Migration section of this website.
C53: Strengths: | D53: Provides an estimate of all long-term migrants (i.e. those that stay for 12 months or more) within this age group at Council and NHS Board area level.
D54: These estimates are National Statistics.
C55: Weaknesses: | D55: Estimates are only produced annually, about 10 months after the period to which they refer, and rely on administrative and survey data rather than a comprehensive count of people moving.
C56: Source: | D56: Total Migration To and From an Area section of the NRS website
C58: Total net migration for ages 16-64
C59: Indicator of: | D59: Difference between in and out migration from overseas, the rest of the UK and within Scotland of people aged between 16 and 64.
C60: Information: | D60: These figures include asylum seekers and rounding adjustments. Refugees are also included for 2015-16 onwards. More information on the methodology for the NRS migration estimates can be found in the Migration section of this website.
C61: Strengths: | D61: Provides an estimate of all long-term migrants (i.e. those that stay for 12 months or more) within this age group at Council and NHS Board area level.
D62: These estimates are National Statistics.
C63: Weaknesses: | D63: Estimates are only produced annually, about 10 months after the period to which they refer, and rely on administrative and survey data rather than a comprehensive count of people moving.
C64: Source: | D64: Total Migration To and From an Area section of the NRS website
C66: Total net migration for ages 65+
C67: Indicator of: | D67: Difference between in and out migration from overseas, the rest of the UK and within Scotland of people aged 65 and over.
C68: Information: | D68: These figures include asylum seekers and rounding adjustments. Refugees are also included for 2015-16 onwards. More information on the methodology for the NRS migration estimates can be found in the Migration section of this website.
C69: Strengths: | D69: Provides an estimate of all long-term migrants (i.e. those that stay for 12 months or more) within this age group at Council and NHS Board area level.
D70: These estimates are National Statistics.
C71: Weaknesses: | D71: Estimates are only produced annually, about 10 months after the period to which they refer, and rely on administrative and survey data rather than a comprehensive count of people moving.
C72: Source: | D72: Total Migration To and From an Area section of the NRS website
C74: Total in-migration
C75: Indicator of: | D75: Flow of people to administrative areas in Scotland from overseas, the rest of the UK and other areas within Scotland
C76: Information: | D76: These figures are the NRS National Statistics for total in-migration. Figures include asylum seekers, refugees are also included for 2015-16 onwards. Scotland level estimates cannot be derived by adding together the estimates for individual Council areas or NHS Board areas because administrative area estimates include moves within Scotland. It would not, therefore, be appropriate to compare total in-migration for Scotland with total in-migration for an administrative area. More information on the methodology for the NRS migration estimates can be found in the Migration section of this website.
C77: Strengths: | D77: These estimates are National Statistics.
C78: Weaknesses: | D78: Estimates are only produced annually, about 10 months after the period to which they refer, and rely on administrative and survey data rather than a comprehensive count of people moving.
C79: Source: | D79: Total Migration To and From an Area section of the NRS website
C81: Total out-migration
C82: Indicator of: | D82: Flow of people from administrative areas in Scotland to overseas, the rest of the UK and other areas within Scotland
C83: Information: | D83: These figures are the NRS National Statistics for total in-migration. Figures include asylum seekers. Scotland level estimates cannot be derived by adding together the estimates for individual Council areas or NHS Board areas because administrative area estimates include moves within Scotland. It would not, therefore, be appropriate to compare total in-migration for Scotland with total in-migration for an administrative area. More information on the methodology for the NRS migration estimates can be found in the Migration section of this website.
C84: Strengths: | D84: These estimates are National Statistics.
C85: Weaknesses: | D85: Estimates are only produced annually, about 10 months after the period to which they refer, and rely on administrative and survey data rather than a comprehensive count of people moving.
C86: Source: | D86: Total Migration To and From an Area section of the NRS website
C88: Within Scotland net migration
C89: Indicator of: | D89: Net migration between administrative areas within Scotland
C90: Information: | D90: Moves within Scotland at Council area level are derived from a combination of the National Health Service Central Register (NHSCR) and the Community Health Index (CHI), and from the NHSCR for NHS Board areas. More information on the methodology for the NRS migration estimates can be found in the Migration section of this website.
C91: Strengths: | D91: These estimates are National Statistics.
C92: Weaknesses: | D92: Estimates are only produced annually, about 10 months after the period to which they refer, and rely on administrative and survey data rather than a comprehensive count of people moving.
C93: Source: | D93: Migration within Scotland section of the NRS website
C95: Within Scotland in-migration
C96: Indicator of: | D96: Flow of people to administrative areas in Scotland from other areas within Scotland
C97: Information: | D97: Moves within Scotland at Council area level are derived from a combination of the National Health Service Central Register (NHSCR) and the Community Health Index (CHI), and from the NHSCR for NHS Board areas. More information on the methodology for the NRS migration estimates can be found in the Migration section of this website.
C98: Strengths: | D98: These estimates are National Statistics.
C99: Weaknesses: | D99: Estimates are only produced annually, about 10 months after the period to which they refer, and rely on administrative and survey data rather than a comprehensive count of people moving.
C100: Source: | D100: Migration within Scotland section of the NRS website
C102: Within Scotland out-migration
C103: Indicator of: | D103: Flow of people from administrative areas in Scotland to other areas within Scotland
C104: Information: | D104: Moves within Scotland at Council area level are derived from a combination of the National Health Service Central Register (NHSCR) and the Community Health Index (CHI), and from the NHSCR for NHS Board areas. More information on the methodology for the NRS migration estimates can be found in the Migration section of this website.
C105: Strengths: | D105: These estimates are National Statistics.
C106: Weaknesses: | D106: Estimates are only produced annually, about 10 months after the period to which they refer, and rely on administrative and survey data rather than a comprehensive count of people moving.
C107: Source: | D107: Migration within Scotland section of the NRS website
C109: Rest of UK net migration
C110: Indicator of: | D110: Net migration between administrative areas in Scotland and the rest of the UK
C111: Information: | D111: These are the NRS National Statistics for rest of UK migration. Moves between Scottish administrative areas and the rest of the UK are derived from the National Health Service Central Register (NHSCR) and Community Health Index (CHI). Moves between Scotland and the rest of the UK used here do not include movements to/from the armed forces. More information on the methodology for the NRS migration estimates can be found in the Migration section of this website.
C112: Strengths: | D112: These estimates are National Statistics.
C113: Weaknesses: | D113: Estimates are only produced annually at Scottish administrative area level, about 10 months after the period to which they refer, and rely on administrative and survey data rather than a comprehensive count of people moving.
C114: Source: | D114: Migration between Scotland and Rest of the UK section of NRS website
C116: Rest of UK in-migration
C117: Indicator of: | D117: Flow of people to administrative areas in Scotland from the rest of the UK
C118: Information: | D118: These are the NRS National Statistics for rest of UK migration. Moves between Scottish administrative areas and the rest of the UK are derived from the National Health Service Central Register (NHSCR) and Community Health Index (CHI). Moves between Scotland and the rest of the UK used here do not include movements to/from the armed forces. More information on the methodology for the NRS migration estimates can be found in the Migration section of this website.
C119: Strengths: | D119: These estimates are National Statistics.
C120: Weaknesses: | D120: Estimates are only produced annually at Scottish administrative area level, about 10 months after the period to which they refer, and rely on administrative and survey data rather than a comprehensive count of people moving.
C121: Source: | D121: Migration between Scotland and Rest of the UK section of NRS website
C123: Rest of UK out-migration
C124: Indicator of: | D124: Flow of people from administrative areas in Scotland to the rest of the UK
C125: Information: | D125: These are the NRS National Statistics for rest of UK migration. Moves between Scottish administrative areas and the rest of the UK are derived from the National Health Service Central Register (NHSCR) and Community Health Index (CHI). Moves between Scotland and the rest of the UK used here do not include movements to/from the armed forces. More information on the methodology for the NRS migration estimates can be found in the Migration section of this website.
C126: Strengths: | D126: These estimates are National Statistics.
C127: Weaknesses: | D127: Estimates are only produced annually at Scottish administrative area level, about 10 months after the period to which they refer, and rely on administrative and survey data rather than a comprehensive count of people moving.
C128: Source: | D128: Migration between Scotland and Rest of the UK section of NRS website
C130: Overseas net migration
C131: Indicator of: | D131: Net migration to/from overseas
C132: Information: | D132: These are the NRS National Statistics for overseas net migration. There is not a single, all-inclusive system in place to measure all movements of the population into and out of the UK. Therefore, data from the International Passenger Survey (IPS), the Home Office, and the Labour Force Survey (LFS) is combined to compile the National Statistics estimates of international migration into Scotland. Data from the National Health Service Central Register (NHSCR) and the Community Health Index (CHI) is also used for this process. More information on the methodology for the NRS migration estimates can be found in the Migration section of this website. Asylum seekers are included for all years, refugees are also included for 2015-16 onwards.
C133: Strengths: | D133: These estimates are National Statistics.
C134: Weaknesses: | D134: The IPS sample size for Scotland is small, making the estimates less reliable.
D135: Estimates are only produced annually, about 10 months after the period to which they refer.
C136: Source: | D136: Migration between Scotland and Overseas section of the NRS website
C138: Overseas in-migration
C139: Indicator of: | D139: Flow of people to administrative areas in Scotland from overseas
C140: Information: | D140: These are the NRS National Statistics for overseas in-migration. There is not a single, all-inclusive system in place to measure all movements of the population into and out of the UK. Therefore, data from the International Passenger Survey (IPS), the Home Office, and the Labour Force Survey (LFS) is combined to compile the National Statistics estimates of international migration into Scotland. Data from the National Health Service Central Register (NHSCR) and the Community Health Index (CHI) is also used for this process. More information on the methodology for the NRS migration estimates can be found in the Migration section of this website. Asylum seekers are included for all years, refugees are also included for 2015-16 onwards.
C141: Strengths: | D141: These estimates are National Statistics.
C142: Weaknesses: | D142: The IPS sample size for Scotland is small, making the estimates less reliable.
D143: Estimates are only produced annually, about 10 months after the period to which they refer.
C144: Source: | D144: Migration between Scotland and Overseas section of the NRS website
C146: Overseas out-migration
C147: Indicator of: | D147: Flow of persons from administrative areas in Scotland to overseas
C148: Information: | D148: These are the NRS National Statistics for overseas out-migration. There is not a single, all-inclusive system in place to measure all movements of the population into and out of the UK. Therefore, data from the International Passenger Survey (IPS), the Home Office, and the Labour Force Survey (LFS) is combined to compile the National Statistics estimates of international migration into Scotland. Data from the National Health Service Central Register (NHSCR) and the Community Health Index (CHI) is also used for this process. Figures for 2003/04 to 2010/11 have been revised from the previous release to include improvements in estimating international out-migration. More information on the methodology for the NRS migration estimates can be found in the Migration section of this website. Asylum seekers are included in these figures.
C149: Strengths: | D149: These estimates are National Statistics.
C150: Weaknesses: | D150: The IPS sample size for Scotland is small, making the estimates less reliable.
D151: Estimates are only produced annually, about 10 months after the period to which they refer.
C152: Source: | D152: Migration between Scotland and Overseas section of the NRS website
C154: Population born outside the UK
C155: Indicator of: | D155: resident population ('stock') of migrants based on those with non-UK country of birth
C156: Information: | D156: The country of birth data from the Annual Population Survey (APS) is used for this indicator. This information gives an estimate of the number of people living in Scotland who were born outside the UK. The data is available from 2004, on a calendar year basis. The APS comprises of data from the Labour Force Survey (LFS), plus data from the Annual Local (Area) Labour Force Survey Boosts for England, Scotland and Wales. It is updated quarterly and is published about 8 months after the time period to which it refers. Data is available at council area level although some data is suppressed. Suppressed estimates are indicated with a '*'.
C157: Strengths: | D157: Gives a more robust estimate of change over time than looking at nationality as an individual's nationality can change.
C158: Weaknesses: | D158: LFS excludes most communal establishments and foreign students living in halls of residence, and so the number of foreign born migrants is likely to be under-reported.
D159: For some council areas an estimate cannot be made from the APS as the number of people born outside the UK is too small for the estimate to be reliable.
D160: Some people born outside the UK may have lived in the UK for a long time and are therefore not regarded as migrants.
C161: Source: | D161: Population by Country of Birth and Nationality section of the NRS website
C163: Population with non-British nationality
C164: Indicator of: | D164: resident population ('stock') of migrants based on those with non-British nationality
C165: Information: | D165: The nationality data from the Annual Population Survey (APS) is used for this indicator. This information gives an estimate of the number of people living in Scotland who hold non-British nationality. The data is available from 2004, on a calendar year basis. The APS comprises of data from the Labour Force Survey (LFS), plus data from the Annual Local (Area) Labour Force Survey Boosts for England, Scotland and Wales. It is updated quarterly and is published about 8 months after the time period to which it refers. Data is available at council area level although some data is suppressed. Suppressed estimates are indicated with a '*'.
C166: Strengths: | D166: Gives a more up to date look at migration than country of birth data, as people who were born overseas but have lived here for many years are not regarded as migrants.
C167: Weaknesses: | D167: LFS excludes most communal establishments and foreign students living in halls of residence, and so the number of foreign born migrants is likely to be under-reported.
D168: For some council areas an estimate cannot be made from the APS as the number of people born outside the UK is too small for the estimate to be reliable.
D169: An individuals nationality can change, meaning time series' are less robust than for country of birth data.
C170: Source: | D170: Population by Country of Birth and Nationality section of the NRS website
C172: National Insurance Number (NINo) allocations to adult overseas nationals entering the UK
C173: Indicator of: | D173: Inflow of overseas nationals
C174: Information: | D174: These data have been obtained using the Stat-Xplore tool on the DWP website, which has annual Council area data. Data used here is on a calendar year basis.
C175: Strengths: | D175: Includes any overseas national looking to work or claim benefits/tax credits in the UK, self-employed or students working part-time.
D176: Provides Council area level data.
D177: Location data relates to the residence of individual, not their employer.
C178: Weaknesses: | D178: Based on the date of registration not the date of arrival, and the lag between the two can often be a year or even longer. Random adjustments have been applied to the data to avoid the disclosure of confidential information.
D179: Excludes those not working, or planning to work or claim benefits, so children and students that don't work are not included.
D180: Excludes returning UK nationals.
D181: Does not provide any outflow information or overall stock.
D182: Includes migrants staying less than one month as there is no minimum stay for registration.
D183: Data reflects the migrant's first destination or location at registration, not where migrants settle nor does it reflect the stock of migrants nationally.
C184: Source: | D184: Department for Work and Pensions - Stat-Xplore
C186: Worker Registration Scheme (WRS)
C187: Indicator of: | D187: Employees from A8 countries
C188: Information: | D188: The Worker Registration Scheme started in May 2004 and was discontinued on 1 May 2011. Nationals of the A8 countries (Czech Republic, Estonia, Hungary, Latvia, Lithuania, Poland, Slovakia, and Slovenia) who wished to take up employment in the UK for a period of at least a month were generally required to register with the WRS. The data used for the WRS indicator at Scotland level was taken from the Home Office 'Accession Monitoring Report' series, which was published quarterly. Council level data is no longer available online, but can be requested from the Local Government Association (LGA) - info@local.gov.uk.
C189: Strengths: | D189: In addition to total numbers registered, information on gender, age, industry, nationality and hourly rate is also available. (Detailed breakdowns are not shown here.)
D190: Provides Council area data.
C191: Weaknesses: | D191: Excludes the self-employed; those not working; those not from A8 countries; people working for an employer who is not established in this country; those who hold dual citizenship of the UK, another country within the European Economic Area (EEA), or Switzerland.
D192: Does not provide any indication of out-migration.
D193: Only provides an indication of in-flow, not stock as it is not necessary to deregister.
D194: Dates relate to the date the application is approved, not date of entry to UK.
D195: Location data relates to that of the employer, not where the individual lives, and migrants may move to a different location after their first registration.
D196: Dependents of those registering are recorded and so may be double counted.
C197: Source: | D197: Local Government Association, Worker Registration Scheme Data Archive (no longer available online)
C199: Pupils from a minority ethnic group
C200: Indicator of: | D200: School aged children by ethnicity
C201: Information: | D201: These figures come from the Pupil Census which is collected by the Scottish Government through the ScotXed programme, and are available annually from 2003. The Pupil Census covers all publicly funded schools in Scotland (local authority and grant-aided). It is conducted in September and the data is published in December on the Scottish Government website.
C202: Strengths: | D202: Data is reasonably current.
D203: Can provide an indication of where migrant families with school aged children live, rather than work.
C204: Weaknesses: | D204: Provides no information about migrants without school aged children.
D205: Although over 97.5 per cent of pupils disclosed their ethnic background, some pupils' ethnicity was in the 'unknown' category.
D206: No specific nationality data.
D207: Only includes children in publicly funded schools.
D208: Non migrants may be from a minority ethnic group.
C209: Source: | D209: Pupil Census, Scottish Government
C211: Pupils with English as an additional language
C212: Indicator of: | D212: Migrants from non-English speaking countries with school aged children
C213: Information: | D213: These figures come from the Pupil Census which is collected by the Scottish Government through the ScotXed programme, and are available annually from 2003. The Pupil Census covers all publicly funded schools in Scotland (local authority and grant-aided). It is conducted in September and the data is published in December on the Scottish Government website.
C214: Strengths: | D214: Data is reasonably current.
D215: Can provide an indication of where migrant families with school aged children live, rather than work.
C216: Weaknesses: | D216: Provides no information about migrants without school aged children.
D217: No specific nationality data.
D218: Only includes children in publicly funded schools.
D219: Excludes migrants from English speaking countries and those fluent in English.
D220: Includes non-recent migrants still speaking a different home language if pupils have English as an additional language.
C221: Source: | D221: Pupil Census, Scottish Government
C223: Births to non-UK mothers
C224: Indicator of: | D224: Number of babies born each year to mothers who had a non-UK country of birth
C225: Information: | D225: This data comes from the NRS Vital Events branch and is collected when the birth is registered. This data is published annually on a calendar year basis. Data is available back to 1996.
C226: Strengths: | D226: Gives an indication of migrants choosing to settle in an area.
C227: Weaknesses: | D227: Only gives information on a very specific group of migrants (i.e. mothers having children).
C228: Source: | D228: Births section of the Vital Events Reference Tables on the NRS website
C230: Citizenships
C231: Indicator of: | D231: Overseas nationals gaining UK citizenship
... 36 more rows

Sheet Info lookup (hidden)
C2: Indicator of: | D2: Information: | E2: Strengths: | F2: Weaknesses: | G2: Source:
A3: 1 | B3: Not specified | C3: ~ | D3: ~ | E3: ~ | F3: ~ | G3: ~
A4: 2 | B4: Total net migration | C4: =Information!D43 -> Difference between in and out migration from overseas, the rest of the UK and within Scotland. | D4: =Information!D44 -> These figures are National Statistics published by NRS relating to total net migration (difference between immigration and emigration). They include asylum seekers and rounding adjustments. Refugees are also included for 2015-16 onwards. More information on the methodology for the NRS migration estimates can be found in the Migration section of this website. | E4: =Information!D45 -> Provides an estimate of all long-term migrants (i.e. those that stay for 12 months or more) at Council and NHS Board area level. | F4: =CONCATENATE(Information!D47) -> Estimates are only produced annually, about 10 months after the period to which they refer, and rely on administrative and survey data rather than a comprehensive count of people moving. | G4: =Information!D48 -> Total Migration To and From an Area section of the NRS website
A5: 3 | B5: Total net migration for ages 0-15 | C5: =Information!D51 -> Difference between in and out migration from overseas, the rest of the UK and within Scotland of people aged 15 and under. | D5: =Information!D52 -> These figures include asylum seekers and rounding adjustments. Refugees are also included for 2015-16 onwards. More information on the methodology for the NRS migration estimates can be found in the Migration section of this website. | E5: =CONCATENATE(Information!D53,Information!D54) -> Provides an estimate of all long-term migrants (i.e. those that stay for 12 months or more) within this age group at Council and NHS Board area level.These estimates are National Statistics. | F5: =CONCATENATE(Information!D55) -> Estimates are only produced annually, about 10 months after the period to which they refer, and rely on administrative and survey data rather than a comprehensive count of people moving. | G5: =Information!D56 -> Total Migration To and From an Area section of the NRS website
A6: 4 | B6: Total net migration for ages 16 - 64 | C6: =Information!D59 -> Difference between in and out migration from overseas, the rest of the UK and within Scotland of people aged between 16 and 64. | D6: =Information!D60 -> These figures include asylum seekers and rounding adjustments. Refugees are also included for 2015-16 onwards. More information on the methodology for the NRS migration estimates can be found in the Migration section of this website. | E6: =CONCATENATE(Information!D61,Information!D62) -> Provides an estimate of all long-term migrants (i.e. those that stay for 12 months or more) within this age group at Council and NHS Board area level.These estimates are National Statistics. | F6: =CONCATENATE(Information!D63) -> Estimates are only produced annually, about 10 months after the period to which they refer, and rely on administrative and survey data rather than a comprehensive count of people moving. | G6: =Information!D64 -> Total Migration To and From an Area section of the NRS website
A7: 5 | B7: Total net migration for people aged 65+ | C7: =Information!D67 -> Difference between in and out migration from overseas, the rest of the UK and within Scotland of people aged 65 and over. | D7: =Information!D68 -> These figures include asylum seekers and rounding adjustments. Refugees are also included for 2015-16 onwards. More information on the methodology for the NRS migration estimates can be found in the Migration section of this website. | E7: =CONCATENATE(Information!D69,Information!D70) -> Provides an estimate of all long-term migrants (i.e. those that stay for 12 months or more) within this age group at Council and NHS Board area level.These estimates are National Statistics. | F7: =CONCATENATE(Information!D71) -> Estimates are only produced annually, about 10 months after the period to which they refer, and rely on administrative and survey data rather than a comprehensive count of people moving. | G7: =Information!D72 -> Total Migration To and From an Area section of the NRS website
A8: 6 | B8: Total in-migration | C8: =Information!D75 -> Flow of people to administrative areas in Scotland from overseas, the rest of the UK and other areas within Scotland | D8: =Information!D76 -> These figures are the NRS National Statistics for total in-migration. Figures include asylum seekers, refugees are also included for 2015-16 onwards. Scotland level estimates cannot be derived by adding together the estimates for individual Council areas or NHS Board areas because administrative area estimates include moves within Scotland. It would not, therefore, be appropriate to compare total in-migration for Scotland with total in-migration for an administrative area. More information on the methodology for the NRS migration estimates can be found in the Migration section of this website. | E8: =Information!D77 -> These estimates are National Statistics. | F8: =Information!D78 -> Estimates are only produced annually, about 10 months after the period to which they refer, and rely on administrative and survey data rather than a comprehensive count of people moving. | G8: =Information!D79 -> Total Migration To and From an Area section of the NRS website
A9: 7 | B9: Total out-migration | C9: =Information!D82 -> Flow of people from administrative areas in Scotland to overseas, the rest of the UK and other areas within Scotland | D9: =Information!D83 -> These figures are the NRS National Statistics for total in-migration. Figures include asylum seekers. Scotland level estimates cannot be derived by adding together the estimates for individual Council areas or NHS Board areas because administrative area estimates include moves within Scotland. It would not, therefore, be appropriate to compare total in-migration for Scotland with total in-migration for an administrative area. More information on the methodology for the NRS migration estimates can be found in the Migration section of this website. | E9: =Information!D84 -> These estimates are National Statistics. | F9: =Information!D85 -> Estimates are only produced annually, about 10 months after the period to which they refer, and rely on administrative and survey data rather than a comprehensive count of people moving. | G9: =Information!D86 -> Total Migration To and From an Area section of the NRS website
A10: 8 | B10: Within Scotland net migration | C10: =Information!D89 -> Net migration between administrative areas within Scotland | D10: =Information!D90 -> Moves within Scotland at Council area level are derived from a combination of the National Health Service Central Register (NHSCR) and the Community Health Index (CHI), and from the NHSCR for NHS Board areas. More information on the methodology for the NRS migration estimates can be found in the Migration section of this website. | E10: =Information!D91 -> These estimates are National Statistics. | F10: =Information!D92 -> Estimates are only produced annually, about 10 months after the period to which they refer, and rely on administrative and survey data rather than a comprehensive count of people moving. | G10: =Information!D93 -> Migration within Scotland section of the NRS website
A11: 9 | B11: Within Scotland in-migration | C11: =Information!D96 -> Flow of people to administrative areas in Scotland from other areas within Scotland | D11: =Information!D97 -> Moves within Scotland at Council area level are derived from a combination of the National Health Service Central Register (NHSCR) and the Community Health Index (CHI), and from the NHSCR for NHS Board areas. More information on the methodology for the NRS migration estimates can be found in the Migration section of this website. | E11: =Information!D98 -> These estimates are National Statistics. | F11: =Information!D99 -> Estimates are only produced annually, about 10 months after the period to which they refer, and rely on administrative and survey data rather than a comprehensive count of people moving. | G11: =Information!D100 -> Migration within Scotland section of the NRS website
A12: 10 | B12: Within Scotland out-migration | C12: =Information!D103 -> Flow of people from administrative areas in Scotland to other areas within Scotland | D12: =Information!D104 -> Moves within Scotland at Council area level are derived from a combination of the National Health Service Central Register (NHSCR) and the Community Health Index (CHI), and from the NHSCR for NHS Board areas. More information on the methodology for the NRS migration estimates can be found in the Migration section of this website. | E12: =Information!D105 -> These estimates are National Statistics. | F12: =Information!D106 -> Estimates are only produced annually, about 10 months after the period to which they refer, and rely on administrative and survey data rather than a comprehensive count of people moving. | G12: =Information!D107 -> Migration within Scotland section of the NRS website
A13: 11 | B13: Rest of UK net migration | C13: =Information!D110 -> Net migration between administrative areas in Scotland and the rest of the UK | D13: =Information!D111 -> These are the NRS National Statistics for rest of UK migration. Moves between Scottish administrative areas and the rest of the UK are derived from the National Health Service Central Register (NHSCR) and Community Health Index (CHI). Moves between Scotland and the rest of the UK used here do not include movements to/from the armed forces. More information on the methodology for the NRS migration estimates can be found in the Migration section of this website. | E13: =Information!D112 -> These estimates are National Statistics. | F13: =CONCATENATE(Information!D113,Information!#REF!) ->  | G13: =Information!D114 -> Migration between Scotland and Rest of the UK section of NRS website
A14: 12 | B14: Rest of UK in-migration | C14: =Information!D117 -> Flow of people to administrative areas in Scotland from the rest of the UK | D14: =Information!D118 -> These are the NRS National Statistics for rest of UK migration. Moves between Scottish administrative areas and the rest of the UK are derived from the National Health Service Central Register (NHSCR) and Community Health Index (CHI). Moves between Scotland and the rest of the UK used here do not include movements to/from the armed forces. More information on the methodology for the NRS migration estimates can be found in the Migration section of this website. | E14: =Information!D119 -> These estimates are National Statistics. | F14: =CONCATENATE(Information!D120,Information!#REF!) ->  | G14: =Information!D121 -> Migration between Scotland and Rest of the UK section of NRS website
A15: 13 | B15: Rest of UK out-migration | C15: =Information!D124 -> Flow of people from administrative areas in Scotland to the rest of the UK | D15: =Information!D125 -> These are the NRS National Statistics for rest of UK migration. Moves between Scottish administrative areas and the rest of the UK are derived from the National Health Service Central Register (NHSCR) and Community Health Index (CHI). Moves between Scotland and the rest of the UK used here do not include movements to/from the armed forces. More information on the methodology for the NRS migration estimates can be found in the Migration section of this website. | E15: =Information!D126 -> These estimates are National Statistics. | F15: =CONCATENATE(Information!D127,Information!#REF!) ->  | G15: =Information!D128 -> Migration between Scotland and Rest of the UK section of NRS website
A16: 14 | B16: Overseas net migration | C16: =Information!D131 -> Net migration to/from overseas | D16: =Information!D132 -> These are the NRS National Statistics for overseas net migration. There is not a single, all-inclusive system in place to measure all movements of the population into and out of the UK. Therefore, data from the International Passenger Survey (IPS), the Home Office, and the Labour Force Survey (LFS) is combined to compile the National Statistics estimates of international migration into Scotland. Data from the National Health Service Central Register (NHSCR) and the Community Health Index (CHI) is also used for this process. More information on the methodology for the NRS migration estimates can be found in the Migration section of this website. Asylum seekers are included for all years, refugees are also included for 2015-16 onwards. | E16: =Information!D133 -> These estimates are National Statistics. | F16: =CONCATENATE(Information!D134,Information!D135) -> The IPS sample size for Scotland is small, making the estimates less reliable. Estimates are only produced annually, about 10 months after the period to which they refer. | G16: =Information!D136 -> Migration between Scotland and Overseas section of the NRS website
A17: 15 | B17: Overseas in-migration | C17: =Information!D139 -> Flow of people to administrative areas in Scotland from overseas | D17: =Information!D140 -> These are the NRS National Statistics for overseas in-migration. There is not a single, all-inclusive system in place to measure all movements of the population into and out of the UK. Therefore, data from the International Passenger Survey (IPS), the Home Office, and the Labour Force Survey (LFS) is combined to compile the National Statistics estimates of international migration into Scotland. Data from the National Health Service Central Register (NHSCR) and the Community Health Index (CHI) is also used for this process. More information on the methodology for the NRS migration estimates can be found in the Migration section of this website. Asylum seekers are included for all years, refugees are also included for 2015-16 onwards. | E17: =Information!D141 -> These estimates are National Statistics. | F17: =CONCATENATE(Information!D142,Information!D143) -> The IPS sample size for Scotland is small, making the estimates less reliable. Estimates are only produced annually, about 10 months after the period to which they refer. | G17: =Information!D144 -> Migration between Scotland and Overseas section of the NRS website
A18: 16 | B18: Overseas out-migration | C18: =Information!D147 -> Flow of persons from administrative areas in Scotland to overseas | D18: =Information!D148 -> These are the NRS National Statistics for overseas out-migration. There is not a single, all-inclusive system in place to measure all movements of the population into and out of the UK. Therefore, data from the International Passenger Survey (IPS), the Home Office, and the Labour Force Survey (LFS) is combined to compile the National Statistics estimates of international migration into Scotland. Data from the National Health Service Central Register (NHSCR) and the Community Health Index (CHI) is also used for this process. Figures for 2003/04 to 2010/11 have been revised from the previous release to include improvements in estimating international out-migration. More information on the methodology for the NRS migration estimates can be found in the Migration section of this website. Asylum seekers are included in these figures. | E18: =Information!D149 -> These estimates are National Statistics. | F18: =CONCATENATE(Information!D150,Information!D151) -> The IPS sample size for Scotland is small, making the estimates less reliable. Estimates are only produced annually, about 10 months after the period to which they refer. | G18: =Information!D152 -> Migration between Scotland and Overseas section of the NRS website
A19: 17 | B19: National Insurance Number (NINo) allocations to adult overseas nationals entering the UK | C19: =Information!D173 -> Inflow of overseas nationals | D19: =Information!D174 -> These data have been obtained using the Stat-Xplore tool on the DWP website, which has annual Council area data. Data used here is on a calendar year basis. | E19: =CONCATENATE(Information!D175,Information!D176,Information!D177) -> Includes any overseas national looking to work or claim benefits/tax credits in the UK, self-employed or students working part-time. Provides Council area level data. Location data relates to the residence of individual, not their employer. | F19: =CONCATENATE(Information!D178,Information!D179,Information!D180,Information!D181,Information!D182,Information!D183) -> Based on the date of registration not the date of arrival, and the lag between the two can often be a year or even longer. Random adjustments have been applied to the data to avoid the disclosure of confidential information. Excludes those not working, or planning to work or claim benefits, so children and students that don't work are not included. Excludes returning UK nationals. Does not provide any outflow information or overall stock. Includes migrants staying less than one month as there is no minimum stay for registration. Data reflects the migrant's first destination or location at registration, not where migrants settle nor does it reflect the stock of migrants nationally. | G19: =Information!D184 -> Department for Work and Pensions - Stat-Xplore
A20: 18 | B20: Births to non-UK mothers | C20: =Information!D224 -> Number of babies born each year to mothers who had a non-UK country of birth | D20: =Information!D225 -> This data comes from the NRS Vital Events branch and is collected when the birth is registered. This data is published annually on a calendar year basis. Data is available back to 1996. | E20: =Information!D226 -> Gives an indication of migrants choosing to settle in an area. | F20: =Information!D227 -> Only gives information on a very specific group of migrants (i.e. mothers having children). | G20: =Information!D228 -> Births section of the Vital Events Reference Tables on the NRS website
A21: 19 | B21: Pupils from a minority ethnic group | C21: =Information!D200 -> School aged children by ethnicity | D21: =Information!D201 -> These figures come from the Pupil Census which is collected by the Scottish Government through the ScotXed programme, and are available annually from 2003. The Pupil Census covers all publicly funded schools in Scotland (local authority and grant-aided). It is conducted in September and the data is published in December on the Scottish Government website. | E21: =CONCATENATE(Information!D202,Information!D203) -> Data is reasonably current. Can provide an indication of where migrant families with school aged children live, rather than work. | F21: =CONCATENATE(Information!D204,Information!D205,Information!D206,Information!D207,Information!D208) -> Provides no information about migrants without school aged children. Although over 97.5 per cent of pupils disclosed their ethnic background, some pupils' ethnicity was in the 'unknown' category. No specific nationality data. Only includes children in publicly funded schools. Non migrants may be from a minority ethnic group. | G21: =Information!D209 -> Pupil Census, Scottish Government
A22: 20 | B22: Pupils with English as an additional language | C22: =Information!D212 -> Migrants from non-English speaking countries with school aged children | D22: =Information!D213 -> These figures come from the Pupil Census which is collected by the Scottish Government through the ScotXed programme, and are available annually from 2003. The Pupil Census covers all publicly funded schools in Scotland (local authority and grant-aided). It is conducted in September and the data is published in December on the Scottish Government website. | E22: =CONCATENATE(Information!D214,Information!D215) -> Data is reasonably current. Can provide an indication of where migrant families with school aged children live, rather than work. | F22: =CONCATENATE(Information!D216,Information!D217,Information!D218,Information!D219,Information!D220) -> Provides no information about migrants without school aged children. No specific nationality data. Only includes children in publicly funded schools. Excludes migrants from English speaking countries and those fluent in English. Includes non-recent migrants still speaking a different home language if pupils have English as an additional language. | G22: =Information!D221 -> Pupil Census, Scottish Government
A23: 21 | B23: Population born outside the UK | C23: =Information!D155 -> resident population ('stock') of migrants based on those with non-UK country of birth | D23: =Information!D156 -> The country of birth data from the Annual Population Survey (APS) is used for this indicator. This information gives an estimate of the number of people living in Scotland who were born outside the UK. The data is available from 2004, on a calendar year basis. The APS comprises of data from the Labour Force Survey (LFS), plus data from the Annual Local (Area) Labour Force Survey Boosts for England, Scotland and Wales. It is updated quarterly and is published about 8 months after the time period to which it refers. Data is available at council area level although some data is suppressed. Suppressed estimates are indicated with a '*'. | E23: =Information!D157 -> Gives a more robust estimate of change over time than looking at nationality as an individual's nationality can change. | F23: =CONCATENATE(Information!D158,Information!D159,Information!D160) -> LFS excludes most communal establishments and foreign students living in halls of residence, and so the number of foreign born migrants is likely to be under-reported. For some council areas an estimate cannot be made from the APS as the number of people born outside the UK is too small for the estimate to be reliable. Some people born outside the UK may have lived in the UK for a long time and are therefore not regarded as migrants. | G23: =Information!D161 -> Population by Country of Birth and Nationality section of the NRS website
A24: 22 | B24: Population with non-British nationality | C24: =Information!D164 -> resident population ('stock') of migrants based on those with non-British nationality | D24: =Information!D165 -> The nationality data from the Annual Population Survey (APS) is used for this indicator. This information gives an estimate of the number of people living in Scotland who hold non-British nationality. The data is available from 2004, on a calendar year basis. The APS comprises of data from the Labour Force Survey (LFS), plus data from the Annual Local (Area) Labour Force Survey Boosts for England, Scotland and Wales. It is updated quarterly and is published about 8 months after the time period to which it refers. Data is available at council area level although some data is suppressed. Suppressed estimates are indicated with a '*'. | E24: =Information!D166 -> Gives a more up to date look at migration than country of birth data, as people who were born overseas but have lived here for many years are not regarded as migrants. | F24: =CONCATENATE(Information!D167,Information!D168,Information!D169) -> LFS excludes most communal establishments and foreign students living in halls of residence, and so the number of foreign born migrants is likely to be under-reported. For some council areas an estimate cannot be made from the APS as the number of people born outside the UK is too small for the estimate to be reliable. An individuals nationality can change, meaning time series' are less robust than for country of birth data. | G24: =Information!D170 -> Population by Country of Birth and Nationality section of the NRS website
A25: 23 | B25: Citizenships | C25: =Information!D231 -> Overseas nationals gaining UK citizenship | D25: =Information!D232 -> Definition of citizenship ceremonies: A ceremony organised by County or Local Authorities for successful applicants over 18 years of age for British citizenship. At the ceremony the applicant takes the Oath or Affirmation of allegiance to Her Majesty the Queen and the Pledge of loyalty to the United Kingdom. Since 1 January 2004 this has been the final stage in the process of attaining British citizenship. The citizenship ceremony is organised by the relevant local authority, and happens after the Home Office have processed the application. | E25: =Information!D233 -> Shows the number of people aged 18 and over that have become British citizens. | F25: =Information!D234 -> Citizenship is a complicated subject, and people will gain British Citizenship for a variety of different reasons. | G25: =Information!D235 -> Home Office Immigration Statistics

Sheet Comparing Indicators
S1: Geography | U1: Indicator | V1: Timing | Y1: Value | AA1: Timing of Indicator data
R2: Code - Geography | S2: 1 | T2: Ind1 | U2: 1 | X2: Code - count/rate | Y2: 1 | AB2: =I15 -> 2011 | AC2: =J15 -> 2012 | AD2: 2013 | AE2: 2014 | AF2: 2015 | AG2: 2016 | AH2: 2017
R3: 1 | S3: Not specified | T3: Ind2 | U3: 1 | V3: 1 | W3: Mid-year | AA3: =VLOOKUP($E$16,$U$7:$V$29,2,FALSE) -> 0 | AB3: =IF((VLOOKUP($S$2,INDIRECT("Data"&AB2),$U$2+2,FALSE))="",NA(),(VLOOKUP($S$2,INDIRECT("Data"&AB2),$U$2+2,FALSE))) ->  | AC3: =IF((VLOOKUP($S$2,INDIRECT("Data"&AC2),$U$2+2,FALSE))="",NA(),(VLOOKUP($S$2,INDIRECT("Data"&AC2),$U$2+2,FALSE))) ->  | AE3: =IF((VLOOKUP($S$2,INDIRECT("Data"&AE2),$U$2+2,FALSE))="",NA(),(VLOOKUP($S$2,INDIRECT("Data"&AE2),$U$2+2,FALSE))) ->  | AF3: =IF((VLOOKUP($S$2,INDIRECT("Data"&AF2),$U$2+2,FALSE))="",NA(),(VLOOKUP($S$2,INDIRECT("Data"&AF2),$U$2+2,FALSE))) ->  | AG3: =IF((VLOOKUP($S$2,INDIRECT("Data"&AG2),$U$2+2,FALSE))="",NA(),(VLOOKUP($S$2,INDIRECT("Data"&AG2),$U$2+2,FALSE))) ->  | AH3: =IF((VLOOKUP($S$2,INDIRECT("Data"&AH2),$U$2+2,FALSE))="",NA(),(VLOOKUP($S$2,INDIRECT("Data"&AH2),$U$2+2,FALSE))) -> 
R4: 2 | S4: SCOTLAND | T4: Ind3 | U4: 1 | V4: 2 | W4: Calendar year
R5: 3 | S5: Aberdeen City | AA5: =VLOOKUP($E$18,$U$7:$V$29,2,FALSE) -> 0 | AB5: =IF((VLOOKUP($S$2,INDIRECT("Data"&AB2),$U$3+2,FALSE))="",NA(),(VLOOKUP($S$2,INDIRECT("Data"&AB2),$U$3+2,FALSE))) ->  | AC5: =IF((VLOOKUP($S$2,INDIRECT("Data"&AC2),$U$3+2,FALSE))="",NA(),(VLOOKUP($S$2,INDIRECT("Data"&AC2),$U$3+2,FALSE))) -> 
R6: 4 | S6: Aberdeenshire
C7: Comparing Indicators | R7: 5 | S7: Angus | T7: 1 | U7: Not specified | X7: 1 | Y7: Count | AA7: =VLOOKUP($E$20,$U$7:$V$29,2,FALSE) -> 0 | AB7: =IF((VLOOKUP($S$2,INDIRECT("Data"&AB2),$U$4+2,FALSE))="",NA(),(VLOOKUP($S$2,INDIRECT("Data"&AB2),$U$4+2,FALSE))) ->  | AC7: =IF((VLOOKUP($S$2,INDIRECT("Data"&AC2),$U$4+2,FALSE))="",NA(),(VLOOKUP($S$2,INDIRECT("Data"&AC2),$U$4+2,FALSE))) -> 
R8: 6 | S8: Argyll and Bute | T8: 2 | U8: Total net migration | V8: 1 | X8: 2 | Y8: Rate per 1000
R9: 7 | S9: City of Edinburgh | T9: 3 | U9: Total net migration for ages 0-15 | V9: 1
R10: 8 | S10: Clackmannanshire | T10: 4 | U10: Total net migration for ages 16-64 | V10: 1
C11: Geography | E11: =VLOOKUP($S$2,$R$3:$S$36,2) -> Not specified | R11: 9 | S11: Dumfries and Galloway | T11: 5 | U11: Total net migration for people aged 65+ | V11: 1
R12: 10 | S12: Dundee City | T12: 6 | U12: Total in-migration | V12: 1
C13: Value | E13: =VLOOKUP($Y$2,$X$7:$Y$8,2) -> Count | R13: 11 | S13: East Ayrshire | T13: 7 | U13: Total out-migration | V13: 1 | AB13: =I15 -> 2011 | AC13: 2012 | AD13: 2013 | AE13: 2014 | AF13: 2015 | AG13: 2016 | AH13: 2017
R14: 12 | S14: East Dunbartonshire | T14: 8 | U14: Within Scotland net migration | V14: 1 | AB14: =IF((VLOOKUP($S$2,INDIRECT("Rate"&AB13),$U$2+2,FALSE))="",NA(),(VLOOKUP($S$2,INDIRECT("Rate"&AB13),$U$2+2,FALSE))) ->  | AC14: =IF((VLOOKUP($S$2,INDIRECT("Rate"&AC13),$U$2+2,FALSE))="",NA(),(VLOOKUP($S$2,INDIRECT("Rate"&AC13),$U$2+2,FALSE))) ->  | AH14: =IF((VLOOKUP($S$2,INDIRECT("Rate"&AH13),$U$2+2,FALSE))="",NA(),(VLOOKUP($S$2,INDIRECT("Rate"&AH13),$U$2+2,FALSE))) -> 
G15: Timing of data | I15: 2011 | J15: 2012 | K15: 2013 | L15: 2014 | M15: 2015 | N15: 2016 | O15: 2017 | R15: 13 | S15: East Lothian | T15: 9 | U15: Within Scotland in-migration | V15: 1
C16: Indicator | E16: =VLOOKUP($U$2,$T$7:$U$29,2) -> Not specified | G16: =VLOOKUP(AA3,$V$3:$W$4,2) ->  | I16: =IF($Y$2=1,AB3,AB14) ->  | J16: =IF($Y$2=1,AC3,AC14) ->  | O16: =IF($Y$2=1,AH3,AH14) ->  | R16: 14 | S16: East Renfrewshire | T16: 10 | U16: Within Scotland out-migration | V16: 1 | AB16: =IF((VLOOKUP($S$2,INDIRECT("Rate"&AB13),$U$3+2,FALSE))="",NA(),(VLOOKUP($S$2,INDIRECT("Rate"&AB13),$U$3+2,FALSE))) ->  | AC16: =IF((VLOOKUP($S$2,INDIRECT("Rate"&AC2),$U$3+2,FALSE))="",NA(),(VLOOKUP($S$2,INDIRECT("Rate"&AC2),$U$3+2,FALSE))) ->  | AH16: =IF((VLOOKUP($S$2,INDIRECT("Rate"&AH2),$U$3+2,FALSE))="",NA(),(VLOOKUP($S$2,INDIRECT("Rate"&AH2),$U$3+2,FALSE))) -> 
R17: 15 | S17: Falkirk | T17: 11 | U17: Rest of UK net migration | V17: 1
C18: Indicator | E18: =VLOOKUP($U$3,$T$7:$U$29,2) -> Not specified | G18: =VLOOKUP(AA5,$V$2:$W$4,2) ->  | I18: =IF($Y$2=1,AB5,AB16) ->  | O18: =IF($Y$2=1,AH5,AH16) ->  | R18: 16 | S18: Fife | T18: 12 | U18: Rest of UK in-migration | V18: 1 | AB18: =IF((VLOOKUP($S$2,INDIRECT("Rate"&AB13),$U$4+2,FALSE))="",NA(),(VLOOKUP($S$2,INDIRECT("Rate"&AB13),$U$4+2,FALSE))) ->  | AC18: =IF((VLOOKUP($S$2,INDIRECT("Rate"&AC2),$U$4+2,FALSE))="",NA(),(VLOOKUP($S$2,INDIRECT("Rate"&AC2),$U$4+2,FALSE))) -> 
R19: 17 | S19: Glasgow City | T19: 13 | U19: Rest of UK out-migration | V19: 1
C20: Indicator | E20: =VLOOKUP($U$4,$T$7:$U$29,2) -> Not specified | G20: =VLOOKUP($AA$7,$V$3:$W$4,2) ->  | I20: =IF($Y$2=1,AB7,AB18) ->  | O20: =IF($Y$2=1,AH7,AH18) ->  | R20: 18 | S20: Highland | T20: 14 | U20: Overseas net migration | V20: 1
R21: 19 | S21: Inverclyde | T21: 15 | U21: Overseas in-migration | V21: 1
R22: 20 | S22: Midlothian | T22: 16 | U22: Overseas out-migration | V22: 1
R23: 21 | S23: Moray | T23: 17 | U23: NINo Allocation | V23: 2
R24: 22 | S24: Na h-Eileanan Siar | T24: 18 | U24: Births to non-UK mothers | V24: 2
R25: 23 | S25: North Ayrshire | T25: 19 | U25: Pupils from a minority ethnic group | V25: 2
R26: 24 | S26: North Lanarkshire | T26: 20 | U26: Pupils with English as an additional language | V26: 2
R27: 25 | S27: Orkney Islands | T27: 21 | U27: Population born outside the UK | V27: 2
R28: 26 | S28: Perth and Kinross | T28: 22 | U28: Population with non-British nationality | V28: 2
R29: 27 | S29: Renfrewshire | T29: 23 | U29: Citizenships | V29: 2
R30: 28 | S30: Scottish Borders
R31: 29 | S31: Shetland Islands
R32: 30 | S32: South Ayrshire
R33: 31 | S33: South Lanarkshire
R34: 32 | S34: Stirling
R35: 33 | S35: West Dunbartonshire
R36: 34 | S36: West Lothian
B43: Information on Indicators
B45: =VLOOKUP($U$2,'Info lookup'!$A$3:$B$25,2) -> Not specified
B46: Indicator of: | D46: =VLOOKUP($U$2,'Info lookup'!$A$2:$F$25,3) -> ~
B47: Information: | D47: =VLOOKUP($U$2,'Info lookup'!$A$2:$F$25,4) -> ~
B48: Strengths: | D48: =VLOOKUP($U$2,'Info lookup'!$A$2:$F$25,5) -> ~
B49: Weaknesses: | D49: =VLOOKUP($U$2,'Info lookup'!$A$2:$F$25,6) -> ~
B50: Source: | D50: =VLOOKUP($U$2,'Info lookup'!$A$2:$G$25,7) -> ~
B52: =VLOOKUP($U$3,'Info lookup'!$A$3:$F$25,2) -> Not specified
B53: Indicator of: | D53: =VLOOKUP($U$3,'Info lookup'!$A$2:$F$25,3) -> ~
B54: Information: | D54: =VLOOKUP($U$3,'Info lookup'!$A$2:$F$25,4) -> ~
B55: Strengths: | D55: =VLOOKUP($U$3,'Info lookup'!$A$2:$F$25,5) -> ~
B56: Weaknesses: | D56: =VLOOKUP($U$3,'Info lookup'!$A$2:$F$25,6) -> ~
B57: Source: | D57: =VLOOKUP($U$3,'Info lookup'!$A$2:$G$25,7) -> ~
B59: =VLOOKUP($U$4,'Info lookup'!$A$3:$F$25,2) -> Not specified
B60: Indicator of: | D60: =VLOOKUP($U$4,'Info lookup'!$A$2:$F$25,3) -> ~
B61: Information: | D61: =VLOOKUP($U$4,'Info lookup'!$A$2:$F$25,4) -> ~
B62: Strengths: | D62: =VLOOKUP($U$4,'Info lookup'!$A$2:$F$25,5) -> ~
B63: Weaknesses: | D63: =VLOOKUP($U$4,'Info lookup'!$A$2:$F$25,6) -> ~
B64: Source: | D64: =VLOOKUP($U$4,'Info lookup'!$A$2:$G$25,7) -> ~
B66: © Crown Copyright 2018

Sheet Comparing Areas
S1: Geography | U1: Indicator | V1: Timing | X1: Value
R2: Code - Geography 1 | S2: 1 | T2: Code - indicator | U2: 1 | V2: Code | W2: 1 | X2: Code - count/rate | Y2: 1
R3: Code - Geography 2 | S3: 1 | V3: 1 | W3: Mid-year | X3: 1 | Y3: Count
R4: Code - Geography 3 | S4: 1 | V4: 2 | W4: Calendar year | X4: 2 | Y4: Rate per 1000 | Z4: Count
Z5: =I15 -> 2011 | AA5: 2012 | AB5: 2013 | AC5: 2014 | AD5: 2015 | AE5: 2016 | AF5: 2017
Z6: =IF((VLOOKUP($S$2,INDIRECT("Data"&Z5),$U$2+2,FALSE))="",NA(),(VLOOKUP($S$2,INDIRECT("Data"&Z5),$U$2+2,FALSE))) ->  | AA6: =IF((VLOOKUP($S$2,INDIRECT("Data"&AA5),$U$2+2,FALSE))="",NA(),(VLOOKUP($S$2,INDIRECT("Data"&AA5),$U$2+2,FALSE))) ->  | AF6: =IF((VLOOKUP($S$2,INDIRECT("Data"&AF5),$U$2+2,FALSE))="",NA(),(VLOOKUP($S$2,INDIRECT("Data"&AF5),$U$2+2,FALSE))) -> 
B7: Comparing Areas | Z7: =IF((VLOOKUP($S$3,INDIRECT("Data"&Z5),$U$2+2,FALSE))="",NA(),(VLOOKUP($S$3,INDIRECT("Data"&Z5),$U$2+2,FALSE))) ->  | AA7: =IF((VLOOKUP($S$3,INDIRECT("Data"&AA5),$U$2+2,FALSE))="",NA(),(VLOOKUP($S$3,INDIRECT("Data"&AA5),$U$2+2,FALSE))) -> 
Z8: =IF((VLOOKUP($S$4,INDIRECT("Data"&Z5),$U$2+2,FALSE))="",NA(),(VLOOKUP($S$4,INDIRECT("Data"&Z5),$U$2+2,FALSE))) ->  | AA8: =IF((VLOOKUP($S$4,INDIRECT("Data"&AA5),$U$2+2,FALSE))="",NA(),(VLOOKUP($S$4,INDIRECT("Data"&AA5),$U$2+2,FALSE))) -> 
Z10: Rate
C11: Indicator | E11: =VLOOKUP($U$2,$T$14:$U$36,2) -> Not specified | U11: Calendar/mid-year code | V11: =VLOOKUP(U2,T14:V34,3) -> 1 | Z11: =I15 -> 2011 | AA11: 2012 | AB11: 2013 | AC11: 2014 | AD11: 2015 | AE11: 2016 | AF11: 2017
Z12: =IF((VLOOKUP($S$2,INDIRECT("Rate"&Z11),$U$2+2,FALSE))="",NA(),(VLOOKUP($S$2,INDIRECT("Rate"&Z11),$U$2+2,FALSE))) ->  | AA12: =IF((VLOOKUP($S$2,INDIRECT("Rate"&AA11),$U$2+2,FALSE))="",NA(),(VLOOKUP($S$2,INDIRECT("Rate"&AA11),$U$2+2,FALSE))) ->  | AF12: =IF((VLOOKUP($S$2,INDIRECT("Rate"&AF11),$U$2+2,FALSE))="",NA(),(VLOOKUP($S$2,INDIRECT("Rate"&AF11),$U$2+2,FALSE))) -> 
C13: Value | E13: =VLOOKUP($Y$2,$X$3:$Y$4,2) -> Count | K13: =VLOOKUP($V$11,$V$3:$W$4,2) -> Mid-year | Z13: =IF((VLOOKUP($S$3,INDIRECT("Rate"&Z11),$U$2+2,FALSE))="",NA(),(VLOOKUP($S$3,INDIRECT("Rate"&Z11),$U$2+2,FALSE))) ->  | AA13: =IF((VLOOKUP($S$3,INDIRECT("Rate"&AA11),$U$2+2,FALSE))="",NA(),(VLOOKUP($S$3,INDIRECT("Rate"&AA11),$U$2+2,FALSE))) -> 
R14: 1 | S14: Not specified | T14: 1 | U14: Not specified | V14: 1 | Z14: =IF((VLOOKUP($S$4,INDIRECT("Rate"&Z11),$U$2+2,FALSE))="",NA(),(VLOOKUP($S$4,INDIRECT("Rate"&Z11),$U$2+2,FALSE))) -> 
I15: 2011 | J15: 2012 | K15: 2013 | L15: 2014 | M15: 2015 | N15: 2016 | O15: 2017 | R15: 2 | S15: SCOTLAND | T15: 2 | U15: ='Comparing Indicators'!U8 -> Total net migration | V15: 1
C16: Geography | E16: =VLOOKUP($S$2,$R$14:$S$47,2) -> Not specified | I16: =IF($Y$2=1,Z6,Z12) ->  | J16: =IF($Y$2=1,AA6,AA12) ->  | R16: 3 | S16: Aberdeen City | T16: 3 | U16: ='Comparing Indicators'!U9 -> Total net migration for ages 0-15 | V16: 1
R17: 4 | S17: Aberdeenshire | T17: 4 | U17: ='Comparing Indicators'!U10 -> Total net migration for ages 16-64 | V17: 1
C18: Geography | E18: =VLOOKUP($S$3,$R$14:$S$47,2) -> Not specified | I18: =IF($Y$2=1,Z7,Z13) ->  | J18: =IF($Y$2=1,AA7,AA13) ->  | R18: 5 | S18: Angus | T18: 5 | U18: ='Comparing Indicators'!U11 -> Total net migration for people aged 65+ | V18: 1
R19: 6 | S19: Argyll and Bute | T19: 6 | U19: ='Comparing Indicators'!U12 -> Total in-migration | V19: 1
C20: Geography | E20: =VLOOKUP($S$4,$R$14:$S$47,2) -> Not specified | I20: =IF($Y$2=1,Z8,Z14) ->  | J20: =IF($Y$2=1,AA8,AA14) ->  | R20: 7 | S20: City of Edinburgh | T20: 7 | U20: ='Comparing Indicators'!U13 -> Total out-migration | V20: 1
R21: 8 | S21: Clackmannanshire | T21: 8 | U21: ='Comparing Indicators'!U14 -> Within Scotland net migration | V21: 1
R22: 9 | S22: Dumfries and Galloway | T22: 9 | U22: ='Comparing Indicators'!U15 -> Within Scotland in-migration | V22: 1
R23: 10 | S23: Dundee City | T23: 10 | U23: ='Comparing Indicators'!U16 -> Within Scotland out-migration | V23: 1
R24: 11 | S24: East Ayrshire | T24: 11 | U24: ='Comparing Indicators'!U17 -> Rest of UK net migration | V24: 1
R25: 12 | S25: East Dunbartonshire | T25: 12 | U25: ='Comparing Indicators'!U18 -> Rest of UK in-migration | V25: 1
R26: 13 | S26: East Lothian | T26: 13 | U26: ='Comparing Indicators'!U19 -> Rest of UK out-migration | V26: 1
R27: 14 | S27: East Renfrewshire | T27: 14 | U27: ='Comparing Indicators'!U20 -> Overseas net migration | V27: 1
R28: 15 | S28: Falkirk | T28: 15 | U28: ='Comparing Indicators'!U21 -> Overseas in-migration | V28: 1
R29: 16 | S29: Fife | T29: 16 | U29: ='Comparing Indicators'!U22 -> Overseas out-migration | V29: 1
R30: 17 | S30: Glasgow City | T30: 17 | U30: ='Comparing Indicators'!U23 -> NINo Allocation | V30: 2
R31: 18 | S31: Highland | T31: 18 | U31: ='Comparing Indicators'!U24 -> Births to non-UK mothers | V31: 2
R32: 19 | S32: Inverclyde | T32: 19 | U32: ='Comparing Indicators'!U25 -> Pupils from a minority ethnic group | V32: 2
R33: 20 | S33: Midlothian | T33: 20 | U33: ='Comparing Indicators'!U26 -> Pupils with English as an additional language | V33: 2
R34: 21 | S34: Moray | T34: 21 | U34: ='Comparing Indicators'!U27 -> Population born outside the UK | V34: 2
R35: 22 | S35: Na h-Eileanan Siar | T35: 22 | U35: ='Comparing Indicators'!U28 -> Population with non-British nationality | V35: 2
R36: 23 | S36: North Ayrshire | T36: 23 | U36: ='Comparing Indicators'!U29 -> Citizenships | V36: 2
R37: 24 | S37: North Lanarkshire
R38: 25 | S38: Orkney Islands
R39: 26 | S39: Perth and Kinross
R40: 27 | S40: Renfrewshire
R41: 28 | S41: Scottish Borders
R42: 29 | S42: Shetland Islands
B43: =VLOOKUP($U$2,'Info lookup'!$A$3:$F$25,2) -> Not specified | R43: 30 | S43: South Ayrshire
B44: Indicator of: | D44: =VLOOKUP($U$2,'Info lookup'!$A$4:$F$25,3) ->  | R44: 31 | S44: South Lanarkshire
B45: Information: | D45: =VLOOKUP($U$2,'Info lookup'!$A$4:$F$25,4) ->  | R45: 32 | S45: Stirling
B46: Strengths: | D46: =VLOOKUP($U$2,'Info lookup'!$A$4:$F$25,5) ->  | R46: 33 | S46: West Dunbartonshire
B47: Weaknesses: | D47: =VLOOKUP($U$2,'Info lookup'!$A$4:$F$25,6) ->  | R47: 34 | S47: West Lothian
B48: Source: | D48: =VLOOKUP($U$2,'Info lookup'!$A$4:$G$25,7) -> 
B50: © Crown Copyright 2018

Sheet Comparing NHS Board Areas
S1: Health Board Areas | W1: Indicator
S2: HB area 1 | T2: 1 | V2: Ind | W2: 1
S3: HB area 2 | T3: 1
S4: HB area 3 | T4: 1
Y6: Timing | AB6: Value | AF6: Count
B7: Comparing NHS Board Areas | T7: 1 | V7: 1 | W7: 1 | Y7: Code | Z7: =VLOOKUP($W$2,$V$11:$X$27,3) -> 0 | AD7: 1 | AF7: =I15 -> 2011 | AG7: 2012 | AH7: 2013 | AI7: 2014 | AJ7: 2015 | AK7: 2016 | AL7: 2017
T8: 1 | AF8: =IF((VLOOKUP(($T$2+34),INDIRECT("Data"&AF7),$W$2+2,FALSE))="",NA(),(VLOOKUP($T$2+34,INDIRECT("Data"&AF7),$W$2+2,FALSE))) -> 
T9: 1 | AF9: =IF((VLOOKUP(($T$3+34),INDIRECT("Data"&AF7),$W$2+2,FALSE))="",NA(),(VLOOKUP($T$3+34,INDIRECT("Data"&AF7),$W$2+2,FALSE))) -> 
X10: Timing codes | AF10: =IF((VLOOKUP(($T$4+34),INDIRECT("Data"&AF7),$W$2+2,FALSE))="",NA(),(VLOOKUP($T$4+34,INDIRECT("Data"&AF7),$W$2+2,FALSE))) -> 
C11: Indicator | E11: =VLOOKUP($W$2,HBIndicatorCode,2) -> Not specified | S11: 1 | T11: Not specified | V11: 1 | W11: Not specified | Y11: 1 | Z11: Mid-year | AB11: 1 | AC11: Count
S12: 2 | T12: SCOTLAND | V12: 2 | W12: Total net migration | X12: 1 | Y12: 2 | Z12: Calendar year | AB12: 2 | AC12: Rate per 1000 | AF12: Rate
C13: Value | E13: =VLOOKUP($AD$7,$AB$11:$AC$12,2) -> Count | K13: =VLOOKUP($Z$7,TimingCode,2) ->  | S13: 3 | T13: Ayrshire and Arran | V13: 3 | W13: Total net migration for ages 0-15 | X13: 1 | AF13: =I15 -> 2011 | AG13: 2012 | AH13: 2013 | AI13: 2014 | AJ13: 2015 | AK13: 2016 | AL13: 2017
S14: 4 | T14: Borders | V14: 4 | W14: Total net migration for ages 16-64 | X14: 1 | AF14: =IF((VLOOKUP(($T$2+34),INDIRECT("Rate"&AF13),$W$2+2,FALSE))="",NA(),(VLOOKUP($T$2+34,INDIRECT("Rate"&AF13),$W$2+2,FALSE))) -> 
I15: 2011 | J15: 2012 | K15: 2013 | L15: 2014 | M15: 2015 | N15: 2016 | O15: 2017 | S15: 5 | T15: Dumfries and Galloway | V15: 5 | W15: Total net migration for people aged 65+ | X15: 1 | AF15: =IF((VLOOKUP(($T$3+34),INDIRECT("Rate"&AF13),$W$2+2,FALSE))="",NA(),(VLOOKUP($T$3+34,INDIRECT("Rate"&AF13),$W$2+2,FALSE))) -> 
C16: Geography | E16: =VLOOKUP($T$2,HBCode,2) -> Not specified | I16: =IF($AD$7=1,AF8,AF14) ->  | S16: 6 | T16: Fife | V16: 6 | W16: Total in-migration | X16: 1 | AF16: =IF((VLOOKUP(($T$4+34),INDIRECT("Rate"&AF13),$W$2+2,FALSE))="",NA(),(VLOOKUP($T$4+34,INDIRECT("Rate"&AF13),$W$2+2,FALSE))) -> 
S17: 7 | T17: Forth Valley | V17: 7 | W17: Total out-migration | X17: 1
C18: Geography | E18: =VLOOKUP($T$3,HBCode,2) -> Not specified | I18: =IF($AD$7=1,AF9,AF15) ->  | S18: 8 | T18: Grampian | V18: 8 | W18: Within Scotland net migration | X18: 1
S19: 9 | T19: Greater Glasgow and Clyde | V19: 9 | W19: Within Scotland in-migration | X19: 1
C20: Geography | E20: =VLOOKUP($T$4,HBCode,2) -> Not specified | I20: =IF($AD$7=1,AF10,AF16) ->  | S20: 10 | T20: Highland | V20: 10 | W20: Within Scotland out-migration | X20: 1
S21: 11 | T21: Lanarkshire | V21: 11 | W21: Rest of UK net migration | X21: 1
S22: 12 | T22: Lothian | V22: 12 | W22: Rest of UK in-migration | X22: 1
S23: 13 | T23: Orkney | V23: 13 | W23: Rest of UK out-migration | X23: 1
S24: 14 | T24: Shetland | V24: 14 | W24: Overseas net migration | X24: 1
S25: 15 | T25: Tayside | V25: 15 | W25: Overseas in-migration | X25: 1
S26: 16 | T26: Western Isles | V26: 16 | W26: Overseas out-migration | X26: 1
W29: (Set code in column X to 1 if data is at mid-year, 2 if data is for calendar year.)
B43: =VLOOKUP('Comparing NHS Board Areas'!$W$2,'Info lookup'!$A$3:$F$23,2) -> Not specified
B44: Indicator of: | D44: =VLOOKUP($W$2,'Info lookup'!$A$4:$F$23,3) -> 
B45: Information: | D45: =VLOOKUP($W$2,'Info lookup'!$A$4:$F$23,4) -> 
B46: Strengths: | D46: =VLOOKUP($W$2,'Info lookup'!$A$4:$F$23,5) -> 
B47: Weaknesses: | D47: =VLOOKUP($W$2,'Info lookup'!$A$4:$F$23,6) -> 
B48: Source: | D48: =VLOOKUP($W$2,'Info lookup'!$A$4:$G$23,7) -> 
B50: Note
B51: 1) The NHS Board areas used for estimates between 2003/04 and 2010/11 are those that existed between 2006 and 2014. The 2011/12 estimates onwards use the NHS Board areas that came into force in April 2014.
B53: © Crown Copyright 2018

Sheet Total net migration
A1: Total net migration | K1: Return to front page
A3: Council Area | B3: 2003-04 | C3: 2004-05 | D3: 2005-06 | E3: 2006-07 | F3: 2007-08 | G3: 2008-09 | H3: 2009-10 | I3: 2010-11 | J3: 2011-12 | K3: 2012-13 | L3: 2013-14 | M3: 2014-15 | N3: 2015-16 | O3: 2016-17
A4: SCOTLAND | B4: 18622 | C4: 25307 | D4: 18822 | E4: 33049 | F4: 26409 | G4: 24422 | H4: 26075 | I4: 30209 | J4: 12738 | K4: 9962 | L4: 17585 | M4: 27968 | N4: 31693 | O4: 23855
A5: Aberdeen City | B5: -1191 | C5: 1110 | D5: 1143 | E5: 2953 | F5: 1646 | G5: 2974 | H5: 2754 | I5: 3078 | J5: 1847 | K5: 1664 | L5: 1412 | M5: 1085 | N5: -969 | O5: -1416
A6: Aberdeenshire | B6: 3230 | C6: 2780 | D6: 3067 | E6: 2683 | F6: 1881 | G6: 1507 | H6: 1693 | I6: 1384 | J6: 1386 | K6: 1664 | L6: 2041 | M6: 986 | N6: -354 | O6: -688
A7: Angus | B7: 1342 | C7: 1073 | D7: 954 | E7: 756 | F7: 653 | G7: 148 | H7: 355 | I7: 115 | J7: 258 | K7: 113 | L7: 645 | M7: 537 | N7: 68 | O7: 144
A8: Argyll and Bute | B8: 926 | C8: 437 | D8: 200 | E8: 378 | F8: -39 | G8: -27 | H8: 291 | I8: 304 | J8: -233 | K8: -23 | L8: -275 | M8: -233 | N8: 234 | O8: 137
A9: City of Edinburgh | B9: 2234 | C9: 5317 | D9: 3412 | E9: 4919 | F9: 3356 | G9: 5861 | H9: 8069 | I9: 8044 | J9: 3966 | K9: 2998 | L9: 3296 | M9: 6261 | N9: 7659 | O9: 5088
A10: Clackmannanshire | B10: 551 | C10: 572 | D10: 297 | E10: 741 | F10: 397 | G10: 39 | H10: -75 | I10: -8 | J10: -256 | K10: -59 | L10: -82 | M10: 142 | N10: 12 | O10: 121
A11: Dumfries and Galloway | B11: 1183 | C11: 1191 | D11: 469 | E11: 712 | F11: 810 | G11: 304 | H11: 119 | I11: 377 | J11: -128 | K11: -6 | L11: 334 | M11: 330 | N11: 394 | O11: 322
A12: Dundee City | B12: -740 | C12: 572 | D12: -109 | E12: 265 | F12: 608 | G12: 919 | H12: 981 | I12: 1427 | J12: 492 | K12: 309 | L12: -12 | M12: 209 | N12: 177 | O12: 588
A13: East Ayrshire | B13: 367 | C13: 36 | D13: 91 | E13: 325 | F13: 549 | G13: 383 | H13: 30 | I13: 30 | J13: -76 | K13: -120 | L13: -90 | M13: 62 | N13: 151 | O13: 18
A14: East Dunbartonshire | B14: -457 | C14: -482 | D14: -449 | E14: -289 | F14: -180 | G14: -79 | H14: -71 | I14: -105 | J14: 260 | K14: 92 | L14: 909 | M14: 549 | N14: 706 | O14: 688
A15: East Lothian | B15: 430 | C15: 497 | D15: 925 | E15: 1559 | F15: 1635 | G15: 705 | H15: 595 | I15: 445 | J15: 787 | K15: 521 | L15: 712 | M15: 961 | N15: 960 | O15: 800
A16: East Renfrewshire | B16: -97 | C16: -17 | D16: -213 | E16: 45 | F16: -72 | G16: 72 | H16: 369 | I16: 270 | J16: 189 | K16: 539 | L16: 890 | M16: 627 | N16: 819 | O16: 958
A17: Falkirk | B17: 1510 | C17: 1642 | D17: 941 | E17: 935 | F17: 663 | G17: 565 | H17: 458 | I17: 1021 | J17: 356 | K17: 375 | L17: 415 | M17: 734 | N17: 940 | O17: 901
A18: Fife | B18: 2348 | C18: 2657 | D18: 1560 | E18: 1893 | F18: 1627 | G18: 1550 | H18: 1806 | I18: 2076 | J18: 623 | K18: 304 | L18: 650 | M18: 1228 | N18: 1608 | O18: 1524
A19: Glasgow City | B19: -3418 | C19: -1558 | D19: -1988 | E19: 2303 | F19: 2929 | G19: 3989 | H19: 3050 | I19: 5370 | J19: 1146 | K19: 439 | L19: 2047 | M19: 5840 | N19: 7963 | O19: 5390
A20: Highland | B20: 2850 | C20: 2862 | D20: 2054 | E20: 2677 | F20: 2111 | G20: 990 | H20: 990 | I20: 898 | J20: 118 | K20: 93 | L20: 239 | M20: 1115 | N20: 1196 | O20: 813
A21: Inverclyde | B21: -599 | C21: -130 | D21: -353 | E21: -318 | F21: -203 | G21: -359 | H21: -226 | I21: -289 | J21: -305 | K21: -160 | L21: -270 | M21: -136 | N21: -56 | O21: 10
A22: Midlothian | B22: -263 | C22: -321 | D22: -261 | E22: 109 | F22: 427 | G22: 467 | H22: 237 | I22: 522 | J22: 559 | K22: 576 | L22: 1020 | M22: 987 | N22: 1008 | O22: 1271
A23: Moray | B23: 980 | C23: 693 | D23: 458 | E23: 525 | F23: 330 | G23: 404 | H23: -9 | I23: -162 | J23: 327 | K23: 596 | L23: 467 | M23: 410 | N23: 553 | O23: 3
A24: Na h-Eileanan Siar | B24: 246 | C24: 274 | D24: 129 | E24: 73 | F24: 23 | G24: 71 | H24: 169 | I24: 23 | J24: 13 | K24: -19 | L24: -88 | M24: -5 | N24: -67 | O24: 155
A25: North Ayrshire | B25: 206 | C25: 95 | D25: -21 | E25: 428 | F25: 333 | G25: -117 | H25: -165 | I25: 136 | J25: -401 | K25: -308 | L25: -137 | M25: 60 | N25: 65 | O25: 352
A26: North Lanarkshire | B26: 228 | C26: 330 | D26: 302 | E26: 849 | F26: 534 | G26: 88 | H26: -422 | I26: -58 | J26: -271 | K26: -385 | L26: -86 | M26: 140 | N26: 982 | O26: 734
A27: Orkney Islands | B27: 261 | C27: 135 | D27: 200 | E27: 143 | F27: 95 | G27: 88 | H27: 163 | I27: 99 | J27: 106 | K27: 80 | L27: 67 | M27: 100 | N27: 223 | O27: 204
A28: Perth and Kinross | B28: 1665 | C28: 2063 | D28: 2023 | E28: 2440 | F28: 2400 | G28: 1800 | H28: 1861 | I28: 1826 | J28: 980 | K28: 377 | L28: 1407 | M28: 1263 | N28: 1062 | O28: 898
A29: Renfrewshire | B29: -268 | C29: -286 | D29: -344 | E29: 269 | F29: 398 | G29: 156 | H29: 443 | I29: 589 | J29: -395 | K29: -343 | L29: 372 | M29: 591 | N29: 1614 | O29: 1162
A30: Scottish Borders | B30: 1385 | C30: 1003 | D30: 835 | E30: 1492 | F30: 1302 | G30: 421 | H30: 286 | I30: 488 | J30: 45 | K30: 308 | L30: 280 | M30: 435 | N30: 690 | O30: 818
A31: Shetland Islands | B31: 72 | C31: 88 | D31: -112 | E31: 46 | F31: 26 | G31: 203 | H31: 155 | I31: 59 | J31: -68 | K31: -89 | L31: -5 | M31: -36 | N31: -15 | O31: -133
A32: South Ayrshire | B32: 684 | C32: 425 | D32: 366 | E32: 578 | F32: 400 | G32: 173 | H32: 443 | I32: 596 | J32: 357 | K32: 405 | L32: 103 | M32: 311 | N32: 546 | O32: 690
A33: South Lanarkshire | B33: 2127 | C33: 1079 | D33: 1334 | E33: 1651 | F33: 735 | G33: 640 | H33: 808 | I33: 587 | J33: 408 | K33: 579 | L33: 511 | M33: 1034 | N33: 1097 | O33: 1278
A34: Stirling | B34: -10 | C34: 658 | D34: 701 | E34: 477 | F34: 244 | G34: 310 | H34: 1006 | I34: 1021 | J34: 774 | K34: 253 | L34: 467 | M34: 1412 | N34: 1012 | O34: 335
A35: West Dunbartonshire | B35: -374 | C35: -332 | D35: -108 | E35: -32 | F35: -205 | G35: -56 | H35: -291 | I35: -173 | J35: -280 | K35: -424 | L35: -98 | M35: 79 | N35: 288 | O35: -96
A36: West Lothian | B36: 1214 | C36: 844 | D36: 1319 | E36: 1464 | F36: 996 | G36: 233 | H36: 203 | I36: 219 | J36: 154 | K36: -387 | L36: 444 | M36: 890 | N36: 1127 | O36: 786
A38: NHS Board Areas
A39: SCOTLAND | B39: 18622 | C39: 25307 | D39: 18822 | E39: 33049 | F39: 26409 | G39: 24422 | H39: 26075 | I39: 30209 | J39: 12738 | K39: 9962 | L39: 17585 | M39: 27968 | N39: 31693 | O39: 23855
A40: Ayrshire and Arran | B40: 1257 | C40: 556 | D40: 436 | E40: 1331 | F40: 1282 | G40: 439 | H40: 308 | I40: 762 | J40: -120 | K40: -23 | L40: -124 | M40: 433 | N40: 762 | O40: 1060
A41: Borders | B41: 1385 | C41: 1003 | D41: 835 | E41: 1492 | F41: 1302 | G41: 421 | H41: 286 | I41: 488 | J41: 45 | K41: 308 | L41: 280 | M41: 435 | N41: 690 | O41: 818
A42: Dumfries and Galloway | B42: 1183 | C42: 1191 | D42: 469 | E42: 712 | F42: 810 | G42: 304 | H42: 119 | I42: 377 | J42: -128 | K42: -6 | L42: 334 | M42: 330 | N42: 394 | O42: 322
A43: Fife | B43: 2348 | C43: 2657 | D43: 1563 | E43: 1891 | F43: 1620 | G43: 1548 | H43: 1809 | I43: 2071 | J43: 623 | K43: 304 | L43: 650 | M43: 1228 | N43: 1608 | O43: 1524
A44: Forth Valley | B44: 2051 | C44: 2872 | D44: 1939 | E44: 2153 | F44: 1304 | G44: 914 | H44: 1389 | I44: 2034 | J44: 874 | K44: 569 | L44: 800 | M44: 2288 | N44: 1964 | O44: 1357
A45: Grampian | B45: 3019 | C45: 4583 | D45: 4668 | E45: 6161 | F45: 3857 | G45: 4885 | H45: 4438 | I45: 4300 | J45: 3560 | K45: 3924 | L45: 3920 | M45: 2481 | N45: -770 | O45: -2101
A46: Greater Glasgow and Clyde | B46: -4559 | C46: -2419 | D46: -2796 | E46: 2705 | F46: 2885 | G46: 4124 | H46: 3862 | I46: 5775 | J46: 615 | K46: 143 | L46: 3850 | M46: 7550 | N46: 11334 | O46: 8112
A47: Highland | B47: 3776 | C47: 3299 | D47: 2254 | E47: 3055 | F47: 2072 | G47: 963 | H47: 1281 | I47: 1202 | J47: -115 | K47: 70 | L47: -36 | M47: 882 | N47: 1430 | O47: 950
A48: Lanarkshire | B48: 1701 | C48: 1023 | D48: 977 | E48: 1773 | F48: 1051 | G48: 327 | H48: -202 | I48: 416 | J48: 137 | K48: 194 | L48: 425 | M48: 1174 | N48: 2079 | O48: 2012
A49: Lothian | B49: 3615 | C49: 6337 | D49: 5395 | E49: 8051 | F49: 6414 | G49: 7266 | H49: 9104 | I49: 9230 | J49: 5466 | K49: 3708 | L49: 5472 | M49: 9099 | N49: 10754 | O49: 7945
A50: Orkney | B50: 261 | C50: 135 | D50: 200 | E50: 143 | F50: 95 | G50: 88 | H50: 163 | I50: 99 | J50: 106 | K50: 80 | L50: 67 | M50: 100 | N50: 223 | O50: 204
A51: Shetland | B51: 72 | C51: 88 | D51: -112 | E51: 46 | F51: 26 | G51: 203 | H51: 155 | I51: 59 | J51: -68 | K51: -89 | L51: -5 | M51: -36 | N51: -15 | O51: -133
A52: Tayside | B52: 2267 | C52: 3708 | D52: 2865 | E52: 3463 | F52: 3668 | G52: 2869 | H52: 3194 | I52: 3373 | J52: 1730 | K52: 799 | L52: 2040 | M52: 2009 | N52: 1307 | O52: 1630
A53: Western Isles | B53: 246 | C53: 274 | D53: 129 | E53: 73 | F53: 23 | G53: 71 | H53: 169 | I53: 23 | J53: 13 | K53: -19 | L53: -88 | M53: -5 | N53: -67 | O53: 155
A55: Notes
A56: 1) Figures include asylum seekers. For 2015-16 onwards, figures also include refugees.
A57: 2) Movements to/from the armed forces were included in these figures in previous releases of this spreadsheet but are no longer treated as migration. Armed forces movements are included in the mid-year population estimates under another category.
A58: 3) Source for data: 'Migration to and from administrative areas' from the 'Migration to or from Scotland' section of the NRS website - https://www.nrscotland.gov.uk/statistics-and-data/statistics/statistics-by-theme/migration/migration-statistics/total-migration-to-or-from-scotland
A59: 4) The NHS Board areas used for estimates between 2003-04 and 2010-11 are those that existed between 2006 and 2014. The 2011-12 estimates onwards use the NHS Board areas that came into force in April 2014.
A61: © Crown Copyright 2018

Sheet Total net migration 0-15
A1: Total net migration for ages 0-15 | K1: Return to front page
A3: Council Area | B3: 2003-04 | C3: 2004-05 | D3: 2005-06 | E3: 2006-07 | F3: 2007-08 | G3: 2008-09 | H3: 2009-10 | I3: 2010-11 | J3: 2011-12 | K3: 2012-13 | L3: 2013-14 | M3: 2014-15 | N3: 2015-16 | O3: 2016-17
A4: SCOTLAND | B4: 3430 | C4: 4434 | D4: 2416 | E4: 5380 | F4: 4287 | G4: 3522 | H4: 2883 | I4: 3490 | J4: 1637 | K4: 1877 | L4: 3092 | M4: 4093 | N4: 5201 | O4: 3775
A5: Aberdeen City | B5: -347 | C5: 212 | D5: -6 | E5: 333 | F5: 180 | G5: 42 | H5: 162 | I5: 307 | J5: 40 | K5: -296 | L5: -303 | M5: -337 | N5: -318 | O5: -362
A6: Aberdeenshire | B6: 991 | C6: 831 | D6: 828 | E6: 692 | F6: 569 | G6: 579 | H6: 496 | I6: 453 | J6: 557 | K6: 745 | L6: 835 | M6: 463 | N6: 120 | O6: 171
A7: Angus | B7: 337 | C7: 348 | D7: 276 | E7: 166 | F7: 170 | G7: 116 | H7: 165 | I7: 93 | J7: 33 | K7: 67 | L7: 181 | M7: 194 | N7: 59 | O7: 115
A8: Argyll and Bute | B8: 150 | C8: 129 | D8: 41 | E8: 123 | F8: -28 | G8: 56 | H8: 110 | I8: 135 | J8: -37 | K8: 99 | L8: 55 | M8: 26 | N8: 131 | O8: 117
A9: City of Edinburgh | B9: -782 | C9: -65 | D9: -280 | E9: -86 | F9: -124 | G9: 208 | H9: 200 | I9: 239 | J9: -63 | K9: -151 | L9: -364 | M9: -258 | N9: 226 | O9: -338
A10: Clackmannanshire | B10: 97 | C10: 156 | D10: 97 | E10: 224 | F10: 139 | G10: -21 | H10: 10 | I10: 1 | J10: -102 | K10: 45 | L10: -24 | M10: 8 | N10: 70 | O10: 46
A11: Dumfries and Galloway | B11: 258 | C11: 276 | D11: 100 | E11: 195 | F11: 165 | G11: 170 | H11: 4 | I11: 113 | J11: -17 | K11: 9 | L11: 169 | M11: 74 | N11: 164 | O11: 124
A12: Dundee City | B12: -294 | C12: 45 | D12: -142 | E12: -16 | F12: 65 | G12: -11 | H12: -111 | I12: -91 | J12: -131 | K12: -37 | L12: -79 | M12: -145 | N12: -62 | O12: -82
A13: East Ayrshire | B13: 204 | C13: 59 | D13: 37 | E13: 80 | F13: 165 | G13: 63 | H13: 33 | I13: 25 | J13: 33 | K13: -4 | L13: 16 | M13: 71 | N13: 101 | O13: -11
A14: East Dunbartonshire | B14: 260 | C14: 225 | D14: 266 | E14: 206 | F14: 238 | G14: 220 | H14: 270 | I14: 234 | J14: 407 | K14: 251 | L14: 496 | M14: 513 | N14: 538 | O14: 485
A15: East Lothian | B15: 170 | C15: 143 | D15: 229 | E15: 346 | F15: 233 | G15: 232 | H15: 131 | I15: 191 | J15: 213 | K15: 154 | L15: 249 | M15: 222 | N15: 169 | O15: 195
A16: East Renfrewshire | B16: 201 | C16: 274 | D16: 244 | E16: 180 | F16: 255 | G16: 281 | H16: 325 | I16: 418 | J16: 315 | K16: 584 | L16: 635 | M16: 567 | N16: 626 | O16: 659
A17: Falkirk | B17: 271 | C17: 201 | D17: 90 | E17: 108 | F17: 59 | G17: 10 | H17: 50 | I17: 92 | J17: -31 | K17: 70 | L17: 82 | M17: 129 | N17: 166 | O17: 72
A18: Fife | B18: 453 | C18: 429 | D18: 196 | E18: 368 | F18: 278 | G18: 282 | H18: 256 | I18: 330 | J18: 62 | K18: 169 | L18: 101 | M18: 279 | N18: 338 | O18: 295
A19: Glasgow City | B19: -1535 | C19: -1394 | D19: -1413 | E19: -550 | F19: -648 | G19: -406 | H19: -871 | I19: -488 | J19: -1069 | K19: -923 | L19: -1001 | M19: -698 | N19: -351 | O19: -533
A20: Highland | B20: 743 | C20: 596 | D20: 418 | E20: 499 | F20: 451 | G20: 271 | H20: 242 | I20: 170 | J20: -28 | K20: 166 | L20: 111 | M20: 339 | N20: 312 | O20: 100
A21: Inverclyde | B21: -69 | C21: -4 | D21: -74 | E21: -49 | F21: -7 | G21: -3 | H21: -16 | I21: -34 | J21: -24 | K21: 36 | L21: -3 | M21: 6 | N21: 53 | O21: -3
A22: Midlothian | B22: -55 | C22: -33 | D22: -66 | E22: 32 | F22: 121 | G22: 161 | H22: 62 | I22: 174 | J22: 192 | K22: 147 | L22: 275 | M22: 250 | N22: 210 | O22: 259
A23: Moray | B23: 150 | C23: 39 | D23: -25 | E23: 86 | F23: 77 | G23: 142 | H23: -4 | I23: -76 | J23: 180 | K23: 163 | L23: 162 | M23: 126 | N23: 170 | O23: 74
A24: Na h-Eileanan Siar | B24: 87 | C24: 104 | D24: 41 | E24: 11 | F24: 40 | G24: 48 | H24: 45 | I24: 9 | J24: 26 | K24: -11 | L24: 0 | M24: 22 | N24: 8 | O24: 86
A25: North Ayrshire | B25: 137 | C25: 49 | D25: 45 | E25: 103 | F25: 127 | G25: 58 | H25: 1 | I25: 64 | J25: 63 | K25: -13 | L25: 91 | M25: 101 | N25: 131 | O25: 119
A26: North Lanarkshire | B26: 18 | C26: 137 | D26: 21 | E26: 377 | F26: 218 | G26: 79 | H26: -46 | I26: 39 | J26: 79 | K26: 109 | L26: 81 | M26: 107 | N26: 367 | O26: 151
A27: Orkney Islands | B27: 96 | C27: 63 | D27: 32 | E27: 40 | F27: 45 | G27: 41 | H27: 37 | I27: 5 | J27: 40 | K27: 35 | L27: 44 | M27: 35 | N27: 74 | O27: 46
A28: Perth and Kinross | B28: 526 | C28: 373 | D28: 369 | E28: 436 | F28: 391 | G28: 341 | H28: 417 | I28: 390 | J28: 306 | K28: 244 | L28: 424 | M28: 500 | N28: 335 | O28: 430
A29: Renfrewshire | B29: -14 | C29: 105 | D29: -1 | E29: 131 | F29: 114 | G29: -51 | H29: 41 | I29: 108 | J29: -66 | K29: -25 | L29: 52 | M29: 98 | N29: 294 | O29: 245
A30: Scottish Borders | B30: 332 | C30: 339 | D30: 179 | E30: 322 | F30: 305 | G30: 117 | H30: 119 | I30: 141 | J30: 58 | K30: 101 | L30: 172 | M30: 130 | N30: 230 | O30: 234
A31: Shetland Islands | B31: 63 | C31: 95 | D31: -48 | E31: 23 | F31: 16 | G31: 45 | H31: 46 | I31: -15 | J31: -27 | K31: -43 | L31: 4 | M31: -7 | N31: 14 | O31: 3
A32: South Ayrshire | B32: 90 | C32: 217 | D32: 177 | E32: 220 | F32: 218 | G32: 28 | H32: 148 | I32: 159 | J32: 104 | K32: 128 | L32: 86 | M32: 183 | N32: 145 | O32: 180
A33: South Lanarkshire | B33: 473 | C33: 307 | D33: 391 | E33: 430 | F33: 199 | G33: 263 | H33: 219 | I33: 91 | J33: 250 | K33: 97 | L33: 146 | M33: 388 | N33: 243 | O33: 390
A34: Stirling | B34: 341 | C34: 208 | D34: 234 | E34: 118 | F34: 156 | G34: 90 | H34: 324 | I34: 220 | J34: 276 | K34: 116 | L34: 230 | M34: 357 | N34: 277 | O34: 227
A35: West Dunbartonshire | B35: -151 | C35: -141 | D35: -58 | E35: 13 | F35: -17 | G35: 44 | H35: -93 | I35: -63 | J35: -39 | K35: -118 | L35: -27 | M35: 60 | N35: 63 | O35: -1
A36: West Lothian | B36: 229 | C36: 111 | D36: 218 | E36: 219 | F36: 117 | G36: 27 | H36: 111 | I36: 56 | J36: 37 | K36: -37 | L36: 196 | M36: 290 | N36: 298 | O36: 282
A38: NHS Board Areas
A39: SCOTLAND | B39: 3430 | C39: 4434 | D39: 2416 | E39: 5380 | F39: 4287 | G39: 3522 | H39: 2883 | I39: 3490 | J39: 1637 | K39: 1877 | L39: 3092 | M39: 4093 | N39: 5201 | O39: 3775
A40: Ayrshire and Arran | B40: 431 | C40: 325 | D40: 259 | E40: 403 | F40: 510 | G40: 149 | H40: 182 | I40: 248 | J40: 200 | K40: 111 | L40: 193 | M40: 355 | N40: 377 | O40: 288
A41: Borders | B41: 332 | C41: 339 | D41: 179 | E41: 322 | F41: 305 | G41: 117 | H41: 119 | I41: 141 | J41: 58 | K41: 101 | L41: 172 | M41: 130 | N41: 230 | O41: 234
A42: Dumfries and Galloway | B42: 258 | C42: 276 | D42: 100 | E42: 195 | F42: 165 | G42: 170 | H42: 4 | I42: 113 | J42: -17 | K42: 9 | L42: 169 | M42: 74 | N42: 164 | O42: 124
A43: Fife | B43: 453 | C43: 429 | D43: 196 | E43: 369 | F43: 277 | G43: 281 | H43: 257 | I43: 330 | J43: 62 | K43: 169 | L43: 101 | M43: 279 | N43: 338 | O43: 295
A44: Forth Valley | B44: 709 | C44: 565 | D44: 421 | E44: 450 | F44: 354 | G44: 79 | H44: 384 | I44: 313 | J44: 143 | K44: 231 | L44: 288 | M44: 494 | N44: 513 | O44: 345
A45: Grampian | B45: 794 | C45: 1082 | D45: 797 | E45: 1111 | F45: 826 | G45: 763 | H45: 654 | I45: 684 | J45: 777 | K45: 612 | L45: 694 | M45: 252 | N45: -28 | O45: -117
A46: Greater Glasgow and Clyde | B46: -1291 | C46: -789 | D46: -887 | E46: 69 | F46: -103 | G46: 138 | H46: -231 | I46: 186 | J46: -476 | K46: -195 | L46: 152 | M46: 546 | N46: 1223 | O46: 852
A47: Highland | B47: 893 | C47: 725 | D47: 459 | E47: 622 | F47: 423 | G47: 327 | H47: 352 | I47: 305 | J47: -65 | K47: 265 | L47: 166 | M47: 365 | N47: 443 | O47: 217
A48: Lanarkshire | B48: 474 | C48: 298 | D48: 263 | E48: 669 | F48: 455 | G48: 289 | H48: 60 | I48: 119 | J48: 329 | K48: 206 | L48: 227 | M48: 495 | N48: 610 | O48: 541
A49: Lothian | B49: -438 | C49: 156 | D49: 101 | E49: 511 | F49: 347 | G49: 628 | H49: 504 | I49: 660 | J49: 379 | K49: 113 | L49: 356 | M49: 504 | N49: 903 | O49: 398
A50: Orkney | B50: 96 | C50: 63 | D50: 32 | E50: 40 | F50: 45 | G50: 41 | H50: 37 | I50: 5 | J50: 40 | K50: 35 | L50: 44 | M50: 35 | N50: 74 | O50: 46
A51: Shetland | B51: 63 | C51: 95 | D51: -48 | E51: 23 | F51: 16 | G51: 45 | H51: 46 | I51: -15 | J51: -27 | K51: -43 | L51: 4 | M51: -7 | N51: 14 | O51: 3
A52: Tayside | B52: 569 | C52: 766 | D52: 503 | E52: 585 | F52: 627 | G52: 447 | H52: 470 | I52: 392 | J52: 208 | K52: 274 | L52: 526 | M52: 549 | N52: 332 | O52: 463
A53: Western Isles | B53: 87 | C53: 104 | D53: 41 | E53: 11 | F53: 40 | G53: 48 | H53: 45 | I53: 9 | J53: 26 | K53: -11 | L53: 0 | M53: 22 | N53: 8 | O53: 86
A55: Notes
A56: 1) Figures include asylum seekers. For 2015-16 onwards, figures also include refugees.
A57: 2) Movements to/from the armed forces were included in these figures in previous releases of this spreadsheet but are no longer treated as migration. Armed forces movements are included in the mid-year population estimates under another category.
A58: 3) Source for data: 'Migration to and from administrative areas by age' from the 'Migration to or from Scotland' section of the NRS website - https://www.nrscotland.gov.uk/statistics-and-data/statistics/statistics-by-theme/migration/migration-statistics/total-migration-to-or-from-scotland
A59: 4) The NHS Board areas used for estimates between 2003-04 and 2010-11 are those that existed between 2006 and 2014. The 2011-12 estimates onwards use the NHS Board areas that came into force in April 2014.
A61: © Crown Copyright 2018

Sheet Total net migration 16-64
A1: Total net migration for ages 16-64 | K1: Return to front page
A3: Council Area | B3: 2003-04 | C3: 2004-05 | D3: 2005-06 | E3: 2006-07 | F3: 2007-08 | G3: 2008-09 | H3: 2009-10 | I3: 2010-11 | J3: 2011-12 | K3: 2012-13 | L3: 2013-14 | M3: 2014-15 | N3: 2015-16 | O3: 2016-17
A4: SCOTLAND | B4: 13595 | C4: 19931 | D4: 16044 | E4: 26935 | F4: 21574 | G4: 20601 | H4: 22931 | I4: 26224 | J4: 11462 | K4: 8267 | L4: 14470 | M4: 23858 | N4: 26475 | O4: 19788
A5: Aberdeen City | B5: -708 | C5: 963 | D5: 1306 | E5: 2776 | F5: 1641 | G5: 3043 | H5: 2709 | I5: 2859 | J5: 1987 | K5: 2079 | L5: 1928 | M5: 1625 | N5: -531 | O5: -1024
A6: Aberdeenshire | B6: 1815 | C6: 1667 | D6: 1962 | E6: 1758 | F6: 1177 | G6: 884 | H6: 1193 | I6: 975 | J6: 924 | K6: 1039 | L6: 1374 | M6: 719 | N6: -358 | O6: -846
A7: Angus | B7: 796 | C7: 594 | D7: 576 | E7: 494 | F7: 342 | G7: -13 | H7: 174 | I7: -35 | J7: 137 | K7: -36 | L7: 394 | M7: 307 | N7: 18 | O7: -34
A8: Argyll and Bute | B8: 718 | C8: 307 | D8: 136 | E8: 225 | F8: 12 | G8: -28 | H8: 224 | I8: 181 | J8: -128 | K8: -76 | L8: -269 | M8: -198 | N8: 278 | O8: 103
A9: City of Edinburgh | B9: 3398 | C9: 5731 | D9: 3946 | E9: 5148 | F9: 3653 | G9: 5710 | H9: 7905 | I9: 7825 | J9: 4018 | K9: 3149 | L9: 3621 | M9: 6593 | N9: 7365 | O9: 5466
A10: Clackmannanshire | B10: 413 | C10: 408 | D10: 223 | E10: 503 | F10: 288 | G10: 82 | H10: -76 | I10: -18 | J10: -198 | K10: -119 | L10: -73 | M10: 51 | N10: -53 | O10: 89
A11: Dumfries and Galloway | B11: 723 | C11: 726 | D11: 318 | E11: 404 | F11: 523 | G11: 111 | H11: 91 | I11: 230 | J11: -75 | K11: 19 | L11: 105 | M11: 206 | N11: 229 | O11: 192
A12: Dundee City | B12: -357 | C12: 634 | D12: 113 | E12: 320 | F12: 608 | G12: 1036 | H12: 1133 | I12: 1603 | J12: 730 | K12: 395 | L12: 154 | M12: 410 | N12: 244 | O12: 726
A13: East Ayrshire | B13: 181 | C13: -27 | D13: 14 | E13: 276 | F13: 388 | G13: 326 | H13: -17 | I13: 15 | J13: -93 | K13: -132 | L13: -76 | M13: 10 | N13: 17 | O13: 32
A14: East Dunbartonshire | B14: -613 | C14: -644 | D14: -613 | E14: -435 | F14: -362 | G14: -218 | H14: -294 | I14: -312 | J14: -157 | K14: -177 | L14: 339 | M14: 60 | N14: 170 | O14: 215
A15: East Lothian | B15: 179 | C15: 267 | D15: 561 | E15: 1167 | F15: 1318 | G15: 421 | H15: 397 | I15: 199 | J15: 511 | K15: 313 | L15: 374 | M15: 606 | N15: 667 | O15: 468
A16: East Renfrewshire | B16: -348 | C16: -326 | D16: -494 | E16: -118 | F16: -327 | G16: -280 | H16: 11 | I16: -117 | J16: -100 | K16: -24 | L16: 230 | M16: -74 | N16: 159 | O16: 241
A17: Falkirk | B17: 1168 | C17: 1392 | D17: 792 | E17: 820 | F17: 532 | G17: 477 | H17: 315 | I17: 889 | J17: 346 | K17: 226 | L17: 318 | M17: 571 | N17: 744 | O17: 781
A18: Fife | B18: 1734 | C18: 1997 | D18: 1292 | E18: 1394 | F18: 1248 | G18: 1146 | H18: 1453 | I18: 1618 | J18: 474 | K18: 121 | L18: 363 | M18: 901 | N18: 1182 | O18: 1176
A19: Glasgow City | B19: -1170 | C19: 531 | D19: 19 | E19: 3295 | F19: 3976 | G19: 4706 | H19: 4271 | I19: 6127 | J19: 2536 | K19: 1679 | L19: 3303 | M19: 6790 | N19: 8515 | O19: 6086
A20: Highland | B20: 1818 | C20: 2040 | D20: 1506 | E20: 2010 | F20: 1495 | G20: 667 | H20: 736 | I20: 667 | J20: 187 | K20: -30 | L20: 172 | M20: 819 | N20: 1016 | O20: 856
A21: Inverclyde | B21: -485 | C21: -145 | D21: -289 | E21: -259 | F21: -160 | G21: -334 | H21: -220 | I21: -265 | J21: -305 | K21: -195 | L21: -236 | M21: -148 | N21: -153 | O21: -36
A22: Midlothian | B22: -173 | C22: -273 | D22: -206 | E22: 99 | F22: 270 | G22: 291 | H22: 133 | I22: 302 | J22: 343 | K22: 443 | L22: 753 | M22: 689 | N22: 783 | O22: 994
A23: Moray | B23: 697 | C23: 549 | D23: 455 | E23: 347 | F23: 155 | G23: 251 | H23: -51 | I23: -114 | J23: 103 | K23: 402 | L23: 198 | M23: 249 | N23: 343 | O23: -105
A24: Na h-Eileanan Siar | B24: 126 | C24: 125 | D24: 60 | E24: 45 | F24: -59 | G24: 2 | H24: 86 | I24: 12 | J24: -26 | K24: -20 | L24: -90 | M24: -18 | N24: -65 | O24: 53
A25: North Ayrshire | B25: -72 | C25: -22 | D25: -124 | E25: 242 | F25: 120 | G25: -252 | H25: -218 | I25: 11 | J25: -476 | K25: -333 | L25: -271 | M25: -41 | N25: 21 | O25: 147
A26: North Lanarkshire | B26: 184 | C26: 151 | D26: 268 | E26: 589 | F26: 379 | G26: 7 | H26: -358 | I26: -81 | J26: -279 | K26: -407 | L26: -138 | M26: -29 | N26: 726 | O26: 592
A27: Orkney Islands | B27: 135 | C27: 67 | D27: 142 | E27: 80 | F27: 30 | G27: 36 | H27: 98 | I27: 85 | J27: 70 | K27: 39 | L27: 14 | M27: 63 | N27: 127 | O27: 121
A28: Perth and Kinross | B28: 910 | C28: 1488 | D28: 1520 | E28: 1865 | F28: 1895 | G28: 1396 | H28: 1363 | I28: 1255 | J28: 644 | K28: 81 | L28: 945 | M28: 649 | N28: 631 | O28: 364
A29: Renfrewshire | B29: -192 | C29: -401 | D29: -312 | E29: 127 | F29: 241 | G29: 189 | H29: 364 | I29: 408 | J29: -323 | K29: -321 | L29: 254 | M29: 459 | N29: 1233 | O29: 894
A30: Scottish Borders | B30: 849 | C30: 605 | D30: 649 | E30: 1031 | F30: 950 | G30: 189 | H30: 146 | I30: 370 | J30: 13 | K30: 175 | L30: 173 | M30: 282 | N30: 500 | O30: 566
A31: Shetland Islands | B31: -11 | C31: -11 | D31: -69 | E31: 15 | F31: 4 | G31: 135 | H31: 114 | I31: 64 | J31: -59 | K31: -23 | L31: -1 | M31: 4 | N31: -30 | O31: -133
A32: South Ayrshire | B32: 376 | C32: 78 | D32: 99 | E32: 287 | F32: 141 | G32: 73 | H32: 267 | I32: 324 | J32: 155 | K32: 148 | L32: -86 | M32: 28 | N32: 239 | O32: 372
A33: South Lanarkshire | B33: 1272 | C33: 562 | D33: 763 | E33: 1014 | F33: 401 | G33: 269 | H33: 470 | I33: 335 | J33: 49 | K33: 304 | L33: 318 | M33: 616 | N33: 744 | O33: 897
A34: Stirling | B34: -407 | C34: 441 | D34: 443 | E34: 317 | F34: 52 | G34: 198 | H34: 684 | I34: 817 | J34: 530 | K34: 226 | L34: 235 | M34: 1092 | N34: 743 | O34: 130
A35: West Dunbartonshire | B35: -196 | C35: -165 | D35: -35 | E35: -21 | F35: -137 | G35: -83 | H35: -208 | I35: -123 | J35: -164 | K35: -257 | L35: -51 | M35: 30 | N35: 213 | O35: -70
A36: West Lothian | B36: 835 | C36: 622 | D36: 1023 | E36: 1120 | F36: 780 | G36: 164 | H36: 36 | I36: 118 | J36: 88 | K36: -421 | L36: 196 | M36: 537 | N36: 758 | O36: 475
A38: NHS Board Areas
A39: SCOTLAND | B39: 13595 | C39: 19931 | D39: 16044 | E39: 26935 | F39: 21574 | G39: 20601 | H39: 22931 | I39: 26224 | J39: 11462 | K39: 8267 | L39: 14470 | M39: 23858 | N39: 26475 | O39: 19788
A40: Ayrshire and Arran | B40: 485 | C40: 29 | D40: -11 | E40: 805 | F40: 649 | G40: 147 | H40: 32 | I40: 350 | J40: -414 | K40: -317 | L40: -433 | M40: -3 | N40: 277 | O40: 551
A41: Borders | B41: 849 | C41: 605 | D41: 649 | E41: 1031 | F41: 950 | G41: 189 | H41: 146 | I41: 370 | J41: 13 | K41: 175 | L41: 173 | M41: 282 | N41: 500 | O41: 566
A42: Dumfries and Galloway | B42: 723 | C42: 726 | D42: 318 | E42: 404 | F42: 523 | G42: 111 | H42: 91 | I42: 230 | J42: -75 | K42: 19 | L42: 105 | M42: 206 | N42: 229 | O42: 192
A43: Fife | B43: 1734 | C43: 1997 | D43: 1293 | E43: 1391 | F43: 1242 | G43: 1145 | H43: 1455 | I43: 1614 | J43: 474 | K43: 121 | L43: 363 | M43: 901 | N43: 1182 | O43: 1176
A44: Forth Valley | B44: 1174 | C44: 2241 | D44: 1458 | E44: 1640 | F44: 872 | G44: 757 | H44: 923 | I44: 1688 | J44: 678 | K44: 333 | L44: 480 | M44: 1714 | N44: 1434 | O44: 1000
A45: Grampian | B45: 1804 | C45: 3179 | D45: 3723 | E45: 4881 | F45: 2973 | G45: 4178 | H45: 3851 | I45: 3720 | J45: 3014 | K45: 3520 | L45: 3500 | M45: 2593 | N45: -546 | O45: -1975
A46: Greater Glasgow and Clyde | B46: -2385 | C46: -877 | D46: -1172 | E46: 3247 | F46: 3555 | G46: 4397 | H46: 4428 | I46: 5781 | J46: 1487 | K46: 705 | L46: 3839 | M46: 7117 | N46: 10137 | O46: 7330
A47: Highland | B47: 2536 | C47: 2347 | D47: 1642 | E47: 2235 | F47: 1507 | G47: 639 | H47: 960 | I47: 848 | J47: 59 | K47: -106 | L47: -97 | M47: 621 | N47: 1294 | O47: 959
A48: Lanarkshire | B48: 837 | C48: 440 | D48: 479 | E48: 945 | F48: 456 | G48: -141 | H48: -392 | I48: 191 | J48: -230 | K48: -103 | L48: 180 | M48: 587 | N48: 1470 | O48: 1489
A49: Lothian | B49: 4239 | C49: 6347 | D49: 5324 | E49: 7534 | F49: 6021 | G49: 6586 | H49: 8471 | I49: 8444 | J49: 4960 | K49: 3484 | L49: 4944 | M49: 8425 | N49: 9573 | O49: 7403
A50: Orkney | B50: 135 | C50: 67 | D50: 142 | E50: 80 | F50: 30 | G50: 36 | H50: 98 | I50: 85 | J50: 70 | K50: 39 | L50: 14 | M50: 63 | N50: 127 | O50: 121
A51: Shetland | B51: -11 | C51: -11 | D51: -69 | E51: 15 | F51: 4 | G51: 135 | H51: 114 | I51: 64 | J51: -59 | K51: -23 | L51: -1 | M51: 4 | N51: -30 | O51: -133
A52: Tayside | B52: 1349 | C52: 2716 | D52: 2208 | E52: 2682 | F52: 2851 | G52: 2420 | H52: 2668 | I52: 2827 | J52: 1511 | K52: 440 | L52: 1493 | M52: 1366 | N52: 893 | O52: 1056
A53: Western Isles | B53: 126 | C53: 125 | D53: 60 | E53: 45 | F53: -59 | G53: 2 | H53: 86 | I53: 12 | J53: -26 | K53: -20 | L53: -90 | M53: -18 | N53: -65 | O53: 53
A55: Notes
A56: 1) Figures include asylum seekers. For 2015-16 onwards, figures also include refugees.
A57: 2) Movements to/from the armed forces were included in these figures in previous releases of this spreadsheet but are no longer treated as migration. Armed forces movements are included in the mid-year population estimates under another category.
A58: 3) Source for data: 'Migration to and from administrative areas by age' from the 'Migration to or from Scotland' section of the NRS website - https://www.nrscotland.gov.uk/statistics-and-data/statistics/statistics-by-theme/migration/migration-statistics/total-migration-to-or-from-scotland
A59: 4) The NHS Board areas used for estimates between 2003-04 and 2010-11 are those that existed between 2006 and 2014. The 2011-12 estimates onwards use the NHS Board areas that came into force in April 2014.
A61: © Crown Copyright 2018

Sheet Total net migration 65+
A1: Total net migration for ages 65+ | K1: Return to front page
A3: Council Area | B3: 2003-04 | C3: 2004-05 | D3: 2005-06 | E3: 2006-07 | F3: 2007-08 | G3: 2008-09 | H3: 2009-10 | I3: 2010-11 | J3: 2011-12 | K3: 2012-13 | L3: 2013-14 | M3: 2014-15 | N3: 2015-16 | O3: 2016-17
A4: SCOTLAND | B4: 1597 | C4: 942 | D4: 362 | E4: 734 | F4: 548 | G4: 299 | H4: 261 | I4: 495 | J4: -361 | K4: -182 | L4: 23 | M4: 17 | N4: 17 | O4: 292
A5: Aberdeen City | B5: -136 | C5: -65 | D5: -157 | E5: -156 | F5: -175 | G5: -111 | H5: -117 | I5: -88 | J5: -180 | K5: -119 | L5: -213 | M5: -203 | N5: -120 | O5: -30
A6: Aberdeenshire | B6: 424 | C6: 282 | D6: 277 | E6: 233 | F6: 135 | G6: 44 | H6: 4 | I6: -44 | J6: -95 | K6: -120 | L6: -168 | M6: -196 | N6: -116 | O6: -13
A7: Angus | B7: 209 | C7: 131 | D7: 102 | E7: 96 | F7: 141 | G7: 45 | H7: 16 | I7: 57 | J7: 88 | K7: 82 | L7: 70 | M7: 36 | N7: -9 | O7: 63
A8: Argyll and Bute | B8: 58 | C8: 1 | D8: 23 | E8: 30 | F8: -23 | G8: -55 | H8: -43 | I8: -12 | J8: -68 | K8: -46 | L8: -61 | M8: -61 | N8: -175 | O8: -83
A9: City of Edinburgh | B9: -382 | C9: -349 | D9: -254 | E9: -143 | F9: -173 | G9: -57 | H9: -36 | I9: -20 | J9: 11 | K9: 0 | L9: 39 | M9: -74 | N9: 68 | O9: -40
A10: Clackmannanshire | B10: 41 | C10: 8 | D10: -23 | E10: 14 | F10: -30 | G10: -22 | H10: -9 | I10: 9 | J10: 44 | K10: 15 | L10: 15 | M10: 83 | N10: -5 | O10: -14
A11: Dumfries and Galloway | B11: 202 | C11: 189 | D11: 51 | E11: 113 | F11: 122 | G11: 23 | H11: 24 | I11: 34 | J11: -36 | K11: -34 | L11: 60 | M11: 50 | N11: 1 | O11: 6
A12: Dundee City | B12: -89 | C12: -107 | D12: -80 | E12: -39 | F12: -65 | G12: -106 | H12: -41 | I12: -85 | J12: -107 | K12: -49 | L12: -87 | M12: -56 | N12: -5 | O12: -56
A13: East Ayrshire | B13: -18 | C13: 4 | D13: 40 | E13: -31 | F13: -4 | G13: -6 | H13: 14 | I13: -10 | J13: -16 | K13: 16 | L13: -30 | M13: -19 | N13: 33 | O13: -3
A14: East Dunbartonshire | B14: -104 | C14: -63 | D14: -102 | E14: -60 | F14: -56 | G14: -81 | H14: -47 | I14: -27 | J14: 10 | K14: 18 | L14: 74 | M14: -24 | N14: -2 | O14: -12
A15: East Lothian | B15: 81 | C15: 87 | D15: 135 | E15: 46 | F15: 84 | G15: 52 | H15: 67 | I15: 55 | J15: 63 | K15: 54 | L15: 89 | M15: 133 | N15: 124 | O15: 137
A16: East Renfrewshire | B16: 50 | C16: 35 | D16: 37 | E16: -17 | F16: 0 | G16: 71 | H16: 33 | I16: -31 | J16: -26 | K16: -21 | L16: 25 | M16: 134 | N16: 34 | O16: 58
A17: Falkirk | B17: 71 | C17: 49 | D17: 59 | E17: 7 | F17: 72 | G17: 78 | H17: 93 | I17: 40 | J17: 41 | K17: 79 | L17: 15 | M17: 34 | N17: 30 | O17: 48
A18: Fife | B18: 161 | C18: 231 | D18: 72 | E18: 131 | F18: 101 | G18: 122 | H18: 97 | I18: 128 | J18: 87 | K18: 14 | L18: 186 | M18: 48 | N18: 88 | O18: 53
A19: Glasgow City | B19: -713 | C19: -695 | D19: -594 | E19: -442 | F19: -399 | G19: -311 | H19: -350 | I19: -269 | J19: -321 | K19: -317 | L19: -255 | M19: -252 | N19: -201 | O19: -163
A20: Highland | B20: 289 | C20: 226 | D20: 130 | E20: 168 | F20: 165 | G20: 52 | H20: 12 | I20: 61 | J20: -41 | K20: -43 | L20: -44 | M20: -43 | N20: -132 | O20: -143
A21: Inverclyde | B21: -45 | C21: 19 | D21: 10 | E21: -10 | F21: -36 | G21: -22 | H21: 10 | I21: 10 | J21: 24 | K21: -1 | L21: -31 | M21: 6 | N21: 44 | O21: 49
A22: Midlothian | B22: -35 | C22: -15 | D22: 11 | E22: -22 | F22: 36 | G22: 15 | H22: 42 | I22: 46 | J22: 24 | K22: -14 | L22: -8 | M22: 48 | N22: 15 | O22: 18
A23: Moray | B23: 133 | C23: 105 | D23: 28 | E23: 92 | F23: 98 | G23: 11 | H23: 46 | I23: 28 | J23: 44 | K23: 31 | L23: 107 | M23: 35 | N23: 40 | O23: 34
A24: Na h-Eileanan Siar | B24: 33 | C24: 45 | D24: 28 | E24: 17 | F24: 42 | G24: 21 | H24: 38 | I24: 2 | J24: 13 | K24: 12 | L24: 2 | M24: -9 | N24: -10 | O24: 16
A25: North Ayrshire | B25: 141 | C25: 68 | D25: 58 | E25: 83 | F25: 86 | G25: 77 | H25: 52 | I25: 61 | J25: 12 | K25: 38 | L25: 43 | M25: 0 | N25: -87 | O25: 86
A26: North Lanarkshire | B26: 26 | C26: 42 | D26: 13 | E26: -117 | F26: -63 | G26: 2 | H26: -18 | I26: -16 | J26: -71 | K26: -87 | L26: -29 | M26: 62 | N26: -111 | O26: -9
A27: Orkney Islands | B27: 30 | C27: 5 | D27: 26 | E27: 23 | F27: 20 | G27: 11 | H27: 28 | I27: 9 | J27: -4 | K27: 6 | L27: 9 | M27: 2 | N27: 22 | O27: 37
A28: Perth and Kinross | B28: 229 | C28: 202 | D28: 134 | E28: 139 | F28: 114 | G28: 63 | H28: 81 | I28: 181 | J28: 30 | K28: 52 | L28: 38 | M28: 114 | N28: 96 | O28: 104
A29: Renfrewshire | B29: -62 | C29: 10 | D29: -31 | E29: 11 | F29: 43 | G29: 18 | H29: 38 | I29: 73 | J29: -6 | K29: 3 | L29: 66 | M29: 34 | N29: 87 | O29: 23
A30: Scottish Borders | B30: 204 | C30: 59 | D30: 7 | E30: 139 | F30: 47 | G30: 115 | H30: 21 | I30: -23 | J30: -26 | K30: 32 | L30: -65 | M30: 23 | N30: -40 | O30: 18
A31: Shetland Islands | B31: 20 | C31: 4 | D31: 5 | E31: 8 | F31: 6 | G31: 23 | H31: -5 | I31: 10 | J31: 18 | K31: -23 | L31: -8 | M31: -33 | N31: 1 | O31: -3
A32: South Ayrshire | B32: 218 | C32: 130 | D32: 90 | E32: 71 | F32: 41 | G32: 72 | H32: 28 | I32: 113 | J32: 98 | K32: 129 | L32: 103 | M32: 100 | N32: 162 | O32: 138
A33: South Lanarkshire | B33: 382 | C33: 210 | D33: 180 | E33: 207 | F33: 135 | G33: 108 | H33: 119 | I33: 161 | J33: 109 | K33: 178 | L33: 47 | M33: 30 | N33: 110 | O33: -9
A34: Stirling | B34: 56 | C34: 9 | D34: 24 | E34: 42 | F34: 36 | G34: 22 | H34: -2 | I34: -16 | J34: -32 | K34: -89 | L34: 2 | M34: -37 | N34: -8 | O34: -22
A35: West Dunbartonshire | B35: -27 | C35: -26 | D35: -15 | E35: -24 | F35: -51 | G35: -17 | H35: 10 | I35: 13 | J35: -77 | K35: -49 | L35: -20 | M35: -11 | N35: 12 | O35: -25
A36: West Lothian | B36: 150 | C36: 111 | D36: 78 | E36: 125 | F36: 99 | G36: 42 | H36: 56 | I36: 45 | J36: 29 | K36: 71 | L36: 52 | M36: 63 | N36: 71 | O36: 29
A38: NHS Board Areas
A39: SCOTLAND | B39: 1597 | C39: 942 | D39: 362 | E39: 734 | F39: 548 | G39: 299 | H39: 261 | I39: 495 | J39: -361 | K39: -182 | L39: 23 | M39: 17 | N39: 17 | O39: 292
A40: Ayrshire and Arran | B40: 341 | C40: 202 | D40: 188 | E40: 123 | F40: 123 | G40: 143 | H40: 94 | I40: 164 | J40: 94 | K40: 183 | L40: 116 | M40: 81 | N40: 108 | O40: 221
A41: Borders | B41: 204 | C41: 59 | D41: 7 | E41: 139 | F41: 47 | G41: 115 | H41: 21 | I41: -23 | J41: -26 | K41: 32 | L41: -65 | M41: 23 | N41: -40 | O41: 18
A42: Dumfries and Galloway | B42: 202 | C42: 189 | D42: 51 | E42: 113 | F42: 122 | G42: 23 | H42: 24 | I42: 34 | J42: -36 | K42: -34 | L42: 60 | M42: 50 | N42: 1 | O42: 6
A43: Fife | B43: 161 | C43: 231 | D43: 74 | E43: 131 | F43: 101 | G43: 122 | H43: 97 | I43: 127 | J43: 87 | K43: 14 | L43: 186 | M43: 48 | N43: 88 | O43: 53
A44: Forth Valley | B44: 168 | C44: 66 | D44: 60 | E44: 63 | F44: 78 | G44: 78 | H44: 82 | I44: 33 | J44: 53 | K44: 5 | L44: 32 | M44: 80 | N44: 17 | O44: 12
A45: Grampian | B45: 421 | C45: 322 | D45: 148 | E45: 169 | F45: 58 | G45: -56 | H45: -67 | I45: -104 | J45: -231 | K45: -208 | L45: -274 | M45: -364 | N45: -196 | O45: -9
A46: Greater Glasgow and Clyde | B46: -883 | C46: -753 | D46: -737 | E46: -611 | F46: -567 | G46: -411 | H46: -335 | I46: -192 | J46: -396 | K46: -367 | L46: -141 | M46: -113 | N46: -26 | O46: -70
A47: Highland | B47: 347 | C47: 227 | D47: 153 | E47: 198 | F47: 142 | G47: -3 | H47: -31 | I47: 49 | J47: -109 | K47: -89 | L47: -105 | M47: -104 | N47: -307 | O47: -226
A48: Lanarkshire | B48: 390 | C48: 285 | D48: 235 | E48: 159 | F48: 140 | G48: 179 | H48: 130 | I48: 106 | J48: 38 | K48: 91 | L48: 18 | M48: 92 | N48: -1 | O48: -18
A49: Lothian | B49: -186 | C49: -166 | D49: -30 | E49: 6 | F49: 46 | G49: 52 | H49: 129 | I49: 126 | J49: 127 | K49: 111 | L49: 172 | M49: 170 | N49: 278 | O49: 144
A50: Orkney | B50: 30 | C50: 5 | D50: 26 | E50: 23 | F50: 20 | G50: 11 | H50: 28 | I50: 9 | J50: -4 | K50: 6 | L50: 9 | M50: 2 | N50: 22 | O50: 37
A51: Shetland | B51: 20 | C51: 4 | D51: 5 | E51: 8 | F51: 6 | G51: 23 | H51: -5 | I51: 10 | J51: 18 | K51: -23 | L51: -8 | M51: -33 | N51: 1 | O51: -3
A52: Tayside | B52: 349 | C52: 226 | D52: 154 | E52: 196 | F52: 190 | G52: 2 | H52: 56 | I52: 154 | J52: 11 | K52: 85 | L52: 21 | M52: 94 | N52: 82 | O52: 111
A53: Western Isles | B53: 33 | C53: 45 | D53: 28 | E53: 17 | F53: 42 | G53: 21 | H53: 38 | I53: 2 | J53: 13 | K53: 12 | L53: 2 | M53: -9 | N53: -10 | O53: 16
A55: Notes
A56: 1) Figures include asylum seekers. For 2015-16 onwards, figures also include refugees.
A57: 2) Movements to/from the armed forces were included in these figures in previous releases of this spreadsheet but are no longer treated as migration. Armed forces movements are included in the mid-year population estimates under another category.
A58: 3) Source for data: 'Migration to and from administrative areas by age' from the 'Migration to or from Scotland' section of the NRS website - https://www.nrscotland.gov.uk/statistics-and-data/statistics/statistics-by-theme/migration/migration-statistics/total-migration-to-or-from-scotland
A59: 4) The NHS Board areas used for estimates between 2003-04 and 2010-11 are those that existed between 2006 and 2014. The 2011-12 estimates onwards use the NHS Board areas that came into force in April 2014.
A61: © Crown Copyright 2018

Sheet Total in-migration
A1: Total in-migration | K1: Return to front page
A3: Council Area | B3: 2003-04 | C3: 2004-05 | D3: 2005-06 | E3: 2006-07 | F3: 2007-08 | G3: 2008-09 | H3: 2009-10 | I3: 2010-11 | J3: 2011-12 | K3: 2012-13 | L3: 2013-14 | M3: 2014-15 | N3: 2015-16 | O3: 2016-17
A4: SCOTLAND | B4: 90379 | C4: 99142 | D4: 94635 | E4: 96646 | F4: 98527 | G4: 90507 | H4: 92407 | I4: 87886 | J4: 81016 | K4: 75885 | L4: 82442 | M4: 84954 | N4: 86705 | O4: 80468
A5: Aberdeen City | B5: 10654 | C5: 12400 | D5: 12747 | E5: 13511 | F5: 13628 | G5: 14163 | H5: 13971 | I5: 13582 | J5: 13652 | K5: 14041 | L5: 14206 | M5: 14060 | N5: 12305 | O5: 11334
A6: Aberdeenshire | B6: 10272 | C6: 10292 | D6: 10285 | E6: 9934 | F6: 9778 | G6: 8826 | H6: 8980 | I6: 8836 | J6: 9062 | K6: 9553 | L6: 10342 | M6: 9488 | N6: 8157 | O6: 7222
A7: Angus | B7: 4759 | C7: 4560 | D7: 4444 | E7: 4180 | F7: 4282 | G7: 3385 | H7: 3664 | I7: 3604 | J7: 3930 | K7: 3945 | L7: 4230 | M7: 4306 | N7: 3911 | O7: 3788
A8: Argyll and Bute | B8: 4897 | C8: 4755 | D8: 4435 | E8: 4309 | F8: 4081 | G8: 3860 | H8: 3949 | I8: 3735 | J8: 3821 | K8: 3931 | L8: 3785 | M8: 3913 | N8: 4110 | O8: 4181
A9: City of Edinburgh | B9: 28525 | C9: 31868 | D9: 30273 | E9: 29702 | F9: 29672 | G9: 29507 | H9: 31281 | I9: 29900 | J9: 28837 | K9: 27834 | L9: 29439 | M9: 31436 | N9: 32387 | O9: 30210
A10: Clackmannanshire | B10: 2084 | C10: 2132 | D10: 2005 | E10: 2268 | F10: 2133 | G10: 1679 | H10: 1583 | I10: 1525 | J10: 1482 | K10: 1602 | L10: 1733 | M10: 1860 | N10: 1757 | O10: 1875
A11: Dumfries and Galloway | B11: 5278 | C11: 5481 | D11: 4740 | E11: 4672 | F11: 4931 | G11: 4186 | H11: 3945 | I11: 4002 | J11: 3835 | K11: 3981 | L11: 4047 | M11: 3928 | N11: 3884 | O11: 4006
A12: Dundee City | B12: 5831 | C12: 6852 | D12: 6482 | E12: 6672 | F12: 7296 | G12: 6862 | H12: 7131 | I12: 7389 | J12: 6953 | K12: 7071 | L12: 6857 | M12: 7019 | N12: 6872 | O12: 6972
A13: East Ayrshire | B13: 3661 | C13: 3445 | D13: 3403 | E13: 3672 | F13: 3790 | G13: 3373 | H13: 3078 | I13: 3108 | J13: 3079 | K13: 3108 | L13: 3249 | M13: 3352 | N13: 3386 | O13: 3349
A14: East Dunbartonshire | B14: 3622 | C14: 3673 | D14: 3489 | E14: 3493 | F14: 3425 | G14: 3229 | H14: 3072 | I14: 3053 | J14: 3432 | K14: 3512 | L14: 4047 | M14: 4197 | N14: 4196 | O14: 4052
A15: East Lothian | B15: 3675 | C15: 3646 | D15: 3940 | E15: 4402 | F15: 4813 | G15: 3648 | H15: 3722 | I15: 3653 | J15: 4019 | K15: 3775 | L15: 4135 | M15: 4337 | N15: 4005 | O15: 4157
A16: East Renfrewshire | B16: 3400 | C16: 3410 | D16: 3326 | E16: 3286 | F16: 3287 | G16: 2945 | H16: 3100 | I16: 3136 | J16: 3292 | K16: 3665 | L16: 3823 | M16: 3943 | N16: 4076 | O16: 4021
A17: Falkirk | B17: 4723 | C17: 5163 | D17: 4536 | E17: 4577 | F17: 4314 | G17: 3774 | H17: 3564 | I17: 4198 | J17: 3842 | K17: 4076 | L17: 4173 | M17: 4478 | N17: 4549 | O17: 4640
A18: Fife | B18: 12574 | C18: 13207 | D18: 12154 | E18: 11939 | F18: 12083 | G18: 11195 | H18: 11337 | I18: 11174 | J18: 10741 | K18: 10459 | L18: 10894 | M18: 11289 | N18: 11404 | O18: 11165
A19: Glasgow City | B19: 26611 | C19: 28421 | D19: 27497 | E19: 29034 | F19: 31107 | G19: 29919 | H19: 29101 | I19: 29318 | J19: 28362 | K19: 28008 | L19: 30312 | M19: 33301 | N19: 34966 | O19: 33183
A20: Highland | B20: 9793 | C20: 10164 | D20: 9584 | E20: 9633 | F20: 9621 | G20: 8045 | H20: 7859 | I20: 7509 | J20: 7151 | K20: 7078 | L20: 7243 | M20: 7722 | N20: 7637 | O20: 7301
A21: Inverclyde | B21: 1748 | C21: 1963 | D21: 1658 | E21: 1618 | F21: 1658 | G21: 1329 | H21: 1398 | I21: 1258 | J21: 1325 | K21: 1403 | L21: 1376 | M21: 1456 | N21: 1530 | O21: 1518
A22: Midlothian | B22: 2607 | C22: 2563 | D22: 2560 | E22: 2953 | F22: 2986 | G22: 2783 | H22: 2633 | I22: 2720 | J22: 2852 | K22: 2988 | L22: 3527 | M22: 3645 | N22: 3631 | O22: 3780
A23: Moray | B23: 4056 | C23: 3939 | D23: 3861 | E23: 3453 | F23: 3479 | G23: 3171 | H23: 3081 | I23: 3040 | J23: 3412 | K23: 3528 | L23: 3479 | M23: 3680 | N23: 3563 | O23: 3138
A24: Na h-Eileanan Siar | B24: 1233 | C24: 1219 | D24: 1091 | E24: 1034 | F24: 1028 | G24: 966 | H24: 974 | I24: 908 | J24: 866 | K24: 861 | L24: 818 | M24: 881 | N24: 837 | O24: 989
A25: North Ayrshire | B25: 4450 | C25: 4332 | D25: 4127 | E25: 4340 | F25: 4193 | G25: 3544 | H25: 3479 | I25: 3528 | J25: 3497 | K25: 3495 | L25: 3550 | M25: 3725 | N25: 3742 | O25: 3805
A26: North Lanarkshire | B26: 7878 | C26: 7891 | D26: 7841 | E26: 8239 | F26: 8007 | G26: 7123 | H26: 6225 | I26: 6540 | J26: 6706 | K26: 6642 | L26: 6920 | M26: 7581 | N26: 8061 | O26: 7692
A27: Orkney Islands | B27: 897 | C27: 801 | D27: 779 | E27: 739 | F27: 745 | G27: 708 | H27: 805 | I27: 666 | J27: 735 | K27: 761 | L27: 747 | M27: 711 | N27: 858 | O27: 781
A28: Perth and Kinross | B28: 6919 | C28: 7387 | D28: 7299 | E28: 7526 | F28: 7845 | G28: 6980 | H28: 6980 | I28: 6459 | J28: 6392 | K28: 5977 | L28: 6759 | M28: 6512 | N28: 6329 | O28: 6171
A29: Renfrewshire | B29: 4839 | C29: 5027 | D29: 4829 | E29: 5245 | F29: 5066 | G29: 4687 | H29: 4872 | I29: 4781 | J29: 4343 | K29: 4407 | L29: 5028 | M29: 5410 | N29: 6162 | O29: 5853
A30: Scottish Borders | B30: 5416 | C30: 4961 | D30: 4760 | E30: 5150 | F30: 5304 | G30: 4311 | H30: 4142 | I30: 4091 | J30: 3992 | K30: 3973 | L30: 4196 | M30: 4130 | N30: 4394 | O30: 4436
A31: Shetland Islands | B31: 815 | C31: 823 | D31: 724 | E31: 781 | F31: 750 | G31: 811 | H31: 758 | I31: 708 | J31: 666 | K31: 647 | L31: 674 | M31: 705 | N31: 676 | O31: 539
A32: South Ayrshire | B32: 4044 | C32: 4000 | D32: 3742 | E32: 3918 | F32: 3832 | G32: 3505 | H32: 3512 | I32: 3481 | J32: 3595 | K32: 3726 | L32: 3431 | M32: 3749 | N32: 3786 | O32: 3867
A33: South Lanarkshire | B33: 10040 | C33: 9254 | D33: 9274 | E33: 9270 | F33: 8788 | G33: 8056 | H33: 7910 | I33: 7623 | J33: 8171 | K33: 8207 | L33: 8294 | M33: 9169 | N33: 9165 | O33: 9129
A34: Stirling | B34: 4755 | C34: 5532 | D34: 5292 | E34: 5145 | F34: 4991 | G34: 4747 | H34: 5187 | I34: 5161 | J34: 5208 | K34: 5033 | L34: 5133 | M34: 5938 | N34: 5545 | O34: 5076
A35: West Dunbartonshire | B35: 2444 | C35: 2353 | D35: 2439 | E35: 2458 | F35: 2434 | G35: 2247 | H35: 2075 | I35: 2085 | J35: 2143 | K35: 2170 | L35: 2256 | M35: 2551 | N35: 2556 | O35: 2328
A36: West Lothian | B36: 6211 | C36: 5977 | D36: 6197 | E36: 6712 | F36: 6349 | G36: 5064 | H36: 4830 | I36: 4817 | J36: 4906 | K36: 4587 | L36: 5233 | M36: 5724 | N36: 5662 | O36: 5327
A38: NHS Board Areas
A39: SCOTLAND | B39: 90379 | C39: 99142 | D39: 94635 | E39: 96646 | F39: 98527 | G39: 90507 | H39: 92407 | I39: 87886 | J39: 81016 | K39: 75885 | L39: 82442 | M39: 84954 | N39: 86705 | O39: 80468
A40: Ayrshire and Arran | B40: 9497 | C40: 9193 | D40: 8673 | E40: 9104 | F40: 9062 | G40: 7962 | H40: 7716 | I40: 7761 | J40: 7686 | K40: 7816 | L40: 7778 | M40: 8024 | N40: 8171 | O40: 8304
A41: Borders | B41: 5416 | C41: 4961 | D41: 4760 | E41: 5150 | F41: 5304 | G41: 4311 | H41: 4142 | I41: 4091 | J41: 3992 | K41: 3973 | L41: 4196 | M41: 4130 | N41: 4394 | O41: 4436
A42: Dumfries and Galloway | B42: 5278 | C42: 5481 | D42: 4740 | E42: 4672 | F42: 4931 | G42: 4186 | H42: 3945 | I42: 4002 | J42: 3835 | K42: 3981 | L42: 4047 | M42: 3928 | N42: 3884 | O42: 4006
A43: Fife | B43: 12574 | C43: 13207 | D43: 12154 | E43: 11935 | F43: 12076 | G43: 11192 | H43: 11335 | I43: 11172 | J43: 10741 | K43: 10459 | L43: 10894 | M43: 11289 | N43: 11404 | O43: 11165
A44: Forth Valley | B44: 9966 | C44: 11261 | D44: 10253 | E44: 10256 | F44: 9834 | G44: 8836 | H44: 8925 | I44: 9434 | J44: 9110 | K44: 9188 | L44: 9446 | M44: 10572 | N44: 10251 | O44: 9948
A45: Grampian | B45: 18090 | C45: 19967 | D45: 20186 | E45: 20237 | F45: 19916 | G45: 19892 | H45: 19461 | I45: 18794 | J45: 19260 | K45: 19500 | L45: 20218 | M45: 19204 | N45: 16797 | O45: 15213
A46: Greater Glasgow and Clyde | B46: 35516 | C46: 37775 | D46: 36530 | E46: 38261 | F46: 40069 | G46: 38430 | H46: 38147 | I46: 37787 | J46: 32117 | K46: 31621 | L46: 34840 | M46: 37643 | N46: 40458 | O46: 38201
A47: Highland | B47: 14338 | C47: 14615 | D47: 13678 | E47: 13615 | F47: 13351 | G47: 11596 | H47: 11487 | I47: 10945 | J47: 10646 | K47: 10658 | L47: 10686 | M47: 11308 | N47: 11428 | O47: 11158
A48: Lanarkshire | B48: 13004 | C48: 12548 | D48: 12516 | E48: 12635 | F48: 12418 | G48: 11176 | H48: 10327 | I48: 10448 | J48: 12718 | K48: 12520 | L48: 12932 | M48: 14153 | N48: 14710 | O48: 14417
A49: Lothian | B49: 32276 | C49: 35920 | D49: 34812 | E49: 34655 | F49: 35301 | G49: 33842 | H49: 35429 | I49: 33811 | J49: 33359 | K49: 31516 | L49: 33965 | M49: 35907 | N49: 37059 | O49: 34834
A50: Orkney | B50: 897 | C50: 801 | D50: 779 | E50: 739 | F50: 745 | G50: 708 | H50: 805 | I50: 666 | J50: 735 | K50: 761 | L50: 747 | M50: 711 | N50: 858 | O50: 781
A51: Shetland | B51: 815 | C51: 823 | D51: 724 | E51: 781 | F51: 750 | G51: 811 | H51: 758 | I51: 708 | J51: 666 | K51: 647 | L51: 674 | M51: 705 | N51: 676 | O51: 539
A52: Tayside | B52: 13651 | C52: 15422 | D52: 14657 | E52: 14789 | F52: 15732 | G52: 14377 | H52: 14796 | I52: 14387 | J52: 14011 | K52: 13469 | L52: 14433 | M52: 14314 | N52: 13812 | O52: 13712
A53: Western Isles | B53: 1233 | C53: 1219 | D53: 1091 | E53: 1034 | F53: 1028 | G53: 966 | H53: 974 | I53: 908 | J53: 866 | K53: 861 | L53: 818 | M53: 881 | N53: 837 | O53: 989
A55: Notes
A56: 1) Figures include asylum seekers. For 2015-16 onwards, figures also include refugees.
A57: 2) Movements to/from the armed forces were included in these figures in previous releases of this spreadsheet but are no longer treated as migration. Armed forces movements are included in the mid-year population estimates under another category.
A58: 3) Source for data: 'Migration to and from administrative areas' from the 'Migration to or from Scotland' section of the NRS website - https://www.nrscotland.gov.uk/statistics-and-data/statistics/statistics-by-theme/migration/migration-statistics/total-migration-to-or-from-scotland
A59: 4) The NHS Board areas used for estimates between 2003-04 and 2010-11 are those that existed between 2006 and 2014. The 2011-12 estimates onwards use the NHS Board areas that came into force in April 2014.
A61: © Crown Copyright 2018

Sheet Total out-migration
A1: Total out-migration | K1: Return to front page
A3: Council Area | B3: 2003-04 | C3: 2004-05 | D3: 2005-06 | E3: 2006-07 | F3: 2007-08 | G3: 2008-09 | H3: 2009-10 | I3: 2010-11 | J3: 2011-12 | K3: 2012-13 | L3: 2013-14 | M3: 2014-15 | N3: 2015-16 | O3: 2016-17
A4: SCOTLAND | B4: 71757 | C4: 73835 | D4: 75813 | E4: 63597 | F4: 72118 | G4: 66085 | H4: 66332 | I4: 57677 | J4: 68278 | K4: 65923 | L4: 64857 | M4: 56986 | N4: 55012 | O4: 56613
A5: Aberdeen City | B5: 11845 | C5: 11290 | D5: 11604 | E5: 10558 | F5: 11982 | G5: 11189 | H5: 11217 | I5: 10504 | J5: 11805 | K5: 12377 | L5: 12794 | M5: 12975 | N5: 13274 | O5: 12750
A6: Aberdeenshire | B6: 7042 | C6: 7512 | D6: 7218 | E6: 7251 | F6: 7897 | G6: 7319 | H6: 7287 | I6: 7452 | J6: 7676 | K6: 7889 | L6: 8301 | M6: 8502 | N6: 8511 | O6: 7910
A7: Angus | B7: 3417 | C7: 3487 | D7: 3490 | E7: 3424 | F7: 3629 | G7: 3237 | H7: 3309 | I7: 3489 | J7: 3672 | K7: 3832 | L7: 3585 | M7: 3769 | N7: 3843 | O7: 3644
A8: Argyll and Bute | B8: 3971 | C8: 4318 | D8: 4235 | E8: 3931 | F8: 4120 | G8: 3887 | H8: 3658 | I8: 3431 | J8: 4054 | K8: 3954 | L8: 4060 | M8: 4146 | N8: 3876 | O8: 4044
A9: City of Edinburgh | B9: 26291 | C9: 26551 | D9: 26861 | E9: 24783 | F9: 26316 | G9: 23646 | H9: 23212 | I9: 21856 | J9: 24871 | K9: 24836 | L9: 26143 | M9: 25175 | N9: 24728 | O9: 25122
A10: Clackmannanshire | B10: 1533 | C10: 1560 | D10: 1708 | E10: 1527 | F10: 1736 | G10: 1640 | H10: 1658 | I10: 1533 | J10: 1738 | K10: 1661 | L10: 1815 | M10: 1718 | N10: 1745 | O10: 1754
A11: Dumfries and Galloway | B11: 4095 | C11: 4290 | D11: 4271 | E11: 3960 | F11: 4121 | G11: 3882 | H11: 3826 | I11: 3625 | J11: 3963 | K11: 3987 | L11: 3713 | M11: 3598 | N11: 3490 | O11: 3684
A12: Dundee City | B12: 6571 | C12: 6280 | D12: 6591 | E12: 6407 | F12: 6688 | G12: 5943 | H12: 6150 | I12: 5962 | J12: 6461 | K12: 6762 | L12: 6869 | M12: 6810 | N12: 6695 | O12: 6384
A13: East Ayrshire | B13: 3294 | C13: 3409 | D13: 3312 | E13: 3347 | F13: 3241 | G13: 2990 | H13: 3048 | I13: 3078 | J13: 3155 | K13: 3228 | L13: 3339 | M13: 3290 | N13: 3235 | O13: 3331
A14: East Dunbartonshire | B14: 4079 | C14: 4155 | D14: 3938 | E14: 3782 | F14: 3605 | G14: 3308 | H14: 3143 | I14: 3158 | J14: 3172 | K14: 3420 | L14: 3138 | M14: 3648 | N14: 3490 | O14: 3364
A15: East Lothian | B15: 3245 | C15: 3149 | D15: 3015 | E15: 2843 | F15: 3178 | G15: 2943 | H15: 3127 | I15: 3208 | J15: 3232 | K15: 3254 | L15: 3423 | M15: 3376 | N15: 3045 | O15: 3357
A16: East Renfrewshire | B16: 3497 | C16: 3427 | D16: 3539 | E16: 3241 | F16: 3359 | G16: 2873 | H16: 2731 | I16: 2866 | J16: 3103 | K16: 3126 | L16: 2933 | M16: 3316 | N16: 3257 | O16: 3063
A17: Falkirk | B17: 3213 | C17: 3521 | D17: 3595 | E17: 3642 | F17: 3651 | G17: 3209 | H17: 3106 | I17: 3177 | J17: 3486 | K17: 3701 | L17: 3758 | M17: 3744 | N17: 3609 | O17: 3739
A18: Fife | B18: 10226 | C18: 10550 | D18: 10594 | E18: 10046 | F18: 10456 | G18: 9645 | H18: 9531 | I18: 9098 | J18: 10118 | K18: 10155 | L18: 10244 | M18: 10061 | N18: 9796 | O18: 9641
A19: Glasgow City | B19: 30029 | C19: 29979 | D19: 29485 | E19: 26731 | F19: 28178 | G19: 25930 | H19: 26051 | I19: 23948 | J19: 27216 | K19: 27569 | L19: 28265 | M19: 27461 | N19: 27003 | O19: 27793
A20: Highland | B20: 6943 | C20: 7302 | D20: 7530 | E20: 6956 | F20: 7510 | G20: 7055 | H20: 6869 | I20: 6611 | J20: 7033 | K20: 6985 | L20: 7004 | M20: 6607 | N20: 6441 | O20: 6488
A21: Inverclyde | B21: 2347 | C21: 2093 | D21: 2011 | E21: 1936 | F21: 1861 | G21: 1688 | H21: 1624 | I21: 1547 | J21: 1630 | K21: 1563 | L21: 1646 | M21: 1592 | N21: 1586 | O21: 1508
A22: Midlothian | B22: 2870 | C22: 2884 | D22: 2821 | E22: 2844 | F22: 2559 | G22: 2316 | H22: 2396 | I22: 2198 | J22: 2293 | K22: 2412 | L22: 2507 | M22: 2658 | N22: 2623 | O22: 2509
A23: Moray | B23: 3076 | C23: 3246 | D23: 3403 | E23: 2928 | F23: 3149 | G23: 2767 | H23: 3090 | I23: 3202 | J23: 3085 | K23: 2932 | L23: 3012 | M23: 3270 | N23: 3010 | O23: 3135
A24: Na h-Eileanan Siar | B24: 987 | C24: 945 | D24: 962 | E24: 961 | F24: 1005 | G24: 895 | H24: 805 | I24: 885 | J24: 853 | K24: 880 | L24: 906 | M24: 886 | N24: 904 | O24: 834
A25: North Ayrshire | B25: 4244 | C25: 4237 | D25: 4148 | E25: 3912 | F25: 3860 | G25: 3661 | H25: 3644 | I25: 3392 | J25: 3898 | K25: 3803 | L25: 3687 | M25: 3665 | N25: 3677 | O25: 3453
A26: North Lanarkshire | B26: 7650 | C26: 7561 | D26: 7539 | E26: 7390 | F26: 7473 | G26: 7035 | H26: 6647 | I26: 6598 | J26: 6977 | K26: 7027 | L26: 7006 | M26: 7441 | N26: 7079 | O26: 6958
A27: Orkney Islands | B27: 636 | C27: 666 | D27: 579 | E27: 596 | F27: 650 | G27: 620 | H27: 642 | I27: 567 | J27: 629 | K27: 681 | L27: 680 | M27: 611 | N27: 635 | O27: 577
A28: Perth and Kinross | B28: 5254 | C28: 5324 | D28: 5276 | E28: 5086 | F28: 5445 | G28: 5180 | H28: 5119 | I28: 4633 | J28: 5412 | K28: 5600 | L28: 5352 | M28: 5249 | N28: 5267 | O28: 5273
A29: Renfrewshire | B29: 5107 | C29: 5313 | D29: 5173 | E29: 4976 | F29: 4668 | G29: 4531 | H29: 4429 | I29: 4192 | J29: 4738 | K29: 4750 | L29: 4656 | M29: 4819 | N29: 4548 | O29: 4691
A30: Scottish Borders | B30: 4031 | C30: 3958 | D30: 3925 | E30: 3658 | F30: 4002 | G30: 3890 | H30: 3856 | I30: 3603 | J30: 3947 | K30: 3665 | L30: 3916 | M30: 3695 | N30: 3704 | O30: 3618
A31: Shetland Islands | B31: 743 | C31: 735 | D31: 836 | E31: 735 | F31: 724 | G31: 608 | H31: 603 | I31: 649 | J31: 734 | K31: 736 | L31: 679 | M31: 741 | N31: 691 | O31: 672
A32: South Ayrshire | B32: 3360 | C32: 3575 | D32: 3376 | E32: 3340 | F32: 3432 | G32: 3332 | H32: 3069 | I32: 2885 | J32: 3238 | K32: 3321 | L32: 3328 | M32: 3438 | N32: 3240 | O32: 3177
A33: South Lanarkshire | B33: 7913 | C33: 8175 | D33: 7940 | E33: 7619 | F33: 8053 | G33: 7416 | H33: 7102 | I33: 7036 | J33: 7763 | K33: 7628 | L33: 7783 | M33: 8135 | N33: 8068 | O33: 7851
A34: Stirling | B34: 4765 | C34: 4874 | D34: 4591 | E34: 4668 | F34: 4747 | G34: 4437 | H34: 4181 | I34: 4140 | J34: 4434 | K34: 4780 | L34: 4666 | M34: 4526 | N34: 4533 | O34: 4741
A35: West Dunbartonshire | B35: 2818 | C35: 2685 | D35: 2547 | E35: 2490 | F35: 2639 | G35: 2303 | H35: 2366 | I35: 2258 | J35: 2423 | K35: 2594 | L35: 2354 | M35: 2472 | N35: 2268 | O35: 2424
A36: West Lothian | B36: 4997 | C36: 5133 | D36: 4878 | E36: 5248 | F36: 5353 | G36: 4831 | H36: 4627 | I36: 4598 | J36: 4752 | K36: 4974 | L36: 4789 | M36: 4834 | N36: 4535 | O36: 4541
A38: NHS Board Areas
A39: SCOTLAND | B39: 71757 | C39: 73835 | D39: 75813 | E39: 63597 | F39: 72118 | G39: 66085 | H39: 66332 | I39: 57677 | J39: 68278 | K39: 65923 | L39: 64857 | M39: 56986 | N39: 55012 | O39: 56613
A40: Ayrshire and Arran | B40: 8240 | C40: 8637 | D40: 8237 | E40: 7773 | F40: 7780 | G40: 7523 | H40: 7408 | I40: 6999 | J40: 7806 | K40: 7839 | L40: 7902 | M40: 7591 | N40: 7409 | O40: 7244
A41: Borders | B41: 4031 | C41: 3958 | D41: 3925 | E41: 3658 | F41: 4002 | G41: 3890 | H41: 3856 | I41: 3603 | J41: 3947 | K41: 3665 | L41: 3916 | M41: 3695 | N41: 3704 | O41: 3618
A42: Dumfries and Galloway | B42: 4095 | C42: 4290 | D42: 4271 | E42: 3960 | F42: 4121 | G42: 3882 | H42: 3826 | I42: 3625 | J42: 3963 | K42: 3987 | L42: 3713 | M42: 3598 | N42: 3490 | O42: 3684
A43: Fife | B43: 10226 | C43: 10550 | D43: 10591 | E43: 10044 | F43: 10456 | G43: 9644 | H43: 9526 | I43: 9101 | J43: 10118 | K43: 10155 | L43: 10244 | M43: 10061 | N43: 9796 | O43: 9641
A44: Forth Valley | B44: 7915 | C44: 8389 | D44: 8314 | E44: 8103 | F44: 8530 | G44: 7922 | H44: 7536 | I44: 7400 | J44: 8236 | K44: 8619 | L44: 8646 | M44: 8284 | N44: 8287 | O44: 8591
A45: Grampian | B45: 15071 | C45: 15384 | D45: 15518 | E45: 14076 | F45: 16059 | G45: 15007 | H45: 15023 | I45: 14494 | J45: 15700 | K45: 15576 | L45: 16298 | M45: 16723 | N45: 17567 | O45: 17314
A46: Greater Glasgow and Clyde | B46: 40075 | C46: 40194 | D46: 39326 | E46: 35556 | F46: 37184 | G46: 34306 | H46: 34285 | I46: 32012 | J46: 31502 | K46: 31478 | L46: 30990 | M46: 30093 | N46: 29124 | O46: 30089
A47: Highland | B47: 10562 | C47: 11316 | D47: 11424 | E47: 10560 | F47: 11279 | G47: 10633 | H47: 10206 | I47: 9743 | J47: 10761 | K47: 10588 | L47: 10722 | M47: 10426 | N47: 9998 | O47: 10208
A48: Lanarkshire | B48: 11303 | C48: 11525 | D48: 11539 | E48: 10862 | F48: 11367 | G48: 10849 | H48: 10529 | I48: 10032 | J48: 12581 | K48: 12326 | L48: 12507 | M48: 12979 | N48: 12631 | O48: 12405
A49: Lothian | B49: 28661 | C49: 29583 | D49: 29417 | E49: 26604 | F49: 28887 | G49: 26576 | H49: 26325 | I49: 24581 | J49: 27893 | K49: 27808 | L49: 28493 | M49: 26808 | N49: 26305 | O49: 26889
A50: Orkney | B50: 636 | C50: 666 | D50: 579 | E50: 596 | F50: 650 | G50: 620 | H50: 642 | I50: 567 | J50: 629 | K50: 681 | L50: 680 | M50: 611 | N50: 635 | O50: 577
A51: Shetland | B51: 743 | C51: 735 | D51: 836 | E51: 735 | F51: 724 | G51: 608 | H51: 603 | I51: 649 | J51: 734 | K51: 736 | L51: 679 | M51: 741 | N51: 691 | O51: 672
A52: Tayside | B52: 11384 | C52: 11714 | D52: 11792 | E52: 11326 | F52: 12064 | G52: 11508 | H52: 11602 | I52: 11014 | J52: 12281 | K52: 12670 | L52: 12393 | M52: 12305 | N52: 12505 | O52: 12082
A53: Western Isles | B53: 987 | C53: 945 | D53: 962 | E53: 961 | F53: 1005 | G53: 895 | H53: 805 | I53: 885 | J53: 853 | K53: 880 | L53: 906 | M53: 886 | N53: 904 | O53: 834
A55: Notes
A56: 1) Figures include asylum seekers. For 2015-16 onwards, figures also include refugees.
A57: 2) Movements to/from the armed forces were included in these figures in previous releases of this spreadsheet but are no longer treated as migration. Armed forces movements are included in the mid-year population estimates under another category.
A58: 3) Source for data: 'Migration to and from administrative areas' from the 'Migration to or from Scotland' section of the NRS website - https://www.nrscotland.gov.uk/statistics-and-data/statistics/statistics-by-theme/migration/migration-statistics/total-migration-to-or-from-scotland
A59: 4) The NHS Board areas used for estimates between 2003-04 and 2010-11 are those that existed between 2006 and 2014. The 2011-12 estimates onwards use the NHS Board areas that came into force in April 2014.
A61: © Crown Copyright 2018

Sheet Within Scotland net migration
A1: Within Scotland net migration | K1: Return to front page
A3: Council Area | B3: 2003-04 | C3: 2004-05 | D3: 2005-06 | E3: 2006-07 | F3: 2007-08 | G3: 2008-09 | H3: 2009-10 | I3: 2010-11 | J3: 2011-12 | K3: 2012-13 | L3: 2013-14 | M3: 2014-15 | N3: 2015-16 | O3: 2016-17
A4: SCOTLAND | B4: n/a | C4: n/a | D4: n/a | E4: n/a | F4: n/a | G4: n/a | H4: n/a | I4: n/a | J4: n/a | K4: n/a | L4: n/a | M4: n/a | N4: n/a | O4: n/a
A5: Aberdeen City | B5: -1678 | C5: -1086 | D5: -1135 | E5: -1116 | F5: -1657 | G5: -976 | H5: -1307 | I5: -1055 | J5: -356 | K5: -195 | L5: -1140 | M5: -2221 | N5: -2664 | O5: -2222
A6: Aberdeenshire | B6: 1238 | C6: 869 | D6: 1342 | E6: 1097 | F6: 878 | G6: 685 | H6: 1077 | I6: 793 | J6: 1075 | K6: 1183 | L6: 1642 | M6: 951 | N6: -68 | O6: -492
A7: Angus | B7: 996 | C7: 506 | D7: 687 | E7: 392 | F7: 380 | G7: -24 | H7: 117 | I7: -34 | J7: 198 | K7: 162 | L7: 426 | M7: 441 | N7: 66 | O7: 86
A8: Argyll and Bute | B8: 203 | C8: -31 | D8: -238 | E8: -231 | F8: -211 | G8: -285 | H8: -147 | I8: -121 | J8: -333 | K8: -196 | L8: -444 | M8: -444 | N8: -283 | O8: -432
A9: City of Edinburgh | B9: -2856 | C9: -1553 | D9: -2614 | E9: -1953 | F9: -1978 | G9: -768 | H9: -364 | I9: -394 | J9: -251 | K9: -614 | L9: -1711 | M9: -1927 | N9: -1483 | O9: -2377
A10: Clackmannanshire | B10: 340 | C10: 294 | D10: 144 | E10: 394 | F10: 291 | G10: 5 | H10: -105 | I10: -7 | J10: -248 | K10: -85 | L10: -57 | M10: 67 | N10: -113 | O10: 88
A11: Dumfries and Galloway | B11: -56 | C11: -118 | D11: -261 | E11: -56 | F11: 54 | G11: -84 | H11: -101 | I11: -87 | J11: -170 | K11: -194 | L11: -110 | M11: -103 | N11: -176 | O11: -245
A12: Dundee City | B12: -689 | C12: -347 | D12: -647 | E12: -528 | F12: -392 | G12: -103 | H12: -277 | I12: -9 | J12: -128 | K12: -249 | L12: -308 | M12: -515 | N12: -607 | O12: -59
A13: East Ayrshire | B13: 283 | C13: -28 | D13: 174 | E13: 246 | F13: 359 | G13: 401 | H13: 73 | I13: 13 | J13: -67 | K13: -37 | L13: 43 | M13: -15 | N13: 62 | O13: -60
A14: East Dunbartonshire | B14: -158 | C14: -260 | D14: -130 | E14: -170 | F14: -102 | G14: -13 | H14: 163 | I14: 22 | J14: 370 | K14: 287 | L14: 1063 | M14: 607 | N14: 585 | O14: 654
A15: East Lothian | B15: 355 | C15: 484 | D15: 879 | E15: 1093 | F15: 991 | G15: 422 | H15: 352 | I15: 211 | J15: 474 | K15: 496 | L15: 559 | M15: 684 | N15: 499 | O15: 547
A16: East Renfrewshire | B16: 194 | C16: 132 | D16: 73 | E16: 247 | F16: 158 | G16: 119 | H16: 382 | I16: 275 | J16: 468 | K16: 698 | L16: 938 | M16: 708 | N16: 725 | O16: 909
A17: Falkirk | B17: 1049 | C17: 1155 | D17: 772 | E17: 580 | F17: 440 | G17: 431 | H17: 282 | I17: 609 | J17: 365 | K17: 396 | L17: 172 | M17: 391 | N17: 590 | O17: 628
A18: Fife | B18: 1302 | C18: 940 | D18: 635 | E18: 266 | F18: 731 | G18: 252 | H18: 531 | I18: 449 | J18: 198 | K18: -120 | L18: -88 | M18: -68 | N18: 124 | O18: 197
A19: Glasgow City | B19: -4552 | C19: -3302 | D19: -2651 | E19: -2762 | F19: -2169 | G19: -1521 | H19: -1862 | I19: -1231 | J19: -2103 | K19: -1801 | L19: -2681 | M19: -2417 | N19: -1818 | O19: -1830
A20: Highland | B20: 23 | C20: 89 | D20: 131 | E20: 62 | F20: 431 | G20: 77 | H20: -73 | I20: -169 | J20: -87 | K20: -428 | L20: -410 | M20: -28 | N20: -38 | O20: -207
A21: Inverclyde | B21: -300 | C21: -255 | D21: -312 | E21: -271 | F21: -203 | G21: -311 | H21: -165 | I21: -246 | J21: -196 | K21: -153 | L21: -287 | M21: -253 | N21: -141 | O21: -50
A22: Midlothian | B22: -238 | C22: -226 | D22: -217 | E22: -1 | F22: 331 | G22: 489 | H22: 253 | I22: 375 | J22: 509 | K22: 565 | L22: 947 | M22: 1034 | N22: 855 | O22: 1121
A23: Moray | B23: 193 | C23: -70 | D23: 6 | E23: -168 | F23: -64 | G23: 52 | H23: -100 | I23: 64 | J23: -116 | K23: 127 | L23: 184 | M23: 274 | N23: 197 | O23: -56
A24: Na h-Eileanan Siar | B24: -41 | C24: 35 | D24: -48 | E24: -52 | F24: -80 | G24: -31 | H24: 27 | I24: -33 | J24: -30 | K24: -73 | L24: -60 | M24: -46 | N24: -120 | O24: -3
A25: North Ayrshire | B25: 247 | C25: 212 | D25: 147 | E25: 351 | F25: 139 | G25: -174 | H25: -154 | I25: 22 | J25: -184 | K25: -197 | L25: -210 | M25: -74 | N25: -108 | O25: 107
A26: North Lanarkshire | B26: 412 | C26: 332 | D26: 342 | E26: 267 | F26: 219 | G26: 55 | H26: -247 | I26: -202 | J26: -106 | K26: -182 | L26: -181 | M26: -152 | N26: 549 | O26: 566
A27: Orkney Islands | B27: -45 | C27: -15 | D27: 79 | E27: -17 | F27: -51 | G27: -63 | H27: 15 | I27: 8 | J27: 44 | K27: 20 | L27: -41 | M27: -35 | N27: -17 | O27: 37
A28: Perth and Kinross | B28: 532 | C28: 382 | D28: 603 | E28: 473 | F28: 491 | G28: 369 | H28: 457 | I28: 342 | J28: 309 | K28: 179 | L28: 613 | M28: 468 | N28: 404 | O28: 264
A29: Renfrewshire | B29: -311 | C29: -402 | D29: -208 | E29: -224 | F29: 153 | G29: 126 | H29: 128 | I29: 173 | J29: -269 | K29: -143 | L29: 381 | M29: 203 | N29: 911 | O29: 666
A30: Scottish Borders | B30: 387 | C30: 326 | D30: 272 | E30: 547 | F30: 360 | G30: 158 | H30: 144 | I30: 134 | J30: -79 | K30: -8 | L30: 67 | M30: 91 | N30: 357 | O30: 335
A31: Shetland Islands | B31: -85 | C31: -101 | D31: -84 | E31: -102 | F31: -103 | G31: 9 | H31: -39 | I31: 10 | J31: -104 | K31: -85 | L31: -30 | M31: -99 | N31: -155 | O31: -122
A32: South Ayrshire | B32: 516 | C32: 178 | D32: 255 | E32: 294 | F32: 222 | G32: 127 | H32: 144 | I32: 226 | J32: 297 | K32: 333 | L32: 100 | M32: 112 | N32: 249 | O32: 405
A33: South Lanarkshire | B33: 2019 | C33: 1026 | D33: 1239 | E33: 1302 | F33: 695 | G33: 746 | H33: 909 | I33: 482 | J33: 661 | K33: 948 | L33: 536 | M33: 1228 | N33: 773 | O33: 1202
A34: Stirling | B34: -403 | C34: 404 | D34: 222 | E34: -356 | F34: -334 | G34: -148 | H34: 309 | I34: -110 | J34: 212 | K34: 107 | L34: 61 | M34: 413 | N34: 210 | O34: 39
A35: West Dunbartonshire | B35: -204 | C35: -151 | D35: 28 | E35: -108 | F35: -150 | G35: 14 | H35: -256 | I35: -191 | J35: -252 | K35: -370 | L35: -133 | M35: 92 | N35: 121 | O35: -208
A36: West Lothian | B36: 1327 | C36: 581 | D36: 515 | E36: 504 | F36: 171 | G36: -36 | H36: -166 | I36: -319 | J36: -101 | K36: -371 | L36: 159 | M36: 633 | N36: 514 | O36: 512
A38: NHS Board Areas
A39: SCOTLAND | B39: n/a | C39: n/a | D39: n/a | E39: n/a | F39: n/a | G39: n/a | H39: n/a | I39: n/a | J39: n/a | K39: n/a | L39: n/a | M39: n/a | N39: n/a | O39: n/a
A40: Ayrshire and Arran | B40: 1046 | C40: 362 | D40: 576 | E40: 891 | F40: 720 | G40: 354 | H40: 63 | I40: 261 | J40: 46 | K40: 99 | L40: -67 | M40: 23 | N40: 203 | O40: 452
A41: Borders | B41: 387 | C41: 326 | D41: 272 | E41: 547 | F41: 360 | G41: 158 | H41: 144 | I41: 134 | J41: -79 | K41: -8 | L41: 67 | M41: 91 | N41: 357 | O41: 335
A42: Dumfries and Galloway | B42: -56 | C42: -118 | D42: -261 | E42: -56 | F42: 54 | G42: -84 | H42: -101 | I42: -87 | J42: -170 | K42: -194 | L42: -110 | M42: -103 | N42: -176 | O42: -245
A43: Fife | B43: 1302 | C43: 940 | D43: 638 | E43: 264 | F43: 730 | G43: 250 | H43: 532 | I43: 444 | J43: 198 | K43: -120 | L43: -88 | M43: -68 | N43: 124 | O43: 197
A44: Forth Valley | B44: 986 | C44: 1853 | D44: 1138 | E44: 618 | F44: 397 | G44: 288 | H44: 486 | I44: 492 | J44: 329 | K44: 418 | L44: 176 | M44: 871 | N44: 687 | O44: 755
A45: Grampian | B45: -247 | C45: -287 | D45: 213 | E45: -187 | F45: -843 | G45: -239 | H45: -330 | I45: -198 | J45: 603 | K45: 1115 | L45: 686 | M45: -996 | N45: -2535 | O45: -2770
A46: Greater Glasgow and Clyde | B46: -4565 | C46: -3804 | D46: -2552 | E46: -2564 | F46: -2083 | G46: -1104 | H46: -1029 | I46: -1052 | J46: -1982 | K46: -1482 | L46: -719 | M46: -1060 | N46: 383 | O46: 141
A47: Highland | B47: 226 | C47: 58 | D47: -107 | E47: -169 | F47: 220 | G47: -208 | H47: -220 | I47: -290 | J47: -420 | K47: -624 | L47: -854 | M47: -472 | N47: -321 | O47: -639
A48: Lanarkshire | B48: 1665 | C48: 924 | D48: 933 | E48: 845 | F48: 684 | G48: 319 | H48: 81 | I48: 134 | J48: 555 | K48: 766 | L48: 355 | M48: 1076 | N48: 1322 | O48: 1768
A49: Lothian | B49: -1412 | C49: -714 | D49: -1437 | E49: -357 | F49: -485 | G49: 107 | H49: 75 | I49: -127 | J49: 631 | K49: 76 | L49: -46 | M49: 424 | N49: 385 | O49: -197
A50: Orkney | B50: -45 | C50: -15 | D50: 79 | E50: -17 | F50: -51 | G50: -63 | H50: 15 | I50: 8 | J50: 44 | K50: 20 | L50: -41 | M50: -35 | N50: -17 | O50: 37
A51: Shetland | B51: -85 | C51: -101 | D51: -84 | E51: -102 | F51: -103 | G51: 9 | H51: -39 | I51: 10 | J51: -104 | K51: -85 | L51: -30 | M51: -99 | N51: -155 | O51: -122
A52: Tayside | B52: 839 | C52: 541 | D52: 640 | E52: 339 | F52: 480 | G52: 244 | H52: 296 | I52: 304 | J52: 379 | K52: 92 | L52: 731 | M52: 394 | N52: -137 | O52: 291
A53: Western Isles | B53: -41 | C53: 35 | D53: -48 | E53: -52 | F53: -80 | G53: -31 | H53: 27 | I53: -33 | J53: -30 | K53: -73 | L53: -60 | M53: -46 | N53: -120 | O53: -3
A55: Notes
A56: 1) Movements to/from the armed forces were included in these figures in previous releases of this spreadsheet but are no longer treated as migration. Armed forces movements are included in the mid-year population estimates under another category.
A57: 2) Source for data: 'Migration within Scotland' section of the NRS website - https://www.nrscotland.gov.uk/statistics-and-data/statistics/statistics-by-theme/migration/migration-statistics/migration-within-scotland
A58: 3) The NHS Board areas used for estimates between 2003-04 and 2010-11 are those that existed between 2006 and 2014. The 2011-12 estimates onwards use the NHS Board areas that came into force in April 2014.
A60: © Crown Copyright 2018

Sheet Within Scotland in-migration
A1: Within Scotland in-migration | K1: Return to front page
A3: Council Area | B3: 2003-04 | C3: 2004-05 | D3: 2005-06 | E3: 2006-07 | F3: 2007-08 | G3: 2008-09 | H3: 2009-10 | I3: 2010-11 | J3: 2011-12 | K3: 2012-13 | L3: 2013-14 | M3: 2014-15 | N3: 2015-16 | O3: 2016-17
A4: SCOTLAND | B4: n/a | C4: n/a | D4: n/a | E4: n/a | F4: n/a | G4: n/a | H4: n/a | I4: n/a | J4: n/a | K4: n/a | L4: n/a | M4: n/a | N4: n/a | O4: n/a
A5: Aberdeen City | B5: 5544 | C5: 5827 | D5: 5796 | E5: 5631 | F5: 5634 | G5: 5740 | H5: 5518 | I5: 5957 | J5: 6712 | K5: 7418 | L5: 7043 | M5: 6807 | N5: 6177 | O5: 6074
A6: Aberdeenshire | B6: 5988 | C6: 5918 | D6: 6057 | E6: 5939 | F6: 6013 | G6: 5527 | H6: 5785 | I6: 5789 | J6: 6195 | K6: 6667 | L6: 7233 | M6: 6869 | N6: 5935 | O6: 5261
A7: Angus | B7: 3412 | C7: 3076 | D7: 3066 | E7: 2933 | F7: 2934 | G7: 2285 | H7: 2486 | I7: 2567 | J7: 2813 | K7: 2931 | L7: 3133 | M7: 3282 | N7: 2943 | O7: 2876
A8: Argyll and Bute | B8: 2619 | C8: 2439 | D8: 2254 | E8: 2201 | F8: 2212 | G8: 2091 | H8: 2144 | I8: 2046 | J8: 2208 | K8: 2313 | L8: 2165 | M8: 2273 | N8: 2390 | O8: 2372
A9: City of Edinburgh | B9: 10813 | C9: 11328 | D9: 10338 | E9: 11202 | F9: 10744 | G9: 10798 | H9: 10794 | I9: 10814 | J9: 11513 | K9: 11500 | L9: 11533 | M9: 12285 | N9: 12286 | O9: 11614
A10: Clackmannanshire | B10: 1451 | C10: 1428 | D10: 1328 | E10: 1573 | F10: 1511 | G10: 1191 | H10: 1120 | I10: 1129 | J10: 1030 | K10: 1182 | L10: 1278 | M10: 1459 | N10: 1310 | O10: 1437
A11: Dumfries and Galloway | B11: 1783 | C11: 1835 | D11: 1663 | E11: 1728 | F11: 1790 | G11: 1713 | H11: 1621 | I11: 1652 | J11: 1719 | K11: 1734 | L11: 1725 | M11: 1734 | N11: 1679 | O11: 1641
A12: Dundee City | B12: 3518 | C12: 3571 | D12: 3502 | E12: 3598 | F12: 3776 | G12: 3599 | H12: 3509 | I12: 3770 | J12: 3898 | K12: 4170 | L12: 4199 | M12: 4252 | N12: 4170 | O12: 4412
A13: East Ayrshire | B13: 2568 | C13: 2392 | D13: 2465 | E13: 2722 | F13: 2686 | G13: 2540 | H13: 2267 | I13: 2301 | J13: 2266 | K13: 2366 | L13: 2486 | M13: 2605 | N13: 2668 | O13: 2588
A14: East Dunbartonshire | B14: 2936 | C14: 2888 | D14: 2808 | E14: 2873 | F14: 2828 | G14: 2594 | H14: 2527 | I14: 2459 | J14: 2859 | K14: 2984 | L14: 3490 | M14: 3615 | N14: 3535 | O14: 3446
A15: East Lothian | B15: 2695 | C15: 2729 | D15: 2919 | E15: 3186 | F15: 3246 | G15: 2514 | H15: 2571 | I15: 2531 | J15: 2746 | K15: 2820 | L15: 3057 | M15: 3231 | N15: 2869 | O15: 3027
A16: East Renfrewshire | B16: 2868 | C16: 2780 | D16: 2765 | E16: 2850 | F16: 2829 | G16: 2442 | H16: 2539 | I16: 2575 | J16: 2827 | K16: 3156 | L16: 3291 | M16: 3416 | N16: 3482 | O16: 3449
A17: Falkirk | B17: 3258 | C17: 3507 | D17: 3152 | E17: 3164 | F17: 2997 | G17: 2658 | H17: 2502 | I17: 2988 | J17: 2855 | K17: 3170 | L17: 3055 | M17: 3367 | N17: 3469 | O17: 3531
A18: Fife | B18: 6965 | C18: 6842 | D18: 6375 | E18: 6103 | F18: 6397 | G18: 5675 | H18: 5753 | I18: 5852 | J18: 5926 | K18: 5733 | L18: 6036 | M18: 6390 | N18: 6484 | O18: 6443
A19: Glasgow City | B19: 13112 | C19: 13788 | D19: 13809 | E19: 13905 | F19: 14583 | G19: 13898 | H19: 13338 | I19: 13663 | J19: 14155 | K19: 14999 | L19: 14980 | M19: 16288 | N19: 16773 | O19: 16654
A20: Highland | B20: 4292 | C20: 4472 | D20: 4445 | E20: 4164 | F20: 4531 | G20: 4134 | H20: 3911 | I20: 3965 | J20: 3993 | K20: 3974 | L20: 4058 | M20: 4330 | N20: 4179 | O20: 4020
A21: Inverclyde | B21: 1043 | C21: 1073 | D21: 976 | E21: 1038 | F21: 1045 | G21: 853 | H21: 896 | I21: 869 | J21: 890 | K21: 983 | L21: 939 | M21: 1003 | N21: 1092 | O21: 1115
A22: Midlothian | B22: 2056 | C22: 1984 | D22: 1947 | E22: 2331 | F22: 2338 | G22: 2194 | H22: 2022 | I22: 2157 | J22: 2278 | K22: 2461 | L22: 2866 | M22: 3073 | N22: 3016 | O22: 3190
A23: Moray | B23: 1861 | C23: 1712 | D23: 1707 | E23: 1549 | F23: 1643 | G23: 1679 | H23: 1551 | I23: 1711 | J23: 1627 | K23: 1820 | L23: 1901 | M23: 2091 | N23: 2058 | O23: 1803
A24: Na h-Eileanan Siar | B24: 647 | C24: 676 | D24: 613 | E24: 588 | F24: 616 | G24: 598 | H24: 601 | I24: 576 | J24: 553 | K24: 499 | L24: 557 | M24: 604 | N24: 534 | O24: 586
A25: North Ayrshire | B25: 3117 | C25: 3067 | D25: 2878 | E25: 3109 | F25: 2901 | G25: 2486 | H25: 2430 | I25: 2461 | J25: 2566 | K25: 2573 | L25: 2537 | M25: 2816 | N25: 2752 | O25: 2796
A26: North Lanarkshire | B26: 5827 | C26: 5706 | D26: 5665 | E26: 5791 | F26: 5578 | G26: 5037 | H26: 4438 | I26: 4741 | J26: 5024 | K26: 5112 | L26: 5184 | M26: 5780 | N26: 6155 | O26: 6023
A27: Orkney Islands | B27: 384 | C27: 381 | D27: 420 | E27: 363 | F27: 368 | G27: 352 | H27: 430 | I27: 345 | J27: 414 | K27: 429 | L27: 378 | M27: 389 | N27: 421 | O27: 405
A28: Perth and Kinross | B28: 4048 | C28: 3808 | D28: 3940 | E28: 3749 | F28: 3905 | G28: 3453 | H28: 3471 | I28: 3448 | J28: 3683 | K28: 3904 | L28: 4138 | M28: 4209 | N28: 4240 | O28: 4100
A29: Renfrewshire | B29: 3268 | C29: 3428 | D29: 3270 | E29: 3488 | F29: 3536 | G29: 3301 | H29: 3267 | I29: 3331 | J29: 3219 | K29: 3331 | L29: 3895 | M29: 4075 | N29: 4509 | O29: 4398
A30: Scottish Borders | B30: 2611 | C30: 2574 | D30: 2350 | E30: 2591 | F30: 2496 | G30: 2282 | H30: 2235 | I30: 2207 | J30: 2109 | K30: 2151 | L30: 2315 | M30: 2286 | N30: 2499 | O30: 2583
A31: Shetland Islands | B31: 367 | C31: 380 | D31: 394 | E31: 365 | F31: 330 | G31: 384 | H31: 300 | I31: 382 | J31: 321 | K31: 351 | L31: 357 | M31: 390 | N31: 315 | O31: 294
A32: South Ayrshire | B32: 2706 | C32: 2529 | D32: 2436 | E32: 2601 | F32: 2507 | G32: 2328 | H32: 2228 | I32: 2307 | J32: 2515 | K32: 2681 | L32: 2477 | M32: 2684 | N32: 2688 | O32: 2799
A33: South Lanarkshire | B33: 7379 | C33: 6605 | D33: 6778 | E33: 6809 | F33: 6527 | G33: 5987 | H33: 5870 | I33: 5667 | J33: 6301 | K33: 6550 | L33: 6411 | M33: 7455 | N33: 7076 | O33: 7225
A34: Stirling | B34: 2693 | C34: 3659 | D34: 3239 | E34: 2981 | F34: 2884 | G34: 2797 | H34: 3068 | I34: 2838 | J34: 3151 | K34: 3336 | L34: 3315 | M34: 3793 | N34: 3603 | O34: 3424
A35: West Dunbartonshire | B35: 1809 | C35: 1726 | D35: 1834 | E35: 1782 | F35: 1874 | G35: 1726 | H35: 1524 | I35: 1531 | J35: 1654 | K35: 1653 | L35: 1759 | M35: 2083 | N35: 1992 | O35: 1832
A36: West Lothian | B36: 4694 | C36: 4221 | D36: 3989 | E36: 4312 | F36: 3910 | G36: 3265 | H36: 3075 | I36: 3073 | J36: 3263 | K36: 3208 | L36: 3703 | M36: 4308 | N36: 4095 | O36: 3999
A38: NHS Board Areas
A39: SCOTLAND | B39: n/a | C39: n/a | D39: n/a | E39: n/a | F39: n/a | G39: n/a | H39: n/a | I39: n/a | J39: n/a | K39: n/a | L39: n/a | M39: n/a | N39: n/a | O39: n/a
A40: Ayrshire and Arran | B40: 5733 | C40: 5404 | D40: 5180 | E40: 5606 | F40: 5341 | G40: 4894 | H40: 4572 | I40: 4713 | J40: 4862 | K40: 5107 | L40: 5048 | M40: 5303 | N40: 5365 | O40: 5466
A41: Borders | B41: 2611 | C41: 2574 | D41: 2350 | E41: 2591 | F41: 2496 | G41: 2282 | H41: 2235 | I41: 2207 | J41: 2109 | K41: 2151 | L41: 2315 | M41: 2286 | N41: 2499 | O41: 2583
A42: Dumfries and Galloway | B42: 1783 | C42: 1835 | D42: 1663 | E42: 1728 | F42: 1790 | G42: 1713 | H42: 1621 | I42: 1652 | J42: 1719 | K42: 1734 | L42: 1725 | M42: 1734 | N42: 1679 | O42: 1641
A43: Fife | B43: 6965 | C43: 6842 | D43: 6375 | E43: 6099 | F43: 6396 | G43: 5673 | H43: 5751 | I43: 5850 | J43: 5926 | K43: 5733 | L43: 6036 | M43: 6390 | N43: 6484 | O43: 6443
A44: Forth Valley | B44: 5806 | C44: 7028 | D44: 6139 | E44: 5984 | F44: 5788 | G44: 5282 | H44: 5281 | I44: 5505 | J44: 5614 | K44: 6165 | L44: 6055 | M44: 6915 | N44: 6782 | O44: 6749
A45: Grampian | B45: 6501 | C45: 6793 | D45: 6853 | E45: 6458 | F45: 6321 | G45: 6678 | H45: 6283 | I45: 6793 | J45: 7668 | K45: 8283 | L45: 8368 | M45: 7743 | N45: 6942 | O45: 6657
A46: Greater Glasgow and Clyde | B46: 17447 | C46: 18095 | D46: 18307 | E46: 18605 | F46: 19385 | G46: 18513 | H46: 18196 | I46: 18152 | J46: 14824 | K46: 15562 | L46: 16352 | M46: 17265 | N46: 18355 | O46: 18140
A47: Highland | B47: 6559 | C47: 6607 | D47: 6358 | E47: 6038 | F47: 6392 | G47: 5916 | H47: 5734 | I47: 5712 | J47: 5875 | K47: 5936 | L47: 5881 | M47: 6276 | N47: 6250 | O47: 6068
A48: Lanarkshire | B48: 8733 | C48: 8230 | D48: 8291 | E48: 8184 | F48: 8130 | G48: 7396 | H48: 6924 | I48: 7125 | J48: 9166 | K48: 9333 | L48: 9313 | M48: 10638 | N48: 10715 | O48: 10844
A49: Lothian | B49: 11516 | C49: 12128 | D49: 11035 | E49: 11917 | F49: 11719 | G49: 11611 | H49: 11425 | I49: 11296 | J49: 12545 | K49: 12321 | L49: 12790 | M49: 13662 | N49: 13640 | O49: 13190
A50: Orkney | B50: 384 | C50: 381 | D50: 420 | E50: 363 | F50: 368 | G50: 352 | H50: 430 | I50: 345 | J50: 414 | K50: 429 | L50: 378 | M50: 389 | N50: 421 | O50: 405
A51: Shetland | B51: 367 | C51: 380 | D51: 394 | E51: 365 | F51: 330 | G51: 384 | H51: 300 | I51: 382 | J51: 321 | K51: 351 | L51: 357 | M51: 390 | N51: 315 | O51: 294
A52: Tayside | B52: 7120 | C52: 7078 | D52: 6940 | E52: 6691 | F52: 6918 | G52: 6486 | H52: 6487 | I52: 6720 | J52: 7130 | K52: 7481 | L52: 8057 | M52: 8220 | N52: 8053 | O52: 8169
A53: Western Isles | B53: 647 | C53: 676 | D53: 613 | E53: 588 | F53: 616 | G53: 598 | H53: 601 | I53: 576 | J53: 553 | K53: 499 | L53: 557 | M53: 604 | N53: 534 | O53: 586
A55: Notes
A56: 1) Movements to/from the armed forces were included in these figures in previous releases of this spreadsheet but are no longer treated as migration. Armed forces movements are included in the mid-year population estimates under another category.
A57: 2) Source for data: 'Migration within Scotland' section of the NRS website - https://www.nrscotland.gov.uk/statistics-and-data/statistics/statistics-by-theme/migration/migration-statistics/migration-within-scotland
A58: 3) The NHS Board areas used for estimates between 2003-04 and 2010-11 are those that existed between 2006 and 2014. The 2011-12 estimates onwards use the NHS Board areas that came into force in April 2014.
A60: © Crown Copyright 2018

Sheet Within Scotland out-migration
A1: Within Scotland out-migration | K1: Return to front page
A3: Council Area | B3: 2003-04 | C3: 2004-05 | D3: 2005-06 | E3: 2006-07 | F3: 2007-08 | G3: 2008-09 | H3: 2009-10 | I3: 2010-11 | J3: 2011-12 | K3: 2012-13 | L3: 2013-14 | M3: 2014-15 | N3: 2015-16 | O3: 2016-17
A4: SCOTLAND | B4: n/a | C4: n/a | D4: n/a | E4: n/a | F4: n/a | G4: n/a | H4: n/a | I4: n/a | J4: n/a | K4: n/a | L4: n/a | M4: n/a | N4: n/a | O4: n/a
A5: Aberdeen City | B5: 7222 | C5: 6913 | D5: 6931 | E5: 6747 | F5: 7291 | G5: 6716 | H5: 6825 | I5: 7012 | J5: 7068 | K5: 7613 | L5: 8183 | M5: 9028 | N5: 8841 | O5: 8296
A6: Aberdeenshire | B6: 4750 | C6: 5049 | D6: 4715 | E6: 4842 | F6: 5135 | G6: 4842 | H6: 4708 | I6: 4996 | J6: 5120 | K6: 5484 | L6: 5591 | M6: 5918 | N6: 6003 | O6: 5753
A7: Angus | B7: 2416 | C7: 2570 | D7: 2379 | E7: 2541 | F7: 2554 | G7: 2309 | H7: 2369 | I7: 2601 | J7: 2615 | K7: 2769 | L7: 2707 | M7: 2841 | N7: 2877 | O7: 2790
A8: Argyll and Bute | B8: 2416 | C8: 2470 | D8: 2492 | E8: 2432 | F8: 2423 | G8: 2376 | H8: 2291 | I8: 2167 | J8: 2541 | K8: 2509 | L8: 2609 | M8: 2717 | N8: 2673 | O8: 2804
A9: City of Edinburgh | B9: 13669 | C9: 12881 | D9: 12952 | E9: 13155 | F9: 12722 | G9: 11566 | H9: 11158 | I9: 11208 | J9: 11764 | K9: 12114 | L9: 13244 | M9: 14212 | N9: 13769 | O9: 13991
A10: Clackmannanshire | B10: 1111 | C10: 1134 | D10: 1184 | E10: 1179 | F10: 1220 | G10: 1186 | H10: 1225 | I10: 1136 | J10: 1278 | K10: 1267 | L10: 1335 | M10: 1392 | N10: 1423 | O10: 1349
A11: Dumfries and Galloway | B11: 1839 | C11: 1953 | D11: 1924 | E11: 1784 | F11: 1736 | G11: 1797 | H11: 1722 | I11: 1739 | J11: 1889 | K11: 1928 | L11: 1835 | M11: 1837 | N11: 1855 | O11: 1886
A12: Dundee City | B12: 4207 | C12: 3918 | D12: 4149 | E12: 4126 | F12: 4168 | G12: 3702 | H12: 3786 | I12: 3779 | J12: 4026 | K12: 4419 | L12: 4507 | M12: 4767 | N12: 4777 | O12: 4471
A13: East Ayrshire | B13: 2285 | C13: 2420 | D13: 2291 | E13: 2476 | F13: 2327 | G13: 2139 | H13: 2194 | I13: 2288 | J13: 2333 | K13: 2403 | L13: 2443 | M13: 2620 | N13: 2606 | O13: 2648
A14: East Dunbartonshire | B14: 3094 | C14: 3148 | D14: 2938 | E14: 3043 | F14: 2930 | G14: 2607 | H14: 2364 | I14: 2437 | J14: 2489 | K14: 2697 | L14: 2427 | M14: 3008 | N14: 2950 | O14: 2792
A15: East Lothian | B15: 2340 | C15: 2245 | D15: 2040 | E15: 2093 | F15: 2255 | G15: 2092 | H15: 2219 | I15: 2320 | J15: 2272 | K15: 2324 | L15: 2498 | M15: 2547 | N15: 2370 | O15: 2480
A16: East Renfrewshire | B16: 2674 | C16: 2648 | D16: 2692 | E16: 2603 | F16: 2671 | G16: 2323 | H16: 2157 | I16: 2300 | J16: 2359 | K16: 2458 | L16: 2353 | M16: 2708 | N16: 2757 | O16: 2540
A17: Falkirk | B17: 2209 | C17: 2352 | D17: 2380 | E17: 2584 | F17: 2557 | G17: 2227 | H17: 2220 | I17: 2379 | J17: 2490 | K17: 2774 | L17: 2883 | M17: 2976 | N17: 2879 | O17: 2903
A18: Fife | B18: 5663 | C18: 5902 | D18: 5740 | E18: 5837 | F18: 5666 | G18: 5423 | H18: 5222 | I18: 5403 | J18: 5728 | K18: 5853 | L18: 6124 | M18: 6458 | N18: 6360 | O18: 6246
A19: Glasgow City | B19: 17664 | C19: 17090 | D19: 16460 | E19: 16667 | F19: 16752 | G19: 15419 | H19: 15200 | I19: 14894 | J19: 16258 | K19: 16800 | L19: 17661 | M19: 18705 | N19: 18591 | O19: 18484
A20: Highland | B20: 4269 | C20: 4383 | D20: 4314 | E20: 4102 | F20: 4100 | G20: 4057 | H20: 3984 | I20: 4134 | J20: 4080 | K20: 4402 | L20: 4468 | M20: 4358 | N20: 4217 | O20: 4227
A21: Inverclyde | B21: 1343 | C21: 1328 | D21: 1288 | E21: 1309 | F21: 1248 | G21: 1164 | H21: 1061 | I21: 1115 | J21: 1086 | K21: 1136 | L21: 1226 | M21: 1256 | N21: 1233 | O21: 1165
A22: Midlothian | B22: 2294 | C22: 2210 | D22: 2164 | E22: 2332 | F22: 2007 | G22: 1705 | H22: 1769 | I22: 1782 | J22: 1769 | K22: 1896 | L22: 1919 | M22: 2039 | N22: 2161 | O22: 2069
A23: Moray | B23: 1668 | C23: 1782 | D23: 1701 | E23: 1717 | F23: 1707 | G23: 1627 | H23: 1651 | I23: 1647 | J23: 1743 | K23: 1693 | L23: 1717 | M23: 1817 | N23: 1861 | O23: 1859
A24: Na h-Eileanan Siar | B24: 688 | C24: 641 | D24: 661 | E24: 640 | F24: 696 | G24: 629 | H24: 574 | I24: 609 | J24: 583 | K24: 572 | L24: 617 | M24: 650 | N24: 654 | O24: 589
A25: North Ayrshire | B25: 2870 | C25: 2855 | D25: 2731 | E25: 2758 | F25: 2762 | G25: 2660 | H25: 2584 | I25: 2439 | J25: 2750 | K25: 2770 | L25: 2747 | M25: 2890 | N25: 2860 | O25: 2689
A26: North Lanarkshire | B26: 5415 | C26: 5374 | D26: 5323 | E26: 5524 | F26: 5359 | G26: 4982 | H26: 4685 | I26: 4943 | J26: 5130 | K26: 5294 | L26: 5365 | M26: 5932 | N26: 5606 | O26: 5457
A27: Orkney Islands | B27: 429 | C27: 396 | D27: 341 | E27: 380 | F27: 419 | G27: 415 | H27: 415 | I27: 337 | J27: 370 | K27: 409 | L27: 419 | M27: 424 | N27: 438 | O27: 368
A28: Perth and Kinross | B28: 3516 | C28: 3426 | D28: 3337 | E28: 3276 | F28: 3414 | G28: 3084 | H28: 3014 | I28: 3106 | J28: 3374 | K28: 3725 | L28: 3525 | M28: 3741 | N28: 3836 | O28: 3836
A29: Renfrewshire | B29: 3579 | C29: 3830 | D29: 3478 | E29: 3712 | F29: 3383 | G29: 3175 | H29: 3139 | I29: 3158 | J29: 3488 | K29: 3474 | L29: 3514 | M29: 3872 | N29: 3598 | O29: 3732
A30: Scottish Borders | B30: 2224 | C30: 2248 | D30: 2078 | E30: 2044 | F30: 2136 | G30: 2124 | H30: 2091 | I30: 2073 | J30: 2188 | K30: 2159 | L30: 2248 | M30: 2195 | N30: 2142 | O30: 2248
A31: Shetland Islands | B31: 452 | C31: 481 | D31: 478 | E31: 467 | F31: 433 | G31: 375 | H31: 339 | I31: 372 | J31: 425 | K31: 436 | L31: 387 | M31: 489 | N31: 470 | O31: 416
A32: South Ayrshire | B32: 2190 | C32: 2351 | D32: 2181 | E32: 2307 | F32: 2285 | G32: 2201 | H32: 2084 | I32: 2081 | J32: 2218 | K32: 2348 | L32: 2377 | M32: 2572 | N32: 2439 | O32: 2394
A33: South Lanarkshire | B33: 5360 | C33: 5579 | D33: 5539 | E33: 5507 | F33: 5832 | G33: 5241 | H33: 4961 | I33: 5185 | J33: 5640 | K33: 5602 | L33: 5875 | M33: 6227 | N33: 6303 | O33: 6023
A34: Stirling | B34: 3096 | C34: 3255 | D34: 3017 | E34: 3337 | F34: 3218 | G34: 2945 | H34: 2759 | I34: 2948 | J34: 2939 | K34: 3229 | L34: 3254 | M34: 3380 | N34: 3393 | O34: 3385
A35: West Dunbartonshire | B35: 2013 | C35: 1877 | D35: 1806 | E35: 1890 | F35: 2024 | G35: 1712 | H35: 1780 | I35: 1722 | J35: 1906 | K35: 2023 | L35: 1892 | M35: 1991 | N35: 1871 | O35: 2040
A36: West Lothian | B36: 3367 | C36: 3640 | D36: 3474 | E36: 3808 | F36: 3739 | G36: 3301 | H36: 3241 | I36: 3392 | J36: 3364 | K36: 3579 | L36: 3544 | M36: 3675 | N36: 3581 | O36: 3487
A38: NHS Board Areas
A39: SCOTLAND | B39: n/a | C39: n/a | D39: n/a | E39: n/a | F39: n/a | G39: n/a | H39: n/a | I39: n/a | J39: n/a | K39: n/a | L39: n/a | M39: n/a | N39: n/a | O39: n/a
A40: Ayrshire and Arran | B40: 4687 | C40: 5042 | D40: 4604 | E40: 4715 | F40: 4621 | G40: 4540 | H40: 4509 | I40: 4452 | J40: 4816 | K40: 5008 | L40: 5115 | M40: 5280 | N40: 5162 | O40: 5014
A41: Borders | B41: 2224 | C41: 2248 | D41: 2078 | E41: 2044 | F41: 2136 | G41: 2124 | H41: 2091 | I41: 2073 | J41: 2188 | K41: 2159 | L41: 2248 | M41: 2195 | N41: 2142 | O41: 2248
A42: Dumfries and Galloway | B42: 1839 | C42: 1953 | D42: 1924 | E42: 1784 | F42: 1736 | G42: 1797 | H42: 1722 | I42: 1739 | J42: 1889 | K42: 1928 | L42: 1835 | M42: 1837 | N42: 1855 | O42: 1886
A43: Fife | B43: 5663 | C43: 5902 | D43: 5737 | E43: 5835 | F43: 5666 | G43: 5423 | H43: 5219 | I43: 5406 | J43: 5728 | K43: 5853 | L43: 6124 | M43: 6458 | N43: 6360 | O43: 6246
A44: Forth Valley | B44: 4820 | C44: 5175 | D44: 5001 | E44: 5366 | F44: 5391 | G44: 4994 | H44: 4795 | I44: 5013 | J44: 5285 | K44: 5747 | L44: 5879 | M44: 6044 | N44: 6095 | O44: 5994
A45: Grampian | B45: 6748 | C45: 7080 | D45: 6640 | E45: 6645 | F45: 7164 | G45: 6917 | H45: 6613 | I45: 6991 | J45: 7065 | K45: 7168 | L45: 7682 | M45: 8739 | N45: 9477 | O45: 9427
A46: Greater Glasgow and Clyde | B46: 22012 | C46: 21899 | D46: 20859 | E46: 21169 | F46: 21468 | G46: 19617 | H46: 19225 | I46: 19204 | J46: 16806 | K46: 17044 | L46: 17071 | M46: 18325 | N46: 17972 | O46: 17999
A47: Highland | B47: 6333 | C47: 6549 | D47: 6465 | E47: 6207 | F47: 6172 | G47: 6124 | H47: 5954 | I47: 6002 | J47: 6295 | K47: 6560 | L47: 6735 | M47: 6748 | N47: 6571 | O47: 6707
A48: Lanarkshire | B48: 7068 | C48: 7306 | D48: 7358 | E48: 7339 | F48: 7446 | G48: 7077 | H48: 6843 | I48: 6991 | J48: 8611 | K48: 8567 | L48: 8958 | M48: 9562 | N48: 9393 | O48: 9076
A49: Lothian | B49: 12928 | C49: 12842 | D49: 12472 | E49: 12274 | F49: 12204 | G49: 11504 | H49: 11350 | I49: 11423 | J49: 11914 | K49: 12245 | L49: 12836 | M49: 13238 | N49: 13255 | O49: 13387
A50: Orkney | B50: 429 | C50: 396 | D50: 341 | E50: 380 | F50: 419 | G50: 415 | H50: 415 | I50: 337 | J50: 370 | K50: 409 | L50: 419 | M50: 424 | N50: 438 | O50: 368
A51: Shetland | B51: 452 | C51: 481 | D51: 478 | E51: 467 | F51: 433 | G51: 375 | H51: 339 | I51: 372 | J51: 425 | K51: 436 | L51: 387 | M51: 489 | N51: 470 | O51: 416
A52: Tayside | B52: 6281 | C52: 6537 | D52: 6300 | E52: 6352 | F52: 6438 | G52: 6242 | H52: 6191 | I52: 6416 | J52: 6751 | K52: 7389 | L52: 7326 | M52: 7826 | N52: 8190 | O52: 7878
A53: Western Isles | B53: 688 | C53: 641 | D53: 661 | E53: 640 | F53: 696 | G53: 629 | H53: 574 | I53: 609 | J53: 583 | K53: 572 | L53: 617 | M53: 650 | N53: 654 | O53: 589
A55: Notes
A56: 1) Movements to/from the armed forces were included in these figures in previous releases of this spreadsheet but are no longer treated as migration. Armed forces movements are included in the mid-year population estimates under another category.
A57: 2) Source for data: 'Migration within Scotland' section of the NRS website - https://www.nrscotland.gov.uk/statistics-and-data/statistics/statistics-by-theme/migration/migration-statistics/migration-within-scotland
A58: 3) The NHS Board areas used for estimates between 2003-04 and 2010-11 are those that existed between 2006 and 2014. The 2011-12 estimates onwards use the NHS Board areas that came into force in April 2014.
A60: © Crown Copyright 2018

Sheet Rest of UK net migration
A1: Rest of UK net migration | K1: Return to front page
A3: Council Area | B3: 2003-04 | C3: 2004-05 | D3: 2005-06 | E3: 2006-07 | F3: 2007-08 | G3: 2008-09 | H3: 2009-10 | I3: 2010-11 | J3: 2011-12 | K3: 2012-13 | L3: 2013-14 | M3: 2014-15 | N3: 2015-16 | O3: 2016-17
A4: SCOTLAND | B4: 15522 | C4: 12507 | D4: 8922 | E4: 8849 | F4: 11509 | G4: 4122 | H4: 3275 | I4: 2909 | J4: 3038 | K4: 7862 | L4: 9585 | M4: 8368 | N4: 8793 | O4: 10455
A5: Aberdeen City | B5: -387 | C5: 46 | D5: 140 | E5: 317 | F5: 273 | G5: 281 | H5: 319 | I5: 3 | J5: 101 | K5: 557 | L5: 587 | M5: 117 | N5: -779 | O5: -685
A6: Aberdeenshire | B6: 1865 | C6: 1288 | D6: 1070 | E6: 750 | F6: 598 | G6: 217 | H6: -103 | I6: -132 | J6: 102 | K6: 365 | L6: 275 | M6: -221 | N6: -602 | O6: -407
A7: Angus | B7: 452 | C7: 439 | D7: 130 | E7: 158 | F7: 166 | G7: 27 | H7: 23 | I7: -86 | J7: 49 | K7: 38 | L7: 192 | M7: 107 | N7: -71 | O7: 8
A8: Argyll and Bute | B8: 827 | C8: 568 | D8: 549 | E8: 472 | F8: 398 | G8: 309 | H8: 352 | I8: 370 | J8: 271 | K8: 384 | L8: 403 | M8: 296 | N8: 479 | O8: 605
A9: City of Edinburgh | B9: 2050 | C9: 1650 | D9: 1917 | E9: 751 | F9: 1349 | G9: 358 | H9: 1132 | I9: 361 | J9: 159 | K9: 1659 | L9: 1733 | M9: 2139 | N9: 2351 | O9: 2957
A10: Clackmannanshire | B10: 260 | C10: 270 | D10: 141 | E10: 189 | F10: 118 | G10: 1 | H10: 29 | I10: -7 | J10: 41 | K10: 60 | L10: 1 | M10: 79 | N10: 62 | O10: -6
A11: Dumfries and Galloway | B11: 1494 | C11: 1393 | D11: 846 | E11: 736 | F11: 931 | G11: 559 | H11: 382 | I11: 449 | J11: 322 | K11: 523 | L11: 711 | M11: 505 | N11: 558 | O11: 684
A12: Dundee City | B12: -156 | C12: 201 | D12: -149 | E12: -270 | F12: 50 | G12: -12 | H12: 0 | I12: -140 | J12: 55 | K12: 238 | L12: 41 | M12: 53 | N12: -18 | O12: 251
A13: East Ayrshire | B13: 216 | C13: 151 | D13: 111 | E13: 146 | F13: 283 | G13: 122 | H13: 54 | I13: 83 | J13: 124 | K13: 78 | L13: 41 | M13: 168 | N13: 127 | O13: 166
A14: East Dunbartonshire | B14: -109 | C14: -178 | D14: -128 | E14: -128 | F14: 43 | G14: -37 | H14: -165 | I14: -54 | J14: -19 | K14: -73 | L14: -46 | M14: 55 | N14: 71 | O14: 48
A15: East Lothian | B15: 122 | C15: 10 | D15: 9 | E15: 278 | F15: 391 | G15: 67 | H15: 98 | I15: 68 | J15: 197 | K15: 77 | L15: 122 | M15: 120 | N15: 172 | O15: 152
A16: East Renfrewshire | B16: -148 | C16: -72 | D16: -161 | E16: -194 | F16: -131 | G16: -28 | H16: -51 | I16: 22 | J16: -121 | K16: -51 | L16: 5 | M16: 2 | N16: 43 | O16: 57
A17: Falkirk | B17: 394 | C17: 241 | D17: 100 | E17: 38 | F17: 114 | G17: 10 | H17: 18 | I17: 134 | J17: 20 | K17: 107 | L17: 228 | M17: 216 | N17: 195 | O17: 172
A18: Fife | B18: 959 | C18: 930 | D18: 653 | E18: 614 | F18: 512 | G18: 239 | H18: 24 | I18: 327 | J18: 66 | K18: 478 | L18: 629 | M18: 468 | N18: 442 | O18: 656
A19: Glasgow City | B19: 35 | C19: 250 | D19: -402 | E19: 325 | F19: 850 | G19: 62 | H19: -471 | I19: -459 | J19: -291 | K19: 175 | L19: 732 | M19: 1180 | N19: 1846 | O19: 1826
A20: Highland | B20: 2821 | C20: 2150 | D20: 1464 | E20: 1643 | F20: 1368 | G20: 728 | H20: 705 | I20: 643 | J20: 380 | K20: 764 | L20: 737 | M20: 814 | N20: 885 | O20: 932
A21: Inverclyde | B21: -124 | C21: 3 | D21: -41 | E21: -64 | F21: 52 | G21: -43 | H21: -86 | I21: -18 | J21: -10 | K21: 50 | L21: 80 | M21: 103 | N21: 46 | O21: 56
A22: Midlothian | B22: -3 | C22: -74 | D22: -43 | E22: 17 | F22: 89 | G22: -43 | H22: -56 | I22: 74 | J22: 26 | K22: 56 | L22: 113 | M22: -27 | N22: 68 | O22: 105
A23: Moray | B23: 866 | C23: 695 | D23: 428 | E23: 456 | F23: 403 | G23: 310 | H23: 41 | I23: -131 | J23: 542 | K23: 615 | L23: 325 | M23: 258 | N23: 276 | O23: 163
A24: Na h-Eileanan Siar | B24: 323 | C24: 245 | D24: 188 | E24: 99 | F24: 130 | G24: 115 | H24: 147 | I24: 53 | J24: 80 | K24: 113 | L24: 20 | M24: 39 | N24: 34 | O24: 147
A25: North Ayrshire | B25: 100 | C25: 75 | D25: 110 | E25: 124 | F25: 340 | G25: 145 | H25: 80 | I25: 82 | J25: 10 | K25: 127 | L25: 241 | M25: 176 | N25: 213 | O25: 294
A26: North Lanarkshire | B26: 150 | C26: 18 | D26: -7 | E26: 9 | F26: 218 | G26: 14 | H26: -152 | I26: 28 | J26: 39 | K26: 139 | L26: 260 | M26: 127 | N26: 167 | O26: 118
A27: Orkney Islands | B27: 324 | C27: 175 | D27: 148 | E27: 157 | F27: 172 | G27: 166 | H27: 145 | I27: 68 | J27: 95 | K27: 88 | L27: 124 | M27: 132 | N27: 237 | O27: 159
A28: Perth and Kinross | B28: 1026 | C28: 615 | D28: 450 | E28: 575 | F28: 529 | G28: 262 | H28: 237 | I28: 367 | J28: 219 | K28: 208 | L28: 327 | M28: 332 | N28: 238 | O28: 486
A29: Renfrewshire | B29: -144 | C29: -45 | D29: -215 | E29: -8 | F29: 113 | G29: -69 | H29: -29 | I29: -40 | J29: -42 | K29: 6 | L29: -1 | M29: 110 | N29: 191 | O29: 211
A30: Scottish Borders | B30: 1059 | C30: 570 | D30: 552 | E30: 686 | F30: 852 | G30: 248 | H30: 245 | I30: 288 | J30: 190 | K30: 489 | L30: 386 | M30: 394 | N30: 330 | O30: 466
A31: Shetland Islands | B31: 177 | C31: 193 | D31: 14 | E31: 134 | F31: 126 | G31: 116 | H31: 170 | I31: 14 | J31: 34 | K31: 28 | L31: 64 | M31: 31 | N31: 101 | O31: 7
A32: South Ayrshire | B32: 364 | C32: 292 | D32: 196 | E32: 219 | F32: 254 | G32: 152 | H32: 325 | I32: 290 | J32: 160 | K32: 265 | L32: 169 | M32: 185 | N32: 259 | O32: 281
A33: South Lanarkshire | B33: 476 | C33: 306 | D33: 296 | E33: 276 | F33: 223 | G33: -58 | H33: -45 | I33: 106 | J33: 68 | K33: 55 | L33: 348 | M33: -33 | N33: 191 | O33: 95
A34: Stirling | B34: 323 | C34: 113 | D34: 301 | E34: 269 | F34: 319 | G34: 103 | H34: 34 | I34: 146 | J34: 147 | K34: 199 | L34: 450 | M34: 362 | N34: 361 | O34: 298
A35: West Dunbartonshire | B35: -72 | C35: -99 | D35: -27 | E35: 8 | F35: 19 | G35: -40 | H35: -86 | I35: 7 | J35: 30 | K35: 43 | L35: 66 | M35: 20 | N35: 81 | O35: 87
A36: West Lothian | B36: -18 | C36: 88 | D36: 282 | E36: 67 | F36: 357 | G36: -159 | H36: -41 | I36: -7 | J36: -6 | K36: 2 | L36: 222 | M36: 61 | N36: 239 | O36: 66
A38: NHS Board Areas
A39: SCOTLAND | B39: 15522 | C39: 12507 | D39: 8922 | E39: 8849 | F39: 11509 | G39: 4122 | H39: 3275 | I39: 2909 | J39: 3038 | K39: 7862 | L39: 9585 | M39: 8368 | N39: 8793 | O39: 10455
A40: Ayrshire and Arran | B40: 680 | C40: 518 | D40: 417 | E40: 489 | F40: 877 | G40: 419 | H40: 459 | I40: 455 | J40: 294 | K40: 470 | L40: 451 | M40: 529 | N40: 599 | O40: 741
A41: Borders | B41: 1059 | C41: 570 | D41: 552 | E41: 686 | F41: 852 | G41: 248 | H41: 245 | I41: 288 | J41: 190 | K41: 489 | L41: 386 | M41: 394 | N41: 330 | O41: 466
A42: Dumfries and Galloway | B42: 1494 | C42: 1393 | D42: 846 | E42: 736 | F42: 931 | G42: 559 | H42: 382 | I42: 449 | J42: 322 | K42: 523 | L42: 711 | M42: 505 | N42: 558 | O42: 684
A43: Fife | B43: 959 | C43: 930 | D43: 653 | E43: 614 | F43: 506 | G43: 240 | H43: 26 | I43: 327 | J43: 66 | K43: 478 | L43: 629 | M43: 468 | N43: 442 | O43: 656
A44: Forth Valley | B44: 977 | C44: 624 | D44: 542 | E44: 496 | F44: 551 | G44: 114 | H44: 81 | I44: 273 | J44: 208 | K44: 366 | L44: 679 | M44: 657 | N44: 618 | O44: 464
A45: Grampian | B45: 2344 | C45: 2029 | D45: 1638 | E45: 1523 | F45: 1274 | G45: 808 | H45: 257 | I45: -260 | J45: 745 | K45: 1537 | L45: 1187 | M45: 154 | N45: -1105 | O45: -929
A46: Greater Glasgow and Clyde | B46: -610 | C46: -129 | D46: -912 | E46: -70 | F46: 964 | G46: -209 | H46: -879 | I46: -556 | J46: -453 | K46: 150 | L46: 836 | M46: 1470 | N46: 2278 | O46: 2285
A47: Highland | B47: 3648 | C47: 2718 | D47: 2013 | E47: 2115 | F47: 1766 | G47: 1037 | H47: 1057 | I47: 1013 | J47: 651 | K47: 1148 | L47: 1140 | M47: 1110 | N47: 1364 | O47: 1537
A48: Lanarkshire | B48: 674 | C48: 312 | D48: 227 | E48: 294 | F48: 423 | G48: 10 | H48: -206 | I48: 148 | J48: 107 | K48: 194 | L48: 608 | M48: 94 | N48: 358 | O48: 213
A49: Lothian | B49: 2151 | C49: 1674 | D49: 2165 | E49: 1113 | F49: 2186 | G49: 223 | H49: 1133 | I49: 496 | J49: 376 | K49: 1794 | L49: 2190 | M49: 2293 | N49: 2830 | O49: 3280
A50: Orkney | B50: 324 | C50: 175 | D50: 148 | E50: 157 | F50: 172 | G50: 166 | H50: 145 | I50: 68 | J50: 95 | K50: 88 | L50: 124 | M50: 132 | N50: 237 | O50: 159
A51: Shetland | B51: 177 | C51: 193 | D51: 14 | E51: 134 | F51: 126 | G51: 116 | H51: 170 | I51: 14 | J51: 34 | K51: 28 | L51: 64 | M51: 31 | N51: 101 | O51: 7
A52: Tayside | B52: 1322 | C52: 1255 | D52: 431 | E52: 463 | F52: 751 | G52: 276 | H52: 258 | I52: 141 | J52: 323 | K52: 484 | L52: 560 | M52: 492 | N52: 149 | O52: 745
A53: Western Isles | B53: 323 | C53: 245 | D53: 188 | E53: 99 | F53: 130 | G53: 115 | H53: 147 | I53: 53 | J53: 80 | K53: 113 | L53: 20 | M53: 39 | N53: 34 | O53: 147
A55: Notes
A56: 1) Movements to/from the armed forces were included in these figures in previous releases of this spreadsheet but are no longer treated as migration. Armed forces movements are included in the mid-year population estimates under another category.
A57: 2) Source for data: 'Migration between Scotland and the rest of the UK by adminstrative area and sex' from the 'Migration between Scotland and the Rest of the UK' section of the NRS website - https://www.nrscotland.gov.uk/statistics-and-data/statistics/statistics-by-theme/migration/migration-statistics/migration-between-scotland-and-the-rest-of-the-uk
A58: 3) The NHS Board areas used for estimates between 2003-04 and 2010-11 are those that existed between 2006 and 2014. The 2011-12 estimates onwards use the NHS Board areas that came into force in April 2014.
A60: © Crown Copyright 2018

Sheet Rest of UK in-migration
A1: Rest of UK in-migration | K1: Return to front page
A3: Council Area | B3: 2003-04 | C3: 2004-05 | D3: 2005-06 | E3: 2006-07 | F3: 2007-08 | G3: 2008-09 | H3: 2009-10 | I3: 2010-11 | J3: 2011-12 | K3: 2012-13 | L3: 2013-14 | M3: 2014-15 | N3: 2015-16 | O3: 2016-17
A4: SCOTLAND | B4: 61879 | C4: 57342 | D4: 53335 | E4: 51546 | F4: 53327 | G4: 45407 | H4: 45007 | I4: 43686 | J4: 45116 | K4: 47685 | L4: 49242 | M4: 47154 | N4: 46305 | O4: 47568
A5: Aberdeen City | B5: 2217 | C5: 2251 | D5: 2492 | E5: 2530 | F5: 2585 | G5: 2559 | H5: 2602 | I5: 2341 | J5: 2526 | K5: 2987 | L5: 2961 | M5: 2663 | N5: 1971 | O5: 2078
A6: Aberdeenshire | B6: 3506 | C6: 2987 | D6: 2671 | E6: 2484 | F6: 2251 | G6: 1786 | H6: 1637 | I6: 1609 | J6: 1805 | K6: 1908 | L6: 2047 | M6: 1539 | N6: 1244 | O6: 1203
A7: Angus | B7: 1211 | C7: 1110 | D7: 932 | E7: 823 | F7: 832 | G7: 642 | H7: 624 | I7: 524 | J7: 748 | K7: 735 | L7: 757 | M7: 734 | N7: 622 | O7: 608
A8: Argyll and Bute | B8: 1978 | C8: 1851 | D8: 1721 | E8: 1567 | F8: 1455 | G8: 1337 | H8: 1330 | I8: 1329 | J8: 1309 | K8: 1383 | L8: 1381 | M8: 1341 | N8: 1369 | O8: 1513
A9: City of Edinburgh | B9: 9900 | C9: 9529 | D9: 9476 | E9: 8315 | F9: 8938 | G9: 8055 | H9: 8650 | I9: 7867 | J9: 8018 | K9: 9083 | L9: 9444 | M9: 9501 | N9: 9634 | O9: 10058
A10: Clackmannanshire | B10: 548 | C10: 552 | D10: 504 | E10: 447 | F10: 433 | G10: 310 | H10: 313 | I10: 292 | J10: 336 | K10: 346 | L10: 327 | M10: 303 | N10: 290 | O10: 265
A11: Dumfries and Galloway | B11: 3252 | C11: 3144 | D11: 2556 | E11: 2451 | F11: 2617 | G11: 2085 | H11: 1949 | I11: 1992 | J11: 1872 | K11: 2047 | L11: 2110 | M11: 1913 | N11: 1865 | O11: 2126
A12: Dundee City | B12: 1501 | C12: 1554 | D12: 1350 | E12: 1229 | F12: 1448 | G12: 1339 | H12: 1426 | I12: 1369 | J12: 1472 | K12: 1527 | L12: 1382 | M12: 1379 | N12: 1263 | O12: 1379
A13: East Ayrshire | B13: 962 | C13: 858 | D13: 818 | E13: 787 | F13: 882 | G13: 715 | H13: 661 | I13: 691 | J13: 700 | K13: 664 | L13: 669 | M13: 657 | N13: 604 | O13: 655
A14: East Dunbartonshire | B14: 499 | C14: 489 | D14: 469 | E14: 400 | F14: 461 | G14: 455 | H14: 391 | I14: 434 | J14: 462 | K14: 451 | L14: 455 | M14: 477 | N14: 475 | O14: 465
A15: East Lothian | B15: 771 | C15: 662 | D15: 666 | E15: 834 | F15: 1019 | G15: 685 | H15: 725 | I15: 694 | J15: 866 | K15: 703 | L15: 737 | M15: 694 | N15: 681 | O15: 785
A16: East Renfrewshire | B16: 393 | C16: 455 | D16: 400 | E16: 293 | F16: 321 | G16: 348 | H16: 368 | I16: 427 | J16: 389 | K16: 421 | L16: 407 | M16: 400 | N16: 415 | O16: 444
A17: Falkirk | B17: 1073 | C17: 988 | D17: 816 | E17: 751 | F17: 753 | G17: 611 | H17: 606 | I17: 708 | J17: 675 | K17: 671 | L17: 791 | M17: 734 | N17: 697 | O17: 730
A18: Fife | B18: 3972 | C18: 3873 | D18: 3610 | E18: 3545 | F18: 3477 | G18: 3117 | H18: 2906 | I18: 3024 | J18: 2853 | K18: 3216 | L18: 3229 | M18: 2981 | N18: 2869 | O18: 3042
A19: Glasgow City | B19: 6300 | C19: 6216 | D19: 5698 | E19: 6010 | F19: 6755 | G19: 5999 | H19: 5598 | I19: 5399 | J19: 5657 | K19: 5921 | L19: 6435 | M19: 6604 | N19: 6731 | O19: 6824
A20: Highland | B20: 4761 | C20: 4197 | D20: 3609 | E20: 3696 | F20: 3531 | G20: 2619 | H20: 2639 | I20: 2521 | J20: 2397 | K20: 2485 | L20: 2466 | M20: 2474 | N20: 6731 | O20: 2551
A21: Inverclyde | B21: 499 | C21: 459 | D21: 416 | E21: 363 | F21: 426 | G21: 297 | H21: 302 | I21: 290 | J21: 358 | K21: 349 | L21: 367 | M21: 353 | N21: 307 | O21: 303
A22: Midlothian | B22: 423 | C22: 413 | D22: 413 | E22: 410 | F22: 450 | G22: 409 | H22: 404 | I22: 384 | J22: 400 | K22: 439 | L22: 512 | M22: 401 | N22: 408 | O22: 431
A23: Moray | B23: 1955 | C23: 1721 | D23: 1624 | E23: 1388 | F23: 1336 | G23: 1104 | H23: 1079 | I23: 922 | J23: 1470 | K23: 1481 | L23: 1296 | M23: 1257 | N23: 1184 | O23: 1135
A24: Na h-Eileanan Siar | B24: 540 | C24: 463 | D24: 391 | E24: 347 | F24: 334 | G24: 292 | H24: 304 | I24: 272 | J24: 269 | K24: 334 | L24: 229 | M24: 222 | N24: 231 | O24: 339
A25: North Ayrshire | B25: 1101 | C25: 1006 | D25: 1028 | E25: 971 | F25: 1031 | G25: 832 | H25: 814 | I25: 845 | J25: 782 | K25: 812 | L25: 877 | M25: 751 | N25: 806 | O25: 827
A26: North Lanarkshire | B26: 1635 | C26: 1452 | D26: 1332 | E26: 1267 | F26: 1350 | G26: 1187 | H26: 1006 | I26: 1166 | J26: 1154 | K26: 1120 | L26: 1246 | M26: 1178 | N26: 1171 | O26: 1085
A27: Orkney Islands | B27: 474 | C27: 370 | D27: 309 | E27: 322 | F27: 329 | G27: 309 | H27: 312 | I27: 255 | J27: 283 | K27: 283 | L27: 317 | M27: 269 | N27: 385 | O27: 328
A28: Perth and Kinross | B28: 2218 | C28: 1941 | D28: 1626 | E28: 1734 | F28: 1597 | G28: 1367 | H28: 1379 | I28: 1383 | J28: 1325 | K28: 1232 | L28: 1380 | M28: 1355 | N28: 1151 | O28: 1369
A29: Renfrewshire | B29: 917 | C29: 901 | D29: 748 | E29: 846 | F29: 840 | G29: 724 | H29: 758 | I29: 721 | J29: 696 | K29: 745 | L29: 702 | M29: 787 | N29: 849 | O29: 824
A30: Scottish Borders | B30: 2441 | C30: 1833 | D30: 1828 | E30: 1919 | F30: 2123 | G30: 1509 | H30: 1513 | I30: 1511 | J30: 1500 | K30: 1572 | L30: 1598 | M30: 1580 | N30: 1580 | O30: 1596
A31: Shetland Islands | B31: 389 | C31: 371 | D31: 265 | E31: 340 | F31: 326 | G31: 279 | H31: 356 | I31: 225 | J31: 254 | K31: 236 | L31: 266 | M31: 222 | N31: 270 | O31: 192
A32: South Ayrshire | B32: 1181 | C32: 1126 | D32: 980 | E32: 984 | F32: 995 | G32: 902 | H32: 957 | I32: 868 | J32: 839 | K32: 878 | L32: 788 | M32: 811 | N32: 842 | O32: 817
A33: South Lanarkshire | B33: 2232 | C33: 1882 | D33: 1761 | E33: 1741 | F33: 1553 | G33: 1352 | H33: 1352 | I33: 1396 | J33: 1421 | K33: 1349 | L33: 1512 | M33: 1260 | N33: 1449 | O33: 1381
A34: Stirling | B34: 1370 | C34: 1058 | D34: 1165 | E34: 1155 | F34: 1180 | G34: 991 | H34: 870 | I34: 960 | J34: 1003 | K34: 1012 | L34: 1204 | M34: 1112 | N34: 1124 | O34: 1049
A35: West Dunbartonshire | B35: 471 | C35: 431 | D35: 420 | E35: 445 | F35: 404 | G35: 349 | H35: 351 | I35: 394 | J35: 377 | K35: 416 | L35: 381 | M35: 347 | N35: 370 | O35: 361
A36: West Lothian | B36: 1189 | C36: 1199 | D36: 1241 | E36: 1152 | F36: 1295 | G36: 842 | H36: 825 | I36: 873 | J36: 900 | K36: 879 | L36: 969 | M36: 855 | N36: 910 | O36: 805
A38: NHS Board Areas
A39: SCOTLAND | B39: 61879 | C39: 57342 | D39: 53335 | E39: 51546 | F39: 53327 | G39: 45407 | H39: 45007 | I39: 43686 | J39: 45116 | K39: 47685 | L39: 49242 | M39: 47154 | N39: 46305 | O39: 47568
A40: Ayrshire and Arran | B40: 3244 | C40: 2990 | D40: 2826 | E40: 2742 | F40: 2908 | G40: 2449 | H40: 2432 | I40: 2404 | J40: 2321 | K40: 2354 | L40: 2334 | M40: 2219 | N40: 2252 | O40: 2299
A41: Borders | B41: 2441 | C41: 1833 | D41: 1828 | E41: 1919 | F41: 2123 | G41: 1509 | H41: 1513 | I41: 1511 | J41: 1500 | K41: 1572 | L41: 1598 | M41: 1580 | N41: 1580 | O41: 1596
A42: Dumfries and Galloway | B42: 3252 | C42: 3144 | D42: 2556 | E42: 2451 | F42: 2617 | G42: 2085 | H42: 1949 | I42: 1992 | J42: 1872 | K42: 2047 | L42: 2110 | M42: 1913 | N42: 1865 | O42: 2126
A43: Fife | B43: 3972 | C43: 3873 | D43: 3610 | E43: 3545 | F43: 3471 | G43: 3117 | H43: 2906 | I43: 3024 | J43: 2853 | K43: 3216 | L43: 3229 | M43: 2981 | N43: 2869 | O43: 3042
A44: Forth Valley | B44: 2991 | C44: 2598 | D44: 2485 | E44: 2353 | F44: 2366 | G44: 1912 | H44: 1789 | I44: 1960 | J44: 2014 | K44: 2029 | L44: 2322 | M44: 2149 | N44: 2111 | O44: 2044
A45: Grampian | B45: 7678 | C45: 6959 | D45: 6787 | E45: 6402 | F45: 6172 | G45: 5449 | H45: 5318 | I45: 4872 | J45: 5801 | K45: 6376 | L45: 6304 | M45: 5459 | N45: 4399 | O45: 4416
A46: Greater Glasgow and Clyde | B46: 9397 | C46: 9270 | D46: 8471 | E46: 8675 | F46: 9485 | G46: 8433 | H46: 8067 | I46: 7967 | J46: 7939 | K46: 8303 | L46: 8747 | M46: 8968 | N46: 9147 | O46: 9221
A47: Highland | B47: 6739 | C47: 6048 | D47: 5330 | E47: 5263 | F47: 4986 | G47: 3956 | H47: 3969 | I47: 3850 | J47: 3706 | K47: 3868 | L47: 3847 | M47: 3815 | N47: 3907 | O47: 4064
A48: Lanarkshire | B48: 3549 | C48: 3015 | D48: 2773 | E48: 2690 | F48: 2625 | G48: 2278 | H48: 2059 | I48: 2260 | J48: 2575 | K48: 2469 | L48: 2758 | M48: 2438 | N48: 2620 | O48: 2466
A49: Lothian | B49: 12283 | C49: 11803 | D49: 11796 | E49: 10711 | F49: 11702 | G49: 9991 | H49: 10604 | I49: 9818 | J49: 10184 | K49: 11104 | L49: 11662 | M49: 11451 | N49: 11633 | O49: 12079
A50: Orkney | B50: 474 | C50: 370 | D50: 309 | E50: 322 | F50: 329 | G50: 309 | H50: 312 | I50: 255 | J50: 283 | K50: 283 | L50: 317 | M50: 269 | N50: 385 | O50: 328
A51: Shetland | B51: 389 | C51: 371 | D51: 265 | E51: 340 | F51: 326 | G51: 279 | H51: 356 | I51: 225 | J51: 254 | K51: 236 | L51: 266 | M51: 222 | N51: 270 | O51: 192
A52: Tayside | B52: 4930 | C52: 4605 | D52: 3908 | E52: 3786 | F52: 3883 | G52: 3348 | H52: 3429 | I52: 3276 | J52: 3545 | K52: 3494 | L52: 3519 | M52: 3468 | N52: 3036 | O52: 3356
A53: Western Isles | B53: 540 | C53: 463 | D53: 391 | E53: 347 | F53: 334 | G53: 292 | H53: 304 | I53: 272 | J53: 269 | K53: 334 | L53: 229 | M53: 222 | N53: 231 | O53: 339
A55: Notes
A56: 1) Movements to/from the armed forces were included in these figures in previous releases of this spreadsheet but are no longer treated as migration. Armed forces movements are included in the mid-year population estimates under another category.
A57: 2) Source for data: 'Migration between Scotland and the rest of the UK by adminstrative area and sex' from the 'Migration between Scotland and the Rest of the UK' section of the NRS website - https://www.nrscotland.gov.uk/statistics-and-data/statistics/statistics-by-theme/migration/migration-statistics/migration-between-scotland-and-the-rest-of-the-uk
A58: 3) The NHS Board areas used for estimates between 2003-04 and 2010-11 are those that existed between 2006 and 2014. The 2011-12 estimates onwards use the NHS Board areas that came into force in April 2014.
A60: © Crown Copyright 2018

Sheet Rest of UK out-migration
A1: Rest of UK out-migration | K1: Return to front page
A3: Council Area | B3: 2003-04 | C3: 2004-05 | D3: 2005-06 | E3: 2006-07 | F3: 2007-08 | G3: 2008-09 | H3: 2009-10 | I3: 2010-11 | J3: 2011-12 | K3: 2012-13 | L3: 2013-14 | M3: 2014-15 | N3: 2015-16 | O3: 2016-17
A4: SCOTLAND | B4: 46357 | C4: 44835 | D4: 44413 | E4: 42697 | F4: 41818 | G4: 41285 | H4: 41732 | I4: 40777 | J4: 42078 | K4: 39823 | L4: 39657 | M4: 38786 | N4: 37512 | O4: 37113
A5: Aberdeen City | B5: 2604 | C5: 2205 | D5: 2352 | E5: 2213 | F5: 2312 | G5: 2278 | H5: 2283 | I5: 2338 | J5: 2425 | K5: 2430 | L5: 2374 | M5: 2546 | N5: 2750 | O5: 2763
A6: Aberdeenshire | B6: 1641 | C6: 1699 | D6: 1601 | E6: 1734 | F6: 1653 | G6: 1569 | H6: 1740 | I6: 1741 | J6: 1703 | K6: 1543 | L6: 1772 | M6: 1760 | N6: 1846 | O6: 1610
A7: Angus | B7: 759 | C7: 671 | D7: 802 | E7: 665 | F7: 666 | G7: 615 | H7: 601 | I7: 610 | J7: 699 | K7: 697 | L7: 565 | M7: 627 | N7: 693 | O7: 600
A8: Argyll and Bute | B8: 1151 | C8: 1283 | D8: 1172 | E8: 1095 | F8: 1057 | G8: 1028 | H8: 978 | I8: 959 | J8: 1038 | K8: 999 | L8: 978 | M8: 1045 | N8: 890 | O8: 908
A9: City of Edinburgh | B9: 7850 | C9: 7879 | D9: 7559 | E9: 7564 | F9: 7589 | G9: 7697 | H9: 7518 | I9: 7506 | J9: 7859 | K9: 7424 | L9: 7711 | M9: 7362 | N9: 7283 | O9: 7101
A10: Clackmannanshire | B10: 288 | C10: 282 | D10: 363 | E10: 258 | F10: 315 | G10: 309 | H10: 284 | I10: 299 | J10: 295 | K10: 286 | L10: 326 | M10: 224 | N10: 228 | O10: 271
A11: Dumfries and Galloway | B11: 1758 | C11: 1751 | D11: 1710 | E11: 1715 | F11: 1686 | G11: 1526 | H11: 1567 | I11: 1543 | J11: 1550 | K11: 1524 | L11: 1399 | M11: 1408 | N11: 1307 | O11: 1442
A12: Dundee City | B12: 1657 | C12: 1353 | D12: 1499 | E12: 1499 | F12: 1398 | G12: 1351 | H12: 1426 | I12: 1509 | J12: 1417 | K12: 1289 | L12: 1341 | M12: 1326 | N12: 1281 | O12: 1128
A13: East Ayrshire | B13: 746 | C13: 707 | D13: 707 | E13: 641 | F13: 599 | G13: 593 | H13: 607 | I13: 608 | J13: 576 | K13: 586 | L13: 628 | M13: 489 | N13: 477 | O13: 489
A14: East Dunbartonshire | B14: 608 | C14: 667 | D14: 597 | E14: 528 | F14: 418 | G14: 492 | H14: 556 | I14: 488 | J14: 481 | K14: 524 | L14: 501 | M14: 422 | N14: 404 | O14: 417
A15: East Lothian | B15: 649 | C15: 652 | D15: 657 | E15: 556 | F15: 628 | G15: 618 | H15: 627 | I15: 626 | J15: 669 | K15: 626 | L15: 615 | M15: 574 | N15: 509 | O15: 633
A16: East Renfrewshire | B16: 541 | C16: 527 | D16: 561 | E16: 487 | F16: 452 | G16: 376 | H16: 419 | I16: 405 | J16: 510 | K16: 472 | L16: 402 | M16: 398 | N16: 372 | O16: 387
A17: Falkirk | B17: 679 | C17: 747 | D17: 716 | E17: 713 | F17: 639 | G17: 601 | H17: 588 | I17: 574 | J17: 655 | K17: 564 | L17: 563 | M17: 518 | N17: 502 | O17: 558
A18: Fife | B18: 3013 | C18: 2943 | D18: 2957 | E18: 2931 | F18: 2965 | G18: 2878 | H18: 2882 | I18: 2697 | J18: 2787 | K18: 2738 | L18: 2600 | M18: 2513 | N18: 2427 | O18: 2386
A19: Glasgow City | B19: 6265 | C19: 5966 | D19: 6100 | E19: 5685 | F19: 5905 | G19: 5937 | H19: 6069 | I19: 5858 | J19: 5948 | K19: 5746 | L19: 5703 | M19: 5424 | N19: 4885 | O19: 4998
A20: Highland | B20: 1940 | C20: 2047 | D20: 2145 | E20: 2053 | F20: 2163 | G20: 1891 | H20: 1934 | I20: 1878 | J20: 2017 | K20: 1721 | L20: 1729 | M20: 1660 | N20: 1653 | O20: 1619
A21: Inverclyde | B21: 623 | C21: 456 | D21: 457 | E21: 427 | F21: 374 | G21: 340 | H21: 388 | I21: 308 | J21: 368 | K21: 299 | L21: 287 | M21: 250 | N21: 261 | O21: 247
A22: Midlothian | B22: 426 | C22: 487 | D22: 456 | E22: 393 | F22: 361 | G22: 452 | H22: 460 | I22: 310 | J22: 374 | K22: 383 | L22: 399 | M22: 428 | N22: 340 | O22: 326
A23: Moray | B23: 1089 | C23: 1026 | D23: 1196 | E23: 932 | F23: 933 | G23: 794 | H23: 1038 | I23: 1053 | J23: 928 | K23: 866 | L23: 971 | M23: 999 | N23: 908 | O23: 972
A24: Na h-Eileanan Siar | B24: 217 | C24: 218 | D24: 203 | E24: 248 | F24: 204 | G24: 177 | H24: 157 | I24: 219 | J24: 189 | K24: 221 | L24: 209 | M24: 183 | N24: 197 | O24: 192
A25: North Ayrshire | B25: 1001 | C25: 931 | D25: 918 | E25: 847 | F25: 691 | G25: 687 | H25: 734 | I25: 763 | J25: 772 | K25: 685 | L25: 636 | M25: 575 | N25: 593 | O25: 533
A26: North Lanarkshire | B26: 1485 | C26: 1434 | D26: 1339 | E26: 1258 | F26: 1132 | G26: 1173 | H26: 1158 | I26: 1138 | J26: 1115 | K26: 981 | L26: 986 | M26: 1051 | N26: 1004 | O26: 967
A27: Orkney Islands | B27: 150 | C27: 195 | D27: 161 | E27: 165 | F27: 157 | G27: 143 | H27: 167 | I27: 187 | J27: 188 | K27: 195 | L27: 193 | M27: 137 | N27: 148 | O27: 169
A28: Perth and Kinross | B28: 1192 | C28: 1326 | D28: 1176 | E28: 1159 | F28: 1068 | G28: 1105 | H28: 1142 | I28: 1016 | J28: 1106 | K28: 1024 | L28: 1053 | M28: 1023 | N28: 913 | O28: 883
A29: Renfrewshire | B29: 1061 | C29: 946 | D29: 963 | E29: 854 | F29: 727 | G29: 793 | H29: 787 | I29: 761 | J29: 738 | K29: 739 | L29: 703 | M29: 677 | N29: 658 | O29: 613
A30: Scottish Borders | B30: 1382 | C30: 1263 | D30: 1276 | E30: 1233 | F30: 1271 | G30: 1261 | H30: 1268 | I30: 1223 | J30: 1310 | K30: 1083 | L30: 1212 | M30: 1186 | N30: 1250 | O30: 1130
A31: Shetland Islands | B31: 212 | C31: 178 | D31: 251 | E31: 206 | F31: 200 | G31: 163 | H31: 186 | I31: 211 | J31: 220 | K31: 208 | L31: 202 | M31: 191 | N31: 169 | O31: 185
A32: South Ayrshire | B32: 817 | C32: 834 | D32: 784 | E32: 765 | F32: 741 | G32: 750 | H32: 632 | I32: 578 | J32: 679 | K32: 613 | L32: 619 | M32: 626 | N32: 583 | O32: 536
A33: South Lanarkshire | B33: 1756 | C33: 1576 | D33: 1465 | E33: 1465 | F33: 1330 | G33: 1410 | H33: 1397 | I33: 1290 | J33: 1353 | K33: 1294 | L33: 1164 | M33: 1293 | N33: 1258 | O33: 1286
A34: Stirling | B34: 1047 | C34: 945 | D34: 864 | E34: 886 | F34: 861 | G34: 888 | H34: 836 | I34: 814 | J34: 856 | K34: 813 | L34: 754 | M34: 750 | N34: 763 | O34: 751
A35: West Dunbartonshire | B35: 543 | C35: 530 | D35: 447 | E35: 437 | F35: 385 | G35: 389 | H35: 437 | I35: 387 | J35: 347 | K35: 373 | L35: 315 | M35: 327 | N35: 289 | O35: 274
A36: West Lothian | B36: 1207 | C36: 1111 | D36: 959 | E36: 1085 | F36: 938 | G36: 1001 | H36: 866 | I36: 880 | J36: 906 | K36: 877 | L36: 747 | M36: 794 | N36: 671 | O36: 739
A38: NHS Board Areas
A39: SCOTLAND | B39: 46357 | C39: 44835 | D39: 44413 | E39: 42697 | F39: 41818 | G39: 41285 | H39: 41732 | I39: 40777 | J39: 42078 | K39: 39823 | L39: 39657 | M39: 38786 | N39: 37512 | O39: 37113
A40: Ayrshire and Arran | B40: 2564 | C40: 2472 | D40: 2409 | E40: 2253 | F40: 2031 | G40: 2030 | H40: 1973 | I40: 1949 | J40: 2027 | K40: 1884 | L40: 1883 | M40: 1690 | N40: 1653 | O40: 1558
A41: Borders | B41: 1382 | C41: 1263 | D41: 1276 | E41: 1233 | F41: 1271 | G41: 1261 | H41: 1268 | I41: 1223 | J41: 1310 | K41: 1083 | L41: 1212 | M41: 1186 | N41: 1250 | O41: 1130
A42: Dumfries and Galloway | B42: 1758 | C42: 1751 | D42: 1710 | E42: 1715 | F42: 1686 | G42: 1526 | H42: 1567 | I42: 1543 | J42: 1550 | K42: 1524 | L42: 1399 | M42: 1408 | N42: 1307 | O42: 1442
A43: Fife | B43: 3013 | C43: 2943 | D43: 2957 | E43: 2931 | F43: 2965 | G43: 2877 | H43: 2880 | I43: 2697 | J43: 2787 | K43: 2738 | L43: 2600 | M43: 2513 | N43: 2427 | O43: 2386
A44: Forth Valley | B44: 2014 | C44: 1974 | D44: 1943 | E44: 1857 | F44: 1815 | G44: 1798 | H44: 1708 | I44: 1687 | J44: 1806 | K44: 1663 | L44: 1643 | M44: 1492 | N44: 1493 | O44: 1580
A45: Grampian | B45: 5334 | C45: 4930 | D45: 5149 | E45: 4879 | F45: 4898 | G45: 4641 | H45: 5061 | I45: 5132 | J45: 5056 | K45: 4839 | L45: 5117 | M45: 5305 | N45: 5504 | O45: 5345
A46: Greater Glasgow and Clyde | B46: 10007 | C46: 9399 | D46: 9383 | E46: 8745 | F46: 8521 | G46: 8642 | H46: 8946 | I46: 8523 | J46: 8392 | K46: 8153 | L46: 7911 | M46: 7498 | N46: 6869 | O46: 6936
A47: Highland | B47: 3091 | C47: 3330 | D47: 3317 | E47: 3148 | F47: 3220 | G47: 2919 | H47: 2912 | I47: 2837 | J47: 3055 | K47: 2720 | L47: 2707 | M47: 2705 | N47: 2543 | O47: 2527
A48: Lanarkshire | B48: 2875 | C48: 2703 | D48: 2546 | E48: 2396 | F48: 2202 | G48: 2268 | H48: 2265 | I48: 2112 | J48: 2468 | K48: 2275 | L48: 2150 | M48: 2344 | N48: 2262 | O48: 2253
A49: Lothian | B49: 10132 | C49: 10129 | D49: 9631 | E49: 9598 | F49: 9516 | G49: 9768 | H49: 9471 | I49: 9322 | J49: 9808 | K49: 9310 | L49: 9472 | M49: 9158 | N49: 8803 | O49: 8799
A50: Orkney | B50: 150 | C50: 195 | D50: 161 | E50: 165 | F50: 157 | G50: 143 | H50: 167 | I50: 187 | J50: 188 | K50: 195 | L50: 193 | M50: 137 | N50: 148 | O50: 169
A51: Shetland | B51: 212 | C51: 178 | D51: 251 | E51: 206 | F51: 200 | G51: 163 | H51: 186 | I51: 211 | J51: 220 | K51: 208 | L51: 202 | M51: 191 | N51: 169 | O51: 185
A52: Tayside | B52: 3608 | C52: 3350 | D52: 3477 | E52: 3323 | F52: 3132 | G52: 3072 | H52: 3171 | I52: 3135 | J52: 3222 | K52: 3010 | L52: 2959 | M52: 2976 | N52: 2887 | O52: 2611
A53: Western Isles | B53: 217 | C53: 218 | D53: 203 | E53: 248 | F53: 204 | G53: 177 | H53: 157 | I53: 219 | J53: 189 | K53: 221 | L53: 209 | M53: 183 | N53: 197 | O53: 192
A55: Notes
A56: 1) Movements to/from the armed forces were included in these figures in previous releases of this spreadsheet but are no longer treated as migration. Armed forces movements are included in the mid-year population estimates under another category.
A57: 2) Source for data: 'Migration between Scotland and the rest of the UK by adminstrative area and sex' from the 'Migration between Scotland and the Rest of the UK' section of the NRS website - https://www.nrscotland.gov.uk/statistics-and-data/statistics/statistics-by-theme/migration/migration-statistics/migration-between-scotland-and-the-rest-of-the-uk
A58: 3) The NHS Board areas used for estimates between 2003-04 and 2010-11 are those that existed between 2006 and 2014. The 2011-12 estimates onwards use the NHS Board areas that came into force in April 2014.
A60: © Crown Copyright 2018

Sheet Overseas net migration
A1: Overseas net migration | K1: Return to front page
A3: Council Area | B3: 2003-04 | C3: 2004-05 | D3: 2005-06 | E3: 2006-07 | F3: 2007-08 | G3: 2008-09 | H3: 2009-10 | I3: 2010-11 | J3: 2011-12 | K3: 2012-13 | L3: 2013-14 | M3: 2014-15 | N3: 2015-16 | O3: 2016-17
A4: SCOTLAND | B4: 3100 | C4: 12800 | D4: 9900 | E4: 24200 | F4: 14900 | G4: 20300 | H4: 22800 | I4: 27300 | J4: 9700 | K4: 2100 | L4: 8000 | M4: 19600 | N4: 22900 | O4: 13400
A5: Aberdeen City | B5: 874 | C5: 2150 | D5: 2138 | E5: 3752 | F5: 3030 | G5: 3669 | H5: 3742 | I5: 4130 | J5: 2102 | K5: 1302 | L5: 1965 | M5: 3189 | N5: 2474 | O5: 1491
A6: Aberdeenshire | B6: 127 | C6: 623 | D6: 655 | E6: 836 | F6: 405 | G6: 605 | H6: 719 | I6: 723 | J6: 209 | K6: 116 | L6: 124 | M6: 256 | N6: 316 | O6: 211
A7: Angus | B7: -106 | C7: 128 | D7: 137 | E7: 206 | F7: 107 | G7: 145 | H7: 215 | I7: 235 | J7: 11 | K7: -87 | L7: 27 | M7: -11 | N7: 73 | O7: 50
A8: Argyll and Bute | B8: -104 | C8: -100 | D8: -111 | E8: 137 | F8: -226 | G8: -51 | H8: 86 | I8: 55 | J8: -171 | K8: -211 | L8: -234 | M8: -85 | N8: 38 | O8: -36
A9: City of Edinburgh | B9: 3040 | C9: 5220 | D9: 4109 | E9: 6121 | F9: 3985 | G9: 6271 | H9: 7301 | I9: 8077 | J9: 4058 | K9: 1953 | L9: 3274 | M9: 6049 | N9: 6791 | O9: 4508
A10: Clackmannanshire | B10: -49 | C10: 8 | D10: 12 | E10: 158 | F10: -12 | G10: 33 | H10: 1 | I10: 6 | J10: -49 | K10: -34 | L10: -26 | M10: -4 | N10: 63 | O10: 39
A11: Dumfries and Galloway | B11: -255 | C11: -84 | D11: -116 | E11: 32 | F11: -175 | G11: -171 | H11: -162 | I11: 15 | J11: -280 | K11: -335 | L11: -267 | M11: -72 | N11: 12 | O11: -117
A12: Dundee City | B12: 105 | C12: 718 | D12: 687 | E12: 1063 | F12: 950 | G12: 1034 | H12: 1258 | I12: 1576 | J12: 565 | K12: 320 | L12: 255 | M12: 671 | N12: 802 | O12: 396
A13: East Ayrshire | B13: -132 | C13: -87 | D13: -194 | E13: -67 | F13: -93 | G13: -140 | H13: -97 | I13: -66 | J13: -133 | K13: -161 | L13: -174 | M13: -91 | N13: -38 | O13: -88
A14: East Dunbartonshire | B14: -190 | C14: -44 | D14: -191 | E14: 9 | F14: -121 | G14: -29 | H14: -69 | I14: -73 | J14: -91 | K14: -122 | L14: -108 | M14: -113 | N14: 50 | O14: -14
A15: East Lothian | B15: -47 | C15: 3 | D15: 37 | E15: 188 | F15: 253 | G15: 216 | H15: 145 | I15: 166 | J15: 116 | K15: -52 | L15: 31 | M15: 157 | N15: 289 | O15: 101
A16: East Renfrewshire | B16: -143 | C16: -77 | D16: -125 | E16: -8 | F16: -99 | G16: -19 | H16: 38 | I16: -27 | J16: -158 | K16: -108 | L16: -53 | M16: -83 | N16: 51 | O16: -8
A17: Falkirk | B17: 67 | C17: 246 | D17: 69 | E17: 317 | F17: 109 | G17: 124 | H17: 158 | I17: 278 | J17: -29 | K17: -128 | L17: 15 | M17: 127 | N17: 155 | O17: 101
A18: Fife | B18: 87 | C18: 787 | D18: 272 | E18: 1013 | F18: 384 | G18: 1059 | H18: 1251 | I18: 1300 | J18: 359 | K18: -54 | L18: 109 | M18: 828 | N18: 1042 | O18: 671
A19: Glasgow City | B19: 1099 | C19: 1494 | D19: 1065 | E19: 4740 | F19: 4248 | G19: 5448 | H19: 5383 | I19: 7060 | J19: 3540 | K19: 2065 | L19: 3996 | M19: 7077 | N19: 7935 | O19: 5394
A20: Highland | B20: 6 | C20: 623 | D20: 459 | E20: 972 | F20: 312 | G20: 185 | H20: 358 | I20: 424 | J20: -175 | K20: -243 | L20: -88 | M20: 329 | N20: 349 | O20: 88
A21: Inverclyde | B21: -175 | C21: 122 | D21: 0 | E21: 17 | F21: -52 | G21: -5 | H21: 25 | I21: -25 | J21: -99 | K21: -57 | L21: -63 | M21: 14 | N21: 39 | O21: 4
A22: Midlothian | B22: -22 | C22: -21 | D22: -1 | E22: 93 | F22: 7 | G22: 21 | H22: 40 | I22: 73 | J22: 24 | K22: -45 | L22: -40 | M22: -20 | N22: 85 | O22: 45
A23: Moray | B23: -79 | C23: 68 | D23: 24 | E23: 237 | F23: -9 | G23: 42 | H23: 50 | I23: -95 | J23: -99 | K23: -146 | L23: -42 | M23: -122 | N23: 80 | O23: -104
A24: Na h-Eileanan Siar | B24: -36 | C24: -6 | D24: -11 | E24: 26 | F24: -27 | G24: -13 | H24: -5 | I24: 3 | J24: -37 | K24: -59 | L24: -48 | M24: 2 | N24: 19 | O24: 11
A25: North Ayrshire | B25: -141 | C25: -192 | D25: -278 | E25: -47 | F25: -146 | G25: -88 | H25: -91 | I25: 32 | J25: -227 | K25: -238 | L25: -168 | M25: -42 | N25: -40 | O25: -49
A26: North Lanarkshire | B26: -334 | C26: -20 | D26: -33 | E26: 573 | F26: 97 | G26: 19 | H26: -23 | I26: 116 | J26: -204 | K26: -342 | L26: -165 | M26: 165 | N26: 266 | O26: 50
A27: Orkney Islands | B27: -18 | C27: -25 | D27: -27 | E27: 3 | F27: -26 | G27: -15 | H27: 3 | I27: 23 | J27: -33 | K27: -28 | L27: -16 | M27: 3 | N27: 3 | O27: 8
A28: Perth and Kinross | B28: 107 | C28: 1066 | D28: 970 | E28: 1392 | F28: 1380 | G28: 1169 | H28: 1167 | I28: 1117 | J28: 452 | K28: -10 | L28: 467 | M28: 463 | N28: 420 | O28: 148
A29: Renfrewshire | B29: 187 | C29: 161 | D29: 79 | E29: 501 | F29: 132 | G29: 99 | H29: 344 | I29: 456 | J29: -84 | K29: -206 | L29: -8 | M29: 278 | N29: 512 | O29: 285
A30: Scottish Borders | B30: -61 | C30: 107 | D30: 11 | E30: 259 | F30: 90 | G30: 15 | H30: -103 | I30: 66 | J30: -66 | K30: -173 | L30: -173 | M30: -50 | N30: 3 | O30: 17
A31: Shetland Islands | B31: -20 | C31: -4 | D31: -42 | E31: 14 | F31: 3 | G31: 78 | H31: 24 | I31: 35 | J31: 2 | K31: -32 | L31: -39 | M31: 32 | N31: 39 | O31: -18
A32: South Ayrshire | B32: -196 | C32: -45 | D32: -85 | E32: 65 | F32: -76 | G32: -106 | H32: -26 | I32: 80 | J32: -100 | K32: -193 | L32: -166 | M32: 14 | N32: 38 | O32: 4
A33: South Lanarkshire | B33: -368 | C33: -253 | D33: -201 | E33: 73 | F33: -183 | G33: -48 | H33: -56 | I33: -1 | J33: -321 | K33: -424 | L33: -373 | M33: -161 | N33: 133 | O33: -19
A34: Stirling | B34: 70 | C34: 141 | D34: 178 | E34: 564 | F34: 259 | G34: 355 | H34: 663 | I34: 985 | J34: 415 | K34: -53 | L34: -44 | M34: 637 | N34: 441 | O34: -2
A35: West Dunbartonshire | B35: -98 | C35: -82 | D35: -109 | E35: 68 | F35: -74 | G35: -30 | H35: 51 | I35: 11 | J35: -58 | K35: -97 | L35: -31 | M35: -33 | N35: 86 | O35: 25
A36: West Lothian | B36: -95 | C36: 175 | D36: 522 | E36: 893 | F36: 468 | G36: 428 | H36: 410 | I36: 545 | J36: 261 | K36: -18 | L36: 63 | M36: 196 | N36: 374 | O36: 208
A38: NHS Board Areas
A39: SCOTLAND | B39: 3100 | C39: 12800 | D39: 9900 | E39: 24200 | F39: 14900 | G39: 20300 | H39: 22800 | I39: 27300 | J39: 9700 | K39: 2100 | L39: 8000 | M39: 19600 | N39: 22900 | O39: 13400
A40: Ayrshire and Arran | B40: -469 | C40: -324 | D40: -557 | E40: -49 | F40: -315 | G40: -334 | H40: -214 | I40: 46 | J40: -460 | K40: -592 | L40: -508 | M40: -119 | N40: -40 | O40: -133
A41: Borders | B41: -61 | C41: 107 | D41: 11 | E41: 259 | F41: 90 | G41: 15 | H41: -103 | I41: 66 | J41: -66 | K41: -173 | L41: -173 | M41: -50 | N41: 3 | O41: 17
A42: Dumfries and Galloway | B42: -255 | C42: -84 | D42: -116 | E42: 32 | F42: -175 | G42: -171 | H42: -162 | I42: 15 | J42: -280 | K42: -335 | L42: -267 | M42: -72 | N42: 12 | O42: -117
A43: Fife | B43: 87 | C43: 787 | D43: 272 | E43: 1013 | F43: 384 | G43: 1058 | H43: 1251 | I43: 1300 | J43: 359 | K43: -54 | L43: 109 | M43: 828 | N43: 1042 | O43: 671
A44: Forth Valley | B44: 88 | C44: 395 | D44: 259 | E44: 1039 | F44: 356 | G44: 512 | H44: 822 | I44: 1269 | J44: 337 | K44: -215 | L44: -55 | M44: 760 | N44: 659 | O44: 138
A45: Grampian | B45: 922 | C45: 2841 | D45: 2817 | E45: 4825 | F45: 3426 | G45: 4316 | H45: 4511 | I45: 4758 | J45: 2212 | K45: 1272 | L45: 2047 | M45: 3323 | N45: 2870 | O45: 1598
A46: Greater Glasgow and Clyde | B46: 616 | C46: 1514 | D46: 668 | E46: 5339 | F46: 4004 | G46: 5437 | H46: 5770 | I46: 7383 | J46: 3050 | K46: 1475 | L46: 3733 | M46: 7140 | N46: 8673 | O46: 5686
A47: Highland | B47: -98 | C47: 523 | D47: 348 | E47: 1109 | F47: 86 | G47: 134 | H47: 444 | I47: 479 | J47: -346 | K47: -454 | L47: -322 | M47: 244 | N47: 387 | O47: 52
A48: Lanarkshire | B48: -638 | C48: -213 | D48: -183 | E48: 634 | F48: -56 | G48: -2 | H48: -77 | I48: 134 | J48: -525 | K48: -766 | L48: -538 | M48: 4 | N48: 399 | O48: 31
A49: Lothian | B49: 2876 | C49: 5377 | D49: 4667 | E49: 7295 | F49: 4713 | G49: 6936 | H49: 7896 | I49: 8861 | J49: 4459 | K49: 1838 | L49: 3328 | M49: 6382 | N49: 7539 | O49: 4862
A50: Orkney | B50: -18 | C50: -25 | D50: -27 | E50: 3 | F50: -26 | G50: -15 | H50: 3 | I50: 23 | J50: -33 | K50: -28 | L50: -16 | M50: 3 | N50: 3 | O50: 8
A51: Shetland | B51: -20 | C51: -4 | D51: -42 | E51: 14 | F51: 3 | G51: 78 | H51: 24 | I51: 35 | J51: 2 | K51: -32 | L51: -39 | M51: 32 | N51: 39 | O51: -18
A52: Tayside | B52: 106 | C52: 1912 | D52: 1794 | E52: 2661 | F52: 2437 | G52: 2349 | H52: 2640 | I52: 2928 | J52: 1028 | K52: 223 | L52: 749 | M52: 1123 | N52: 1295 | O52: 594
A53: Western Isles | B53: -36 | C53: -6 | D53: -11 | E53: 26 | F53: -27 | G53: -13 | H53: -5 | I53: 3 | J53: -37 | K53: -59 | L53: -48 | M53: 2 | N53: 19 | O53: 11
A55: Notes
A56: 1) Figures include asylum seekers and rounding adjustments. Estimates for 2015-16 onwards include refugees also.
A57: 2) Source for data: 'Migration between administative areas and overseas by sex' from the 'Migration between Scotland and Overseas' section of the NRS website - https://www.nrscotland.gov.uk/statistics-and-data/statistics/statistics-by-theme/migration/migration-statistics/migration-between-scotland-and-overseas
A58: 3) The NHS Board areas used for estimates between 2003-04 and 2010-11 are those that existed between 2006 and 2014. The 2011-12 estimates onwards use the NHS Board areas that came into force in April 2014.
A60: © Crown Copyright 2018

Sheet Overseas in-migration
A1: Overseas in-migration | K1: Return to front page
A3: Council Area | B3: 2003-04 | C3: 2004-05 | D3: 2005-06 | E3: 2006-07 | F3: 2007-08 | G3: 2008-09 | H3: 2009-10 | I3: 2010-11 | J3: 2011-12 | K3: 2012-13 | L3: 2013-14 | M3: 2014-15 | N3: 2015-16 | O3: 2016-17
A4: SCOTLAND | B4: 28500 | C4: 41800 | D4: 41300 | E4: 45100 | F4: 45200 | G4: 45100 | H4: 47400 | I4: 44200 | J4: 35900 | K4: 28200 | L4: 33200 | M4: 37800 | N4: 40400 | O4: 32900
A5: Aberdeen City | B5: 2893 | C5: 4322 | D5: 4459 | E5: 5350 | F5: 5409 | G5: 5864 | H5: 5851 | I5: 5284 | J5: 4414 | K5: 3636 | L5: 4202 | M5: 4590 | N5: 4157 | O5: 3182
A6: Aberdeenshire | B6: 778 | C6: 1387 | D6: 1557 | E6: 1511 | F6: 1514 | G6: 1513 | H6: 1558 | I6: 1438 | J6: 1062 | K6: 978 | L6: 1062 | M6: 1080 | N6: 978 | O6: 758
A7: Angus | B7: 136 | C7: 374 | D7: 446 | E7: 424 | F7: 516 | G7: 458 | H7: 554 | I7: 513 | J7: 369 | K7: 279 | L7: 340 | M7: 290 | N7: 346 | O7: 304
A8: Argyll and Bute | B8: 300 | C8: 465 | D8: 460 | E8: 541 | F8: 414 | G8: 432 | H8: 475 | I8: 360 | J8: 304 | K8: 235 | L8: 239 | M8: 299 | N8: 351 | O8: 296
A9: City of Edinburgh | B9: 7812 | C9: 11011 | D9: 10459 | E9: 10185 | F9: 9990 | G9: 10654 | H9: 11837 | I9: 11219 | J9: 9306 | K9: 7251 | L9: 8462 | M9: 9650 | N9: 10467 | O9: 8538
A10: Clackmannanshire | B10: 85 | C10: 152 | D10: 173 | E10: 248 | F10: 189 | G10: 178 | H10: 150 | I10: 104 | J10: 116 | K10: 74 | L10: 128 | M10: 98 | N10: 157 | O10: 173
A11: Dumfries and Galloway | B11: 243 | C11: 502 | D11: 521 | E11: 493 | F11: 524 | G11: 388 | H11: 375 | I11: 358 | J11: 244 | K11: 200 | L11: 212 | M11: 281 | N11: 340 | O11: 239
A12: Dundee City | B12: 812 | C12: 1727 | D12: 1630 | E12: 1845 | F12: 2072 | G12: 1924 | H12: 2196 | I12: 2250 | J12: 1583 | K12: 1374 | L12: 1276 | M12: 1388 | N12: 1439 | O12: 1181
A13: East Ayrshire | B13: 131 | C13: 195 | D13: 120 | E13: 163 | F13: 222 | G13: 118 | H13: 150 | I13: 116 | J13: 113 | K13: 78 | L13: 94 | M13: 90 | N13: 114 | O13: 106
A14: East Dunbartonshire | B14: 187 | C14: 296 | D14: 212 | E14: 220 | F14: 136 | G14: 180 | H14: 154 | I14: 160 | J14: 111 | K14: 77 | L14: 102 | M14: 105 | N14: 186 | O14: 141
A15: East Lothian | B15: 209 | C15: 255 | D15: 355 | E15: 382 | F15: 548 | G15: 449 | H15: 426 | I15: 428 | J15: 407 | K15: 252 | L15: 341 | M15: 412 | N15: 455 | O15: 345
A16: East Renfrewshire | B16: 139 | C16: 175 | D16: 161 | E16: 143 | F16: 137 | G16: 155 | H16: 193 | I16: 134 | J16: 76 | K16: 88 | L16: 125 | M16: 127 | N16: 179 | O16: 128
A17: Falkirk | B17: 392 | C17: 668 | D17: 568 | E17: 662 | F17: 564 | G17: 505 | H17: 456 | I17: 502 | J17: 312 | K17: 235 | L17: 327 | M17: 377 | N17: 383 | O17: 379
A18: Fife | B18: 1637 | C18: 2492 | D18: 2169 | E18: 2291 | F18: 2209 | G18: 2403 | H18: 2678 | I18: 2298 | J18: 1962 | K18: 1510 | L18: 1629 | M18: 1918 | N18: 2051 | O18: 1680
A19: Glasgow City | B19: 7199 | C19: 8417 | D19: 7990 | E19: 9119 | F19: 9769 | G19: 10022 | H19: 10165 | I19: 10256 | J19: 8550 | K19: 7088 | L19: 8897 | M19: 10409 | N19: 11462 | O19: 9705
A20: Highland | B20: 740 | C20: 1495 | D20: 1530 | E20: 1773 | F20: 1559 | G20: 1292 | H20: 1309 | I20: 1023 | J20: 761 | K20: 619 | L20: 719 | M20: 918 | N20: 920 | O20: 730
A21: Inverclyde | B21: 206 | C21: 431 | D21: 266 | E21: 217 | F21: 187 | G21: 179 | H21: 200 | I21: 99 | J21: 77 | K21: 71 | L21: 70 | M21: 100 | N21: 131 | O21: 100
A22: Midlothian | B22: 128 | C22: 166 | D22: 200 | E22: 212 | F22: 198 | G22: 180 | H22: 207 | I22: 179 | J22: 174 | K22: 88 | L22: 149 | M22: 171 | N22: 207 | O22: 159
A23: Moray | B23: 240 | C23: 506 | D23: 530 | E23: 516 | F23: 500 | G23: 388 | H23: 451 | I23: 407 | J23: 315 | K23: 227 | L23: 282 | M23: 332 | N23: 321 | O23: 200
A24: Na h-Eileanan Siar | B24: 46 | C24: 80 | D24: 87 | E24: 99 | F24: 78 | G24: 76 | H24: 69 | I24: 60 | J24: 44 | K24: 28 | L24: 32 | M24: 55 | N24: 72 | O24: 64
A25: North Ayrshire | B25: 232 | C25: 259 | D25: 221 | E25: 260 | F25: 261 | G25: 226 | H25: 235 | I25: 222 | J25: 149 | K25: 110 | L25: 136 | M25: 158 | N25: 184 | O25: 182
A26: North Lanarkshire | B26: 416 | C26: 733 | D26: 844 | E26: 1181 | F26: 1079 | G26: 899 | H26: 781 | I26: 633 | J26: 528 | K26: 410 | L26: 490 | M26: 623 | N26: 735 | O26: 584
A27: Orkney Islands | B27: 39 | C27: 50 | D27: 50 | E27: 54 | F27: 48 | G27: 47 | H27: 63 | I27: 66 | J27: 38 | K27: 49 | L27: 52 | M27: 53 | N27: 52 | O27: 48
A28: Perth and Kinross | B28: 653 | C28: 1638 | D28: 1733 | E28: 2043 | F28: 2343 | G28: 2160 | H28: 2130 | I28: 1628 | J28: 1384 | K28: 841 | L28: 1241 | M28: 948 | N28: 938 | O28: 702
A29: Renfrewshire | B29: 654 | C29: 698 | D29: 811 | E29: 911 | F29: 690 | G29: 662 | H29: 847 | I29: 729 | J29: 428 | K29: 331 | L29: 431 | M29: 548 | N29: 804 | O29: 631
A30: Scottish Borders | B30: 364 | C30: 554 | D30: 582 | E30: 640 | F30: 685 | G30: 520 | H30: 394 | I30: 373 | J30: 383 | K30: 250 | L30: 283 | M30: 264 | N30: 315 | O30: 257
A31: Shetland Islands | B31: 59 | C31: 72 | D31: 65 | E31: 76 | F31: 94 | G31: 148 | H31: 102 | I31: 101 | J31: 91 | K31: 60 | L31: 51 | M31: 93 | N31: 91 | O31: 53
A32: South Ayrshire | B32: 157 | C32: 345 | D32: 326 | E32: 333 | F32: 330 | G32: 275 | H32: 327 | I32: 306 | J32: 241 | K32: 167 | L32: 166 | M32: 254 | N32: 256 | O32: 251
A33: South Lanarkshire | B33: 429 | C33: 767 | D33: 735 | E33: 720 | F33: 708 | G33: 717 | H33: 688 | I33: 560 | J33: 449 | K33: 308 | L33: 371 | M33: 454 | N33: 640 | O33: 523
A34: Stirling | B34: 692 | C34: 815 | D34: 888 | E34: 1009 | F34: 927 | G34: 959 | H34: 1249 | I34: 1363 | J34: 1054 | K34: 685 | L34: 614 | M34: 1033 | N34: 818 | O34: 603
A35: West Dunbartonshire | B35: 164 | C35: 196 | D35: 185 | E35: 231 | F35: 156 | G35: 172 | H35: 200 | I35: 160 | J35: 112 | K35: 101 | L35: 116 | M35: 121 | N35: 194 | O35: 135
A36: West Lothian | B36: 328 | C36: 557 | D36: 967 | E36: 1248 | F36: 1144 | G36: 957 | H36: 930 | I36: 871 | J36: 743 | K36: 500 | L36: 561 | M36: 561 | N36: 657 | O36: 523
A38: NHS Board Areas
A39: SCOTLAND | B39: 28500 | C39: 41800 | D39: 41300 | E39: 45100 | F39: 45200 | G39: 45100 | H39: 47400 | I39: 44200 | J39: 35900 | K39: 28200 | L39: 33200 | M39: 37800 | N39: 40400 | O39: 32900
A40: Ayrshire and Arran | B40: 520 | C40: 799 | D40: 667 | E40: 756 | F40: 813 | G40: 619 | H40: 712 | I40: 644 | J40: 503 | K40: 355 | L40: 396 | M40: 502 | N40: 554 | O40: 539
A41: Borders | B41: 364 | C41: 554 | D41: 582 | E41: 640 | F41: 685 | G41: 520 | H41: 394 | I41: 373 | J41: 383 | K41: 250 | L41: 283 | M41: 264 | N41: 315 | O41: 257
A42: Dumfries and Galloway | B42: 243 | C42: 502 | D42: 521 | E42: 493 | F42: 524 | G42: 388 | H42: 375 | I42: 358 | J42: 244 | K42: 200 | L42: 212 | M42: 281 | N42: 340 | O42: 239
A43: Fife | B43: 1637 | C43: 2492 | D43: 2169 | E43: 2291 | F43: 2209 | G43: 2402 | H43: 2678 | I43: 2298 | J43: 1962 | K43: 1510 | L43: 1629 | M43: 1918 | N43: 2051 | O43: 1680
A44: Forth Valley | B44: 1169 | C44: 1635 | D44: 1629 | E44: 1919 | F44: 1680 | G44: 1642 | H44: 1855 | I44: 1969 | J44: 1482 | K44: 994 | L44: 1069 | M44: 1508 | N44: 1358 | O44: 1155
A45: Grampian | B45: 3911 | C45: 6215 | D45: 6546 | E45: 7377 | F45: 7423 | G45: 7765 | H45: 7860 | I45: 7129 | J45: 5791 | K45: 4841 | L45: 5546 | M45: 6002 | N45: 5456 | O45: 4140
A46: Greater Glasgow and Clyde | B46: 8672 | C46: 10410 | D46: 9752 | E46: 10981 | F46: 11199 | G46: 11484 | H46: 11884 | I46: 11668 | J46: 9354 | K46: 7756 | L46: 9741 | M46: 11410 | N46: 12956 | O46: 10840
A47: Highland | B47: 1040 | C47: 1960 | D47: 1990 | E47: 2314 | F47: 1973 | G47: 1724 | H47: 1784 | I47: 1383 | J47: 1065 | K47: 854 | L47: 958 | M47: 1217 | N47: 1271 | O47: 1026
A48: Lanarkshire | B48: 722 | C48: 1303 | D48: 1452 | E48: 1761 | F48: 1663 | G48: 1502 | H48: 1344 | I48: 1063 | J48: 977 | K48: 718 | L48: 861 | M48: 1077 | N48: 1375 | O48: 1107
A49: Lothian | B49: 8477 | C49: 11989 | D49: 11981 | E49: 12027 | F49: 11880 | G49: 12240 | H49: 13400 | I49: 12697 | J49: 10630 | K49: 8091 | L49: 9513 | M49: 10794 | N49: 11786 | O49: 9565
A50: Orkney | B50: 39 | C50: 50 | D50: 50 | E50: 54 | F50: 48 | G50: 47 | H50: 63 | I50: 66 | J50: 38 | K50: 49 | L50: 52 | M50: 53 | N50: 52 | O50: 48
A51: Shetland | B51: 59 | C51: 72 | D51: 65 | E51: 76 | F51: 94 | G51: 148 | H51: 102 | I51: 101 | J51: 91 | K51: 60 | L51: 51 | M51: 93 | N51: 91 | O51: 53
A52: Tayside | B52: 1601 | C52: 3739 | D52: 3809 | E52: 4312 | F52: 4931 | G52: 4543 | H52: 4880 | I52: 4391 | J52: 3336 | K52: 2494 | L52: 2857 | M52: 2626 | N52: 2723 | O52: 2187
A53: Western Isles | B53: 46 | C53: 80 | D53: 87 | E53: 99 | F53: 78 | G53: 76 | H53: 69 | I53: 60 | J53: 44 | K53: 28 | L53: 32 | M53: 55 | N53: 72 | O53: 64
A55: Notes
A56: 1) Figures include asylum seekers and rounding adjustments. Estimates for 2015-16 onwards include refugees also.
A57: 2) Source for data: 'Migration between administative areas and overseas by sex' from the 'Migration between Scotland and Overseas' section of the NRS website - https://www.nrscotland.gov.uk/statistics-and-data/statistics/statistics-by-theme/migration/migration-statistics/migration-between-scotland-and-overseas
A58: 3) The NHS Board areas used for estimates between 2003-04 and 2010-11 are those that existed between 2006 and 2014. The 2011-12 estimates onwards use the NHS Board areas that came into force in April 2014.
A60: © Crown Copyright 2018

Sheet Overseas out-migration
A1: Overseas out-migration | K1: Return to front page
A3: Council Area | B3: 2003-04 | C3: 2004-05 | D3: 2005-06 | E3: 2006-07 | F3: 2007-08 | G3: 2008-09 | H3: 2009-10 | I3: 2010-11 | J3: 2011-12 | K3: 2012-13 | L3: 2013-14 | M3: 2014-15 | N3: 2015-16 | O3: 2016-17
A4: SCOTLAND | B4: 25400 | C4: 29000 | D4: 31400 | E4: 20900 | F4: 30300 | G4: 24800 | H4: 24600 | I4: 16900 | J4: 26200 | K4: 26100 | L4: 25200 | M4: 18200 | N4: 17500 | O4: 19500
A5: Aberdeen City | B5: 2019 | C5: 2172 | D5: 2321 | E5: 1598 | F5: 2379 | G5: 2195 | H5: 2109 | I5: 1154 | J5: 2312 | K5: 2334 | L5: 2237 | M5: 1401 | N5: 1683 | O5: 1691
A6: Aberdeenshire | B6: 651 | C6: 764 | D6: 902 | E6: 675 | F6: 1109 | G6: 908 | H6: 839 | I6: 715 | J6: 853 | K6: 862 | L6: 938 | M6: 824 | N6: 662 | O6: 547
A7: Angus | B7: 242 | C7: 246 | D7: 309 | E7: 218 | F7: 409 | G7: 313 | H7: 339 | I7: 278 | J7: 358 | K7: 366 | L7: 313 | M7: 301 | N7: 273 | O7: 254
A8: Argyll and Bute | B8: 404 | C8: 565 | D8: 571 | E8: 404 | F8: 640 | G8: 483 | H8: 389 | I8: 305 | J8: 475 | K8: 446 | L8: 473 | M8: 384 | N8: 313 | O8: 332
A9: City of Edinburgh | B9: 4772 | C9: 5791 | D9: 6350 | E9: 4064 | F9: 6005 | G9: 4383 | H9: 4536 | I9: 3142 | J9: 5248 | K9: 5298 | L9: 5188 | M9: 3601 | N9: 3676 | O9: 4030
A10: Clackmannanshire | B10: 134 | C10: 144 | D10: 161 | E10: 90 | F10: 201 | G10: 145 | H10: 149 | I10: 98 | J10: 165 | K10: 108 | L10: 154 | M10: 102 | N10: 94 | O10: 134
A11: Dumfries and Galloway | B11: 498 | C11: 586 | D11: 637 | E11: 461 | F11: 699 | G11: 559 | H11: 537 | I11: 343 | J11: 524 | K11: 535 | L11: 479 | M11: 353 | N11: 328 | O11: 356
A12: Dundee City | B12: 707 | C12: 1009 | D12: 943 | E12: 782 | F12: 1122 | G12: 890 | H12: 938 | I12: 674 | J12: 1018 | K12: 1054 | L12: 1021 | M12: 717 | N12: 637 | O12: 785
A13: East Ayrshire | B13: 263 | C13: 282 | D13: 314 | E13: 230 | F13: 315 | G13: 258 | H13: 247 | I13: 182 | J13: 246 | K13: 239 | L13: 268 | M13: 181 | N13: 152 | O13: 194
A14: East Dunbartonshire | B14: 377 | C14: 340 | D14: 403 | E14: 211 | F14: 257 | G14: 209 | H14: 223 | I14: 233 | J14: 202 | K14: 199 | L14: 210 | M14: 218 | N14: 136 | O14: 155
A15: East Lothian | B15: 256 | C15: 252 | D15: 318 | E15: 194 | F15: 295 | G15: 233 | H15: 281 | I15: 262 | J15: 291 | K15: 304 | L15: 310 | M15: 255 | N15: 166 | O15: 244
A16: East Renfrewshire | B16: 282 | C16: 252 | D16: 286 | E16: 151 | F16: 236 | G16: 174 | H16: 155 | I16: 161 | J16: 234 | K16: 196 | L16: 178 | M16: 210 | N16: 128 | O16: 136
A17: Falkirk | B17: 325 | C17: 422 | D17: 499 | E17: 345 | F17: 455 | G17: 381 | H17: 298 | I17: 224 | J17: 341 | K17: 363 | L17: 312 | M17: 250 | N17: 228 | O17: 278
A18: Fife | B18: 1550 | C18: 1705 | D18: 1897 | E18: 1278 | F18: 1825 | G18: 1344 | H18: 1427 | I18: 998 | J18: 1603 | K18: 1564 | L18: 1520 | M18: 1090 | N18: 1009 | O18: 1009
A19: Glasgow City | B19: 6100 | C19: 6923 | D19: 6925 | E19: 4379 | F19: 5521 | G19: 4574 | H19: 4782 | I19: 3196 | J19: 5010 | K19: 5023 | L19: 4901 | M19: 3332 | N19: 3527 | O19: 4311
A20: Highland | B20: 734 | C20: 872 | D20: 1071 | E20: 801 | F20: 1247 | G20: 1107 | H20: 951 | I20: 599 | J20: 936 | K20: 862 | L20: 807 | M20: 589 | N20: 571 | O20: 642
A21: Inverclyde | B21: 381 | C21: 309 | D21: 266 | E21: 200 | F21: 239 | G21: 184 | H21: 175 | I21: 124 | J21: 176 | K21: 128 | L21: 133 | M21: 86 | N21: 92 | O21: 96
A22: Midlothian | B22: 150 | C22: 187 | D22: 201 | E22: 119 | F22: 191 | G22: 159 | H22: 167 | I22: 106 | J22: 150 | K22: 133 | L22: 189 | M22: 191 | N22: 122 | O22: 114
A23: Moray | B23: 319 | C23: 438 | D23: 506 | E23: 279 | F23: 509 | G23: 346 | H23: 401 | I23: 502 | J23: 414 | K23: 373 | L23: 324 | M23: 454 | N23: 241 | O23: 304
A24: Na h-Eileanan Siar | B24: 82 | C24: 86 | D24: 98 | E24: 73 | F24: 105 | G24: 89 | H24: 74 | I24: 57 | J24: 81 | K24: 87 | L24: 80 | M24: 53 | N24: 53 | O24: 53
A25: North Ayrshire | B25: 373 | C25: 451 | D25: 499 | E25: 307 | F25: 407 | G25: 314 | H25: 326 | I25: 190 | J25: 376 | K25: 348 | L25: 304 | M25: 200 | N25: 224 | O25: 231
A26: North Lanarkshire | B26: 750 | C26: 753 | D26: 877 | E26: 608 | F26: 982 | G26: 880 | H26: 804 | I26: 517 | J26: 732 | K26: 752 | L26: 655 | M26: 458 | N26: 469 | O26: 534
A27: Orkney Islands | B27: 57 | C27: 75 | D27: 77 | E27: 51 | F27: 74 | G27: 62 | H27: 60 | I27: 43 | J27: 71 | K27: 77 | L27: 68 | M27: 50 | N27: 49 | O27: 40
A28: Perth and Kinross | B28: 546 | C28: 572 | D28: 763 | E28: 651 | F28: 963 | G28: 991 | H28: 963 | I28: 511 | J28: 932 | K28: 851 | L28: 774 | M28: 485 | N28: 518 | O28: 554
A29: Renfrewshire | B29: 467 | C29: 537 | D29: 732 | E29: 410 | F29: 558 | G29: 563 | H29: 503 | I29: 273 | J29: 512 | K29: 537 | L29: 439 | M29: 270 | N29: 292 | O29: 346
A30: Scottish Borders | B30: 425 | C30: 447 | D30: 571 | E30: 381 | F30: 595 | G30: 505 | H30: 497 | I30: 307 | J30: 449 | K30: 423 | L30: 456 | M30: 314 | N30: 312 | O30: 240
A31: Shetland Islands | B31: 79 | C31: 76 | D31: 107 | E31: 62 | F31: 91 | G31: 70 | H31: 78 | I31: 66 | J31: 89 | K31: 92 | L31: 90 | M31: 61 | N31: 52 | O31: 71
A32: South Ayrshire | B32: 353 | C32: 390 | D32: 411 | E32: 268 | F32: 406 | G32: 381 | H32: 353 | I32: 226 | J32: 341 | K32: 360 | L32: 332 | M32: 240 | N32: 218 | O32: 247
A33: South Lanarkshire | B33: 797 | C33: 1020 | D33: 936 | E33: 647 | F33: 891 | G33: 765 | H33: 744 | I33: 561 | J33: 770 | K33: 732 | L33: 744 | M33: 615 | N33: 507 | O33: 542
A34: Stirling | B34: 622 | C34: 674 | D34: 710 | E34: 445 | F34: 668 | G34: 604 | H34: 586 | I34: 378 | J34: 639 | K34: 738 | L34: 658 | M34: 396 | N34: 377 | O34: 605
A35: West Dunbartonshire | B35: 262 | C35: 278 | D35: 294 | E35: 163 | F35: 230 | G35: 202 | H35: 149 | I35: 149 | J35: 170 | K35: 198 | L35: 147 | M35: 154 | N35: 108 | O35: 110
A36: West Lothian | B36: 423 | C36: 382 | D36: 445 | E36: 355 | F36: 676 | G36: 529 | H36: 520 | I36: 326 | J36: 482 | K36: 518 | L36: 498 | M36: 365 | N36: 283 | O36: 315
A38: NHS Board Areas
A39: SCOTLAND | B39: 25400 | C39: 29000 | D39: 31400 | E39: 20900 | F39: 30300 | G39: 24800 | H39: 24600 | I39: 16900 | J39: 26200 | K39: 26100 | L39: 25200 | M39: 18200 | N39: 17500 | O39: 19500
A40: Ayrshire and Arran | B40: 989 | C40: 1123 | D40: 1224 | E40: 805 | F40: 1128 | G40: 953 | H40: 926 | I40: 598 | J40: 963 | K40: 947 | L40: 904 | M40: 621 | N40: 594 | O40: 672
A41: Borders | B41: 425 | C41: 447 | D41: 571 | E41: 381 | F41: 595 | G41: 505 | H41: 497 | I41: 307 | J41: 449 | K41: 423 | L41: 456 | M41: 314 | N41: 312 | O41: 240
A42: Dumfries and Galloway | B42: 498 | C42: 586 | D42: 637 | E42: 461 | F42: 699 | G42: 559 | H42: 537 | I42: 343 | J42: 524 | K42: 535 | L42: 479 | M42: 353 | N42: 328 | O42: 356
A43: Fife | B43: 1550 | C43: 1705 | D43: 1897 | E43: 1278 | F43: 1825 | G43: 1344 | H43: 1427 | I43: 998 | J43: 1603 | K43: 1564 | L43: 1520 | M43: 1090 | N43: 1009 | O43: 1009
A44: Forth Valley | B44: 1081 | C44: 1240 | D44: 1370 | E44: 880 | F44: 1324 | G44: 1130 | H44: 1033 | I44: 700 | J44: 1145 | K44: 1209 | L44: 1124 | M44: 748 | N44: 699 | O44: 1017
A45: Grampian | B45: 2989 | C45: 3374 | D45: 3729 | E45: 2552 | F45: 3997 | G45: 3449 | H45: 3349 | I45: 2371 | J45: 3579 | K45: 3569 | L45: 3499 | M45: 2679 | N45: 2586 | O45: 2542
A46: Greater Glasgow and Clyde | B46: 8056 | C46: 8896 | D46: 9084 | E46: 5642 | F46: 7195 | G46: 6047 | H46: 6114 | I46: 4285 | J46: 6304 | K46: 6281 | L46: 6008 | M46: 4270 | N46: 4283 | O46: 5154
A47: Highland | B47: 1138 | C47: 1437 | D47: 1642 | E47: 1205 | F47: 1887 | G47: 1590 | H47: 1340 | I47: 904 | J47: 1411 | K47: 1308 | L47: 1280 | M47: 973 | N47: 884 | O47: 974
A48: Lanarkshire | B48: 1360 | C48: 1516 | D48: 1635 | E48: 1127 | F48: 1719 | G48: 1504 | H48: 1421 | I48: 929 | J48: 1502 | K48: 1484 | L48: 1399 | M48: 1073 | N48: 976 | O48: 1076
A49: Lothian | B49: 5601 | C49: 6612 | D49: 7314 | E49: 4732 | F49: 7167 | G49: 5304 | H49: 5504 | I49: 3836 | J49: 6171 | K49: 6253 | L49: 6185 | M49: 4412 | N49: 4247 | O49: 4703
A50: Orkney | B50: 57 | C50: 75 | D50: 77 | E50: 51 | F50: 74 | G50: 62 | H50: 60 | I50: 43 | J50: 71 | K50: 77 | L50: 68 | M50: 50 | N50: 49 | O50: 40
A51: Shetland | B51: 79 | C51: 76 | D51: 107 | E51: 62 | F51: 91 | G51: 70 | H51: 78 | I51: 66 | J51: 89 | K51: 92 | L51: 90 | M51: 61 | N51: 52 | O51: 71
A52: Tayside | B52: 1495 | C52: 1827 | D52: 2015 | E52: 1651 | F52: 2494 | G52: 2194 | H52: 2240 | I52: 1463 | J52: 2308 | K52: 2271 | L52: 2108 | M52: 1503 | N52: 1428 | O52: 1593
A53: Western Isles | B53: 82 | C53: 86 | D53: 98 | E53: 73 | F53: 105 | G53: 89 | H53: 74 | I53: 57 | J53: 81 | K53: 87 | L53: 80 | M53: 53 | N53: 53 | O53: 53
A55: Notes
A56: 1) Figures include asylum seekers and rounding adjustments. Estimates for 2015-16 onwards include refugees also.
A57: 2) Source for data: 'Migration between administative areas and overseas by sex' from the 'Migration between Scotland and Overseas' section of the NRS website - https://www.nrscotland.gov.uk/statistics-and-data/statistics/statistics-by-theme/migration/migration-statistics/migration-between-scotland-and-overseas
A58: 3) The NHS Board areas used for estimates between 2003-04 and 2010-11 are those that existed between 2006 and 2014. The 2011-12 estimates onwards use the NHS Board areas that came into force in April 2014.
A60: © Crown Copyright 2018

Sheet Census country of birth
A1: 2011 Census - country of birth | I1: Return to front page
B3: All people | C3: England | D3: Northern Ireland | E3: Scotland | F3: Wales | G3: Republic of Ireland | H3: Other EU: Member countries in March 20011 | I3: Other EU: Accession countries April 2001 to March 2011 | J3: Other countries
A4: SCOTLAND | B4: 5295403 | C4: 459486 | D4: 36655 | E4: 4411884 | F4: 17381 | G4: 22952 | H4: 60596 | I4: 76689 | J4: 209760
A5: Aberdeen City | B5: 222793 | C5: 18008 | D5: 1374 | E5: 167180 | F5: 764 | G5: 1378 | H5: 4934 | I5: 9429 | J5: 19726
A6: Aberdeenshire | B6: 252973 | C6: 31561 | D6: 1366 | E6: 203656 | F6: 1285 | G6: 572 | H6: 2602 | I6: 4922 | J6: 7009
A7: Angus | B7: 115978 | C7: 10087 | D7: 649 | E7: 99596 | F7: 397 | G7: 250 | H7: 908 | I7: 1600 | J7: 2491
A8: Argyll and Bute | B8: 88166 | C8: 15613 | D8: 644 | E8: 67060 | F8: 529 | G8: 327 | H8: 923 | I8: 852 | J8: 2218
A9: City of Edinburgh | B9: 476626 | C9: 57725 | D9: 6363 | E9: 334626 | F9: 2118 | G9: 4743 | H9: 13663 | I9: 14601 | J9: 42787
A10: Clackmannanshire | B10: 51442 | C10: 4356 | D10: 318 | E10: 44431 | F10: 192 | G10: 154 | H10: 421 | I10: 573 | J10: 997
A11: Dumfries and Galloway | B11: 151324 | C11: 27186 | D11: 1547 | E11: 116687 | F11: 642 | G11: 456 | H11: 1121 | I11: 1146 | J11: 2539
A12: Dundee City | B12: 147268 | C12: 8882 | D12: 1539 | E12: 123242 | F12: 340 | G12: 572 | H12: 2248 | I12: 2740 | J12: 7705
A13: East Ayrshire | B13: 122767 | C13: 6602 | D13: 742 | E13: 112379 | F13: 260 | G13: 251 | H13: 629 | I13: 307 | J13: 1597
A14: East Dunbartonshire | B14: 105026 | C14: 5945 | D14: 593 | E14: 93728 | F14: 236 | G14: 428 | H14: 665 | I14: 195 | J14: 3236
A15: East Lothian | B15: 99717 | C15: 9877 | D15: 645 | E15: 83463 | F15: 414 | G15: 490 | H15: 1071 | I15: 1095 | J15: 2662
A16: East Renfrewshire | B16: 90574 | C16: 4618 | D16: 481 | E16: 80890 | F16: 211 | G16: 406 | H16: 569 | I16: 241 | J16: 3158
A17: Falkirk | B17: 155990 | C17: 8317 | D17: 718 | E17: 140890 | F17: 403 | G17: 394 | H17: 916 | I17: 1427 | J17: 2925
A18: Fife | B18: 365198 | C18: 35531 | D18: 2233 | E18: 305206 | F18: 1499 | G18: 1032 | H18: 4438 | I18: 3745 | J18: 11514
A19: Glasgow City | B19: 593245 | C19: 28263 | D19: 5040 | E19: 486243 | F19: 1015 | G19: 4339 | H19: 7345 | I19: 10349 | J19: 50651
A20: Highland | B20: 232132 | C20: 37058 | D20: 1318 | E20: 179271 | F20: 1267 | G20: 681 | H20: 2613 | I20: 4292 | J20: 5632
A21: Inverclyde | B21: 81485 | C21: 3189 | D21: 338 | E21: 75679 | F21: 149 | G21: 212 | H21: 500 | I21: 151 | J21: 1267
A22: Midlothian | B22: 83187 | C22: 5560 | D22: 456 | E22: 73594 | F22: 213 | G22: 277 | H22: 785 | I22: 541 | J22: 1761
A23: Moray | B23: 93295 | C23: 16580 | D23: 632 | E23: 70332 | F23: 853 | G23: 217 | H23: 1555 | I23: 1147 | J23: 1979
A24: Na h-Eileanan Siar | B24: 27684 | C24: 3099 | D24: 75 | E24: 23556 | F24: 141 | G24: 50 | H24: 189 | I24: 115 | J24: 459
A25: North Ayrshire | B25: 138146 | C25: 8562 | D25: 866 | E25: 124918 | F25: 337 | G25: 361 | H25: 879 | I25: 321 | J25: 1902
A26: North Lanarkshire | B26: 337727 | C26: 10286 | D26: 1131 | E26: 315754 | F26: 408 | G26: 746 | H26: 1232 | I26: 3090 | J26: 5080
A27: Orkney Islands | B27: 21349 | C27: 3757 | D27: 105 | E27: 16654 | F27: 111 | G27: 34 | H27: 201 | I27: 105 | J27: 382
A28: Perth and Kinross | B28: 146652 | C28: 18519 | D28: 1006 | E28: 116268 | F28: 624 | G28: 576 | H28: 1771 | I28: 3243 | J28: 4645
A29: Renfrewshire | B29: 174908 | C29: 6824 | D29: 886 | E29: 159373 | F29: 310 | G29: 685 | H29: 1166 | I29: 1391 | J29: 4273
A30: Scottish Borders | B30: 113870 | C30: 21161 | D30: 777 | E30: 85392 | F30: 560 | G30: 410 | H30: 1314 | I30: 1554 | J30: 2702
A31: Shetland Islands | B31: 23167 | C31: 3057 | D31: 72 | E31: 18691 | F31: 151 | G31: 158 | H31: 184 | I31: 354 | J31: 500
A32: South Ayrshire | B32: 112799 | C32: 8888 | D32: 1131 | E32: 98603 | F32: 334 | G32: 383 | H32: 930 | I32: 509 | J32: 2021
A33: South Lanarkshire | B33: 313830 | C33: 14274 | D33: 1323 | E33: 286940 | F33: 609 | G33: 991 | H33: 1737 | I33: 1529 | J33: 6427
A34: Stirling | B34: 90247 | C34: 10588 | D34: 872 | E34: 71994 | F34: 389 | G34: 360 | H34: 1243 | I34: 975 | J34: 3826
A35: West Dunbartonshire | B35: 90720 | C35: 3590 | D35: 426 | E35: 83699 | F35: 156 | G35: 509 | H35: 397 | I35: 429 | J35: 1514
A36: West Lothian | B36: 175118 | C36: 11923 | D36: 989 | E36: 151889 | F36: 464 | G36: 510 | H36: 1447 | I36: 3721 | J36: 4175
A38: NHS Board Areas
A39: SCOTLAND | B39: 5295403 | C39: 459486 | D39: 36655 | E39: 4411884 | F39: 17381 | G39: 22952 | H39: 60596 | I39: 76689 | J39: 209760
A40: Ayrshire and Arran | B40: 373712 | C40: 24052 | D40: 2739 | E40: 335900 | F40: 931 | G40: 995 | H40: 2438 | I40: 1137 | J40: 5520
A41: Borders | B41: 113870 | C41: 21161 | D41: 777 | E41: 85392 | F41: 560 | G41: 410 | H41: 1314 | I41: 1554 | J41: 2702
A42: Dumfries and Galloway | B42: 151324 | C42: 27186 | D42: 1547 | E42: 116687 | F42: 642 | G42: 456 | H42: 1121 | I42: 1146 | J42: 2539
A43: Fife | B43: 365198 | C43: 35531 | D43: 2233 | E43: 305206 | F43: 1499 | G43: 1032 | H43: 4438 | I43: 3745 | J43: 11514
A44: Forth Valley | B44: 297636 | C44: 23278 | D44: 1910 | E44: 257245 | F44: 986 | G44: 909 | H44: 2583 | I44: 2977 | J44: 7748
A45: Grampian | B45: 569061 | C45: 66149 | D45: 3372 | E45: 441168 | F45: 2902 | G45: 2167 | H45: 9091 | I45: 15498 | J45: 28714
A46: Greater Glasgow and Clyde | B46: 1213408 | C46: 55024 | D46: 8072 | E46: 1051125 | F46: 2181 | G46: 6938 | H46: 11020 | I46: 13081 | J46: 65967
A47: Highland | B47: 320298 | C47: 52671 | D47: 1962 | E47: 246331 | F47: 1796 | G47: 1008 | H47: 3536 | I47: 5144 | J47: 7850
A48: Lanarkshire | B48: 574637 | C48: 21997 | D48: 2148 | E48: 531661 | F48: 914 | G48: 1379 | H48: 2598 | I48: 4296 | J48: 9644
A49: Lothian | B49: 834350 | C49: 85080 | D49: 8453 | E49: 643292 | F49: 3208 | G49: 6020 | H49: 16960 | I49: 19956 | J49: 51381
A50: Orkney | B50: 21349 | C50: 3757 | D50: 105 | E50: 16654 | F50: 111 | G50: 34 | H50: 201 | I50: 105 | J50: 382
A51: Shetland | B51: 23167 | C51: 3057 | D51: 72 | E51: 18691 | F51: 151 | G51: 158 | H51: 184 | I51: 354 | J51: 500
A52: Tayside | B52: 409709 | C52: 37444 | D52: 3190 | E52: 338976 | F52: 1359 | G52: 1396 | H52: 4923 | I52: 7581 | J52: 14840
A53: Western Isles | B53: 27684 | C53: 3099 | D53: 75 | E53: 23556 | F53: 141 | G53: 50 | H53: 189 | I53: 115 | J53: 459
A55: Notes
A56: 1) Includes UK (part not specified), Channel Islands, Isle of Man and Ireland (part not specified).
A57: 2) In order to protect against disclosure of personal information, some records have been swapped between different geographic areas. Some cell values will be affected, particularly small values at the most detailed geographies.
A58: 3) Source: Scotland's Census Release 2A Downloadable Files KS204SC - http://www.scotlandscensus.gov.uk/en/censusresults/downloadablefilesr2.html
A60: © Crown Copyright 2018

Sheet Pop born outside UK
A1: Estimate of resident population born outside the UK | K1: Return to front page
B3: Calendar year
B4: 2004 | C4: 2005 | D4: 2006 | E4: 2007 | F4: 2008 | G4: 2009 | H4: 2010 | I4: 2011 | J4: 2012 | K4: 2013 | L4: 2014 | M4: 2015 | N4: 2016 | O4: 2017
A5: SCOTLAND | B5: 203000 | C5: 221000 | D5: 227000 | E5: 254000 | F5: 288000 | G5: 319000 | H5: 323000 | I5: 339000 | J5: 374000 | K5: 353000 | L5: 381000 | M5: 393000 | N5: 457000 | O5: 477000
A6: Aberdeen City | B6: 12000 | C6: 12000 | D6: 14000 | E6: 20000 | F6: 25000 | G6: 32000 | H6: 30000 | I6: 32000 | J6: 32000 | K6: 42000 | L6: 42000 | M6: 39000 | N6: 48000 | O6: 55000
A7: Aberdeenshire | B7: 7000 | C7: 6000 | D7: 8000 | E7: 10000 | F7: 14000 | G7: 15000 | H7: 14000 | I7: 17000 | J7: 15000 | K7: 11000 | L7: 13000 | M7: 13000 | N7: 23000 | O7: 21000
A8: Angus | B8: 3000 | C8: 3000 | D8: 3000 | E8: 4000 | F8: 5000 | G8: 5000 | H8: 4000 | I8: 4000 | J8: 4000 | K8: 6000 | L8: 5000 | M8: 6000 | N8: 6000 | O8: 7000
A9: Argyll and Bute | B9: 2000 | C9: 3000 | D9: 3000 | E9: 3000 | F9: 4000 | G9: 3000 | H9: 4000 | I9: 4000 | J9: 4000 | K9: 4000 | L9: 4000 | M9: 3000 | N9: 5000 | O9: 4000
A10: City of Edinburgh | B10: 39000 | C10: 46000 | D10: 48000 | E10: 46000 | F10: 57000 | G10: 62000 | H10: 62000 | I10: 66000 | J10: 69000 | K10: 67000 | L10: 65000 | M10: 77000 | N10: 90000 | O10: 102000
A11: Clackmannanshire | B11: 1000 | C11: 1000 | D11: 1000 | E11: 1000 | F11: 1000 | G11: 2000 | H11: 2000 | I11: 2000 | J11: 2000 | K11: 2000 | L11: 3000 | M11: 3000 | N11: 4000 | O11: 3000
A12: Dumfries and Galloway | B12: 4000 | C12: 4000 | D12: 3000 | E12: 4000 | F12: 6000 | G12: 5000 | H12: 6000 | I12: 5000 | J12: 6000 | K12: 4000 | L12: 5000 | M12: 5000 | N12: 6000 | O12: 7000
A13: Dundee City | B13: 6000 | C13: 7000 | D13: 9000 | E13: 8000 | F13: 9000 | G13: 11000 | H13: 12000 | I13: 14000 | J13: 14000 | K13: 15000 | L13: 18000 | M13: 17000 | N13: 12000 | O13: 15000
A14: East Ayrshire | B14: 3000 | C14: 2000 | D14: 3000 | E14: 2000 | F14: 3000 | G14: 3000 | H14: 2000 | I14: 2000 | J14: 2000 | K14: 2000 | L14: 3000 | M14: 2000 | N14: 4000 | O14: 4000
A15: East Dunbartonshire | B15: 3000 | C15: 4000 | D15: 4000 | E15: 4000 | F15: 5000 | G15: 4000 | H15: 4000 | I15: 4000 | J15: 5000 | K15: 5000 | L15: 6000 | M15: 5000 | N15: 5000 | O15: 6000
A16: East Lothian | B16: 3000 | C16: 3000 | D16: 4000 | E16: 4000 | F16: 4000 | G16: 4000 | H16: 5000 | I16: 6000 | J16: 6000 | K16: 6000 | L16: 5000 | M16: 5000 | N16: 5000 | O16: 6000
A17: East Renfrewshire | B17: 3000 | C17: 3000 | D17: 4000 | E17: 4000 | F17: 3000 | G17: 4000 | H17: 5000 | I17: 4000 | J17: 4000 | K17: 3000 | L17: 4000 | M17: 6000 | N17: 7000 | O17: 7000
A18: Falkirk | B18: 4000 | C18: 3000 | D18: 2000 | E18: 4000 | F18: 3000 | G18: 5000 | H18: 6000 | I18: 7000 | J18: 7000 | K18: 7000 | L18: 7000 | M18: 8000 | N18: 9000 | O18: 8000
A19: Fife | B19: 13000 | C19: 16000 | D19: 12000 | E19: 10000 | F19: 10000 | G19: 14000 | H19: 21000 | I19: 16000 | J19: 20000 | K19: 20000 | L19: 18000 | M19: 20000 | N19: 30000 | O19: 19000
A20: Glasgow City | B20: 42000 | C20: 46000 | D20: 44000 | E20: 55000 | F20: 60000 | G20: 70000 | H20: 63000 | I20: 64000 | J20: 86000 | K20: 66000 | L20: 80000 | M20: 83000 | N20: 91000 | O20: 91000
A21: Highland | B21: 6000 | C21: 7000 | D21: 7000 | E21: 8000 | F21: 9000 | G21: 8000 | H21: 9000 | I21: 11000 | J21: 12000 | K21: 11000 | L21: 15000 | M21: 10000 | N21: 13000 | O21: 14000
A22: Inverclyde | B22: 3000 | C22: 2000 | D22: 2000 | E22: 2000 | F22: 2000 | G22: 2000 | H22: 2000 | I22: 2000 | J22: 3000 | K22: 2000 | L22: 2000 | M22: 2000 | N22: 2000 | O22: 1000
A23: Midlothian | B23: 1000 | C23: 2000 | D23: 2000 | E23: 2000 | F23: 3000 | G23: 4000 | H23: 3000 | I23: 3000 | J23: 3000 | K23: 3000 | L23: 4000 | M23: 4000 | N23: 4000 | O23: 6000
A24: Moray | B24: 3000 | C24: 4000 | D24: 4000 | E24: 4000 | F24: 4000 | G24: 5000 | H24: 5000 | I24: 6000 | J24: 5000 | K24: 5000 | L24: 4000 | M24: 4000 | N24: 5000 | O24: 4000
A25: Na h-Eileanan Siar | B25: 0~ | C25: 0~ | D25: 1000 | E25: 0~ | F25: 0~ | G25: 1000 | H25: * | I25: * | J25: 1000 | K25: 1000 | L25: 1000 | M25: 0~ | N25: 1000 | O25: 1000
A26: North Ayrshire | B26: 2000 | C26: 3000 | D26: 3000 | E26: 3000 | F26: 2000 | G26: 2000 | H26: 2000 | I26: 4000 | J26: 3000 | K26: 4000 | L26: 3000 | M26: 2000 | N26: 4000 | O26: 4000
A27: North Lanarkshire | B27: 8000 | C27: 7000 | D27: 6000 | E27: 5000 | F27: 12000 | G27: 10000 | H27: 8000 | I27: 7000 | J27: 8000 | K27: 7000 | L27: 11000 | M27: 14000 | N27: 15000 | O27: 15000
A28: Orkney Islands | B28: 0 | C28: 1000 | D28: 1000 | E28: 1000 | F28: 0~ | G28: 0~ | H28: 0~ | I28: 0~ | J28: 0~ | K28: 0~ | L28: 0~ | M28: 0~ | N28: 1000 | O28: 1000
A29: Perth and Kinross | B29: 5000 | C29: 6000 | D29: 5000 | E29: 7000 | F29: 7000 | G29: 7000 | H29: 9000 | I29: 8000 | J29: 10000 | K29: 11000 | L29: 11000 | M29: 14000 | N29: 10000 | O29: 12000
A30: Renfrewshire | B30: 5000 | C30: 4000 | D30: 5000 | E30: 7000 | F30: 9000 | G30: 7000 | H30: 7000 | I30: 11000 | J30: 10000 | K30: 9000 | L30: 11000 | M30: 9000 | N30: 12000 | O30: 11000
A31: Scottish Borders | B31: 4000 | C31: 3000 | D31: 4000 | E31: 5000 | F31: 5000 | G31: 6000 | H31: 7000 | I31: 5000 | J31: 5000 | K31: 6000 | L31: 6000 | M31: 6000 | N31: 6000 | O31: 9000
A32: Shetland Islands | B32: 1000 | C32: 0~ | D32: 0~ | E32: 0~ | F32: 0~ | G32: 0~ | H32: 1000 | I32: 0~ | J32: 0~ | K32: 1000 | L32: 1000 | M32: 0~ | N32: 0~ | O32: 1000
A33: South Ayrshire | B33: 3000 | C33: 2000 | D33: 3000 | E33: 3000 | F33: 3000 | G33: 4000 | H33: 4000 | I33: 3000 | J33: 4000 | K33: 3000 | L33: 4000 | M33: 4000 | N33: 4000 | O33: 5000
A34: South Lanarkshire | B34: 6000 | C34: 7000 | D34: 8000 | E34: 11000 | F34: 9000 | G34: 8000 | H34: 11000 | I34: 11000 | J34: 12000 | K34: 11000 | L34: 9000 | M34: 11000 | N34: 12000 | O34: 10000
A35: Stirling | B35: 4000 | C35: 4000 | D35: 6000 | E35: 5000 | F35: 3000 | G35: 4000 | H35: 6000 | I35: 7000 | J35: 7000 | K35: 6000 | L35: 7000 | M35: 8000 | N35: 6000 | O35: 7000
A36: West Dunbartonshire | B36: 2000 | C36: 2000 | D36: 3000 | E36: 3000 | F36: 3000 | G36: 4000 | H36: 3000 | I36: 3000 | J36: 3000 | K36: 3000 | L36: 3000 | M36: 2000 | N36: 4000 | O36: 4000
A37: West Lothian | B37: 5000 | C37: 6000 | D37: 7000 | E37: 10000 | F37: 8000 | G37: 8000 | H37: 8000 | I37: 12000 | J37: 11000 | K37: 11000 | L37: 10000 | M37: 10000 | N37: 15000 | O37: 17000
A39: Footnotes
A40: 1) Figures are rounded to the nearest thousand.
A41: 2) Source: 'Estimated population resident in Scotland, by Council area and country of birth, 2000-2017', from the Population by Country of Birth and Nationality section of the NRS website - http://www.nrscotland.gov.uk/statistics-and-data/statistics/statistics-by-theme/population/population-estimates/estimates-of-special-populations/population-by-country-of-birth-and-nationality
A42: 3) The data above comes from the ONS Annual Population Survey (APS) and Labour Force Survey (LFS).
A43: Totals may not sum due to rounding
A44: * = suppressed as estimate unreliable
A45: 0~ = rounded to zero
A47: Notes:
A48: 1. Estimates with a coefficient of variation of more than 20 per cent have been suppressed as they are deemed unreliable. The coefficient of variation (CV) indicates the robustness of each estimate. It is defined as:
A49: % = (standard error/ estimate) x 100
A50: where standard error is an estimate of the margin of error associated with a sample survey.
A51: 2. Estimates are based on the Annual Population Survey (APS) which is the Labour Force Survey (LFS) plus various sample boosts.
A52: 3. APS and LFS data has now been grossed to 2010-based population estimates and projections. Tables published from the year ending December 2010 have been weighted using these estimates. Tables published prior to this were weighted using the 2008 and 2006-based estimates and projections and have not been revised. Analysis shows that there is no discernable discontinuity in these tables.
A53: 4. It should be noted that the LFS :-
A54: * excludes students in halls who do not have a UK resident parent
A55: * excludes people in most other types of communal establishments (eg hotels, boarding houses, hostels, mobile home sites, etc)
A56: * is grossed to population estimates of those living in private households that only include migrants staying for 12 months or more. An adjustment is made for those who live in some NHS accommodation and halls of residence whose parents live in the UK. For this reason the sum of the British and non-British nationality estimates may not agree with the published population estimate.
A57: 5. The LFS weighting does not adjust for non-response bias by the nationality or country of birth variable.
A59: © Crown Copyright 2018

Sheet Non-British Population
A1: Estimate of resident non-British population | K1: Return to front page
B3: Calendar year
B4: 2004 | C4: 2005 | D4: 2006 | E4: 2007 | F4: 2008 | G4: 2009 | H4: 2010 | I4: 2011 | J4: 2012 | K4: 2013 | L4: 2014 | M4: 2015 | N4: 2016 | O4: 2017
A5: SCOTLAND | B5: 126000 | C5: 137000 | D5: 134000 | E5: 169000 | F5: 196000 | G5: 229000 | H5: 245000 | I5: 257000 | J5: 281000 | K5: 264000 | L5: 282000 | M5: 295000 | N5: 337000 | O5: 378000
A6: Aberdeen City | B6: 8000 | C6: 9000 | D6: 10000 | E6: 17000 | F6: 22000 | G6: 28000 | H6: 25000 | I6: 30000 | J6: 31000 | K6: 38000 | L6: 39000 | M6: 36000 | N6: 43000 | O6: 48000
A7: Aberdeenshire | B7: 4000 | C7: 4000 | D7: 4000 | E7: 6000 | F7: 9000 | G7: 11000 | H7: 10000 | I7: 11000 | J7: 11000 | K7: 7000 | L7: 10000 | M7: 9000 | N7: 16000 | O7: 16000
A8: Angus | B8: 1000 | C8: 1000 | D8: 2000 | E8: 2000 | F8: 3000 | G8: 3000 | H8: 3000 | I8: 2000 | J8: 2000 | K8: 5000 | L8: 5000 | M8: 5000 | N8: 4000 | O8: 5000
A9: Argyll and Bute | B9: 1000 | C9: 1000 | D9: 1000 | E9: 1000 | F9: 2000 | G9: 2000 | H9: 2000 | I9: 2000 | J9: 2000 | K9: 2000 | L9: 2000 | M9: 2000 | N9: 3000 | O9: 2000
A10: City of Edinburgh | B10: 26000 | C10: 32000 | D10: 32000 | E10: 32000 | F10: 42000 | G10: 45000 | H10: 55000 | I10: 54000 | J10: 56000 | K10: 52000 | L10: 51000 | M10: 60000 | N10: 69000 | O10: 85000
A11: Clackmannanshire | B11: 1000 | C11: 0~ | D11: 1000 | E11: 1000 | F11: 1000 | G11: 1000 | H11: 2000 | I11: 2000 | J11: 2000 | K11: 2000 | L11: 2000 | M11: 2000 | N11: 2000 | O11: 1000
A12: Dumfries and Galloway | B12: 2000 | C12: 2000 | D12: 2000 | E12: 2000 | F12: 3000 | G12: 3000 | H12: 3000 | I12: 2000 | J12: 4000 | K12: 2000 | L12: 3000 | M12: 2000 | N12: 3000 | O12: 4000
A13: Dundee City | B13: 4000 | C13: 5000 | D13: 6000 | E13: 5000 | F13: 5000 | G13: 7000 | H13: 10000 | I13: 12000 | J13: 12000 | K13: 14000 | L13: 17000 | M13: 14000 | N13: 10000 | O13: 14000
A14: East Ayrshire | B14: 1000 | C14: 1000 | D14: 2000 | E14: 1000 | F14: 1000 | G14: 1000 | H14: 1000 | I14: 0~ | J14: 1000 | K14: 1000 | L14: 2000 | M14: 2000 | N14: 3000 | O14: 2000
A15: East Dunbartonshire | B15: 2000 | C15: 2000 | D15: 2000 | E15: 2000 | F15: 2000 | G15: 2000 | H15: 2000 | I15: 2000 | J15: 3000 | K15: 3000 | L15: 2000 | M15: 2000 | N15: 2000 | O15: 3000
A16: East Lothian | B16: 1000 | C16: 2000 | D16: 2000 | E16: 3000 | F16: 2000 | G16: 2000 | H16: 3000 | I16: 3000 | J16: 3000 | K16: 4000 | L16: 4000 | M16: 3000 | N16: 3000 | O16: 4000
A17: East Renfrewshire | B17: 1000 | C17: 2000 | D17: 2000 | E17: 2000 | F17: 2000 | G17: 3000 | H17: 3000 | I17: 2000 | J17: 3000 | K17: 1000 | L17: 2000 | M17: 4000 | N17: 4000 | O17: 4000
A18: Falkirk | B18: 2000 | C18: 1000 | D18: 1000 | E18: 2000 | F18: 2000 | G18: 3000 | H18: 4000 | I18: 5000 | J18: 5000 | K18: 5000 | L18: 5000 | M18: 6000 | N18: 6000 | O18: 6000
A19: Fife | B19: 7000 | C19: 9000 | D19: 7000 | E19: 6000 | F19: 3000 | G19: 7000 | H19: 11000 | I19: 10000 | J19: 12000 | K19: 15000 | L19: 12000 | M19: 14000 | N19: 21000 | O19: 10000
A20: Glasgow City | B20: 34000 | C20: 35000 | D20: 27000 | E20: 41000 | F20: 47000 | G20: 59000 | H20: 57000 | I20: 56000 | J20: 68000 | K20: 48000 | L20: 55000 | M20: 67000 | N20: 69000 | O20: 76000
A21: Highland | B21: 2000 | C21: 3000 | D21: 3000 | E21: 4000 | F21: 5000 | G21: 5000 | H21: 6000 | I21: 9000 | J21: 8000 | K21: 8000 | L21: 8000 | M21: 6000 | N21: 8000 | O21: 11000
A22: Inverclyde | B22: 2000 | C22: 1000 | D22: 1000 | E22: 1000 | F22: 1000 | G22: 2000 | H22: 1000 | I22: 2000 | J22: 2000 | K22: 2000 | L22: 1000 | M22: 1000 | N22: 1000 | O22: 1000
A23: Midlothian | B23: 1000 | C23: 1000 | D23: 1000 | E23: 1000 | F23: 2000 | G23: 2000 | H23: 1000 | I23: 2000 | J23: 2000 | K23: 2000 | L23: 3000 | M23: 3000 | N23: 3000 | O23: 5000
A24: Moray | B24: 1000 | C24: 2000 | D24: 2000 | E24: 3000 | F24: 3000 | G24: 4000 | H24: 4000 | I24: 4000 | J24: 4000 | K24: 3000 | L24: 2000 | M24: 3000 | N24: 4000 | O24: 4000
A25: Na h-Eileanan Siar | B25: 0~ | C25: * | D25: * | E25: * | F25: 0~ | G25: 0~ | H25: * | I25: * | J25: 0~ | K25: 0~ | L25: * | M25: * | N25: 0~ | O25: 0~
A26: North Ayrshire | B26: 2000 | C26: 2000 | D26: 2000 | E26: 2000 | F26: 2000 | G26: 1000 | H26: 2000 | I26: 2000 | J26: 2000 | K26: 2000 | L26: 2000 | M26: 1000 | N26: 2000 | O26: 2000
A27: North Lanarkshire | B27: 5000 | C27: 4000 | D27: 3000 | E27: 3000 | F27: 9000 | G27: 7000 | H27: 7000 | I27: 5000 | J27: 6000 | K27: 6000 | L27: 9000 | M27: 9000 | N27: 9000 | O27: 13000
A28: Orkney Islands | B28: * | C28: * | D28: 0~ | E28: 0~ | F28: * | G28: 0~ | H28: 0~ | I28: * | J28: * | K28: * | L28: * | M28: * | N28: 0~ | O28: 0~
A29: Perth and Kinross | B29: 2000 | C29: 3000 | D29: 3000 | E29: 4000 | F29: 4000 | G29: 4000 | H29: 5000 | I29: 5000 | J29: 7000 | K29: 7000 | L29: 8000 | M29: 10000 | N29: 8000 | O29: 9000
A30: Renfrewshire | B30: 3000 | C30: 2000 | D30: 3000 | E30: 5000 | F30: 6000 | G30: 5000 | H30: 5000 | I30: 8000 | J30: 8000 | K30: 7000 | L30: 9000 | M30: 8000 | N30: 10000 | O30: 8000
A31: Scottish Borders | B31: 2000 | C31: 1000 | D31: 3000 | E31: 4000 | F31: 3000 | G31: 3000 | H31: 5000 | I31: 3000 | J31: 3000 | K31: 4000 | L31: 5000 | M31: 4000 | N31: 4000 | O31: 7000
A32: Shetland Islands | B32: 0~ | C32: 0~ | D32: 0~ | E32: * | F32: 0~ | G32: 0~ | H32: 0~ | I32: 0~ | J32: 0~ | K32: 0~ | L32: 0~ | M32: 0~ | N32: 0~ | O32: 1000
A33: South Ayrshire | B33: 2000 | C33: 1000 | D33: 1000 | E33: 2000 | F33: 2000 | G33: 2000 | H33: 3000 | I33: 2000 | J33: 2000 | K33: 2000 | L33: 2000 | M33: 2000 | N33: 3000 | O33: 4000
A34: South Lanarkshire | B34: 3000 | C34: 3000 | D34: 3000 | E34: 7000 | F34: 5000 | G34: 5000 | H34: 5000 | I34: 6000 | J34: 7000 | K34: 7000 | L34: 6000 | M34: 7000 | N34: 7000 | O34: 8000
A35: Stirling | B35: 2000 | C35: 2000 | D35: 4000 | E35: 2000 | F35: 2000 | G35: 2000 | H35: 4000 | I35: 4000 | J35: 5000 | K35: 4000 | L35: 6000 | M35: 7000 | N35: 4000 | O35: 5000
A36: West Dunbartonshire | B36: 1000 | C36: 1000 | D36: 2000 | E36: 2000 | F36: 2000 | G36: 2000 | H36: 1000 | I36: 1000 | J36: 2000 | K36: 2000 | L36: 2000 | M36: 1000 | N36: 2000 | O36: 3000
A37: West Lothian | B37: 3000 | C37: 4000 | D37: 5000 | E37: 7000 | F37: 5000 | G37: 7000 | H37: 6000 | I37: 9000 | J37: 9000 | K37: 8000 | L37: 8000 | M37: 8000 | N37: 12000 | O37: 16000
A39: Footnotes
A40: 1) Figures are rounded to the nearest thousand.
A41: 2) Source: 'Estimated population resident in Scotland, by Council area and nationality, 2000-2017', from the Population by Country of Birth and Nationality section of the NRS website - http://www.nrscotland.gov.uk/statistics-and-data/statistics/statistics-by-theme/population/population-estimates/estimates-of-special-populations/population-by-country-of-birth-and-nationality
A42: 3) The data above comes from the ONS Annual Population Survey (APS) and Labour Force Survey (LFS).
A43: Totals may not sum due to rounding
A44: * = suppressed as estimate unreliable
A45: 0~ = rounded to zero
A47: Notes:
A48: 1. Estimates with a coefficient of variation of more than 20 per cent have been suppressed as they are deemed unreliable. The coefficient of variation (CV) indicates the robustness of each estimate. It is defined as:
A49: % = (standard error/ estimate) x 100
A50: where standard error is an estimate of the margin of error associated with a sample survey.
A51: 2. Estimates are based on the Annual Population Survey (APS) which is the Labour Force Survey (LFS) plus various sample boosts.
A52: 3. APS and LFS data has now been grossed to 2010-based population estimates and projections. Tables published from the year ending December 2010 have been weighted using these estimates. Tables published prior to this were weighted using the 2008 and 2006-based estimates and projections and have not been revised. Analysis shows that there is no discernable discontinuity in these tables.
A53: 4. It should be noted that the LFS :-
A54: * excludes students in halls who do not have a UK resident parent
A55: * excludes people in most other types of communal establishments (eg hotels, boarding houses, hostels, mobile home sites, etc)
A56: * is grossed to population estimates of those living in private households that only include migrants staying for 12 months or more. An adjustment is made for those who live in some NHS accommodation and halls of residence whose parents live in the UK. For this reason the sum of the British and non-British nationality estimates may not agree with the published population estimate.
A57: 5. The LFS weighting does not adjust for non-response bias by the nationality or country of birth variable.
A59: © Crown Copyright 2018

Sheet NINo
A1: National Insurance Number (NINo) allocations to adult overseas nationals entering the UK | K1: Return to front page
B3: Registrations
A4: Calendar Year | B4: 2004 | C4: 2005 | D4: 2006 | E4: 2007 | F4: 2008 | G4: 2009 | H4: 2010 | I4: 2011 | J4: 2012 | K4: 2013 | L4: 2014 | M4: 2015 | N4: 2016 | O4: 2017
A5: SCOTLAND | B5: 19080 | C5: 39410 | D5: 45490 | E5: 57080 | F5: 46110 | G5: 41610 | H5: 39420 | I5: 39500 | J5: 34850 | K5: 39470 | L5: 43600 | M5: 46570 | N5: 45190 | O5: 40510
A6: Aberdeen City | B6: 1900 | C6: 3580 | D6: 4960 | E6: 6360 | F6: 5020 | G6: 4830 | H6: 4230 | I6: 4600 | J6: 4110 | K6: 4930 | L6: 5460 | M6: 5210 | N6: 4140 | O6: 3230
A7: Aberdeenshire | B7: 740 | C7: 1610 | D7: 1600 | E7: 2000 | F7: 1690 | G7: 1680 | H7: 1620 | I7: 1500 | J7: 1290 | K7: 1610 | L7: 1680 | M7: 1730 | N7: 1450 | O7: 1180
A8: Angus | B8: 370 | C8: 790 | D8: 660 | E8: 920 | F8: 1260 | G8: 1350 | H8: 1570 | I8: 1140 | J8: 1090 | K8: 1240 | L8: 1220 | M8: 1310 | N8: 1180 | O8: 1080
A9: Argyll and Bute | B9: 350 | C9: 680 | D9: 780 | E9: 770 | F9: 560 | G9: 530 | H9: 520 | I9: 360 | J9: 340 | K9: 460 | L9: 460 | M9: 570 | N9: 560 | O9: 490
A10: City of Edinburgh | B10: 5090 | C10: 11060 | D10: 11950 | E10: 13630 | F10: 10330 | G10: 10450 | H10: 9820 | I10: 10590 | J10: 9710 | K10: 11360 | L10: 11340 | M10: 11930 | N10: 12000 | O10: 10200
A11: Clackmannanshire | B11: 30 | C11: 110 | D11: 160 | E11: 210 | F11: 170 | G11: 120 | H11: 100 | I11: 90 | J11: 100 | K11: 140 | L11: 90 | M11: 110 | N11: 140 | O11: 120
A12: Dumfries and Galloway | B12: 260 | C12: 630 | D12: 590 | E12: 800 | F12: 420 | G12: 350 | H12: 310 | I12: 310 | J12: 250 | K12: 280 | L12: 310 | M12: 340 | N12: 380 | O12: 470
A13: Dundee City | B13: 750 | C13: 1480 | D13: 1480 | E13: 1940 | F13: 1660 | G13: 1500 | H13: 1540 | I13: 1490 | J13: 1090 | K13: 1300 | L13: 1240 | M13: 1340 | N13: 1340 | O13: 1120
A14: East Ayrshire | B14: 100 | C14: 160 | D14: 140 | E14: 190 | F14: 130 | G14: 100 | H14: 90 | I14: 100 | J14: 100 | K14: 80 | L14: 90 | M14: 90 | N14: 160 | O14: 190
A15: East Dunbartonshire | B15: 130 | C15: 170 | D15: 220 | E15: 270 | F15: 150 | G15: 150 | H15: 150 | I15: 130 | J15: 90 | K15: 90 | L15: 110 | M15: 110 | N15: 170 | O15: 130
A16: East Lothian | B16: 160 | C16: 280 | D16: 350 | E16: 490 | F16: 490 | G16: 420 | H16: 400 | I16: 310 | J16: 280 | K16: 370 | L16: 450 | M16: 510 | N16: 550 | O16: 560
A17: East Renfrewshire | B17: 100 | C17: 130 | D17: 190 | E17: 230 | F17: 100 | G17: 110 | H17: 110 | I17: 100 | J17: 80 | K17: 100 | L17: 120 | M17: 140 | N17: 170 | O17: 100
A18: Falkirk | B18: 160 | C18: 390 | D18: 530 | E18: 670 | F18: 430 | G18: 320 | H18: 340 | I18: 330 | J18: 380 | K18: 380 | L18: 410 | M18: 540 | N18: 460 | O18: 470
A19: Fife | B19: 730 | C19: 1410 | D19: 1800 | E19: 2450 | F19: 1950 | G19: 1650 | H19: 1810 | I19: 1900 | J19: 1890 | K19: 1970 | L19: 2450 | M19: 2620 | N19: 2330 | O19: 1980
A20: Glasgow City | B20: 3290 | C20: 6250 | D20: 7840 | E20: 10700 | F20: 8820 | G20: 7650 | H20: 7940 | I20: 7650 | J20: 6600 | K20: 6820 | L20: 8400 | M20: 9310 | N20: 8940 | O20: 9440
A21: Highland | B21: 1220 | C21: 2690 | D21: 2360 | E21: 2960 | F21: 2140 | G21: 1560 | H21: 1310 | I21: 1280 | J21: 1200 | K21: 1290 | L21: 1600 | M21: 1680 | N21: 1730 | O21: 1610
A22: Inverclyde | B22: 210 | C22: 330 | D22: 230 | E22: 270 | F22: 250 | G22: 150 | H22: 160 | I22: 130 | J22: 100 | K22: 80 | L22: 90 | M22: 100 | N22: 180 | O22: 190
A23: Midlothian | B23: 80 | C23: 210 | D23: 250 | E23: 240 | F23: 180 | G23: 150 | H23: 200 | I23: 170 | J23: 150 | K23: 180 | L23: 260 | M23: 240 | N23: 290 | O23: 220
A24: Moray | B24: 240 | C24: 550 | D24: 520 | E24: 560 | F24: 380 | G24: 260 | H24: 270 | I24: 200 | J24: 220 | K24: 320 | L24: 310 | M24: 310 | N24: 260 | O24: 230
A25: Na h-Eileanan Siar | B25: 60 | C25: 130 | D25: 90 | E25: 130 | F25: 70 | G25: 50 | H25: 40 | I25: 40 | J25: 50 | K25: 30 | L25: 60 | M25: 70 | N25: 60 | O25: 80
A26: North Ayrshire | B26: 240 | C26: 310 | D26: 280 | E26: 340 | F26: 220 | G26: 230 | H26: 170 | I26: 170 | J26: 110 | K26: 130 | L26: 130 | M26: 180 | N26: 210 | O26: 190
A27: North Lanarkshire | B27: 300 | C27: 720 | D27: 1100 | E27: 1650 | F27: 1170 | G27: 670 | H27: 540 | I27: 690 | J27: 560 | K27: 590 | L27: 790 | M27: 1030 | N27: 1300 | O27: 990
A28: Orkney Islands | B28: 30 | C28: 60 | D28: 70 | E28: 110 | F28: 60 | G28: 60 | H28: 50 | I28: 50 | J28: 40 | K28: 70 | L28: 50 | M28: 60 | N28: 60 | O28: 50
A29: Perth and Kinross | B29: 810 | C29: 1610 | D29: 1750 | E29: 2450 | F29: 3930 | G29: 3580 | H29: 2930 | I29: 2810 | J29: 2160 | K29: 2350 | L29: 2460 | M29: 2730 | N29: 2670 | O29: 2320
A30: Renfrewshire | B30: 280 | C30: 590 | D30: 930 | E30: 1180 | F30: 780 | G30: 570 | H30: 480 | I30: 520 | J30: 450 | K30: 510 | L30: 670 | M30: 750 | N30: 890 | O30: 780
A31: Scottish Borders | B31: 270 | C31: 630 | D31: 760 | E31: 870 | F31: 610 | G31: 390 | H31: 380 | I31: 390 | J31: 330 | K31: 340 | L31: 360 | M31: 450 | N31: 370 | O31: 320
A32: Shetland Islands | B32: 90 | C32: 110 | D32: 150 | E32: 170 | F32: 160 | G32: 160 | H32: 110 | I32: 100 | J32: 100 | K32: 190 | L32: 540 | M32: 300 | N32: 140 | O32: 110
A33: South Ayrshire | B33: 180 | C33: 400 | D33: 410 | E33: 490 | F33: 310 | G33: 290 | H33: 300 | I33: 310 | J33: 200 | K33: 220 | L33: 240 | M33: 280 | N33: 320 | O33: 330
A34: South Lanarkshire | B34: 380 | C34: 710 | D34: 870 | E34: 1060 | F34: 720 | G34: 480 | H34: 480 | I34: 470 | J34: 370 | K34: 500 | L34: 640 | M34: 710 | N34: 900 | O34: 740
A35: Stirling | B35: 240 | C35: 690 | D35: 750 | E35: 880 | F35: 720 | G35: 680 | H35: 570 | I35: 600 | J35: 490 | K35: 590 | L35: 580 | M35: 750 | N35: 710 | O35: 700
A36: West Dunbartonshire | B36: 80 | C36: 160 | D36: 230 | E36: 260 | F36: 150 | G36: 180 | H36: 140 | I36: 130 | J36: 100 | K36: 140 | L36: 170 | M36: 190 | N36: 150 | O36: 130
A37: West Lothian | B37: 280 | C37: 820 | D37: 1490 | E37: 1850 | F37: 1110 | G37: 950 | H37: 750 | I37: 880 | J37: 830 | K37: 810 | L37: 850 | M37: 880 | N37: 980 | O37: 780
A39: Notes
A40: 1) Figures are rounded to the nearest ten. Some additional disclosure control has been applied. Totals may not sum due to rounding method used.
A41: 2) Registration date is derived from the date at which a NINo is maintained on the National Insurance Recording & Pay As You Earn System.
A42: 3) Improvements have been made to the allocation of migrants whose residential address is incomplete. Figures reflect the best estimate of an overseas national's locality at the time of registering for a NINo. A very small proportion of NINo registrations are to overseas nationals registering whilst abroad.
A43: 4) Source: Department for Work and Pensions (DWP), National Insurance Number Allocations to Adult Overseas Nationals - data produced using the Stat-Xplore tool at https://stat-xplore.dwp.gov.uk/.
A45: © Crown Copyright 2018

Sheet NINo Top 5 nationalities
A1: Nationalities of NINo allocations to overseas nationals in 2017
C2: Return to front page
B3: Number of nationalities | C3: Top 5 most common nationalities
A4: SCOTLAND | B4: 131 | C4: Poland, Romania, Spain, Italy, Bulgaria
A5: Glasgow City | B5: 101 | C5: Syria, Poland, Romania, India, Italy
A6: City of Edinburgh | B6: 91 | C6: Spain, Poland, Italy, India, France
A7: Aberdeen City | B7: 77 | C7: Poland, Romania, Nigeria, Ireland, Italy
A8: Dundee City | B8: 50 | C8: Poland, Romania, Italy, Bulgaria, Spain
A9: Fife | B9: 47 | C9: Romania, Bulgaria, Poland, United States of America, Lithuania
A10: Highland | B10: 38 | C10: Poland, Romania, Spain, Hungary, Czech Republic
A11: Renfrewshire | B11: 34 | C11: Poland, Romania, Italy, Bulgaria, Portugal
A12: Aberdeenshire | B12: 31 | C12: Lithuania, Poland, Romania, Bulgaria, Latvia
A13: North Lanarkshire | B13: 31 | C13: Poland, Romania, Italy, Lithuania, Bulgaria
A14: South Lanarkshire | B14: 31 | C14: Poland, Romania, Italy, Hungary, Ireland
A15: Perth and Kinross | B15: 30 | C15: Romania, Bulgaria, Poland, Czech Republic, Spain
A16: Stirling | B16: 30 | C16: Poland, India, Italy, Romania, Ireland
A17: East Lothian | B17: 27 | C17: Bulgaria, Poland, Ireland, Lithuania, Italy
A18: West Lothian | B18: 26 | C18: Poland, Romania, Slovakia, Latvia, Italy
A19: Dumfries and Galloway | B19: 24 | C19: Poland, Spain, Romania, Italy, Bulgaria
A20: South Ayrshire | B20: 22 | C20: Romania, Poland, Portugal, France, Spain
A21: Argyll and Bute | B21: 21 | C21: Romania, Poland, Spain, Hungary, France
A22: Falkirk | B22: 20 | C22: Poland, Romania, Hungary, Lithuania, Italy
A23: North Ayrshire | B23: 19 | C23: Romania, Poland, Syria, Italy, Portugal
A24: Scottish Borders | B24: 19 | C24: Poland, Romania, Lithuania, Italy, France
A25: Angus | B25: 17 | C25: Romania, Bulgaria, Poland, Lithuania, Latvia
A26: Midlothian | B26: 17 | C26: Poland, Romania, Italy, Spain, France
A27: East Dunbartonshire | B27: 16 | C27: Romania, Poland, Ireland, Syria, Portugal
A28: Moray | B28: 14 | C28: Romania, Poland, Portugal, Bulgaria, Germany
A29: Clackmannanshire | B29: 13 | C29: Poland, Romania, Syria, Bulgaria, Australia
A30: Inverclyde | B30: 10 | C30: Poland, Romania, Spain, Hungary, Czech Republic
A31: Na h-Eileanan Siar | B31: 10 | C31: Romania, Germany, Latvia, Syria, France
A32: West Dunbartonshire | B32: 10 | C32: Poland, Romania, Bulgaria, Ireland, Italy
A33: East Ayrshire | B33: 9 | C33: Romania, Poland, Portugal, Ireland, Italy
A34: East Renfrewshire | B34: 9 | C34: Poland, Pakistan, Romania, Italy, Ireland
A35: Shetland Islands | B35: 6 | C35: Hungary, Poland, Ireland, Slovakia, Spain
A36: Orkney Islands | B36: 3 | C36: Poland, Romania, Italy, Austria, Belgium
A38: Notes
A39: 1) Based on calendar year 2017.
A40: 2) Registration date is derived from the date at which a NINo is maintained on the National Insurance Recording & Pay As You Earn System, and not date of arrival.
A41: 3) A nationality is only included in the table above if at least 5 persons of that nationality have been allocated a National Insurance Number.
A42: 4) Where there is more than one nationality with the same number of people registered from there, the nationalities at the same level are sorted alphabetically and the top nationalities are represented in the table.
A43: 5) Source: Department for Work and Pensions (DWP), National Insurance Number Allocations to Adult Overseas Nationals entering the UK - data extracted using Stat-Xplore (https://stat-xplore.dwp.gov.uk/).
A45: © Crown Copyright 2018

Sheet WRS
A1: Worker Registration Scheme (WRS) | I1: Return to front page
B3: Worker Registrations
A4: Council Area | B4: May 2004 - Dec 2004 | C4: Jan 2005 - Dec 2005 | D4: Jan 2006 - Dec 2006 | E4: Jan 2007 - Dec 2007 | F4: Jan 2008 - Dec 2008 | G4: Jan 2009 - Dec 2009 | H4: Jan 2010 - Dec 2010 | I4: Jan 2011 - Dec 2011
A5: SCOTLAND | B5: 7180 | C5: 14445 | D5: 18035 | E5: 19630 | F5: 14180 | G5: 10315 | H5: 8880 | I5: -
A6: Aberdeen City | B6: 215 | C6: 590 | D6: 1135 | E6: 1240 | F6: 890 | G6: 880 | H6: 735 | I6: -
A7: Aberdeenshire | B7: 610 | C7: 1135 | D7: 1320 | E7: 1275 | F7: 1020 | G7: 1060 | H7: 880 | I7: -
A8: Angus | B8: 635 | C8: 955 | D8: 775 | E8: 1010 | F8: 770 | G8: 330 | H8: 425 | I8: -
A9: Argyll and Bute | B9: 170 | C9: 325 | D9: 400 | E9: 290 | F9: 250 | G9: 195 | H9: 215 | I9: -
A10: City of Edinburgh | B10: 1200 | C10: 2235 | D10: 2460 | E10: 2325 | F10: 1565 | G10: 1245 | H10: 1275 | I10: -
A11: Clackmannanshire | B11: 15 | C11: 45 | D11: 30 | E11: 45 | F11: 35 | G11: 40 | H11: 15 | I11: -
A12: Dumfries and Galloway | B12: 50 | C12: 250 | D12: 375 | E12: 280 | F12: 185 | G12: 130 | H12: 110 | I12: -
A13: Dundee City | B13: 115 | C13: 225 | D13: 435 | E13: 425 | F13: 315 | G13: 290 | H13: 280 | I13: -
A14: East Ayrshire | B14: 10 | C14: 60 | D14: 165 | E14: 195 | F14: 125 | G14: 60 | H14: 30 | I14: -
A15: East Dunbartonshire | B15: 10 | C15: 30 | D15: 85 | E15: 75 | F15: 35 | G15: 15 | H15: 25 | I15: -
A16: East Lothian | B16: 135 | C16: 160 | D16: 180 | E16: 185 | F16: 125 | G16: 115 | H16: 65 | I16: -
A17: East Renfrewshire | B17: - | C17: 20 | D17: 65 | E17: 75 | F17: 35 | G17: 30 | H17: 20 | I17: -
A18: Falkirk | B18: 25 | C18: 270 | D18: 330 | E18: 295 | F18: 160 | G18: 115 | H18: 125 | I18: -
A19: Fife | B19: 480 | C19: 1030 | D19: 1165 | E19: 1285 | F19: 1015 | G19: 675 | H19: 485 | I19: -
A20: Glasgow City | B20: 625 | C20: 1480 | D20: 2200 | E20: 2690 | F20: 1690 | G20: 1130 | H20: 925 | I20: -
A21: Highland | B21: 865 | C21: 1330 | D21: 1475 | E21: 1630 | F21: 1260 | G21: 710 | H21: 605 | I21: -
A22: Inverclyde | B22: 5 | C22: 75 | D22: 35 | E22: 35 | F22: 10 | G22: 20 | H22: 5 | I22: -
A23: Midlothian | B23: 70 | C23: 200 | D23: 235 | E23: 195 | F23: 115 | G23: 60 | H23: 50 | I23: -
A24: Moray | B24: 70 | C24: 285 | D24: 255 | E24: 300 | F24: 205 | G24: 100 | H24: 90 | I24: -
A25: Na h-Eileanan Siar | B25: 35 | C25: 80 | D25: 65 | E25: 60 | F25: 40 | G25: 20 | H25: 10 | I25: -
A26: North Ayrshire | B26: 30 | C26: 65 | D26: 70 | E26: 80 | F26: 60 | G26: 25 | H26: 35 | I26: -
A27: North Lanarkshire | B27: 125 | C27: 420 | D27: 645 | E27: 855 | F27: 545 | G27: 220 | H27: 245 | I27: -
A28: Orkney Islands | B28: - | C28: 5 | D28: 20 | E28: 50 | F28: 20 | G28: 15 | H28: 15 | I28: -
A29: Perth and Kinross | B29: 1080 | C29: 1420 | D29: 1765 | E29: 1850 | F29: 1695 | G29: 1255 | H29: 1110 | I29: -
A30: Renfrewshire | B30: 60 | C30: 185 | D30: 325 | E30: 440 | F30: 245 | G30: 210 | H30: 195 | I30: -
A31: Scottish Borders | B31: 155 | C31: 515 | D31: 475 | E31: 475 | F31: 300 | G31: 220 | H31: 165 | I31: -
A32: Shetland Islands | B32: 55 | C32: 35 | D32: 75 | E32: 85 | F32: 80 | G32: 80 | H32: 60 | I32: -
A33: South Ayrshire | B33: 15 | C33: 25 | D33: 125 | E33: 110 | F33: 75 | G33: 40 | H33: 15 | I33: -
A34: South Lanarkshire | B34: 65 | C34: 320 | D34: 530 | E34: 560 | F34: 325 | G34: 175 | H34: 115 | I34: -
A35: Stirling | B35: 120 | C35: 210 | D35: 280 | E35: 295 | F35: 325 | G35: 245 | H35: 155 | I35: -
A36: West Dunbartonshire | B36: 5 | C36: 20 | D36: 45 | E36: 35 | F36: 20 | G36: 10 | H36: 0 | I36: -
A37: West Lothian | B37: 120 | C37: 445 | D37: 510 | E37: 900 | F37: 650 | G37: 630 | H37: 400 | I37: -
A39: Notes
A40: 1) This data is based on Management Information, is provisional and may be subject to change. The data are not National Statistics. This table shows registered workers rather than the number of applications made. The figures are for initial applications only (not multiple applications, where an individual is doing more than one job simultaneously, nor re-registrations, where an individual has changed employers). Currently 99.3% of approved applications have an accurate employer postcode. Figures based on Employer's address and the date the application is approved. Figures are rounded to nearest 5 Because of rounding, figures may not add up to totals shown.
A41: 2) Source: Local Government Association, Worker Registration Scheme Data Archive (no longer available online).
A42: 3) The Worker Registration Scheme was discontinued on 1 May 2011.
A44: © Crown Copyright 2018

Sheet WRS quarterly
A1: Worker Registration Scheme (WRS) - quarterly data | L1: Return to front page
B3: 2005 | F3: 2006 | J3: 2007 | N3: 2008 | R3: 2009 | V3: 2010 | Z3: 2011
A4: Council Area | B4: Q1 | C4: Q2 | D4: Q3 | E4: Q4 | F4: Q1 | G4: Q2 | H4: Q3 | I4: Q4 | J4: Q1 | K4: Q2 | L4: Q3 | M4: Q4 | N4: Q1 | O4: Q2 | P4: Q3 | Q4: Q4 | R4: Q1 | S4: Q2 | T4: Q3 | U4: Q4 | V4: Q1 | W4: Q2 | X4: Q3 | Y4: Q4 | Z4: Q1 | AA4: Q2 | AB4: Q3 | AC4: Q4
A5: SCOTLAND | B5: ~ | C5: ~ | D5: ~ | E5: ~ | F5: ~ | G5: 3900 | H5: 5860 | I5: 4855 | J5: 4920 | K5: 4240 | L5: 5960 | M5: 4500 | N5: 3740 | O5: 3775 | P5: 3705 | Q5: 2960 | R5: 2720 | S5: 2015 | T5: 3125 | U5: 2455 | V5: 1545 | W5: 1415 | X5: 3425 | Y5: 2505 | Z5: 1390 | AA5: ~ | AB5: ~ | AC5: ~
A6: Aberdeen City | B6: ~ | C6: ~ | D6: ~ | E6: ~ | F6: ~ | G6: 215 | H6: 300 | I6: 380 | J6: 370 | K6: 265 | L6: 325 | M6: 280 | N6: 285 | O6: 245 | P6: 150 | Q6: 210 | R6: 285 | S6: 180 | T6: 190 | U6: 225 | V6: 155 | W6: 145 | X6: 200 | Y6: 235 | Z6: 185 | AA6: ~ | AB6: ~ | AC6: ~
A7: Aberdeenshire | B7: ~ | C7: ~ | D7: ~ | E7: ~ | F7: ~ | G7: 250 | H7: 460 | I7: 330 | J7: 290 | K7: 240 | L7: 375 | M7: 370 | N7: 260 | O7: 220 | P7: 285 | Q7: 255 | R7: 260 | S7: 160 | T7: 320 | U7: 320 | V7: 200 | W7: 110 | X7: 350 | Y7: 220 | Z7: 120 | AA7: ~ | AB7: ~ | AC7: ~
A8: Angus | B8: ~ | C8: ~ | D8: ~ | E8: ~ | F8: ~ | G8: 225 | H8: 275 | I8: 170 | J8: 145 | K8: 180 | L8: 520 | M8: 165 | N8: 125 | O8: 160 | P8: 335 | Q8: 150 | R8: 55 | S8: 90 | T8: 105 | U8: 80 | V8: 35 | W8: 55 | X8: 265 | Y8: 70 | Z8: 30 | AA8: ~ | AB8: ~ | AC8: ~
A9: Argyll and Bute | B9: ~ | C9: ~ | D9: ~ | E9: ~ | F9: ~ | G9: 125 | H9: 140 | I9: 75 | J9: 80 | K9: 55 | L9: 100 | M9: 55 | N9: 65 | O9: 85 | P9: 65 | Q9: 35 | R9: 30 | S9: 45 | T9: 60 | U9: 60 | V9: 30 | W9: 70 | X9: 65 | Y9: 50 | Z9: 25 | AA9: ~ | AB9: ~ | AC9: ~
A10: City of Edinburgh | B10: ~ | C10: ~ | D10: ~ | E10: ~ | F10: ~ | G10: 565 | H10: 630 | I10: 685 | J10: 700 | K10: 495 | L10: 610 | M10: 520 | N10: 480 | O10: 460 | P10: 280 | Q10: 345 | R10: 410 | S10: 255 | T10: 295 | U10: 285 | V10: 220 | W10: 220 | X10: 390 | Y10: 445 | Z10: 245 | AA10: ~ | AB10: ~ | AC10: ~
A11: Clackmannanshire | B11: ~ | C11: ~ | D11: ~ | E11: ~ | F11: ~ | G11: 5 | H11: 5 | I11: 10 | J11: 10 | K11: 5 | L11: 10 | M11: 10 | N11: 15 | O11: 5 | P11: 5 | Q11: 10 | R11: 10 | S11: 5 | T11: 20 | U11: 5 | V11: 5 | W11: 5 | X11: 5 | Y11: † | Z11: 0 | AA11: ~ | AB11: ~ | AC11: ~
A12: Dumfries and Galloway | B12: ~ | C12: ~ | D12: ~ | E12: ~ | F12: ~ | G12: 65 | H12: 110 | I12: 140 | J12: 55 | K12: 50 | L12: 60 | M12: 115 | N12: 40 | O12: 60 | P12: 40 | Q12: 45 | R12: 40 | S12: 25 | T12: 30 | U12: 35 | V12: 15 | W12: 20 | X12: 20 | Y12: 55 | Z12: 20 | AA12: ~ | AB12: ~ | AC12: ~
A13: Dundee City | B13: ~ | C13: ~ | D13: ~ | E13: ~ | F13: ~ | G13: 55 | H13: 150 | I13: 140 | J13: 120 | K13: 75 | L13: 125 | M13: 105 | N13: 70 | O13: 70 | P13: 100 | Q13: 75 | R13: 95 | S13: 40 | T13: 90 | U13: 65 | V13: 30 | W13: 35 | X13: 120 | Y13: 95 | Z13: 40 | AA13: ~ | AB13: ~ | AC13: ~
A14: East Ayrshire | B14: ~ | C14: ~ | D14: ~ | E14: ~ | F14: ~ | G14: 45 | H14: 45 | I14: 35 | J14: 80 | K14: 45 | L14: 20 | M14: 50 | N14: 35 | O14: 25 | P14: 20 | Q14: 45 | R14: 10 | S14: 20 | T14: 15 | U14: 15 | V14: 5 | W14: 10 | X14: 10 | Y14: 5 | Z14: 5 | AA14: ~ | AB14: ~ | AC14: ~
A15: East Dunbartonshire | B15: ~ | C15: ~ | D15: ~ | E15: ~ | F15: ~ | G15: 30 | H15: 30 | I15: 20 | J15: 30 | K15: 10 | L15: 20 | M15: 15 | N15: 15 | O15: 15 | P15: † | Q15: 5 | R15: 5 | S15: † | T15: 5 | U15: 5 | V15: 5 | W15: 5 | X15: 5 | Y15: 10 | Z15: 0 | AA15: ~ | AB15: ~ | AC15: ~
A16: East Lothian | B16: ~ | C16: ~ | D16: ~ | E16: ~ | F16: ~ | G16: 30 | H16: 50 | I16: 65 | J16: 40 | K16: 30 | L16: 70 | M16: 45 | N16: 50 | O16: 40 | P16: 15 | Q16: 20 | R16: 40 | S16: 20 | T16: 25 | U16: 30 | V16: 15 | W16: 10 | X16: 20 | Y16: 20 | Z16: 10 | AA16: ~ | AB16: ~ | AC16: ~
A17: East Renfrewshire | B17: ~ | C17: ~ | D17: ~ | E17: ~ | F17: ~ | G17: 20 | H17: 20 | I17: 30 | J17: 25 | K17: 20 | L17: 20 | M17: 15 | N17: 15 | O17: 10 | P17: 5 | Q17: 5 | R17: 10 | S17: 5 | T17: 5 | U17: 10 | V17: 15 | W17: † | X17: 5 | Y17: † | Z17: 15 | AA17: ~ | AB17: ~ | AC17: ~
A18: Falkirk | B18: ~ | C18: ~ | D18: ~ | E18: ~ | F18: ~ | G18: 95 | H18: 85 | I18: 100 | J18: 90 | K18: 70 | L18: 100 | M18: 35 | N18: 40 | O18: 55 | P18: 25 | Q18: 40 | R18: 35 | S18: 15 | T18: 35 | U18: 30 | V18: 15 | W18: 50 | X18: 30 | Y18: 30 | Z18: 30 | AA18: ~ | AB18: ~ | AC18: ~
A19: Fife | B19: ~ | C19: ~ | D19: ~ | E19: ~ | F19: ~ | G19: 190 | H19: 520 | I19: 290 | J19: 245 | K19: 245 | L19: 505 | M19: 290 | N19: 215 | O19: 220 | P19: 405 | Q19: 175 | R19: 110 | S19: 175 | T19: 305 | U19: 85 | V19: 75 | W19: 45 | X19: 280 | Y19: 85 | Z19: 40 | AA19: ~ | AB19: ~ | AC19: ~
A20: Glasgow City | B20: ~ | C20: ~ | D20: ~ | E20: ~ | F20: ~ | G20: 500 | H20: 560 | I20: 600 | J20: 975 | K20: 635 | L20: 525 | M20: 550 | N20: 595 | O20: 445 | P20: 250 | Q20: 400 | R20: 370 | S20: 235 | T20: 270 | U20: 255 | V20: 190 | W20: 125 | X20: 305 | Y20: 305 | Z20: 175 | AA20: ~ | AB20: ~ | AC20: ~
A21: Highland | B21: ~ | C21: ~ | D21: ~ | E21: ~ | F21: ~ | G21: 295 | H21: 535 | I21: 435 | J21: 440 | K21: 370 | L21: 395 | M21: 425 | N21: 300 | O21: 410 | P21: 270 | Q21: 280 | R21: 180 | S21: 160 | T21: 205 | U21: 165 | V21: 100 | W21: 120 | X21: 215 | Y21: 170 | Z21: 90 | AA21: ~ | AB21: ~ | AC21: ~
A22: Inverclyde | B22: ~ | C22: ~ | D22: ~ | E22: ~ | F22: ~ | G22: 5 | H22: 10 | I22: 10 | J22: 5 | K22: 10 | L22: 15 | M22: 5 | N22: 0 | O22: 5 | P22: 5 | Q22: † | R22: 5 | S22: 5 | T22: † | U22: 10 | V22: 5 | W22: - | X22: † | Y22: 0 | Z22: † | AA22: ~ | AB22: ~ | AC22: ~
A23: Midlothian | B23: ~ | C23: ~ | D23: ~ | E23: ~ | F23: ~ | G23: 50 | H23: 70 | I23: 40 | J23: 55 | K23: 30 | L23: 40 | M23: 70 | N23: 40 | O23: 20 | P23: 35 | Q23: 20 | R23: 20 | S23: 10 | T23: 15 | U23: 15 | V23: 10 | W23: 10 | X23: 15 | Y23: 15 | Z23: 10 | AA23: ~ | AB23: ~ | AC23: ~
A24: Moray | B24: ~ | C24: ~ | D24: ~ | E24: ~ | F24: ~ | G24: 70 | H24: 100 | I24: 55 | J24: 40 | K24: 85 | L24: 105 | M24: 70 | N24: 35 | O24: 60 | P24: 55 | Q24: 55 | R24: 20 | S24: 15 | T24: 35 | U24: 30 | V24: 15 | W24: 10 | X24: 40 | Y24: 25 | Z24: 10 | AA24: ~ | AB24: ~ | AC24: ~
A25: Na h-Eileanan Siar | B25: ~ | C25: ~ | D25: ~ | E25: ~ | F25: ~ | G25: 20 | H25: 10 | I25: 15 | J25: 15 | K25: 20 | L25: 15 | M25: 10 | N25: 10 | O25: 10 | P25: 10 | Q25: 10 | R25: † | S25: 5 | T25: 10 | U25: 5 | V25: † | W25: † | X25: 5 | Y25: 5 | Z25: 5 | AA25: ~ | AB25: ~ | AC25: ~
A26: North Ayrshire | B26: ~ | C26: ~ | D26: ~ | E26: ~ | F26: ~ | G26: 20 | H26: 15 | I26: 15 | J26: 15 | K26: 25 | L26: 20 | M26: 20 | N26: 20 | O26: 20 | P26: 10 | Q26: 10 | R26: 5 | S26: 10 | T26: 5 | U26: 5 | V26: † | W26: 5 | X26: 20 | Y26: 10 | Z26: 5 | AA26: ~ | AB26: ~ | AC26: ~
A27: North Lanarkshire | B27: ~ | C27: ~ | D27: ~ | E27: ~ | F27: ~ | G27: 115 | H27: 175 | I27: 255 | J27: 220 | K27: 210 | L27: 230 | M27: 195 | N27: 175 | O27: 145 | P27: 115 | Q27: 110 | R27: 85 | S27: 35 | T27: 45 | U27: 55 | V27: 65 | W27: 45 | X27: 85 | Y27: 50 | Z27: 25 | AA27: ~ | AB27: ~ | AC27: ~
A28: Orkney Islands | B28: ~ | C28: ~ | D28: ~ | E28: ~ | F28: ~ | G28: 5 | H28: 10 | I28: 5 | J28: 10 | K28: 20 | L28: 10 | M28: 10 | N28: 5 | O28: 5 | P28: 10 | Q28: † | R28: 5 | S28: 5 | T28: † | U28: 5 | V28: † | W28: 5 | X28: 0 | Y28: 10 | Z28: 5 | AA28: ~ | AB28: ~ | AC28: ~
A29: Perth and Kinross | B29: ~ | C29: ~ | D29: ~ | E29: ~ | F29: ~ | G29: 415 | H29: 895 | I29: 250 | J29: 205 | K29: 485 | L29: 905 | M29: 255 | N29: 230 | O29: 470 | P29: 790 | Q29: 205 | R29: 165 | S29: 260 | T29: 685 | U29: 145 | V29: 120 | W29: 165 | X29: 690 | Y29: 135 | Z29: 100 | AA29: ~ | AB29: ~ | AC29: ~
A30: Renfrewshire | B30: ~ | C30: ~ | D30: ~ | E30: ~ | F30: ~ | G30: 65 | H30: 95 | I30: 95 | J30: 140 | K30: 100 | L30: 105 | M30: 95 | N30: 75 | O30: 60 | P30: 40 | Q30: 70 | R30: 60 | S30: 50 | T30: 45 | U30: 55 | V30: 35 | W30: 35 | X30: 60 | Y30: 65 | Z30: 40 | AA30: ~ | AB30: ~ | AC30: ~
A31: Scottish Borders | B31: ~ | C31: ~ | D31: ~ | E31: ~ | F31: ~ | G31: 80 | H31: 170 | I31: 145 | J31: 80 | K31: 120 | L31: 155 | M31: 120 | N31: 110 | O31: 55 | P31: 95 | Q31: 40 | R31: 60 | S31: 15 | T31: 75 | U31: 70 | V31: 25 | W31: 15 | X31: 65 | Y31: 60 | Z31: 45 | AA31: ~ | AB31: ~ | AC31: ~
A32: Shetland Islands | B32: ~ | C32: ~ | D32: ~ | E32: ~ | F32: ~ | G32: 15 | H32: 25 | I32: 25 | J32: 25 | K32: 10 | L32: 20 | M32: 30 | N32: 30 | O32: 10 | P32: 20 | Q32: 20 | R32: 20 | S32: 10 | T32: 15 | U32: 35 | V32: 10 | W32: 5 | X32: 15 | Y32: 30 | Z32: 5 | AA32: ~ | AB32: ~ | AC32: ~
A33: South Ayrshire | B33: ~ | C33: ~ | D33: ~ | E33: ~ | F33: ~ | G33: 60 | H33: 30 | I33: 30 | J33: 35 | K33: 25 | L33: 35 | M33: 15 | N33: 25 | O33: 25 | P33: 15 | Q33: 10 | R33: 10 | S33: 15 | T33: 10 | U33: 5 | V33: 5 | W33: 5 | X33: 5 | Y33: † | Z33: 5 | AA33: ~ | AB33: ~ | AC33: ~
A34: South Lanarkshire | B34: ~ | C34: ~ | D34: ~ | E34: ~ | F34: ~ | G34: 90 | H34: 135 | I34: 170 | J34: 140 | K34: 120 | L34: 145 | M34: 155 | N34: 95 | O34: 80 | P34: 80 | Q34: 70 | R34: 75 | S34: 35 | T34: 35 | U34: 30 | V34: 20 | W34: 30 | X34: 30 | Y34: 35 | Z34: 25 | AA34: ~ | AB34: ~ | AC34: ~
A35: Stirling | B35: ~ | C35: ~ | D35: ~ | E35: ~ | F35: ~ | G35: 55 | H35: 80 | I35: 80 | J35: 75 | K35: 80 | L35: 80 | M35: 60 | N35: 90 | O35: 90 | P35: 60 | Q35: 85 | R35: 70 | S35: 50 | T35: 55 | U35: 70 | V35: 45 | W35: 20 | X35: 45 | Y35: 45 | Z35: 15 | AA35: ~ | AB35: ~ | AC35: ~
A36: West Dunbartonshire | B36: ~ | C36: ~ | D36: ~ | E36: ~ | F36: ~ | G36: 10 | H36: 10 | I36: 10 | J36: 15 | K36: 5 | L36: 5 | M36: 10 | N36: 10 | O36: 5 | P36: † | Q36: 5 | R36: 5 | S36: † | T36: 5 | U36: † | V36: † | W36: † | X36: † | Y36: † | Z36: † | AA36: ~ | AB36: ~ | AC36: ~
A37: West Lothian | B37: ~ | C37: ~ | D37: ~ | E37: ~ | F37: ~ | G37: 130 | H37: 105 | I37: 145 | J37: 160 | K37: 115 | L37: 285 | M37: 340 | N37: 175 | O37: 190 | P37: 115 | Q37: 170 | R37: 180 | S37: 70 | T37: 115 | U37: 265 | V37: 85 | W37: 30 | X37: 75 | Y37: 210 | Z37: 80 | AA37: ~ | AB37: ~ | AC37: ~
A39: Notes
A40: 1) This data is based on Management Information, is provisional and may be subject to change. The data are not National Statistics. This table shows registered workers rather than the number of applications made. The figures are for initial applications only (not multiple applications, where an individual is doing more than one job simultaneously, nor re-registrations, where an individual has changed employers). Currently 99.3% of approved applications have an accurate employer postcode. Figures based on Employers address and the date the application is approved. Figures are rounded to nearest 5 "†" Indicates 1 or 2 Because of rounding, figures may not add up to totals shown.
A41: 2) Source: Local Government Association, Worker Registration Scheme Data Archive (no longer available online)
A42: 3) The Worker Registration Scheme was discontinued on 1 May 2011.
A44: © Crown Copyright 2018

Sheet Pupils ethnic group
A1: Pupils from minority ethnic groups | L1: Return to front page
B3: Minority ethnic group3 | Q3: White other4 | AF3: Not known/not disclosed
B4: 2003 | C4: 2004 | D4: 2005 | E4: 2006 | F4: 2007 | G4: 2008 | H4: 2009 | I4: 2010 | J4: 2011 | K4: 2012 | L4: 2013 | M4: 2014 | N4: 2015 | O4: 2016 | P4: 2017 | Q4: 2003 | R4: 2004 | S4: 2005 | T4: 2006 | U4: 2007 | V4: 2008 | W4: 2009 | X4: 2010 | Y4: 2011 | Z4: 2012 | AA4: 2013 | AB4: 2014 | AC4: 2015 | AD4: 2016 | AE4: 2017 | AF4: 2003 | AG4: 2004 | AH4: 2005 | AI4: 2006 | AJ4: 2007 | AK4: 2008 | AL4: 2009 | AM4: 2010 | AN4: 2011 | AO4: 2012 | AP4: 2013 | AQ4: 2014 | AR4: 2015 | AS4: 2016 | AT4: 2017
A5: SCOTLAND | B5: 23630 | C5: 24987 | D5: 26145 | E5: 27543 | F5: 29896 | G5: 31477 | H5: 33417 | I5: 34639 | J5: 35142 | K5: 36811 | L5: 39073 | M5: 41849 | N5: 44348 | O5: 47814 | P5: 51160 | Q5: 8550 | R5: 8015 | S5: 8917 | T5: 10349 | U5: 12146 | V5: 14393 | W5: 15927 | X5: 17548 | Y5: 20238 | Z5: 22404 | AA5: 25310 | AB5: 28126 | AC5: 31216 | AD5: 34282 | AE5: 36595 | AF5: 31633 | AG5: 27056 | AH5: 21652 | AI5: 19726 | AJ5: 17151 | AK5: 16445 | AL5: 16270 | AM5: 16744 | AN5: 11859 | AO5: 11316 | AP5: 11200 | AQ5: 11254 | AR5: 12150 | AS5: 11925 | AT5: 12625
A6: Aberdeen City | B6: 1085 | C6: 1189 | D6: 1251 | E6: 1391 | F6: 1552 | G6: 1627 | H6: 1739 | I6: 1920 | J6: 2034 | K6: 2233 | L6: 2412 | M6: 2655 | N6: 2858 | O6: 3014 | P6: 3334 | Q6: 480 | R6: 500 | S6: 522 | T6: 647 | U6: 926 | V6: 1045 | W6: 1212 | X6: 1386 | Y6: 1630 | Z6: 1891 | AA6: 2304 | AB6: 2603 | AC6: 2889 | AD6: 3088 | AE6: 3139 | AF6: 2223 | AG6: 1507 | AH6: 1077 | AI6: 814 | AJ6: 617 | AK6: 457 | AL6: 365 | AM6: 382 | AN6: 791 | AO6: 879 | AP6: 775 | AQ6: 623 | AR6: 454 | AS6: 369 | AT6: 298
A7: Aberdeenshire | B7: 386 | C7: 418 | D7: 455 | E7: 487 | F7: 563 | G7: 559 | H7: 731 | I7: 735 | J7: 711 | K7: 749 | L7: 811 | M7: 946 | N7: 994 | O7: 1100 | P7: 1202 | Q7: 351 | R7: 372 | S7: 447 | T7: 568 | U7: 712 | V7: 826 | W7: 971 | X7: 1104 | Y7: 1247 | Z7: 1450 | AA7: 1609 | AB7: 1807 | AC7: 2000 | AD7: 2126 | AE7: 2138 | AF7: 1817 | AG7: 1124 | AH7: 668 | AI7: 507 | AJ7: 396 | AK7: 391 | AL7: 423 | AM7: 502 | AN7: 365 | AO7: 416 | AP7: 346 | AQ7: 303 | AR7: 269 | AS7: 243 | AT7: 214
A8: Angus | B8: 177 | C8: 177 | D8: 193 | E8: 198 | F8: 619 | G8: 570 | H8: 503 | I8: 411 | J8: 366 | K8: 306 | L8: 322 | M8: 359 | N8: 366 | O8: 402 | P8: 439 | Q8: 132 | R8: 138 | S8: 146 | T8: 194 | U8: 206 | V8: 254 | W8: 294 | X8: 348 | Y8: 417 | Z8: 459 | AA8: 519 | AB8: 578 | AC8: 639 | AD8: 714 | AE8: 752 | AF8: 3255 | AG8: 3462 | AH8: 1967 | AI8: 1738 | AJ8: 825 | AK8: 651 | AL8: 522 | AM8: 442 | AN8: 273 | AO8: 237 | AP8: 198 | AQ8: 185 | AR8: 170 | AS8: 140 | AT8: 132
A9: Argyll and Bute | B9: 155 | C9: 154 | D9: 187 | E9: 180 | F9: 178 | G9: 203 | H9: 209 | I9: 209 | J9: 214 | K9: 208 | L9: 219 | M9: 233 | N9: 255 | O9: 288 | P9: 297 | Q9: 152 | R9: 157 | S9: 175 | T9: 183 | U9: 211 | V9: 258 | W9: 270 | X9: 298 | Y9: 330 | Z9: 348 | AA9: 380 | AB9: 407 | AC9: 432 | AD9: 488 | AE9: 501 | AF9: 525 | AG9: 428 | AH9: 437 | AI9: 440 | AJ9: 453 | AK9: 411 | AL9: 433 | AM9: 329 | AN9: 120 | AO9: 95 | AP9: 92 | AQ9: 105 | AR9: 93 | AS9: 106 | AT9: 97
A10: City of Edinburgh | B10: 3539 | C10: 3722 | D10: 3934 | E10: 4052 | F10: 4326 | G10: 4672 | H10: 4883 | I10: 5051 | J10: 5246 | K10: 5642 | L10: 6082 | M10: 6538 | N10: 6887 | O10: 7474 | P10: 8101 | Q10: 1697 | R10: 1479 | S10: 1440 | T10: 1581 | U10: 1867 | V10: 2049 | W10: 2232 | X10: 2470 | Y10: 2842 | Z10: 3228 | AA10: 3762 | AB10: 4210 | AC10: 4631 | AD10: 5070 | AE10: 5567 | AF10: 1383 | AG10: 994 | AH10: 737 | AI10: 598 | AJ10: 823 | AK10: 746 | AL10: 757 | AM10: 826 | AN10: 705 | AO10: 695 | AP10: 754 | AQ10: 711 | AR10: 582 | AS10: 612 | AT10: 682
A11: Clackmannanshire | B11: 87 | C11: 115 | D11: 127 | E11: 188 | F11: 197 | G11: 188 | H11: 209 | I11: 207 | J11: 186 | K11: 201 | L11: 200 | M11: 212 | N11: 203 | O11: 217 | P11: 229 | Q11: 45 | R11: 51 | S11: 49 | T11: 86 | U11: 121 | V11: 135 | W11: 149 | X11: 157 | Y11: 198 | Z11: 218 | AA11: 209 | AB11: 210 | AC11: 220 | AD11: 216 | AE11: 227 | AF11: 320 | AG11: 177 | AH11: 100 | AI11: 81 | AJ11: 40 | AK11: 38 | AL11: 57 | AM11: 48 | AN11: 18 | AO11: 19 | AP11: 41 | AQ11: 40 | AR11: 44 | AS11: 57 | AT11: 81
A12: Dumfries and Galloway | B12: 307 | C12: 302 | D12: 332 | E12: 325 | F12: 328 | G12: 341 | H12: 443 | I12: 497 | J12: 411 | K12: 409 | L12: 399 | M12: 408 | N12: 411 | O12: 422 | P12: 439 | Q12: 118 | R12: 130 | S12: 151 | T12: 205 | U12: 260 | V12: 286 | W12: 322 | X12: 319 | Y12: 363 | Z12: 400 | AA12: 435 | AB12: 499 | AC12: 579 | AD12: 636 | AE12: 710 | AF12: 668 | AG12: 627 | AH12: 524 | AI12: 492 | AJ12: 451 | AK12: 446 | AL12: 338 | AM12: 321 | AN12: 251 | AO12: 237 | AP12: 270 | AQ12: 326 | AR12: 404 | AS12: 427 | AT12: 502
A13: Dundee City | B13: 809 | C13: 876 | D13: 926 | E13: 936 | F13: 1075 | G13: 1191 | H13: 1229 | I13: 1266 | J13: 1287 | K13: 1351 | L13: 1440 | M13: 1532 | N13: 1595 | O13: 1684 | P13: 1844 | Q13: 155 | R13: 162 | S13: 193 | T13: 221 | U13: 279 | V13: 340 | W13: 374 | X13: 406 | Y13: 483 | Z13: 528 | AA13: 611 | AB13: 714 | AC13: 819 | AD13: 881 | AE13: 947 | AF13: 1897 | AG13: 1583 | AH13: 1176 | AI13: 910 | AJ13: 763 | AK13: 604 | AL13: 655 | AM13: 592 | AN13: 384 | AO13: 351 | AP13: 369 | AQ13: 436 | AR13: 419 | AS13: 471 | AT13: 508
A14: East Ayrshire | B14: 208 | C14: 209 | D14: 219 | E14: 244 | F14: 248 | G14: 258 | H14: 273 | I14: 296 | J14: 289 | K14: 303 | L14: 332 | M14: 362 | N14: 382 | O14: 411 | P14: 434 | Q14: 131 | R14: 121 | S14: 136 | T14: 143 | U14: 162 | V14: 216 | W14: 230 | X14: 271 | Y14: 312 | Z14: 328 | AA14: 318 | AB14: 312 | AC14: 313 | AD14: 313 | AE14: 308 | AF14: 241 | AG14: 288 | AH14: 376 | AI14: 180 | AJ14: 189 | AK14: 268 | AL14: 235 | AM14: 227 | AN14: 112 | AO14: 98 | AP14: 91 | AQ14: 98 | AR14: 115 | AS14: 140 | AT14: 144
A15: East Dunbartonshire | B15: 1003 | C15: 1029 | D15: 958 | E15: 950 | F15: 958 | G15: 979 | H15: 992 | I15: 1015 | J15: 1033 | K15: 1075 | L15: 1148 | M15: 1241 | N15: 1293 | O15: 1367 | P15: 1487 | Q15: 75 | R15: 118 | S15: 156 | T15: 196 | U15: 223 | V15: 227 | W15: 260 | X15: 263 | Y15: 294 | Z15: 327 | AA15: 344 | AB15: 352 | AC15: 388 | AD15: 408 | AE15: 444 | AF15: 428 | AG15: 285 | AH15: 240 | AI15: 253 | AJ15: 301 | AK15: 311 | AL15: 381 | AM15: 450 | AN15: 339 | AO15: 300 | AP15: 333 | AQ15: 325 | AR15: 344 | AS15: 399 | AT15: 305
A16: East Lothian | B16: 174 | C16: 190 | D16: 205 | E16: 211 | F16: 222 | G16: 240 | H16: 260 | I16: 306 | J16: 293 | K16: 331 | L16: 330 | M16: 375 | N16: 393 | O16: 423 | P16: 428 | Q16: 94 | R16: 110 | S16: 113 | T16: 137 | U16: 162 | V16: 189 | W16: 208 | X16: 236 | Y16: 286 | Z16: 343 | AA16: 401 | AB16: 468 | AC16: 540 | AD16: 618 | AE16: 671 | AF16: 1183 | AG16: 871 | AH16: 561 | AI16: 377 | AJ16: 329 | AK16: 206 | AL16: 161 | AM16: 115 | AN16: 91 | AO16: 68 | AP16: 94 | AQ16: 161 | AR16: 132 | AS16: 123 | AT16: 117
A17: East Renfrewshire | B17: 1366 | C17: 1459 | D17: 1572 | E17: 1648 | F17: 1778 | G17: 1852 | H17: 1921 | I17: 1990 | J17: 2154 | K17: 2277 | L17: 2407 | M17: 2621 | N17: 2795 | O17: 2997 | P17: 3202 | Q17: 180 | R17: 199 | S17: 208 | T17: 213 | U17: 222 | V17: 256 | W17: 282 | X17: 312 | Y17: 385 | Z17: 401 | AA17: 444 | AB17: 477 | AC17: 501 | AD17: 519 | AE17: 537 | AF17: 284 | AG17: 235 | AH17: 287 | AI17: 297 | AJ17: 170 | AK17: 274 | AL17: 374 | AM17: 361 | AN17: 227 | AO17: 217 | AP17: 194 | AQ17: 179 | AR17: 223 | AS17: 183 | AT17: 195
A18: Falkirk | B18: 407 | C18: 461 | D18: 455 | E18: 486 | F18: 506 | G18: 544 | H18: 612 | I18: 637 | J18: 627 | K18: 641 | L18: 678 | M18: 724 | N18: 752 | O18: 805 | P18: 871 | Q18: 117 | R18: 124 | S18: 140 | T18: 148 | U18: 188 | V18: 221 | W18: 230 | X18: 279 | Y18: 370 | Z18: 461 | AA18: 528 | AB18: 605 | AC18: 750 | AD18: 886 | AE18: 980 | AF18: 1137 | AG18: 818 | AH18: 607 | AI18: 419 | AJ18: 291 | AK18: 258 | AL18: 178 | AM18: 174 | AN18: 165 | AO18: 177 | AP18: 126 | AQ18: 135 | AR18: 145 | AS18: 149 | AT18: 104
A19: Fife | B19: 935 | C19: 991 | D19: 1099 | E19: 1166 | F19: 1259 | G19: 1276 | H19: 1646 | I19: 1553 | J19: 1292 | K19: 1365 | L19: 1477 | M19: 1568 | N19: 1731 | O19: 1884 | P19: 2022 | Q19: 813 | R19: 546 | S19: 487 | T19: 481 | U19: 576 | V19: 672 | W19: 736 | X19: 814 | Y19: 963 | Z19: 1113 | AA19: 1321 | AB19: 1454 | AC19: 1679 | AD19: 1939 | AE19: 2166 | AF19: 1493 | AG19: 1075 | AH19: 856 | AI19: 663 | AJ19: 575 | AK19: 419 | AL19: 461 | AM19: 478 | AN19: 1038 | AO19: 948 | AP19: 1061 | AQ19: 1041 | AR19: 1114 | AS19: 938 | AT19: 822
A20: Glasgow City | B20: 7444 | C20: 7713 | D20: 7943 | E20: 8342 | F20: 8853 | G20: 9177 | H20: 9670 | I20: 10104 | J20: 10580 | K20: 11073 | L20: 11772 | M20: 12552 | N20: 13161 | O20: 14117 | P20: 14945 | Q20: 1025 | R20: 1059 | S20: 1363 | T20: 1430 | U20: 1707 | V20: 1954 | W20: 2151 | X20: 2284 | Y20: 2553 | Z20: 2803 | AA20: 3159 | AB20: 3406 | AC20: 3637 | AD20: 3993 | AE20: 4208 | AF20: 2149 | AG20: 1941 | AH20: 2074 | AI20: 2481 | AJ20: 2937 | AK20: 2651 | AL20: 2671 | AM20: 3069 | AN20: 2034 | AO20: 1563 | AP20: 1439 | AQ20: 1512 | AR20: 2568 | AS20: 2681 | AT20: 3439
A21: Highland | B21: 417 | C21: 450 | D21: 516 | E21: 552 | F21: 631 | G21: 632 | H21: 642 | I21: 646 | J21: 648 | K21: 658 | L21: 714 | M21: 738 | N21: 829 | O21: 917 | P21: 929 | Q21: 306 | R21: 339 | S21: 385 | T21: 523 | U21: 637 | V21: 751 | W21: 810 | X21: 888 | Y21: 1005 | Z21: 1099 | AA21: 1255 | AB21: 1458 | AC21: 1617 | AD21: 1768 | AE21: 1890 | AF21: 918 | AG21: 661 | AH21: 551 | AI21: 380 | AJ21: 397 | AK21: 379 | AL21: 346 | AM21: 421 | AN21: 311 | AO21: 350 | AP21: 315 | AQ21: 417 | AR21: 387 | AS21: 369 | AT21: 376
A22: Inverclyde | B22: 230 | C22: 238 | D22: 207 | E22: 198 | F22: 189 | G22: 185 | H22: 185 | I22: 182 | J22: 175 | K22: 176 | L22: 184 | M22: 189 | N22: 192 | O22: 202 | P22: 211 | Q22: 628 | R22: 286 | S22: 205 | T22: 141 | U22: 110 | V22: 126 | W22: 135 | X22: 171 | Y22: 169 | Z22: 145 | AA22: 141 | AB22: 133 | AC22: 149 | AD22: 163 | AE22: 169 | AF22: 103 | AG22: 334 | AH22: 262 | AI22: 229 | AJ22: 301 | AK22: 279 | AL22: 217 | AM22: 227 | AN22: 176 | AO22: 117 | AP22: 115 | AQ22: 114 | AR22: 132 | AS22: 127 | AT22: 126
A23: Midlothian | B23: 193 | C23: 204 | D23: 223 | E23: 227 | F23: 226 | G23: 279 | H23: 286 | I23: 309 | J23: 307 | K23: 333 | L23: 373 | M23: 406 | N23: 462 | O23: 515 | P23: 594 | Q23: 112 | R23: 116 | S23: 119 | T23: 137 | U23: 150 | V23: 173 | W23: 177 | X23: 194 | Y23: 240 | Z23: 261 | AA23: 305 | AB23: 365 | AC23: 422 | AD23: 456 | AE23: 539 | AF23: 827 | AG23: 719 | AH23: 568 | AI23: 594 | AJ23: 516 | AK23: 531 | AL23: 383 | AM23: 244 | AN23: 151 | AO23: 178 | AP23: 208 | AQ23: 117 | AR23: 116 | AS23: 172 | AT23: 202
A24: Moray | B24: 176 | C24: 183 | D24: 192 | E24: 197 | F24: 201 | G24: 230 | H24: 242 | I24: 268 | J24: 232 | K24: 251 | L24: 268 | M24: 291 | N24: 318 | O24: 342 | P24: 333 | Q24: 129 | R24: 127 | S24: 134 | T24: 180 | U24: 244 | V24: 264 | W24: 290 | X24: 319 | Y24: 393 | Z24: 399 | AA24: 437 | AB24: 506 | AC24: 531 | AD24: 568 | AE24: 581 | AF24: 237 | AG24: 188 | AH24: 138 | AI24: 103 | AJ24: 114 | AK24: 111 | AL24: 141 | AM24: 187 | AN24: 96 | AO24: 114 | AP24: 137 | AQ24: 143 | AR24: 150 | AS24: 103 | AT24: 83
A25: Na h-Eileanan Siar | B25: 52 | C25: 57 | D25: 54 | E25: 55 | F25: 54 | G25: 39 | H25: 51 | I25: 46 | J25: 48 | K25: 59 | L25: 57 | M25: 62 | N25: 65 | O25: 67 | P25: 68 | Q25: 29 | R25: 34 | S25: 38 | T25: 42 | U25: 47 | V25: 52 | W25: 52 | X25: 59 | Y25: 53 | Z25: 51 | AA25: 55 | AB25: 59 | AC25: 65 | AD25: 75 | AE25: 70 | AF25: 361 | AG25: 172 | AH25: 44 | AI25: 33 | AJ25: 31 | AK25: 18 | AL25: 21 | AM25: 48 | AN25: 59 | AO25: 53 | AP25: 62 | AQ25: 38 | AR25: 36 | AS25: 29 | AT25: 38
A26: North Ayrshire | B26: 290 | C26: 281 | D26: 294 | E26: 282 | F26: 269 | G26: 263 | H26: 256 | I26: 277 | J26: 279 | K26: 279 | L26: 296 | M26: 327 | N26: 331 | O26: 390 | P26: 408 | Q26: 124 | R26: 126 | S26: 144 | T26: 181 | U26: 248 | V26: 257 | W26: 256 | X26: 309 | Y26: 303 | Z26: 299 | AA26: 318 | AB26: 317 | AC26: 348 | AD26: 396 | AE26: 404 | AF26: 471 | AG26: 571 | AH26: 434 | AI26: 392 | AJ26: 502 | AK26: 512 | AL26: 600 | AM26: 554 | AN26: 270 | AO26: 276 | AP26: 270 | AQ26: 362 | AR26: 334 | AS26: 326 | AT26: 372
A27: North Lanarkshire | B27: 1023 | C27: 1113 | D27: 1177 | E27: 1262 | F27: 1373 | G27: 1425 | H27: 1502 | I27: 1564 | J27: 1574 | K27: 1622 | L27: 1697 | M27: 1795 | N27: 1928 | O27: 2051 | P27: 2153 | Q27: 346 | R27: 378 | S27: 415 | T27: 551 | U27: 631 | V27: 780 | W27: 834 | X27: 908 | Y27: 1071 | Z27: 1144 | AA27: 1228 | AB27: 1445 | AC27: 1668 | AD27: 1903 | AE27: 2059 | AF27: 1087 | AG27: 1007 | AH27: 1303 | AI27: 1456 | AJ27: 1663 | AK27: 1512 | AL27: 1266 | AM27: 1057 | AN27: 773 | AO27: 629 | AP27: 607 | AQ27: 588 | AR27: 613 | AS27: 628 | AT27: 643
A28: Orkney Islands | B28: 21 | C28: 24 | D28: 28 | E28: 30 | F28: 35 | G28: 46 | H28: 55 | I28: 49 | J28: 39 | K28: 39 | L28: 38 | M28: 42 | N28: 38 | O28: 39 | P28: 47 | Q28: 19 | R28: 23 | S28: 23 | T28: 24 | U28: 31 | V28: 37 | W28: 45 | X28: 49 | Y28: 57 | Z28: 80 | AA28: 104 | AB28: 120 | AC28: 117 | AD28: 119 | AE28: 116 | AF28: 394 | AG28: 287 | AH28: 271 | AI28: 268 | AJ28: 180 | AK28: 121 | AL28: 85 | AM28: 77 | AN28: 41 | AO28: 54 | AP28: 71 | AQ28: 73 | AR28: 90 | AS28: 51 | AT28: 71
A29: Perth and Kinross | B29: 214 | C29: 233 | D29: 298 | E29: 321 | F29: 369 | G29: 438 | H29: 495 | I29: 509 | J29: 487 | K29: 523 | L29: 542 | M29: 572 | N29: 622 | O29: 696 | P29: 720 | Q29: 124 | R29: 128 | S29: 190 | T29: 235 | U29: 326 | V29: 431 | W29: 510 | X29: 547 | Y29: 664 | Z29: 788 | AA29: 903 | AB29: 970 | AC29: 1104 | AD29: 1220 | AE29: 1325 | AF29: 4171 | AG29: 3986 | AH29: 2645 | AI29: 2162 | AJ29: 341 | AK29: 344 | AL29: 232 | AM29: 145 | AN29: 104 | AO29: 82 | AP29: 80 | AQ29: 113 | AR29: 135 | AS29: 104 | AT29: 124
A30: Renfrewshire | B30: 509 | C30: 575 | D30: 581 | E30: 606 | F30: 660 | G30: 732 | H30: 771 | I30: 781 | J30: 787 | K30: 837 | L30: 850 | M30: 891 | N30: 979 | O30: 1076 | P30: 1201 | Q30: 214 | R30: 206 | S30: 254 | T30: 276 | U30: 308 | V30: 324 | W30: 349 | X30: 369 | Y30: 440 | Z30: 446 | AA30: 516 | AB30: 562 | AC30: 642 | AD30: 716 | AE30: 808 | AF30: 465 | AG30: 385 | AH30: 499 | AI30: 543 | AJ30: 539 | AK30: 515 | AL30: 572 | AM30: 776 | AN30: 432 | AO30: 507 | AP30: 516 | AQ30: 565 | AR30: 576 | AS30: 615 | AT30: 570
A31: Scottish Borders | B31: 162 | C31: 169 | D31: 182 | E31: 174 | F31: 200 | G31: 227 | H31: 289 | I31: 338 | J31: 332 | K31: 321 | L31: 305 | M31: 322 | N31: 330 | O31: 340 | P31: 361 | Q31: 151 | R31: 166 | S31: 175 | T31: 255 | U31: 328 | V31: 373 | W31: 407 | X31: 427 | Y31: 465 | Z31: 513 | AA31: 577 | AB31: 617 | AC31: 667 | AD31: 709 | AE31: 770 | AF31: 238 | AG31: 265 | AH31: 312 | AI31: 253 | AJ31: 277 | AK31: 296 | AL31: 413 | AM31: 463 | AN31: 339 | AO31: 339 | AP31: 310 | AQ31: 306 | AR31: 303 | AS31: 268 | AT31: 242
A32: Shetland Islands | B32: 56 | C32: 40 | D32: 47 | E32: 51 | F32: 52 | G32: 55 | H32: 57 | I32: 67 | J32: 84 | K32: 88 | L32: 84 | M32: 88 | N32: 101 | O32: 102 | P32: 100 | Q32: 13 | R32: 23 | S32: 24 | T32: 36 | U32: 47 | V32: 59 | W32: 81 | X32: 87 | Y32: 84 | Z32: 96 | AA32: 106 | AB32: 116 | AC32: 128 | AD32: 145 | AE32: 143 | AF32: 134 | AG32: 80 | AH32: 75 | AI32: 66 | AJ32: 53 | AK32: 36 | AL32: 39 | AM32: 36 | AN32: 25 | AO32: 24 | AP32: 26 | AQ32: 17 | AR32: 13 | AS32: 20 | AT32: 30
A33: South Ayrshire | B33: 189 | C33: 299 | D33: 279 | E33: 268 | F33: 277 | G33: 279 | H33: 291 | I33: 296 | J33: 284 | K33: 294 | L33: 295 | M33: 287 | N33: 318 | O33: 347 | P33: 362 | Q33: 194 | R33: 141 | S33: 228 | T33: 262 | U33: 376 | V33: 303 | W33: 287 | X33: 319 | Y33: 339 | Z33: 333 | AA33: 335 | AB33: 360 | AC33: 382 | AD33: 377 | AE33: 378 | AF33: 356 | AG33: 330 | AH33: 391 | AI33: 513 | AJ33: 376 | AK33: 406 | AL33: 397 | AM33: 363 | AN33: 264 | AO33: 194 | AP33: 193 | AQ33: 168 | AR33: 174 | AS33: 190 | AT33: 207
A34: South Lanarkshire | B34: 1072 | C34: 1091 | D34: 1104 | E34: 1135 | F34: 1181 | G34: 1235 | H34: 1307 | I34: 1413 | J34: 1396 | K34: 1449 | L34: 1524 | M34: 1595 | N34: 1698 | O34: 1868 | P34: 2024 | Q34: 103 | R34: 146 | S34: 296 | T34: 351 | U34: 422 | V34: 501 | W34: 583 | X34: 659 | Y34: 792 | Z34: 825 | AA34: 893 | AB34: 928 | AC34: 1075 | AD34: 1173 | AE34: 1235 | AF34: 725 | AG34: 858 | AH34: 877 | AI34: 1149 | AJ34: 1393 | AK34: 1629 | AL34: 1722 | AM34: 1862 | AN34: 989 | AO34: 977 | AP34: 998 | AQ34: 1043 | AR34: 1001 | AS34: 841 | AT34: 796
A35: Stirling | B35: 273 | C35: 299 | D35: 321 | E35: 334 | F35: 324 | G35: 432 | H35: 480 | I35: 481 | J35: 488 | K35: 423 | L35: 451 | M35: 443 | N35: 464 | O35: 488 | P35: 498 | Q35: 159 | R35: 169 | S35: 159 | T35: 187 | U35: 210 | V35: 220 | W35: 260 | X35: 304 | Y35: 331 | Z35: 380 | AA35: 405 | AB35: 460 | AC35: 513 | AD35: 563 | AE35: 610 | AF35: 261 | AG35: 153 | AH35: 84 | AI35: 69 | AJ35: 71 | AK35: 113 | AL35: 191 | AM35: 183 | AN35: 103 | AO35: 107 | AP35: 114 | AQ35: 94 | AR35: 78 | AS35: 107 | AT35: 137
A36: West Dunbartonshire | B36: 143 | C36: 162 | D36: 172 | E36: 212 | F36: 245 | G36: 264 | H36: 282 | I36: 284 | J36: 272 | K36: 292 | L36: 290 | M36: 309 | N36: 328 | O36: 370 | P36: 391 | Q36: 122 | R36: 126 | S36: 160 | T36: 185 | U36: 174 | V36: 259 | W36: 296 | X36: 296 | Y36: 319 | Z36: 331 | AA36: 349 | AB36: 376 | AC36: 379 | AD36: 396 | AE36: 409 | AF36: 459 | AG36: 465 | AH36: 361 | AI36: 422 | AJ36: 454 | AK36: 483 | AL36: 574 | AM36: 562 | AN36: 207 | AO36: 224 | AP36: 223 | AQ36: 222 | AR36: 276 | AS36: 289 | AT36: 321
A37: West Lothian | B37: 528 | C37: 564 | D37: 614 | E37: 835 | F37: 949 | G37: 939 | H37: 906 | I37: 932 | J37: 984 | K37: 1003 | L37: 1076 | M37: 1166 | N37: 1269 | O37: 1399 | P37: 1486 | Q37: 212 | R37: 215 | S37: 242 | T37: 350 | U37: 35 | V37: 555 | W37: 634 | X37: 696 | Y37: 838 | Z37: 916 | AA37: 1039 | AB37: 1232 | AC37: 1392 | AD37: 1640 | AE37: 1794 | AF37: 1423 | AG37: 1180 | AH37: 1150 | AI37: 844 | AJ37: 783 | AK37: 1029 | AL37: 1060 | AM37: 1223 | AN37: 608 | AO37: 791 | AP37: 772 | AQ37: 694 | AR37: 660 | AS37: 648 | AT37: 647
A38: Grant aided | B38: 73 | C38: 79 | D38: 87 | E38: 94 | F38: 103 | G38: 103 | H38: 105 | I38: 102 | J38: 111 | K38: 99 | L38: 95 | M38: 91 | N38: 92 | O38: 92 | P38: 100 | Q38: 5 | R38: 7 | S38: 7 | T38: 8 | U38: 8 | V38: 8 | W38: 10 | X38: 15 | Y38: 21 | Z38: 19 | AA38: 24 | AB38: 28 | AC38: 29 | AD38: 25 | AE38: 26 | AF38: 5 | AG38: 10 | AH38: 11 | AI38: 22 | AJ38: 23 | AK38: 22 | AL38: 23 | AM38: 23 | AN38: 17 | AO38: 14 | AP38: 12 | AQ38: 13 | AR38: 11 | AS38: 14 | AT38: 12
A40: Notes
A41: 1) The data in the table above are mainly derived from the annual pupil census which takes place in September of the relevant year.
A42: 2) Excludes grant aided special schools (shown separately at bottom of table). Council area totals have been adjusted slightly for disclosure purposes, however, the figures for “Scotland” are correct. The figure for "Scotland" is taken from the "All local authorities" figure.
A43: 3) Minority ethnic group includes all categories other than white-UK and white-other or unknown/not disclosed (up to 2010) or White Scottish, White Other British and White-Other (2011 on).
A44: 4) White-Other includes White-Other, White-Irish and White-Polish
A45: 5) Ethnicity figures for 2011 - 2017 are not directly comparable to previous years due to the changes in ethnicity categories in 2011. Categories are based on those used in 2011 population census.
A46: 6) Source: Pupils Census, SG publication - http://www.scotland.gov.uk/Topics/Statistics/Browse/School-Education/PubPupilCensus
A48: © Crown Copyright 2018

Sheet Pupils with English as an add.
A1: Pupils with English as an additional language | I1: Return to front page
B3: 2006 | C3: 2007 | D3: 2008 | E3: 2009 | F3: 2010 | G3: 2011 | H3: 2012 | I3: 2013 | J3: 2014 | K3: 2015 | L3: 2016 | M3: 2017
A4: SCOTLAND | B4: 9486 | C4: 15411 | D4: 19001 | E4: 21223 | F4: 22740 | G4: 24555 | H4: 26131 | I4: 29532 | J4: 32509 | K4: 35441 | L4: 39331 | M4: 41524
A5: Aberdeen City | B5: 846 | C5: 1181 | D5: 1417 | E5: 1503 | F5: 1675 | G5: 1833 | H5: 1602 | I5: 2132 | J5: 2444 | K5: 3054 | L5: 3459 | M5: 3805
A6: Aberdeenshire | B6: 279 | C6: 443 | D6: 515 | E6: 681 | F6: 829 | G6: 925 | H6: 1054 | I6: 1216 | J6: 1356 | K6: 1566 | L6: 1671 | M6: 1719
A7: Angus | B7: 76 | C7: 100 | D7: 150 | E7: 203 | F7: 261 | G7: 299 | H7: 348 | I7: 379 | J7: 431 | K7: 476 | L7: 527 | M7: 563
A8: Argyll and Bute | B8: 43 | C8: 56 | D8: 102 | E8: 104 | F8: 110 | G8: 124 | H8: 135 | I8: 145 | J8: 164 | K8: 175 | L8: 214 | M8: 203
A9: City of Edinburgh | B9: 1910 | C9: 2211 | D9: 2602 | E9: 2979 | F9: 3258 | G9: 3588 | H9: 3951 | I9: 4861 | J9: 5227 | K9: 5685 | L9: 6096 | M9: 5914
A10: Clackmannanshire | B10: 22 | C10: 54 | D10: 84 | E10: 89 | F10: 109 | G10: 115 | H10: 120 | I10: 139 | J10: 156 | K10: 167 | L10: 179 | M10: 199
A11: Dumfries and Galloway | B11: 131 | C11: 179 | D11: 232 | E11: 225 | F11: 243 | G11: 260 | H11: 298 | I11: 298 | J11: 331 | K11: 341 | L11: 395 | M11: 410
A12: Dundee City | B12: 435 | C12: 490 | D12: 657 | E12: 702 | F12: 765 | G12: 870 | H12: 928 | I12: 959 | J12: 1096 | K12: 1137 | L12: 1195 | M12: 1292
A13: East Ayrshire | B13: 22 | C13: 36 | D13: 77 | E13: 80 | F13: 88 | G13: 99 | H13: 121 | I13: 126 | J13: 158 | K13: 169 | L13: 172 | M13: 168
A14: East Dunbartonshire | B14: 255 | C14: 253 | D14: 333 | E14: 350 | F14: 295 | G14: 306 | H14: 385 | I14: 377 | J14: 400 | K14: 406 | L14: 437 | M14: 515
A15: East Lothian | B15: 73 | C15: 104 | D15: 117 | E15: 125 | F15: 156 | G15: 159 | H15: 184 | I15: 221 | J15: 263 | K15: 283 | L15: 344 | M15: 376
A16: East Renfrewshire | B16: 373 | C16: 549 | D16: 679 | E16: 771 | F16: 759 | G16: 805 | H16: 868 | I16: 818 | J16: 831 | K16: 837 | L16: 886 | M16: 961
A17: Falkirk | B17: 254 | C17: 298 | D17: 328 | E17: 394 | F17: 416 | G17: 461 | H17: 477 | I17: 497 | J17: 581 | K17: 648 | L17: 730 | M17: 768
A18: Fife | B18: 282 | C18: 432 | D18: 512 | E18: 550 | F18: 505 | G18: 611 | H18: 802 | I18: 903 | J18: 1004 | K18: 1150 | L18: 1336 | M18: 1543
A19: Glasgow City | B19: 2691 | C19: 6365 | D19: 7804 | E19: 8425 | F19: 8914 | G19: 9275 | H19: 9702 | I19: 10445 | J19: 11190 | K19: 11483 | L19: 12743 | M19: 13489
A20: Highland | B20: 254 | C20: 372 | D20: 486 | E20: 643 | F20: 570 | G20: 646 | H20: 632 | I20: 867 | J20: 976 | K20: 1225 | L20: 1352 | M20: 1320
A21: Inverclyde | B21: 16 | C21: 20 | D21: 24 | E21: 47 | F21: 54 | G21: 35 | H21: 53 | I21: 53 | J21: 44 | K21: 29 | L21: 59 | M21: 57
A22: Midlothian | B22: 42 | C22: 82 | D22: 99 | E22: 124 | F22: 129 | G22: 128 | H22: 184 | I22: 230 | J22: 266 | K22: 307 | L22: 353 | M22: 417
A23: Moray | B23: 127 | C23: 185 | D23: 193 | E23: 222 | F23: 240 | G23: 252 | H23: 266 | I23: 304 | J23: 381 | K23: 415 | L23: 471 | M23: 447
A24: Na h-Eileanan Siar | B24: 23 | C24: 32 | D24: 19 | E24: 27 | F24: 18 | G24: 25 | H24: 39 | I24: 47 | J24: 54 | K24: 53 | L24: 62 | M24: 57
A25: North Ayrshire | B25: 13 | C25: 65 | D25: 66 | E25: 71 | F25: 77 | G25: 93 | H25: 101 | I25: 108 | J25: 117 | K25: 121 | L25: 155 | M25: 169
A26: North Lanarkshire | B26: 302 | C26: 493 | D26: 667 | E26: 740 | F26: 851 | G26: 892 | H26: 896 | I26: 1000 | J26: 1121 | K26: 1271 | L26: 1428 | M26: 1555
A27: Orkney Islands | B27: 0 | C27: 6 | D27: 6 | E27: 7 | F27: 15 | G27: 5 | H27: 16 | I27: 15 | J27: 14 | K27: 20 | L27: 22 | M27: 29
A28: Perth and Kinross | B28: 165 | C28: 240 | D28: 315 | E28: 379 | F28: 403 | G28: 450 | H28: 519 | I28: 578 | J28: 630 | K28: 740 | L28: 867 | M28: 861
A29: Renfrewshire | B29: 42 | C29: 98 | D29: 197 | E29: 265 | F29: 303 | G29: 319 | H29: 323 | I29: 416 | J29: 480 | K29: 563 | L29: 630 | M29: 832
A30: Scottish Borders | B30: 137 | C30: 171 | D30: 217 | E30: 242 | F30: 258 | G30: 322 | H30: 347 | I30: 357 | J30: 394 | K30: 411 | L30: 446 | M30: 492
A31: Shetland Islands | B31: 0 | C31: 12 | D31: 25 | E31: 49 | F31: 48 | G31: 42 | H31: 33 | I31: 29 | J31: 49 | K31: 57 | L31: 74 | M31: 58
A32: South Ayrshire | B32: 30 | C32: 63 | D32: 86 | E32: 74 | F32: 138 | G32: 158 | H32: 149 | I32: 148 | J32: 174 | K32: 177 | L32: 209 | M32: 209
A33: South Lanarkshire | B33: 268 | C33: 291 | D33: 373 | E33: 414 | F33: 456 | G33: 461 | H33: 510 | I33: 581 | J33: 660 | K33: 711 | L33: 824 | M33: 912
A34: Stirling | B34: 91 | C34: 106 | D34: 120 | E34: 139 | F34: 172 | G34: 184 | H34: 209 | I34: 244 | J34: 264 | K34: 304 | L34: 315 | M34: 339
A35: West Dunbartonshire | B35: 22 | C35: 77 | D35: 109 | E35: 120 | F35: 87 | G35: 132 | H35: 155 | I35: 169 | J35: 201 | K35: 213 | L35: 266 | M35: 294
A36: West Lothian | B36: 173 | C36: 289 | D36: 359 | E36: 422 | F36: 519 | G36: 630 | H36: 710 | I36: 851 | J36: 1033 | K36: 1211 | L36: 1414 | M36: 1539
A38: Notes
A39: 1) The data in the table above are mainly derived from the annual pupil census which takes place in September of the relevant year.
A40: 2) All levels of competency have been combined.
A41: 3) Source: Pupils Census, SG publication - http://www.scotland.gov.uk/Topics/Statistics/Browse/School-Education/PubPupilCensus
A43: © Crown Copyright 2018

Sheet Non-UK Births
A1: Births to non-UK mothers | K1: Return to front page
B3: Births
A4: Calendar Year | B4: 2004 | C4: 2005 | D4: 2006 | E4: 2007 | F4: 2008 | G4: 2009 | H4: 2010 | I4: 2011 | J4: 2012 | K4: 2013 | L4: 2014 | M4: 2015 | N4: 2016 | O4: 2017
A5: SCOTLAND | B5: 4219 | C5: 4675 | D5: 5222 | E5: 6350 | F5: 7607 | G5: 7984 | H5: 8176 | I5: 8343 | J5: 8439 | K5: 8634 | L5: 9178 | M5: 8998 | N5: 9296 | O5: 9186
A6: Aberdeen City | B6: 299 | C6: 330 | D6: 395 | E6: 555 | F6: 726 | G6: 782 | H6: 840 | I6: 838 | J6: 911 | K6: 940 | L6: 986 | M6: 992 | N6: 988 | O6: 885
A7: Aberdeenshire | B7: 163 | C7: 185 | D7: 229 | E7: 270 | F7: 298 | G7: 322 | H7: 359 | I7: 379 | J7: 383 | K7: 364 | L7: 450 | M7: 434 | N7: 454 | O7: 395
A8: Angus | B8: 59 | C8: 61 | D8: 68 | E8: 85 | F8: 95 | G8: 116 | H8: 101 | I8: 134 | J8: 134 | K8: 133 | L8: 135 | M8: 115 | N8: 139 | O8: 121
A9: Argyll and Bute | B9: 43 | C9: 52 | D9: 55 | E9: 73 | F9: 83 | G9: 83 | H9: 73 | I9: 79 | J9: 78 | K9: 70 | L9: 81 | M9: 87 | N9: 87 | O9: 95
A10: City of Edinburgh | B10: 721 | C10: 836 | D10: 996 | E10: 1116 | F10: 1455 | G10: 1475 | H10: 1527 | I10: 1529 | J10: 1652 | K10: 1700 | L10: 1880 | M10: 1821 | N10: 1836 | O10: 1837
A11: Clackmannanshire | B11: 18 | C11: 27 | D11: 23 | E11: 53 | F11: 46 | G11: 49 | H11: 48 | I11: 43 | J11: 50 | K11: 42 | L11: 49 | M11: 40 | N11: 41 | O11: 47
A12: Dumfries and Galloway | B12: 59 | C12: 71 | D12: 76 | E12: 86 | F12: 81 | G12: 116 | H12: 85 | I12: 96 | J12: 90 | K12: 98 | L12: 91 | M12: 87 | N12: 96 | O12: 99
A13: Dundee City | B13: 135 | C13: 151 | D13: 170 | E13: 215 | F13: 288 | G13: 292 | H13: 290 | I13: 318 | J13: 265 | K13: 238 | L13: 310 | M13: 267 | N13: 307 | O13: 271
A14: East Ayrshire | B14: 38 | C14: 42 | D14: 38 | E14: 51 | F14: 52 | G14: 68 | H14: 61 | I14: 76 | J14: 52 | K14: 45 | L14: 44 | M14: 56 | N14: 58 | O14: 57
A15: East Dunbartonshire | B15: 67 | C15: 65 | D15: 69 | E15: 74 | F15: 80 | G15: 78 | H15: 75 | I15: 77 | J15: 79 | K15: 73 | L15: 87 | M15: 86 | N15: 66 | O15: 98
A16: East Lothian | B16: 51 | C16: 70 | D16: 69 | E16: 79 | F16: 106 | G16: 90 | H16: 112 | I16: 131 | J16: 134 | K16: 115 | L16: 126 | M16: 125 | N16: 130 | O16: 125
A17: East Renfrewshire | B17: 81 | C17: 73 | D17: 79 | E17: 78 | F17: 77 | G17: 82 | H17: 84 | I17: 76 | J17: 81 | K17: 87 | L17: 78 | M17: 92 | N17: 108 | O17: 100
A18: Falkirk | B18: 78 | C18: 97 | D18: 86 | E18: 107 | F18: 144 | G18: 131 | H18: 123 | I18: 144 | J18: 160 | K18: 149 | L18: 164 | M18: 171 | N18: 173 | O18: 160
A19: Fife | B19: 220 | C19: 227 | D19: 285 | E19: 322 | F19: 388 | G19: 388 | H19: 406 | I19: 424 | J19: 402 | K19: 407 | L19: 408 | M19: 443 | N19: 485 | O19: 445
A20: Glasgow City | B20: 1037 | C20: 1206 | D20: 1195 | E20: 1449 | F20: 1733 | G20: 1827 | H20: 1922 | I20: 1881 | J20: 1873 | K20: 1986 | L20: 2037 | M20: 1952 | N20: 1940 | O20: 2076
A21: Highland | B21: 151 | C21: 163 | D21: 203 | E21: 241 | F21: 261 | G21: 301 | H21: 312 | I21: 269 | J21: 327 | K21: 316 | L21: 337 | M21: 314 | N21: 322 | O21: 275
A22: Inverclyde | B22: 40 | C22: 41 | D22: 32 | E22: 32 | F22: 36 | G22: 42 | H22: 33 | I22: 34 | J22: 27 | K22: 33 | L22: 28 | M22: 30 | N22: 35 | O22: 27
A23: Midlothian | B23: 40 | C23: 40 | D23: 53 | E23: 75 | F23: 82 | G23: 81 | H23: 71 | I23: 82 | J23: 100 | K23: 85 | L23: 99 | M23: 114 | N23: 128 | O23: 136
A24: Moray | B24: 64 | C24: 59 | D24: 59 | E24: 102 | F24: 84 | G24: 99 | H24: 87 | I24: 107 | J24: 78 | K24: 112 | L24: 107 | M24: 98 | N24: 113 | O24: 109
A25: Na h-Eileanan Siar | B25: 11 | C25: 8 | D25: 11 | E25: 13 | F25: 14 | G25: 22 | H25: 10 | I25: 13 | J25: 13 | K25: 21 | L25: 17 | M25: 8 | N25: 26 | O25: 19
A26: North Ayrshire | B26: 48 | C26: 55 | D26: 49 | E26: 54 | F26: 55 | G26: 77 | H26: 60 | I26: 52 | J26: 64 | K26: 61 | L26: 56 | M26: 62 | N26: 49 | O26: 56
A27: North Lanarkshire | B27: 141 | C27: 104 | D27: 162 | E27: 190 | F27: 245 | G27: 253 | H27: 277 | I27: 284 | J27: 240 | K27: 265 | L27: 273 | M27: 237 | N27: 288 | O27: 285
A28: Orkney Islands | B28: 6 | C28: 4 | D28: 9 | E28: 6 | F28: 13 | G28: 7 | H28: 14 | I28: 8 | J28: 11 | K28: 7 | L28: 11 | M28: 9 | N28: 13 | O28: 11
A29: Perth and Kinross | B29: 92 | C29: 107 | D29: 111 | E29: 145 | F29: 166 | G29: 196 | H29: 204 | I29: 204 | J29: 201 | K29: 211 | L29: 233 | M29: 233 | N29: 223 | O29: 233
A30: Renfrewshire | B30: 91 | C30: 88 | D30: 101 | E30: 123 | F30: 155 | G30: 162 | H30: 175 | I30: 176 | J30: 183 | K30: 176 | L30: 186 | M30: 185 | N30: 224 | O30: 232
A31: Scottish Borders | B31: 63 | C31: 71 | D31: 84 | E31: 126 | F31: 135 | G31: 118 | H31: 124 | I31: 115 | J31: 135 | K31: 130 | L31: 121 | M31: 121 | N31: 129 | O31: 109
A32: Shetland Islands | B32: 14 | C32: 18 | D32: 21 | E32: 15 | F32: 24 | G32: 22 | H32: 23 | I32: 30 | J32: 21 | K32: 22 | L32: 28 | M32: 24 | N32: 24 | O32: 23
A33: South Ayrshire | B33: 40 | C33: 49 | D33: 44 | E33: 62 | F33: 59 | G33: 58 | H33: 63 | I33: 61 | J33: 67 | K33: 58 | L33: 59 | M33: 78 | N33: 53 | O33: 65
A34: South Lanarkshire | B34: 124 | C34: 138 | D34: 169 | E34: 195 | F34: 214 | G34: 206 | H34: 207 | I34: 245 | J34: 197 | K34: 227 | L34: 239 | M34: 221 | N34: 264 | O34: 258
A35: Stirling | B35: 80 | C35: 61 | D35: 85 | E35: 82 | F35: 85 | G35: 108 | H35: 102 | I35: 100 | J35: 80 | K35: 84 | L35: 109 | M35: 104 | N35: 107 | O35: 109
A36: West Dunbartonshire | B36: 26 | C36: 28 | D36: 38 | E36: 49 | F36: 49 | G36: 39 | H36: 54 | I36: 60 | J36: 44 | K36: 68 | L36: 51 | M36: 72 | N36: 61 | O36: 66
A37: West Lothian | B37: 119 | C37: 148 | D37: 158 | E37: 227 | F37: 278 | G37: 294 | H37: 254 | I37: 278 | J37: 307 | K37: 311 | L37: 298 | M37: 320 | N37: 329 | O37: 362
A39: NHS Board Areas
A40: SCOTLAND | B40: 4219 | C40: 4675 | D40: 5222 | E40: 6350 | F40: 7607 | G40: 7984 | H40: 8176 | I40: 8343 | J40: 8439 | K40: 8634 | L40: 9178 | M40: 8998 | N40: 9296 | O40: 9186
A41: Ayrshire and Arran | B41: 126 | C41: 146 | D41: 131 | E41: 167 | F41: 166 | G41: 203 | H41: 184 | I41: 189 | J41: 183 | K41: 164 | L41: 159 | M41: 196 | N41: 160 | O41: 178
A42: Borders | B42: 63 | C42: 71 | D42: 84 | E42: 126 | F42: 135 | G42: 118 | H42: 124 | I42: 115 | J42: 135 | K42: 130 | L42: 121 | M42: 121 | N42: 129 | O42: 109
A43: Dumfries and Galloway | B43: 59 | C43: 71 | D43: 76 | E43: 86 | F43: 81 | G43: 116 | H43: 85 | I43: 96 | J43: 90 | K43: 98 | L43: 91 | M43: 87 | N43: 96 | O43: 99
A44: Fife | B44: 220 | C44: 227 | D44: 285 | E44: 322 | F44: 388 | G44: 388 | H44: 406 | I44: 424 | J44: 402 | K44: 407 | L44: 408 | M44: 443 | N44: 485 | O44: 445
A45: Forth Valley | B45: 176 | C45: 185 | D45: 194 | E45: 242 | F45: 276 | G45: 288 | H45: 273 | I45: 287 | J45: 290 | K45: 275 | L45: 322 | M45: 315 | N45: 321 | O45: 316
A46: Grampian | B46: 526 | C46: 574 | D46: 683 | E46: 927 | F46: 1108 | G46: 1203 | H46: 1286 | I46: 1324 | J46: 1372 | K46: 1416 | L46: 1543 | M46: 1524 | N46: 1555 | O46: 1389
A47: Greater Glasgow and Clyde | B47: 1394 | C47: 1546 | D47: 1560 | E47: 1866 | F47: 2198 | G47: 2291 | H47: 2408 | I47: 2384 | J47: 2287 | K47: 2423 | L47: 2467 | M47: 2417 | N47: 2434 | O47: 2599
A48: Highland | B48: 194 | C48: 215 | D48: 258 | E48: 314 | F48: 344 | G48: 384 | H48: 385 | I48: 348 | J48: 405 | K48: 386 | L48: 418 | M48: 401 | N48: 409 | O48: 370
A49: Lanarkshire | B49: 213 | C49: 197 | D49: 286 | E49: 324 | F49: 392 | G49: 398 | H49: 419 | I49: 450 | J49: 437 | K49: 492 | L49: 512 | M49: 458 | N49: 552 | O49: 543
A50: Lothian | B50: 931 | C50: 1094 | D50: 1275 | E50: 1497 | F50: 1920 | G50: 1940 | H50: 1964 | I50: 2019 | J50: 2193 | K50: 2211 | L50: 2403 | M50: 2380 | N50: 2423 | O50: 2460
A51: Orkney | B51: 6 | C51: 4 | D51: 9 | E51: 6 | F51: 13 | G51: 7 | H51: 14 | I51: 8 | J51: 11 | K51: 7 | L51: 11 | M51: 9 | N51: 13 | O51: 11
A52: Shetland | B52: 14 | C52: 18 | D52: 21 | E52: 15 | F52: 24 | G52: 22 | H52: 23 | I52: 30 | J52: 21 | K52: 22 | L52: 28 | M52: 24 | N52: 24 | O52: 23
A53: Tayside | B53: 286 | C53: 319 | D53: 349 | E53: 445 | F53: 548 | G53: 604 | H53: 595 | I53: 656 | J53: 600 | K53: 582 | L53: 678 | M53: 615 | N53: 669 | O53: 625
A54: Western Isles | B54: 11 | C54: 8 | D54: 11 | E54: 13 | F54: 14 | G54: 22 | H54: 10 | I54: 13 | J54: 13 | K54: 21 | L54: 17 | M54: 8 | N54: 26 | O54: 19
A56: Notes
A57: 1) Births to non-UK mothers is the total of all births of mothers not born in the UK, Isle of Man, or the Channel Islands. Further breakdown of births by mother's country of birth is available in the NRS Vital Events Reference Tables, Table 3.9.
A58: 2) Source: NRS Vital Events Reference Tables, Table 3.9 - http://www.nrscotland.gov.uk/statistics-and-data/statistics/statistics-by-theme/vital-events/general-publications/vital-events-reference-tables/2017/section-3-births
A59: 3) The NHS Board areas used for estimates between 2003/04 and 2010/11 are those that existed between 2006 and 2014. The 2011/12 estimates onwards use the NHS Board areas that came into force in April 2014.
A61: © Crown Copyright 2018

Sheet Births to non-UK mothers %birth
A1: Births to non-UK mothers as percentage of total births | K1: Return to front page
B3: Births (percentage)
